Workbook

Sheet X (hidden)
A1: SN | B1: GROUP_NO | C1: HEAD_NO | D1: Budget Head | E1: CODE | F1: NAME | G1: EMPID | H1: DESIG | I1: PAY SACLE | J1: BASIC | K1: DP | L1: RATE_INCR | M1: YEAR_AGI | N1: YEAR_AMT | O1: YEAR_AMT_P | P1: H_R | Q1: CCA | R1: SCALE_NO | S1: HRA CON | T1: CCA CON
A2: 1 | B2: 08 | C2: 01 | D2: =INDEX(TPravesh!$M$10:$M$17,MATCH(X!C2,TPravesh!$L$10:$L$17,0)) -> 2202-02-001-02-01 | E2: G0435 | F2: NATHMAL DIDEL | G2: RJJP201319031357 | H2: DIRECTOR | I2: PB (37400-67000) G.P.- 8700 L-21 | J2: 76200 | K2: 0 | L2: 2300 | M2: 18400 | N2: 914400 | O2: 905200 | P2: 0 | Q2: 0 | R2: 21 | S2: =IF(P2>0,"YES","NO") -> NO | T2: =IF(Q2>0,"YES","NO") -> NO
A3: 1 | B3: 06 | C3: 01 | D3: =INDEX(TPravesh!$M$10:$M$17,MATCH(X!C3,TPravesh!$L$10:$L$17,0)) -> 2202-02-001-02-01 | E3: G0445 | F3: PARMESHWAR LAL | G3: RJJP199117025214 | H3: A.DIR(RAS) | I3: PB (37400-67000) G.P.- 8700 L-21 | J3: 150200 | K3: 0 | L3: 4500 | M3: 36000 | N3: 1802400 | O3: 1784400 | P3: 24032 | Q3: 620 | R3: 21 | S3: =IF(P3>0,"YES","NO") -> YES | T3: =IF(Q3>0,"YES","NO") -> YES
A4: 3 | B4: 06 | C4: 01 | D4: =INDEX(TPravesh!$M$10:$M$17,MATCH(X!C4,TPravesh!$L$10:$L$17,0)) -> 2202-02-001-02-01 | E4: G0449 | F4: HAJARI RAM JAYANI | G4: RJBI198809016974 | H4: J.L.R. | I4: PB (15600-39100) G.P.- 8200 L-20 | J4: 109300 | K4: 0 | L4: 3300 | M4: 26400 | N4: 1311600 | O4: 1298400 | P4: 17488 | Q4: 620 | R4: 20 | S4: YES | T4: YES
A5: 6 | B5: 06 | C5: 01 | D5: =INDEX(TPravesh!$M$10:$M$17,MATCH(X!C5,TPravesh!$L$10:$L$17,0)) -> 2202-02-001-02-01 | E5: G0436 | F5: NUTANBALA KAPILA | G5: RJPA198529008845 | H5: JT.DIR. | I5: PB (15600-39100) G.P.- 7600 L-19 | J5: 120700 | K5: 0 | L5: 3600 | M5: 28800 | N5: 1448400 | O5: 1434000 | P5: 19312 | Q5: 620 | R5: 19 | S5: YES | T5: YES
A6: 2 | B6: 06 | C6: 01 | D6: =INDEX(TPravesh!$M$10:$M$17,MATCH(X!C6,TPravesh!$L$10:$L$17,0)) -> 2202-02-001-02-01 | E6: G0434 | F6: SH.BRAHMA DUTT SHARMA | G6: RJBI199409012464 | H6: F.A. | I6: PB (37400-67000) G.P.- 8700 L-21 | J6: 138500 | K6: 0 | L6: 4200 | M6: 33600 | N6: 1662000 | O6: 1645200 | P6: 22160 | Q6: 620 | R6: 21 | S6: YES | T6: YES
A7: 7 | B7: 06 | C7: 01 | D7: =INDEX(TPravesh!$M$10:$M$17,MATCH(X!C7,TPravesh!$L$10:$L$17,0)) -> 2202-02-001-02-01 | E7: G0462 | F7: MUKESH YADAV | G7: RJBI198809004918 | H7: C.A.O. | I7: PB (15600-39100) G.P.- 7600 L-19 | J7: 95400 | K7: 0 | L7: 2900 | M7: 23200 | N7: 1144800 | O7: 1133200 | P7: 15264 | Q7: 620 | R7: 19 | S7: YES | T7: YES
A8: 8 | B8: 06 | C8: 01 | D8: =INDEX(TPravesh!$M$10:$M$17,MATCH(X!C8,TPravesh!$L$10:$L$17,0)) -> 2202-02-001-02-01 | E8: G0470 | F8: RITU BHASKAR | G8: RJJO201424021221 | H8: SYS.ANALYS | I8: PB (15600-39100) G.P.- 7200 L-18 | J8: 67300 | K8: 0 | L8: 2000 | M8: 16000 | N8: 807600 | O8: 799600 | P8: 0 | Q8: 620 | R8: 18 | S8: NO | T8: YES
A9: 12 | B9: 06 | C9: 01 | D9: =INDEX(TPravesh!$M$10:$M$17,MATCH(X!C9,TPravesh!$L$10:$L$17,0)) -> 2202-02-001-02-01 | E9: N0312 | F9: SATYA PARKASH SHUKLA | G9: RJBI198409009704 | H9: DY.DIR. | I9: PB (15600-39100) G.P.- 7200 L-18 | J9: 86400 | K9: 0 | L9: 2600 | M9: 20800 | N9: 1036800 | O9: 1026400 | P9: 13824 | Q9: 620 | R9: 18 | S9: YES | T9: YES
A10: 11 | B10: 06 | C10: 01 | D10: =INDEX(TPravesh!$M$10:$M$17,MATCH(X!C10,TPravesh!$L$10:$L$17,0)) -> 2202-02-001-02-01 | E10: G0362 | F10: PRAKASH CHAND JATOLIYA | G10: RJNA198428005735 | H10: DY.DIR. | I10: PB (15600-39100) G.P.- 7200 L-18 | J10: 107300 | K10: 0 | L10: 3200 | M10: 25600 | N10: 1287600 | O10: 1274800 | P10: 17168 | Q10: 620 | R10: 18 | S10: YES | T10: YES
A11: 10 | B11: 06 | C11: 01 | D11: =INDEX(TPravesh!$M$10:$M$17,MATCH(X!C11,TPravesh!$L$10:$L$17,0)) -> 2202-02-001-02-01 | E11: G0437 | F11: DEVLATA CHANDWANI | G11: RJJP198018013166 | H11: DY.DIR. | I11: PB (15600-39100) G.P.- 7200 L-18 | J11: 110500 | K11: 0 | L11: 3300 | M11: 26400 | N11: 1326000 | O11: 1312800 | P11: 17680 | Q11: 620 | R11: 18 | S11: YES | T11: YES
A12: 9 | B12: 06 | C12: 01 | D12: =INDEX(TPravesh!$M$10:$M$17,MATCH(X!C12,TPravesh!$L$10:$L$17,0)) -> 2202-02-001-02-01 | E12: G0487 | F12: LAXMI NARAYAN PAREEK | G12: RJAL198102010839 | H12: DY.DIR. | I12: PB (15600-39100) G.P.- 7200 L-18 | J12: 113800 | K12: 0 | L12: 3400 | N12: 0 | O12: 0 | P12: 18208 | Q12: 620 | R12: 18 | S12: YES | T12: YES
A13: 14 | B13: 06 | C13: 01 | D13: =INDEX(TPravesh!$M$10:$M$17,MATCH(X!C13,TPravesh!$L$10:$L$17,0)) -> 2202-02-001-02-01 | E13: G0448 | F13: DR SAUD AKHTAR | G13: RJJP198319017106 | H13: D.E.O. | I13: PB (15600-39100) G.P.- 6800 L-17 | J13: 107300 | K13: 0 | L13: 3200 | M13: 25600 | N13: 1287600 | O13: 1274800 | P13: 17168 | Q13: 620 | R13: 17 | S13: YES | T13: YES
A14: 13 | B14: 06 | C14: 01 | D14: =INDEX(TPravesh!$M$10:$M$17,MATCH(X!C14,TPravesh!$L$10:$L$17,0)) -> 2202-02-001-02-01 | E14: G0474 | F14: VIRENDRA SINGH YADAV | G14: RJAL198502022611 | H14: D.E.O. | I14: PB (15600-39100) G.P.- 6800 L-17 | J14: 107300 | K14: 0 | L14: 3200 | M14: 25600 | N14: 1287600 | O14: 1274800 | P14: 17168 | Q14: 620 | R14: 17 | S14: YES | T14: YES
A15: 15 | B15: 06 | C15: 01 | D15: =INDEX(TPravesh!$M$10:$M$17,MATCH(X!C15,TPravesh!$L$10:$L$17,0)) -> 2202-02-001-02-01 | E15: G0468 | F15: RAJ KUMAR SHARMA | G15: RJCR199112008478 | H15: SR.EDIT. | I15: PB (15600-39100) G.P.- 6800 L-17 | J15: 101200 | K15: 0 | L15: 3000 | M15: 24000 | N15: 1214400 | O15: 1202400 | P15: 16192 | Q15: 620 | R15: 17 | S15: YES | T15: YES
A16: 16 | B16: 06 | C16: 01 | D16: =INDEX(TPravesh!$M$10:$M$17,MATCH(X!C16,TPravesh!$L$10:$L$17,0)) -> 2202-02-001-02-01 | E16: G0465 | F16: SAWAI SINGH | G16: RJBI198809005399 | H16: SR.A.O | I16: PB (15600-39100) G.P.- 6600 L-16 | J16: 90400 | K16: 0 | L16: 2700 | M16: 21600 | N16: 1084800 | O16: 1074000 | P16: 14464 | Q16: 620 | R16: 16 | S16: YES | T16: YES
A17: 17 | B17: 06 | C17: 01 | D17: =INDEX(TPravesh!$M$10:$M$17,MATCH(X!C17,TPravesh!$L$10:$L$17,0)) -> 2202-02-001-02-01 | E17: G0217 | F17: RAMESH KUMAR HARSH | G17: RJBI198909008039 | H17: STAFF.OFF. | I17: PB (15600-39100) G.P.- 6600 L-16 | J17: 98300 | K17: 0 | L17: 2900 | M17: 23200 | N17: 1179600 | O17: 1168000 | P17: 15728 | Q17: 620 | R17: 16 | S17: YES | T17: YES
A18: 29 | B18: 06 | C18: 01 | D18: =INDEX(TPravesh!$M$10:$M$17,MATCH(X!C18,TPravesh!$L$10:$L$17,0)) -> 2202-02-001-02-01 | E18: N0302 | F18: ROOP CHAND GEENGAR | G18: RJBI198009008091 | H18: ADM.OFF. | I18: PB (9300-34800) G.P.- 4800 L-12 | J18: 69000 | K18: 0 | L18: 2100 | M18: 16800 | N18: 828000 | O18: 819600 | P18: 11040 | Q18: 620 | R18: 12 | S18: YES | T18: YES
A19: 21 | B19: 06 | C19: 01 | D19: =INDEX(TPravesh!$M$10:$M$17,MATCH(X!C19,TPravesh!$L$10:$L$17,0)) -> 2202-02-001-02-01 | E19: G0471 | F19: MANISH KASWAN | G19: RJBI200509009219 | H19: ASST.DIR. | I19: PB (15600-39100) G.P.- 6600 L-16 | J19: 69300 | K19: 0 | L19: 2100 | M19: 16800 | N19: 831600 | O19: 823200 | P19: 11088 | Q19: 620 | R19: 16 | S19: YES | T19: YES
A20: 22 | B20: 06 | C20: 01 | D20: =INDEX(TPravesh!$M$10:$M$17,MATCH(X!C20,TPravesh!$L$10:$L$17,0)) -> 2202-02-001-02-01 | E20: G0466 | F20: SHARVAN RAM CHOUDHARY | G20: RJBI201409016169 | H20: ASST.DIR. | I20: PB (15600-39100) G.P.- 6600 L-16 | J20: 69300 | K20: 0 | L20: 2100 | M20: 16800 | N20: 831600 | O20: 823200 | P20: 11088 | Q20: 620 | R20: 16 | S20: YES | T20: YES
A21: 23 | B21: 06 | C21: 01 | D21: =INDEX(TPravesh!$M$10:$M$17,MATCH(X!C21,TPravesh!$L$10:$L$17,0)) -> 2202-02-001-02-01 | E21: G0485 | F21: SH MUNEE RAM LEGHA | G21: RJBI200509009488 | H21: ASST.DIR. | I21: PB (15600-39100) G.P.- 6600 L-16 | J21: 69300 | K21: 0 | L21: 2100 | M21: 16800 | N21: 831600 | O21: 823200 | P21: 11088 | Q21: 620 | R21: 16 | S21: YES | T21: YES
A22: 28 | B22: 06 | C22: 01 | D22: =INDEX(TPravesh!$M$10:$M$17,MATCH(X!C22,TPravesh!$L$10:$L$17,0)) -> 2202-02-001-02-01 | E22: G0384 | F22: RAMESH CHANDRA SHARMA | G22: RJNA197728008726 | H22: ADM.OFF. | I22: PB (9300-34800) G.P.- 4800 L-12 | J22: 76800 | K22: 0 | L22: 2300 | M22: 18400 | N22: 921600 | O22: 912400 | P22: 12288 | Q22: 620 | R22: 12 | S22: YES | T22: YES
A23: 71 | B23: 06 | C23: 01 | D23: =INDEX(TPravesh!$M$10:$M$17,MATCH(X!C23,TPravesh!$L$10:$L$17,0)) -> 2202-02-001-02-01 | E23: G0386 | F23: JOGENDRA KUMAR | G23: RJBM197805002797 | H23: ADM.OFF. | I23: PB (9300-34800) G.P.- 4800 L-12 | J23: 76800 | K23: 0 | L23: 2300 | M23: 18400 | N23: 921600 | O23: 912400 | P23: 12288 | Q23: 620 | R23: 12 | S23: YES | T23: YES
A24: 18 | B24: 06 | C24: 01 | D24: =INDEX(TPravesh!$M$10:$M$17,MATCH(X!C24,TPravesh!$L$10:$L$17,0)) -> 2202-02-001-02-01 | E24: G0467 | F24: BADRI NARAYAN VYAS | G24: RJBI199209024797 | H24: D.L.R. | I24: PB (15600-39100) G.P.- 7200 L-18 | J24: 87300 | K24: 0 | L24: 2600 | M24: 20800 | N24: 1047600 | O24: 1037200 | P24: 13968 | Q24: 620 | R24: 18 | S24: YES | T24: YES
A25: 24 | B25: 06 | C25: 01 | D25: =INDEX(TPravesh!$M$10:$M$17,MATCH(X!C25,TPravesh!$L$10:$L$17,0)) -> 2202-02-001-02-01 | E25: G0360 | F25: SH.BHAWANI SHANKER HARSH | G25: RJBI198509007022 | H25: ASST.DIR. | I25: PB (15600-39100) G.P.- 6600 L-16 | J25: 93100 | K25: 0 | L25: 2800 | M25: 22400 | N25: 1117200 | O25: 1106000 | P25: 14896 | Q25: 620 | R25: 16 | S25: YES | T25: YES
A26: 26 | B26: 06 | C26: 01 | D26: =INDEX(TPravesh!$M$10:$M$17,MATCH(X!C26,TPravesh!$L$10:$L$17,0)) -> 2202-02-001-02-01 | E26: G0150 | F26: ARUN KUMAR | G26: RJBI199109000959 | H26: ASST.DIR. | I26: PB (15600-39100) G.P.- 6600 L-16 | J26: 95900 | K26: 0 | L26: 2900 | M26: 23200 | N26: 1150800 | O26: 1139200 | P26: 15344 | Q26: 620 | R26: 16 | S26: YES | T26: YES
A27: 19 | B27: 06 | C27: 01 | D27: =INDEX(TPravesh!$M$10:$M$17,MATCH(X!C27,TPravesh!$L$10:$L$17,0)) -> 2202-02-001-02-01 | E27: G0344 | F27: RAMESH KUMAR RANGA | G27: RJBI198409017782 | H27: ASST.DIR. | I27: PB (15600-39100) G.P.- 6600 L-16 | J27: 98300 | K27: 0 | L27: 2900 | M27: 23200 | N27: 1179600 | O27: 1168000 | P27: 15728 | Q27: 620 | R27: 16 | S27: YES | T27: YES
A28: 20 | B28: 06 | C28: 01 | D28: =INDEX(TPravesh!$M$10:$M$17,MATCH(X!C28,TPravesh!$L$10:$L$17,0)) -> 2202-02-001-02-01 | E28: G0345 | F28: SANJAY SENGAR | G28: RJBI198709002458 | H28: ASST.DIR. | I28: PB (15600-39100) G.P.- 6600 L-16 | J28: 104200 | K28: 0 | L28: 3100 | M28: 24800 | N28: 1250400 | O28: 1238000 | P28: 16672 | Q28: 620 | R28: 16 | S28: YES | T28: YES
A29: 30 | B29: 06 | C29: 01 | D29: =INDEX(TPravesh!$M$10:$M$17,MATCH(X!C29,TPravesh!$L$10:$L$17,0)) -> 2202-02-001-02-01 | E29: G0413 | F29: RAKSHA SINGH | G29: RJBI198709015449 | H29: A.D.E.O. | I29: PB (15600-39100) G.P.- 6600 L-16 | J29: 101200 | K29: 0 | L29: 3000 | M29: 24000 | N29: 1214400 | O29: 1202400 | P29: 16192 | Q29: 620 | R29: 16 | S29: YES | T29: YES
A30: 31 | B30: 06 | C30: 01 | D30: =INDEX(TPravesh!$M$10:$M$17,MATCH(X!C30,TPravesh!$L$10:$L$17,0)) -> 2202-02-001-02-01 | E30: G0233 | F30: MAHENDRA KUMAR SHARMA | G30: RJBI198509014971 | H30: A.O. | I30: PB (15600-39100) G.P.- 5400 L-14 | J30: 77700 | K30: 0 | L30: 2300 | M30: 18400 | N30: 932400 | O30: 923200 | P30: 12432 | Q30: 620 | R30: 14 | S30: =IF(P30>0,"YES","NO") -> YES | T30: =IF(Q30>0,"YES","NO") -> YES
A31: 41 | B31: 06 | C31: 01 | D31: =INDEX(TPravesh!$M$10:$M$17,MATCH(X!C31,TPravesh!$L$10:$L$17,0)) -> 2202-02-001-02-01 | E31: G0402 | F31: SUNIL SHARMA | G31: RJBI200009000381 | H31: SR.LG.OFF | I31: PB (9300-34800) G.P.- 4800 L-12 | J31: 59500 | K31: 0 | L31: 1800 | M31: 14400 | N31: 714000 | O31: 706800 | P31: 9520 | Q31: 620 | R31: 12 | S31: YES | T31: YES
A32: 40 | B32: 06 | C32: 01 | D32: =INDEX(TPravesh!$M$10:$M$17,MATCH(X!C32,TPravesh!$L$10:$L$17,0)) -> 2202-02-001-02-01 | E32: G0410 | F32: HEMANT RAM GAHLOT | G32: RJBI198709007287 | H32: ESTTB.OFF | I32: PB (15600-39100) G.P.- 6000 L-15 | J32: 76800 | K32: 0 | L32: 2300 | N32: 0 | O32: 0 | P32: 12288 | Q32: 620 | R32: 15 | S32: YES | T32: YES
A33: 42 | B33: 06 | C33: 01 | D33: =INDEX(TPravesh!$M$10:$M$17,MATCH(X!C33,TPravesh!$L$10:$L$17,0)) -> 2202-02-001-02-01 | E33: G0453 | F33: SITA RAM GODARA | G33: RJGA201235028188 | H33: SR.PUBLISH | I33: PB (9300-34800) G.P.- 4800 L-12 | J33: 45600 | K33: 0 | L33: 1400 | M33: 11200 | N33: 547200 | O33: 541600 | P33: 7296 | Q33: 620 | R33: 12 | S33: YES | T33: YES
A34: 118 | B34: 06 | C34: 01 | D34: =INDEX(TPravesh!$M$10:$M$17,MATCH(X!C34,TPravesh!$L$10:$L$17,0)) -> 2202-02-001-02-01 | E34: N0805 | F34: SUSHILA BISHNOI | G34: RJBI201309023076 | H34: COM.PRG | I34: PB (9300-34800) G.P.- 4800 L-12 | J34: 29600 | K34: 0 | L34: 900 | M34: 7200 | N34: 355200 | O34: 351600 | P34: 4736 | Q34: 620 | R34: 12 | S34: YES | T34: YES
A35: 119 | B35: 06 | C35: 01 | D35: =INDEX(TPravesh!$M$10:$M$17,MATCH(X!C35,TPravesh!$L$10:$L$17,0)) -> 2202-02-001-02-01 | E35: N0709 | F35: VIKRAM SWAROOP JAKHAR | G35: RJJP201219001983 | H35: A.COM.PRG | I35: PB (9300-34800) G.P.- 3600 L-10 | J35: 30500 | K35: 0 | L35: 900 | M35: 7200 | N35: 366000 | O35: 362400 | P35: 4880 | Q35: 620 | R35: 10 | S35: YES | T35: YES
A36: 43 | B36: 06 | C36: 01 | D36: =INDEX(TPravesh!$M$10:$M$17,MATCH(X!C36,TPravesh!$L$10:$L$17,0)) -> 2202-02-001-02-01 | E36: G0319 | F36: SUBHASH CHOUDHARY | G36: RJBI199209000817 | H36: S.D.I. | I36: PB (9300-34800) G.P.- 4800 L-12 | J36: 73400 | K36: 0 | L36: 2200 | M36: 17600 | N36: 880800 | O36: 872000 | P36: 11744 | Q36: 620 | R36: 12 | S36: YES | T36: YES
A37: 46 | B37: 06 | C37: 01 | D37: =INDEX(TPravesh!$M$10:$M$17,MATCH(X!C37,TPravesh!$L$10:$L$17,0)) -> 2202-02-001-02-01 | E37: G0454 | F37: SANDEEP PANDIA | G37: RJBI201309002047 | H37: A.A.O.1st | I37: PB (9300-34800) G.P.- 4800 L-12 | J37: 41300 | K37: 0 | L37: 1200 | M37: 9600 | N37: 495600 | O37: 490800 | P37: 6608 | Q37: 620 | R37: 12 | S37: YES | T37: YES
A38: 44 | B38: 06 | C38: 01 | D38: =INDEX(TPravesh!$M$10:$M$17,MATCH(X!C38,TPravesh!$L$10:$L$17,0)) -> 2202-02-001-02-01 | E38: G0464 | F38: CHANDRA PRAKASH SINGHAL | G38: RJBI199109019447 | H38: A.A.O.1st | I38: PB (9300-34800) G.P.- 4800 L-12 | J38: 65000 | K38: 0 | L38: 2000 | M38: 16000 | N38: 780000 | O38: 772000 | P38: 10400 | Q38: 620 | R38: 12 | S38: YES | T38: YES
A39: 45 | B39: 06 | C39: 01 | D39: =INDEX(TPravesh!$M$10:$M$17,MATCH(X!C39,TPravesh!$L$10:$L$17,0)) -> 2202-02-001-02-01 | E39: G0482 | F39: YOGESH KUMAR VYAS | G39: RJBI198109005612 | H39: A.A.O.1st | I39: PB (9300-34800) G.P.- 4800 L-12 | J39: 75600 | K39: 0 | L39: 2300 | M39: 18400 | N39: 907200 | O39: 898000 | P39: 12096 | Q39: 620 | R39: 12 | S39: YES | T39: YES
A40: 48 | B40: 06 | C40: 01 | D40: =INDEX(TPravesh!$M$10:$M$17,MATCH(X!C40,TPravesh!$L$10:$L$17,0)) -> 2202-02-001-02-01 | E40: N0122 | F40: HARI RAM KUMBHAR | G40: RJBI198309008161 | H40: P.S. | I40: PB (15600-39100) G.P.- 6600 L-16 | J40: 86400 | K40: 0 | L40: 2600 | M40: 20800 | N40: 1036800 | O40: 1026400 | P40: 13824 | Q40: 620 | R40: 16 | S40: YES | T40: YES
A41: 78 | B41: 06 | C41: 01 | D41: =INDEX(TPravesh!$M$10:$M$17,MATCH(X!C41,TPravesh!$L$10:$L$17,0)) -> 2202-02-001-02-01 | E41: N0868 | F41: AMAR NATH MOHTA | G41: RJBI200009000051 | H41: A.A.O.GR-2 | I41: PB (9300-34800) G.P.- 4200 L-11 | J41: 36900 | K41: 0 | L41: 1100 | M41: 8800 | N41: 442800 | O41: 438400 | P41: 5904 | Q41: 620 | R41: 11 | S41: YES | T41: YES
A42: 49 | B42: 06 | C42: 01 | D42: =INDEX(TPravesh!$M$10:$M$17,MATCH(X!C42,TPravesh!$L$10:$L$17,0)) -> 2202-02-001-02-01 | E42: G0461 | F42: SH MOINUDEEN PANWAR | G42: RJBI199609027403 | H42: A.A.O.GR-2 | I42: PB (9300-34800) G.P.- 4200 L-11 | J42: 67000 | K42: 0 | L42: 2000 | M42: 16000 | N42: 804000 | O42: 796000 | P42: 10720 | Q42: 620 | R42: 11 | S42: YES | T42: YES
A43: 77 | B43: 06 | C43: 01 | D43: =INDEX(TPravesh!$M$10:$M$17,MATCH(X!C43,TPravesh!$L$10:$L$17,0)) -> 2202-02-001-02-01 | E43: N0875 | F43: SH.ASHOK NARAYAN PUROHIT | G43: RJBI199409007058 | H43: A.A.O.GR-2 | I43: PB (9300-34800) G.P.- 4200 L-11 | J43: 67000 | K43: 0 | L43: 2000 | M43: 16000 | N43: 804000 | O43: 796000 | P43: 10720 | Q43: 620 | R43: 11 | S43: YES | T43: YES
A44: 79 | B44: 06 | C44: 01 | D44: =INDEX(TPravesh!$M$10:$M$17,MATCH(X!C44,TPravesh!$L$10:$L$17,0)) -> 2202-02-001-02-01 | E44: N0565 | F44: NARESH CHANDER CHAHAR | G44: RJBI199609015666 | H44: A.A.O.GR-2 | I44: PB (9300-34800) G.P.- 4200 L-11 | J44: 67000 | K44: 0 | L44: 2000 | M44: 16000 | N44: 804000 | O44: 796000 | P44: 10720 | Q44: 620 | R44: 11 | S44: YES | T44: YES
A45: 75 | B45: 06 | C45: 01 | D45: =INDEX(TPravesh!$M$10:$M$17,MATCH(X!C45,TPravesh!$L$10:$L$17,0)) -> 2202-02-001-02-01 | E45: N0869 | F45: ARVIND KUMAR GARG | G45: RJBI199209001182 | H45: A.A.O.GR-2 | I45: PB (9300-34800) G.P.- 4200 L-11 | J45: 69000 | K45: 0 | L45: 2100 | M45: 16800 | N45: 828000 | O45: 819600 | P45: 11040 | Q45: 620 | R45: 11 | S45: YES | T45: YES
A46: 74 | B46: 06 | C46: 01 | D46: =INDEX(TPravesh!$M$10:$M$17,MATCH(X!C46,TPravesh!$L$10:$L$17,0)) -> 2202-02-001-02-01 | E46: N0007 | F46: ABDUL SHAKOOR SISODIA | G46: N.A.1 | H46: A.A.O.GR-2 | I46: PB (9300-34800) G.P.- 4200 L-11 | J46: 71100 | K46: 0 | L46: 2100 | M46: 16800 | N46: 853200 | O46: 844800 | P46: 11376 | Q46: 620 | R46: 11 | S46: YES | T46: YES
A47: 72 | B47: 06 | C47: 01 | D47: =INDEX(TPravesh!$M$10:$M$17,MATCH(X!C47,TPravesh!$L$10:$L$17,0)) -> 2202-02-001-02-01 | E47: N0886 | F47: ONKAR MAL SHARMA | G47: RJBI199009010826 | H47: A.A.O.GR-2 | I47: PB (9300-34800) G.P.- 4200 L-11 | J47: 73400 | K47: 0 | L47: 2200 | M47: 17600 | N47: 880800 | O47: 872000 | P47: 11744 | Q47: 620 | R47: 11 | S47: YES | T47: YES
A48: 73 | B48: 06 | C48: 01 | D48: =INDEX(TPravesh!$M$10:$M$17,MATCH(X!C48,TPravesh!$L$10:$L$17,0)) -> 2202-02-001-02-01 | E48: N0242 | F48: PRAVESH KUMAR SHARMA | G48: RJJS199020009998 | H48: A.A.O.GR-2 | I48: PB (9300-34800) G.P.- 4200 L-11 | J48: 73400 | K48: 0 | L48: 2200 | M48: 17600 | N48: 880800 | O48: 872000 | P48: 11744 | Q48: 620 | R48: 11 | S48: YES | T48: YES
A49: 80 | B49: 06 | C49: 01 | D49: =INDEX(TPravesh!$M$10:$M$17,MATCH(X!C49,TPravesh!$L$10:$L$17,0)) -> 2202-02-001-02-01 | E49: N0889 | F49: AJAY KUMAR PUROHIT | G49: RJBI201309003609 | H49: JR.ACCTT. | I49: PB (9300-34800) G.P.- 3600 L-10 | J49: 23400 | K49: 0 | L49: 700 | M49: 5600 | N49: 280800 | O49: 278000 | P49: 3744 | Q49: 620 | R49: 10 | S49: YES | T49: YES
A50: 81 | B50: 06 | C50: 01 | D50: =INDEX(TPravesh!$M$10:$M$17,MATCH(X!C50,TPravesh!$L$10:$L$17,0)) -> 2202-02-001-02-01 | E50: N0898 | F50: JYOTI RANI | G50: RJBI201309003785 | H50: JR.ACCTT. | I50: PB (9300-34800) G.P.- 3600 L-10 | J50: 23400 | K50: 0 | L50: 700 | M50: 5600 | N50: 280800 | O50: 278000 | P50: 3744 | Q50: 620 | R50: 10 | S50: YES | T50: YES
A51: 82 | B51: 06 | C51: 01 | D51: =INDEX(TPravesh!$M$10:$M$17,MATCH(X!C51,TPravesh!$L$10:$L$17,0)) -> 2202-02-001-02-01 | E51: N0888 | F51: BHARAT KUMAR VYAS | G51: RJBI201309012512 | H51: JR.ACCTT. | I51: PB (9300-34800) G.P.- 3600 L-10 | J51: 23400 | K51: 0 | L51: 700 | M51: 5600 | N51: 280800 | O51: 278000 | P51: 3744 | Q51: 620 | R51: 10 | S51: YES | T51: YES
A52: 83 | B52: 06 | C52: 01 | D52: =INDEX(TPravesh!$M$10:$M$17,MATCH(X!C52,TPravesh!$L$10:$L$17,0)) -> 2202-02-001-02-01 | E52: N0899 | F52: PAWAN KUMAR MUNDHRA | G52: RJBI201309003784 | H52: JR.ACCTT. | I52: PB (9300-34800) G.P.- 3600 L-10 | J52: 23400 | K52: 0 | L52: 700 | M52: 5600 | N52: 280800 | O52: 278000 | P52: 0 | Q52: 620 | R52: 10 | S52: NO | T52: YES
A53: 85 | B53: 06 | C53: 01 | D53: =INDEX(TPravesh!$M$10:$M$17,MATCH(X!C53,TPravesh!$L$10:$L$17,0)) -> 2202-02-001-02-01 | E53: N0901 | F53: AAKANKSHA SHARMA | G53: RJBI201709018302 | H53: JR.ACCTT. | I53: PB (9300-34800) G.P.- 3600 L-10 | J53: 23700 | K53: 0 | L53: 700 | M53: 5600 | N53: 284400 | O53: 281600 | P53: 0 | Q53: 0 | R53: 10 | S53: NO | T53: NO
A54: 86 | B54: 06 | C54: 01 | D54: =INDEX(TPravesh!$M$10:$M$17,MATCH(X!C54,TPravesh!$L$10:$L$17,0)) -> 2202-02-001-02-01 | E54: N0891 | F54: BHAVANI SHRIMALI | G54: RJBI201709014652 | H54: JR.ACCTT. | I54: PB (9300-34800) G.P.- 3600 L-10 | J54: 23700 | K54: 0 | L54: 700 | M54: 5600 | N54: 284400 | O54: 281600 | P54: 0 | Q54: 0 | R54: 10 | S54: NO | T54: NO
A55: 87 | B55: 06 | C55: 01 | D55: =INDEX(TPravesh!$M$10:$M$17,MATCH(X!C55,TPravesh!$L$10:$L$17,0)) -> 2202-02-001-02-01 | E55: N0894 | F55: CHANDRA DAGA | G55: RJBI201709014655 | H55: JR.ACCTT. | I55: PB (9300-34800) G.P.- 3600 L-10 | J55: 23700 | K55: 0 | L55: 700 | M55: 5600 | N55: 284400 | O55: 281600 | P55: 0 | Q55: 0 | R55: 10 | S55: NO | T55: NO
A56: 88 | B56: 06 | C56: 01 | D56: =INDEX(TPravesh!$M$10:$M$17,MATCH(X!C56,TPravesh!$L$10:$L$17,0)) -> 2202-02-001-02-01 | E56: N0893 | F56: JYOTI DAIYA | G56: RJBI201709016389 | H56: JR.ACCTT. | I56: PB (9300-34800) G.P.- 3600 L-10 | J56: 23700 | K56: 0 | L56: 700 | M56: 5600 | N56: 284400 | O56: 281600 | P56: 0 | Q56: 0 | R56: 10 | S56: NO | T56: NO
A57: 89 | B57: 06 | C57: 01 | D57: =INDEX(TPravesh!$M$10:$M$17,MATCH(X!C57,TPravesh!$L$10:$L$17,0)) -> 2202-02-001-02-01 | E57: N0895 | F57: MONA RANI | G57: RJBI201709014649 | H57: JR.ACCTT. | I57: PB (9300-34800) G.P.- 3600 L-10 | J57: 23700 | K57: 0 | L57: 700 | M57: 5600 | N57: 284400 | O57: 281600 | P57: 0 | Q57: 0 | R57: 10 | S57: NO | T57: NO
A58: 90 | B58: 06 | C58: 01 | D58: =INDEX(TPravesh!$M$10:$M$17,MATCH(X!C58,TPravesh!$L$10:$L$17,0)) -> 2202-02-001-02-01 | E58: N0892 | F58: MONIKA SWAMI | G58: RJBI201709014657 | H58: JR.ACCTT. | I58: PB (9300-34800) G.P.- 3600 L-10 | J58: 23700 | K58: 0 | L58: 700 | M58: 5600 | N58: 284400 | O58: 281600 | P58: 0 | Q58: 0 | R58: 10 | S58: NO | T58: NO
A59: 84 | B59: 06 | C59: 01 | D59: =INDEX(TPravesh!$M$10:$M$17,MATCH(X!C59,TPravesh!$L$10:$L$17,0)) -> 2202-02-001-02-01 | E59: N0890 | F59: KAPIL DEV JOSHI | G59: RJBI201009002146 | H59: JR.ACCTT. | I59: PB (9300-34800) G.P.- 3600 L-10 | J59: 24800 | K59: 0 | L59: 700 | M59: 5600 | N59: 297600 | O59: 294800 | P59: 3968 | Q59: 620 | R59: 10 | S59: YES | T59: YES
A60: 97 | B60: 06 | C60: 01 | D60: =INDEX(TPravesh!$M$10:$M$17,MATCH(X!C60,TPravesh!$L$10:$L$17,0)) -> 2202-02-001-02-01 | E60: N0522 | F60: RAJESH ASHOPA | G60: RJBI200109004463 | H60: JR.ACCTT. | I60: PB (9300-34800) G.P.- 3600 L-10 | J60: 35300 | K60: 0 | L60: 1100 | M60: 8800 | N60: 423600 | O60: 419200 | P60: 5648 | Q60: 620 | R60: 10 | S60: YES | T60: YES
A61: 96 | B61: 06 | C61: 01 | D61: =INDEX(TPravesh!$M$10:$M$17,MATCH(X!C61,TPravesh!$L$10:$L$17,0)) -> 2202-02-001-02-01 | E61: N0887 | F61: AMIT RAJ SINGH BHATI | G61: RJBI199509003417 | H61: JR.ACCTT. | I61: PB (9300-34800) G.P.- 3600 L-10 | J61: 42700 | K61: 0 | L61: 1300 | M61: 10400 | N61: 512400 | O61: 507200 | P61: 6832 | Q61: 620 | R61: 10 | S61: YES | T61: YES
A62: 57 | B62: 06 | C62: 01 | D62: =INDEX(TPravesh!$M$10:$M$17,MATCH(X!C62,TPravesh!$L$10:$L$17,0)) -> 2202-02-001-02-01 | E62: N0912 | F62: MANGILAL MEGHWAL | G62: RJBI200409000203 | H62: ADD.ADM.OF | I62: PB (9300-34800) G.P.- 4200 L-11 | J62: 36900 | K62: 0 | L62: 1100 | M62: 8800 | N62: 442800 | O62: 438400 | P62: 5904 | Q62: 620 | R62: 11 | S62: YES | T62: YES
A63: 50 | B63: 06 | C63: 01 | D63: =INDEX(TPravesh!$M$10:$M$17,MATCH(X!C63,TPravesh!$L$10:$L$17,0)) -> 2202-02-001-02-01 | E63: N0914 | F63: UDAIBHANU SINGH | G63: RJBI198709005365 | H63: ADD.ADM.OF | I63: PB (9300-34800) G.P.- 4200 L-11 | J63: 44000 | K63: 0 | L63: 1300 | M63: 10400 | N63: 528000 | O63: 522800 | P63: 7040 | Q63: 620 | R63: 11 | S63: YES | T63: YES
A64: 51 | B64: 06 | C64: 01 | D64: =INDEX(TPravesh!$M$10:$M$17,MATCH(X!C64,TPravesh!$L$10:$L$17,0)) -> 2202-02-001-02-01 | E64: N0970 | F64: NOPARAM MEENA | G64: RJSR198634000353 | H64: ADD.ADM.OF | I64: PB (9300-34800) G.P.- 4200 L-11 | J64: 55500 | K64: 0 | L64: 1700 | N64: 0 | O64: 0 | P64: 8880 | Q64: 620 | R64: 11 | S64: YES | T64: YES
A65: 61 | B65: 06 | C65: 01 | D65: =INDEX(TPravesh!$M$10:$M$17,MATCH(X!C65,TPravesh!$L$10:$L$17,0)) -> 2202-02-001-02-01 | E65: N0910 | F65: NEERU SHARMA | G65: RJBI198109002513 | H65: ADD.ADM.OF | I65: PB (9300-34800) G.P.- 4200 L-11 | J65: 58900 | K65: 0 | L65: 1800 | M65: 14400 | N65: 706800 | O65: 699600 | P65: 9424 | Q65: 620 | R65: 11 | S65: YES | T65: YES
A66: 63 | B66: 06 | C66: 01 | D66: =INDEX(TPravesh!$M$10:$M$17,MATCH(X!C66,TPravesh!$L$10:$L$17,0)) -> 2202-02-001-02-01 | E66: N0364 | F66: SURESH VYAS | G66: RJBI198009007524 | H66: ADD.ADM.OF | I66: PB (9300-34800) G.P.- 4200 L-11 | J66: 64400 | K66: 0 | L66: 1900 | M66: 15200 | N66: 772800 | O66: 765200 | P66: 10304 | Q66: 620 | R66: 11 | S66: =IF(P66>0,"YES","NO") -> YES | T66: =IF(Q66>0,"YES","NO") -> YES
A67: 124 | B67: 06 | C67: 01 | D67: =INDEX(TPravesh!$M$10:$M$17,MATCH(X!C67,TPravesh!$L$10:$L$17,0)) -> 2202-02-001-02-01 | E67: N0162 | F67: KHEM CHAND KHATRI | G67: RJBI198109008135 | H67: ADD.ADM.OF | I67: PB (9300-34800) G.P.- 4200 L-11 | J67: 64400 | K67: 0 | L67: 1900 | M67: 15200 | N67: 772800 | O67: 765200 | P67: 10304 | Q67: 620 | R67: 11 | S67: YES | T67: YES
A68: 60 | B68: 06 | C68: 01 | D68: =INDEX(TPravesh!$M$10:$M$17,MATCH(X!C68,TPravesh!$L$10:$L$17,0)) -> 2202-02-001-02-01 | E68: N0908 | F68: ARJUN RAM SANEL | G68: RJNA197928017491 | H68: ADD.ADM.OF | I68: PB (9300-34800) G.P.- 4200 L-11 | J68: 66300 | K68: 0 | L68: 2000 | M68: 16000 | N68: 795600 | O68: 787600 | P68: 10608 | Q68: 620 | R68: 11 | S68: YES | T68: YES
A69: 65 | B69: 06 | C69: 01 | D69: =INDEX(TPravesh!$M$10:$M$17,MATCH(X!C69,TPravesh!$L$10:$L$17,0)) -> 2202-02-001-02-01 | E69: N0271 | F69: RAJENDRA KR.SUTHAR | G69: RJBI197709004486 | H69: ADD.ADM.OF | I69: PB (9300-34800) G.P.- 4200 L-11 | J69: 68300 | K69: 0 | L69: 2000 | M69: 16000 | N69: 819600 | O69: 811600 | P69: 10928 | Q69: 620 | R69: 11 | S69: YES | T69: YES
A70: 125 | B70: 06 | C70: 01 | D70: =INDEX(TPravesh!$M$10:$M$17,MATCH(X!C70,TPravesh!$L$10:$L$17,0)) -> 2202-02-001-02-01 | E70: N0513 | F70: NATTHU SINGH SHEKHAWAT | G70: RJJP198419019493 | H70: A.P.S. | I70: PB (9300-34800) G.P.- 4800 L-12 | J70: 82600 | K70: 0 | L70: 2500 | M70: 20000 | N70: 991200 | O70: 981200 | P70: 13216 | Q70: 620 | R70: 12 | S70: YES | T70: YES
A71: 67 | B71: 06 | C71: 01 | D71: =INDEX(TPravesh!$M$10:$M$17,MATCH(X!C71,TPravesh!$L$10:$L$17,0)) -> 2202-02-001-02-01 | E71: N0711 | F71: PANKAJ BHATNAGAR | G71: RJBI198409001156 | H71: P.A. | I71: PB (9300-34800) G.P.- 4200 L-11 | J71: 80200 | K71: 0 | L71: 2400 | M71: 19200 | N71: 962400 | O71: 952800 | P71: 12832 | Q71: 620 | R71: 11 | S71: YES | T71: YES
A72: 99 | B72: 06 | C72: 01 | D72: =INDEX(TPravesh!$M$10:$M$17,MATCH(X!C72,TPravesh!$L$10:$L$17,0)) -> 2202-02-001-02-01 | E72: N0804 | F72: BHAWANI SINGH | G72: RJJW201422015976 | H72: STAT.INSP. | I72: PB (9300-34800) G.P.- 3600 L-10 | J72: 35800 | K72: 0 | L72: 1100 | M72: 8800 | N72: 429600 | O72: 425200 | P72: 5728 | Q72: 620 | R72: 10 | S72: YES | T72: YES
A73: 98 | B73: 06 | C73: 01 | D73: =INDEX(TPravesh!$M$10:$M$17,MATCH(X!C73,TPravesh!$L$10:$L$17,0)) -> 2202-02-001-02-01 | E73: N0915 | F73: ADITYA BHARGAVA | G73: RJBI201209038966 | H73: STAT.INSP. | I73: PB (9300-34800) G.P.- 3600 L-10 | J73: 38000 | K73: 0 | L73: 1100 | M73: 8800 | N73: 456000 | O73: 451600 | P73: 6080 | Q73: 620 | R73: 10 | S73: YES | T73: YES
A74: 105 | B74: 06 | C74: 01 | D74: =INDEX(TPravesh!$M$10:$M$17,MATCH(X!C74,TPravesh!$L$10:$L$17,0)) -> 2202-02-001-02-01 | E74: N0916 | F74: PRADEEP KUMAR DHAKA | G74: RJBM201405016833 | H74: A.STAT.OFF | I74: PB (9300-34800) G.P.- 4200 L-11 | J74: 35800 | K74: 0 | L74: 1100 | M74: 8800 | N74: 429600 | O74: 425200 | P74: 5728 | Q74: 620 | R74: 11 | S74: YES | T74: YES
A75: 104 | B75: 06 | C75: 01 | D75: =INDEX(TPravesh!$M$10:$M$17,MATCH(X!C75,TPravesh!$L$10:$L$17,0)) -> 2202-02-001-02-01 | E75: N0783 | F75: SANJAY PUROHIT | G75: RJBI201009002149 | H75: A.STAT.OFF | I75: PB (9300-34800) G.P.- 4200 L-11 | J75: 42500 | K75: 0 | L75: 1300 | M75: 10400 | N75: 510000 | O75: 504800 | P75: 6800 | Q75: 620 | R75: 11 | S75: YES | T75: YES
A76: 103 | B76: 06 | C76: 01 | D76: =INDEX(TPravesh!$M$10:$M$17,MATCH(X!C76,TPravesh!$L$10:$L$17,0)) -> 2202-02-001-02-01 | E76: N0918 | F76: BALVINDRA CHUGH | G76: RJBI197809005096 | H76: A.STAT.OFF | I76: PB (9300-34800) G.P.- 4200 L-11 | J76: 64400 | K76: 0 | L76: 1900 | M76: 15200 | N76: 772800 | O76: 765200 | P76: 10304 | Q76: 620 | R76: 11 | S76: YES | T76: YES
A77: 101 | B77: 06 | C77: 01 | D77: =INDEX(TPravesh!$M$10:$M$17,MATCH(X!C77,TPravesh!$L$10:$L$17,0)) -> 2202-02-001-02-01 | E77: N0760 | F77: SHYODUTT RAM BISHNOI | G77: RJBI198709008357 | H77: A.STAT.OFF | I77: PB (9300-34800) G.P.- 4200 L-11 | J77: 69000 | K77: 0 | L77: 2100 | M77: 16800 | N77: 828000 | O77: 819600 | P77: 11040 | Q77: 620 | R77: 11 | S77: YES | T77: YES
A78: 100 | B78: 06 | C78: 01 | D78: =INDEX(TPravesh!$M$10:$M$17,MATCH(X!C78,TPravesh!$L$10:$L$17,0)) -> 2202-02-001-02-01 | E78: N0801 | F78: SURENDRA PRAKASH DADHICH | G78: RJBI198709008356 | H78: A.STAT.OFF | I78: PB (9300-34800) G.P.- 4200 L-11 | J78: 71300 | K78: 0 | L78: 2100 | M78: 16800 | N78: 855600 | O78: 847200 | P78: 11408 | Q78: 620 | R78: 11 | S78: YES | T78: YES
A79: 106 | B79: 06 | C79: 01 | D79: =INDEX(TPravesh!$M$10:$M$17,MATCH(X!C79,TPravesh!$L$10:$L$17,0)) -> 2202-02-001-02-01 | E79: N0714 | F79: SHAILENDRA RANGA | G79: RABI201309002418 | H79: JR.L.OFF | I79: PB (9300-34800) G.P.- 3600 L-10 | J79: 39100 | K79: 0 | L79: 1200 | M79: 9600 | N79: 469200 | O79: 464400 | P79: 6256 | Q79: 620 | R79: 10 | S79: YES | T79: YES
A80: 107 | B80: 06 | C80: 01 | D80: =INDEX(TPravesh!$M$10:$M$17,MATCH(X!C80,TPravesh!$L$10:$L$17,0)) -> 2202-02-001-02-01 | E80: N0245 | F80: PAWAN KUMAR MODI | G80: RJBI199009010522 | H80: STENO | I80: PB (9300-34800) G.P.- 3600 L-10 | J80: 73400 | K80: 0 | L80: 2200 | M80: 17600 | N80: 880800 | O80: 872000 | P80: 11744 | Q80: 620 | R80: 10 | S80: YES | T80: YES
A81: 111 | B81: 06 | C81: 01 | D81: =INDEX(TPravesh!$M$10:$M$17,MATCH(X!C81,TPravesh!$L$10:$L$17,0)) -> 2202-02-001-02-01 | E81: N0765 | F81: GAURI TANWAR | G81: RJBI201409015863 | H81: COMPUTER | I81: PB (5200-20200) G.P.- 2800 L-8 | J81: 28700 | K81: 0 | L81: 900 | N81: 0 | O81: 0 | P81: 4592 | Q81: 620 | R81: 8 | S81: YES | T81: YES
A82: 112 | B82: 06 | C82: 01 | D82: =INDEX(TPravesh!$M$10:$M$17,MATCH(X!C82,TPravesh!$L$10:$L$17,0)) -> 2202-02-001-02-01 | E82: N0873 | F82: SEEMA DEVI KUMAWAT | G82: RJAJ201401014029 | H82: COMPUTER | I82: PB (5200-20200) G.P.- 2800 L-8 | J82: 28700 | K82: 0 | L82: 900 | M82: 7200 | N82: 344400 | O82: 340800 | P82: 4592 | Q82: 620 | R82: 8 | S82: YES | T82: YES
A83: 113 | B83: 06 | C83: 01 | D83: =INDEX(TPravesh!$M$10:$M$17,MATCH(X!C83,TPravesh!$L$10:$L$17,0)) -> 2202-02-001-02-01 | E83: N0766 | F83: ANITA RANI JINGER | G83: RJBI201409015862 | H83: COMPUTER | I83: PB (5200-20200) G.P.- 2800 L-8 | J83: 28700 | K83: 0 | L83: 900 | M83: 7200 | N83: 344400 | O83: 340800 | P83: 4592 | Q83: 620 | R83: 8 | S83: YES | T83: YES
A84: 115 | B84: 06 | C84: 01 | D84: =INDEX(TPravesh!$M$10:$M$17,MATCH(X!C84,TPravesh!$L$10:$L$17,0)) -> 2202-02-001-02-01 | E84: N0667 | F84: SOHAN LAL HATILA | G84: RJBI199209001940 | H84: LIBRARIAN | I84: PB (9300-34800) G.P.- 3600 L-10 | J84: 59500 | K84: 0 | L84: 1800 | M84: 14400 | N84: 714000 | O84: 706800 | P84: 9520 | Q84: 620 | R84: 10 | S84: YES | T84: YES
A85: 134 | B85: 06 | C85: 01 | D85: =INDEX(TPravesh!$M$10:$M$17,MATCH(X!C85,TPravesh!$L$10:$L$17,0)) -> 2202-02-001-02-01 | E85: N0618 | F85: SHYAMA PRASAD RANGA | G85: RJBI198109017445 | H85: A.A.O | I85: PB (9300-34800) G.P.- 3600 L-10 | J85: 4300 | K85: 2150 | L85: 100 | M85: 800 | N85: 51600 | O85: 51200 | P85: 1290 | Q85: 240 | R85: 10 | S85: YES | T85: YES
A86: 169 | B86: 06 | C86: 01 | D86: =INDEX(TPravesh!$M$10:$M$17,MATCH(X!C86,TPravesh!$L$10:$L$17,0)) -> 2202-02-001-02-01 | E86: N0824 | F86: RAJESH KUMAR PARIHAR | G86: RJBI200109006778 | H86: A.A.O | I86: PB (9300-34800) G.P.- 3600 L-10 | J86: 39100 | K86: 0 | L86: 1200 | M86: 9600 | N86: 469200 | O86: 464400 | P86: 6256 | Q86: 620 | R86: 10 | S86: YES | T86: YES
A87: 209 | B87: 06 | C87: 01 | D87: =INDEX(TPravesh!$M$10:$M$17,MATCH(X!C87,TPravesh!$L$10:$L$17,0)) -> 2202-02-001-02-01 | E87: N0614 | F87: PAWAN KUAMR BHARDWAJ | G87: RJBI199209014576 | H87: A.A.O | I87: PB (9300-34800) G.P.- 3600 L-10 | J87: 44000 | K87: 0 | L87: 1300 | M87: 10400 | N87: 528000 | O87: 522800 | P87: 7040 | Q87: 620 | R87: 10 | S87: YES | T87: YES
A88: 141 | B88: 06 | C88: 01 | D88: =INDEX(TPravesh!$M$10:$M$17,MATCH(X!C88,TPravesh!$L$10:$L$17,0)) -> 2202-02-001-02-01 | E88: N0101 | F88: GIRIRAJ KUMAR HARSH | G88: RJBI199209014578 | H88: A.A.O | I88: PB (9300-34800) G.P.- 3600 L-10 | J88: 45300 | K88: 0 | L88: 1400 | M88: 11200 | N88: 543600 | O88: 538000 | P88: 7248 | Q88: 620 | R88: 10 | S88: YES | T88: YES
A89: 199 | B89: 06 | C89: 01 | D89: =INDEX(TPravesh!$M$10:$M$17,MATCH(X!C89,TPravesh!$L$10:$L$17,0)) -> 2202-02-001-02-01 | E89: N0806 | F89: SHIV KUMAR RAWAL | G89: RJJJ198723008405 | H89: A.A.O | I89: PB (9300-34800) G.P.- 3600 L-10 | J89: 45300 | K89: 0 | L89: 1400 | M89: 11200 | N89: 543600 | O89: 538000 | P89: 7248 | Q89: 620 | R89: 10 | S89: YES | T89: YES
A90: 130 | B90: 06 | C90: 01 | D90: =INDEX(TPravesh!$M$10:$M$17,MATCH(X!C90,TPravesh!$L$10:$L$17,0)) -> 2202-02-001-02-01 | E90: N0934 | F90: SH SHANKAR LAL KHATRI | G90: RJBI199109007766 | H90: A.A.O | I90: PB (9300-34800) G.P.- 3600 L-10 | J90: 45300 | K90: 0 | L90: 1400 | M90: 11200 | N90: 543600 | O90: 538000 | P90: 7248 | Q90: 620 | R90: 10 | S90: YES | T90: YES
A91: 162 | B91: 06 | C91: 01 | D91: =INDEX(TPravesh!$M$10:$M$17,MATCH(X!C91,TPravesh!$L$10:$L$17,0)) -> 2202-02-001-02-01 | E91: N0814 | F91: BHAGAT RAM | G91: RJBI198909000888 | H91: A.A.O | I91: PB (9300-34800) G.P.- 3600 L-10 | J91: 45300 | K91: 0 | L91: 1400 | M91: 11200 | N91: 543600 | O91: 538000 | P91: 7248 | Q91: 620 | R91: 10 | S91: YES | T91: YES
A92: 193 | B92: 06 | C92: 01 | D92: =INDEX(TPravesh!$M$10:$M$17,MATCH(X!C92,TPravesh!$L$10:$L$17,0)) -> 2202-02-001-02-01 | E92: N0276 | F92: RAJESH DAIYA | G92: RJBI199209014574 | H92: A.A.O | I92: PB (9300-34800) G.P.- 3600 L-10 | J92: 45300 | K92: 0 | L92: 1400 | M92: 11200 | N92: 543600 | O92: 538000 | P92: 7248 | Q92: 620 | R92: 10 | S92: YES | T92: YES
A93: 195 | B93: 06 | C93: 01 | D93: =INDEX(TPravesh!$M$10:$M$17,MATCH(X!C93,TPravesh!$L$10:$L$17,0)) -> 2202-02-001-02-01 | E93: N0561 | F93: GOVIND NARAYAN RAMAWAT | G93: RJBI198609003098 | H93: A.A.O | I93: PB (9300-34800) G.P.- 3600 L-10 | J93: 46700 | K93: 0 | L93: 1400 | M93: 11200 | N93: 560400 | O93: 554800 | P93: 7472 | Q93: 620 | R93: 10 | S93: YES | T93: YES
A94: 198 | B94: 06 | C94: 01 | D94: =INDEX(TPravesh!$M$10:$M$17,MATCH(X!C94,TPravesh!$L$10:$L$17,0)) -> 2202-02-001-02-01 | E94: N0236 | F94: OM PRAKASH VYAS | G94: RJBI199109013261 | H94: A.A.O | I94: PB (9300-34800) G.P.- 3600 L-10 | J94: 46700 | K94: 0 | L94: 1400 | M94: 11200 | N94: 560400 | O94: 554800 | P94: 7472 | Q94: 620 | R94: 10 | S94: YES | T94: YES
A95: 202 | B95: 06 | C95: 01 | D95: =INDEX(TPravesh!$M$10:$M$17,MATCH(X!C95,TPravesh!$L$10:$L$17,0)) -> 2202-02-001-02-01 | E95: N0679 | F95: KAMLESH VYAS | G95: RJBI199209006714 | H95: A.A.O | I95: PB (9300-34800) G.P.- 3600 L-10 | J95: 46700 | K95: 0 | L95: 1400 | M95: 11200 | N95: 560400 | O95: 554800 | P95: 0 | Q95: 620 | R95: 10 | S95: NO | T95: YES
A96: 203 | B96: 06 | C96: 01 | D96: =INDEX(TPravesh!$M$10:$M$17,MATCH(X!C96,TPravesh!$L$10:$L$17,0)) -> 2202-02-001-02-01 | E96: N0689 | F96: VIKRAM SINGH | G96: RJBI199109003756 | H96: A.A.O | I96: PB (9300-34800) G.P.- 3600 L-10 | J96: 46700 | K96: 0 | L96: 1400 | M96: 11200 | N96: 560400 | O96: 554800 | P96: 7472 | Q96: 620 | R96: 10 | S96: YES | T96: YES
A97: 129 | B97: 06 | C97: 01 | D97: =INDEX(TPravesh!$M$10:$M$17,MATCH(X!C97,TPravesh!$L$10:$L$17,0)) -> 2202-02-001-02-01 | E97: N0923 | F97: KULDEEP KHATRI | G97: RJBI199609003469 | H97: A.A.O | I97: PB (9300-34800) G.P.- 3600 L-10 | J97: 46700 | K97: 0 | L97: 1400 | M97: 11200 | N97: 560400 | O97: 554800 | P97: 7472 | Q97: 620 | R97: 10 | S97: YES | T97: YES
A98: 197 | B98: 06 | C98: 01 | D98: =INDEX(TPravesh!$M$10:$M$17,MATCH(X!C98,TPravesh!$L$10:$L$17,0)) -> 2202-02-001-02-01 | E98: N0832 | F98: RAJESH VYAS II | G98: RJBI198809000548 | H98: A.A.O | I98: PB (9300-34800) G.P.- 3600 L-10 | J98: 48100 | K98: 0 | L98: 1400 | M98: 11200 | N98: 577200 | O98: 571600 | P98: 7696 | Q98: 620 | R98: 10 | S98: YES | T98: YES
A99: 200 | B99: 06 | C99: 01 | D99: =INDEX(TPravesh!$M$10:$M$17,MATCH(X!C99,TPravesh!$L$10:$L$17,0)) -> 2202-02-001-02-01 | E99: N0436 | F99: SURAJ RATAN VYAS | G99: RJBI198509020645 | H99: A.A.O | I99: PB (9300-34800) G.P.- 3600 L-10 | J99: 48100 | K99: 0 | L99: 1400 | M99: 11200 | N99: 577200 | O99: 571600 | P99: 7696 | Q99: 620 | R99: 10 | S99: YES | T99: YES
A100: 204 | B100: 06 | C100: 01 | D100: =INDEX(TPravesh!$M$10:$M$17,MATCH(X!C100,TPravesh!$L$10:$L$17,0)) -> 2202-02-001-02-01 | E100: N0191 | F100: MAHESH KUMAR KHATRI | G100: RJBI199009009514 | H100: A.A.O | I100: PB (9300-34800) G.P.- 3600 L-10 | J100: 48100 | K100: 0 | L100: 1400 | M100: 11200 | N100: 577200 | O100: 571600 | P100: 7696 | Q100: 620 | R100: 10 | S100: YES | T100: YES
A101: 205 | B101: 06 | C101: 01 | D101: =INDEX(TPravesh!$M$10:$M$17,MATCH(X!C101,TPravesh!$L$10:$L$17,0)) -> 2202-02-001-02-01 | E101: N0287 | F101: RAMESH CHANDRA PUROHIT | G101: RJBI199009011080 | H101: A.A.O | I101: PB (9300-34800) G.P.- 3600 L-10 | J101: 48100 | K101: 0 | L101: 1400 | M101: 11200 | N101: 577200 | O101: 571600 | P101: 7696 | Q101: 620 | R101: 10 | S101: YES | T101: YES
A102: 207 | B102: 06 | C102: 01 | D102: =INDEX(TPravesh!$M$10:$M$17,MATCH(X!C102,TPravesh!$L$10:$L$17,0)) -> 2202-02-001-02-01 | E102: N0678 | F102: ANIRUDH SINGH UMAT | G102: RJBI199009007920 | H102: A.A.O | I102: PB (9300-34800) G.P.- 3600 L-10 | J102: 48100 | K102: 0 | L102: 1400 | M102: 11200 | N102: 577200 | O102: 571600 | P102: 7696 | Q102: 620 | R102: 10 | S102: YES | T102: YES
A103: 208 | B103: 06 | C103: 01 | D103: =INDEX(TPravesh!$M$10:$M$17,MATCH(X!C103,TPravesh!$L$10:$L$17,0)) -> 2202-02-001-02-01 | E103: N0304 | F103: ROSHAN ALI | G103: RJBI198309008155 | H103: A.A.O | I103: PB (9300-34800) G.P.- 3600 L-10 | J103: 48100 | K103: 0 | L103: 1400 | M103: 11200 | N103: 577200 | O103: 571600 | P103: 7696 | Q103: 620 | R103: 10 | S103: YES | T103: YES
A104: 210 | B104: 06 | C104: 01 | D104: =INDEX(TPravesh!$M$10:$M$17,MATCH(X!C104,TPravesh!$L$10:$L$17,0)) -> 2202-02-001-02-01 | E104: N0018 | F104: ANIL GOSWAMI-II | G104: RJBI199009009501 | H104: A.A.O | I104: PB (9300-34800) G.P.- 3600 L-10 | J104: 48100 | K104: 0 | L104: 1400 | M104: 11200 | N104: 577200 | O104: 571600 | P104: 0 | Q104: 620 | R104: 10 | S104: NO | T104: YES
A105: 196 | B105: 06 | C105: 01 | D105: =INDEX(TPravesh!$M$10:$M$17,MATCH(X!C105,TPravesh!$L$10:$L$17,0)) -> 2202-02-001-02-01 | E105: N0666 | F105: MOOL CHAND RANNA | G105: RJBI198509004454 | H105: A.A.O | I105: PB (9300-34800) G.P.- 3600 L-10 | J105: 49500 | K105: 0 | L105: 1500 | M105: 12000 | N105: 594000 | O105: 588000 | P105: 7920 | Q105: 620 | R105: 10 | S105: YES | T105: YES
A106: 201 | B106: 06 | C106: 01 | D106: =INDEX(TPravesh!$M$10:$M$17,MATCH(X!C106,TPravesh!$L$10:$L$17,0)) -> 2202-02-001-02-01 | E106: N0871 | F106: SH.JAGDISH PRASAD JOIYA | G106: RJBI198509004432 | H106: A.A.O | I106: PB (9300-34800) G.P.- 3600 L-10 | J106: 49500 | K106: 0 | L106: 1500 | M106: 12000 | N106: 594000 | O106: 588000 | P106: 7920 | Q106: 620 | R106: 10 | S106: YES | T106: YES
A107: 133 | B107: 06 | C107: 01 | D107: =INDEX(TPravesh!$M$10:$M$17,MATCH(X!C107,TPravesh!$L$10:$L$17,0)) -> 2202-02-001-02-01 | E107: N0955 | F107: SHIVKUMAR SARASWAT | G107: RJBI198909005022 | H107: A.A.O | I107: PB (9300-34800) G.P.- 3600 L-10 | J107: 50800 | K107: 0 | L107: 1500 | M107: 12000 | N107: 609600 | O107: 603600 | P107: 8128 | Q107: 620 | R107: 10 | S107: YES | T107: YES
A108: 147 | B108: 06 | C108: 01 | D108: =INDEX(TPravesh!$M$10:$M$17,MATCH(X!C108,TPravesh!$L$10:$L$17,0)) -> 2202-02-001-02-01 | E108: N0073 | F108: CHAND RATAN ACHARYA | G108: RJBI199009009503 | H108: A.A.O | I108: PB (9300-34800) G.P.- 3600 L-10 | J108: 50800 | K108: 0 | L108: 1500 | M108: 12000 | N108: 609600 | O108: 603600 | P108: 8128 | Q108: 620 | R108: 10 | S108: YES | T108: YES
A109: 150 | B109: 06 | C109: 01 | D109: =INDEX(TPravesh!$M$10:$M$17,MATCH(X!C109,TPravesh!$L$10:$L$17,0)) -> 2202-02-001-02-01 | E109: N0490 | F109: MAHENDRA KUMAR CHOUHAN | G109: RJBI199009005982 | H109: A.A.O | I109: PB (9300-34800) G.P.- 3600 L-10 | J109: 50800 | K109: 0 | L109: 1500 | M109: 12000 | N109: 609600 | O109: 603600 | P109: 8128 | Q109: 620 | R109: 10 | S109: YES | T109: YES
A110: 151 | B110: 06 | C110: 01 | D110: =INDEX(TPravesh!$M$10:$M$17,MATCH(X!C110,TPravesh!$L$10:$L$17,0)) -> 2202-02-001-02-01 | E110: N0809 | F110: JETHU SINGH | G110: RJBI199009002816 | H110: A.A.O | I110: PB (9300-34800) G.P.- 3600 L-10 | J110: 50800 | K110: 0 | L110: 1500 | M110: 12000 | N110: 609600 | O110: 603600 | P110: 8128 | Q110: 620 | R110: 10 | S110: YES | T110: YES
A111: 163 | B111: 06 | C111: 01 | D111: =INDEX(TPravesh!$M$10:$M$17,MATCH(X!C111,TPravesh!$L$10:$L$17,0)) -> 2202-02-001-02-01 | E111: N0815 | F111: BAJRANG LAL KALWANI | G111: RJBI199009001056 | H111: A.A.O | I111: PB (9300-34800) G.P.- 3600 L-10 | J111: 50800 | K111: 0 | L111: 1500 | M111: 12000 | N111: 609600 | O111: 603600 | P111: 8128 | Q111: 620 | R111: 10 | S111: YES | T111: YES
A112: 168 | B112: 06 | C112: 01 | D112: =INDEX(TPravesh!$M$10:$M$17,MATCH(X!C112,TPravesh!$L$10:$L$17,0)) -> 2202-02-001-02-01 | E112: N0823 | F112: SUNIL KUMAR SIDANA | G112: RJGA199035004149 | H112: A.A.O | I112: PB (9300-34800) G.P.- 3600 L-10 | J112: 50800 | K112: 0 | L112: 1500 | M112: 12000 | N112: 609600 | O112: 603600 | P112: 8128 | Q112: 620 | R112: 10 | S112: YES | T112: YES
A113: 177 | B113: 06 | C113: 01 | D113: =INDEX(TPravesh!$M$10:$M$17,MATCH(X!C113,TPravesh!$L$10:$L$17,0)) -> 2202-02-001-02-01 | E113: N0833 | F113: ANIL KUMAR VYAS | G113: RJBI199009007678 | H113: A.A.O | I113: PB (9300-34800) G.P.- 3600 L-10 | J113: 50800 | K113: 0 | L113: 1500 | M113: 12000 | N113: 609600 | O113: 603600 | P113: 8128 | Q113: 620 | R113: 10 | S113: YES | T113: YES
A114: 183 | B114: 06 | C114: 01 | D114: =INDEX(TPravesh!$M$10:$M$17,MATCH(X!C114,TPravesh!$L$10:$L$17,0)) -> 2202-02-001-02-01 | E114: N0527 | F114: KARNI SINGH RAJPOOT | G114: RJBI199009012624 | H114: A.A.O | I114: PB (9300-34800) G.P.- 3600 L-10 | J114: 50800 | K114: 0 | L114: 1500 | M114: 12000 | N114: 609600 | O114: 603600 | P114: 8128 | Q114: 620 | R114: 10 | S114: YES | T114: YES
A115: 184 | B115: 06 | C115: 01 | D115: =INDEX(TPravesh!$M$10:$M$17,MATCH(X!C115,TPravesh!$L$10:$L$17,0)) -> 2202-02-001-02-01 | E115: N0648 | F115: PRITHVI SINGH RATHORE | G115: RJBI199009003303 | H115: A.A.O | I115: PB (9300-34800) G.P.- 3600 L-10 | J115: 50800 | K115: 0 | L115: 1500 | M115: 12000 | N115: 609600 | O115: 603600 | P115: 8128 | Q115: 620 | R115: 10 | S115: YES | T115: YES
A116: 186 | B116: 06 | C116: 01 | D116: =INDEX(TPravesh!$M$10:$M$17,MATCH(X!C116,TPravesh!$L$10:$L$17,0)) -> 2202-02-001-02-01 | E116: N0808 | F116: SUGANA RAM PRAJAPAT | G116: RJBI199009006001 | H116: A.A.O | I116: PB (9300-34800) G.P.- 3600 L-10 | J116: 50800 | K116: 0 | L116: 1500 | M116: 12000 | N116: 609600 | O116: 603600 | P116: 8128 | Q116: 620 | R116: 10 | S116: YES | T116: YES
A117: 190 | B117: 06 | C117: 01 | D117: =INDEX(TPravesh!$M$10:$M$17,MATCH(X!C117,TPravesh!$L$10:$L$17,0)) -> 2202-02-001-02-01 | E117: N0226 | F117: NEERAJ KUMAR BHATNAGAR | G117: RJBI199009009476 | H117: A.A.O | I117: PB (9300-34800) G.P.- 3600 L-10 | J117: 50800 | K117: 0 | L117: 1500 | M117: 12000 | N117: 609600 | O117: 603600 | P117: 8128 | Q117: 620 | R117: 10 | S117: YES | T117: YES
A118: 194 | B118: 06 | C118: 01 | D118: =INDEX(TPravesh!$M$10:$M$17,MATCH(X!C118,TPravesh!$L$10:$L$17,0)) -> 2202-02-001-02-01 | E118: N0652 | F118: MOHAMMAD HUSSAIN BHATI | G118: RJBI199009005963 | H118: A.A.O | I118: PB (9300-34800) G.P.- 3600 L-10 | J118: 50800 | K118: 0 | L118: 1500 | M118: 12000 | N118: 609600 | O118: 603600 | P118: 8128 | Q118: 620 | R118: 10 | S118: YES | T118: YES
A119: 206 | B119: 06 | C119: 01 | D119: =INDEX(TPravesh!$M$10:$M$17,MATCH(X!C119,TPravesh!$L$10:$L$17,0)) -> 2202-02-001-02-01 | E119: N0021 | F119: ANOOP KUMAR GOSWAMI | G119: RJBI198409009707 | H119: A.A.O | I119: PB (9300-34800) G.P.- 3600 L-10 | J119: 51000 | K119: 0 | L119: 1500 | M119: 12000 | N119: 612000 | O119: 606000 | P119: 8160 | Q119: 620 | R119: 10 | S119: YES | T119: YES
A120: 164 | B120: 06 | C120: 01 | D120: =INDEX(TPravesh!$M$10:$M$17,MATCH(X!C120,TPravesh!$L$10:$L$17,0)) -> 2202-02-001-02-01 | E120: N0816 | F120: KANTA KALLA | G120: RJBI198809001837 | H120: A.A.O | I120: PB (9300-34800) G.P.- 3600 L-10 | J120: 53900 | K120: 0 | L120: 1600 | M120: 12800 | N120: 646800 | O120: 640400 | P120: 8624 | Q120: 620 | R120: 10 | S120: YES | T120: YES
A121: 176 | B121: 06 | C121: 01 | D121: =INDEX(TPravesh!$M$10:$M$17,MATCH(X!C121,TPravesh!$L$10:$L$17,0)) -> 2202-02-001-02-01 | E121: N0379 | F121: UMESH KUMAR SADH | G121: RJBI198709009671 | H121: A.A.O | I121: PB (9300-34800) G.P.- 3600 L-10 | J121: 53900 | K121: 0 | L121: 1600 | M121: 12800 | N121: 646800 | O121: 640400 | P121: 8624 | Q121: 620 | R121: 10 | S121: YES | T121: YES
A122: 136 | B122: 06 | C122: 01 | D122: =INDEX(TPravesh!$M$10:$M$17,MATCH(X!C122,TPravesh!$L$10:$L$17,0)) -> 2202-02-001-02-01 | E122: N0127 | F122: IQBAL HASAN | G122: RJBI198609010703 | H122: A.A.O | I122: PB (9300-34800) G.P.- 3600 L-10 | J122: 55500 | K122: 0 | L122: 1700 | M122: 13600 | N122: 666000 | O122: 659200 | P122: 8880 | Q122: 620 | R122: 10 | S122: YES | T122: YES
A123: 128 | B123: 06 | C123: 01 | D123: =INDEX(TPravesh!$M$10:$M$17,MATCH(X!C123,TPravesh!$L$10:$L$17,0)) -> 2202-02-001-02-01 | E123: N0911 | F123: SH DEEPAK SOOD | G123: RJBI198809004275 | H123: A.A.O | I123: PB (9300-34800) G.P.- 3600 L-10 | J123: 55500 | K123: 0 | L123: 1700 | M123: 13600 | N123: 666000 | O123: 659200 | P123: 8880 | Q123: 620 | R123: 10 | S123: YES | T123: YES
A124: 153 | B124: 06 | C124: 01 | D124: =INDEX(TPravesh!$M$10:$M$17,MATCH(X!C124,TPravesh!$L$10:$L$17,0)) -> 2202-02-001-02-01 | E124: N0811 | F124: SHYAM SUNDER SONI | G124: RJBI198609003279 | H124: A.A.O | I124: PB (9300-34800) G.P.- 3600 L-10 | J124: 55500 | K124: 0 | L124: 1700 | M124: 13600 | N124: 666000 | O124: 659200 | P124: 8880 | Q124: 620 | R124: 10 | S124: YES | T124: YES
A125: 154 | B125: 06 | C125: 01 | D125: =INDEX(TPravesh!$M$10:$M$17,MATCH(X!C125,TPravesh!$L$10:$L$17,0)) -> 2202-02-001-02-01 | E125: N0812 | F125: SHIV SHANKAR SHARMA | G125: RJHA198516030335 | H125: A.A.O | I125: PB (9300-34800) G.P.- 3600 L-10 | J125: 55500 | K125: 0 | L125: 1700 | M125: 13600 | N125: 666000 | O125: 659200 | P125: 8880 | Q125: 620 | R125: 10 | S125: YES | T125: YES
A126: 166 | B126: 06 | C126: 01 | D126: =INDEX(TPravesh!$M$10:$M$17,MATCH(X!C126,TPravesh!$L$10:$L$17,0)) -> 2202-02-001-02-01 | E126: N0407 | F126: MUKESH KUMAR DHURIA | G126: RJBI198609021109 | H126: A.A.O | I126: PB (9300-34800) G.P.- 3600 L-10 | J126: 55500 | K126: 0 | L126: 1700 | M126: 13600 | N126: 666000 | O126: 659200 | P126: 8880 | Q126: 620 | R126: 10 | S126: YES | T126: YES
A127: 167 | B127: 06 | C127: 01 | D127: =INDEX(TPravesh!$M$10:$M$17,MATCH(X!C127,TPravesh!$L$10:$L$17,0)) -> 2202-02-001-02-01 | E127: N0822 | F127: RAJENDER KUMAR | G127: RJGA198535029295 | H127: A.A.O | I127: PB (9300-34800) G.P.- 3600 L-10 | J127: 55500 | K127: 0 | L127: 1700 | M127: 13600 | N127: 666000 | O127: 659200 | P127: 8880 | Q127: 620 | R127: 10 | S127: YES | T127: YES
A128: 170 | B128: 06 | C128: 01 | D128: =INDEX(TPravesh!$M$10:$M$17,MATCH(X!C128,TPravesh!$L$10:$L$17,0)) -> 2202-02-001-02-01 | E128: N0825 | F128: SHYAM SUNDER OJHA-II | G128: RJBI198609001206 | H128: A.A.O | I128: PB (9300-34800) G.P.- 3600 L-10 | J128: 55500 | K128: 0 | L128: 1700 | M128: 13600 | N128: 666000 | O128: 659200 | P128: 8880 | Q128: 620 | R128: 10 | S128: YES | T128: YES
A129: 172 | B129: 06 | C129: 01 | D129: =INDEX(TPravesh!$M$10:$M$17,MATCH(X!C129,TPravesh!$L$10:$L$17,0)) -> 2202-02-001-02-01 | E129: N0827 | F129: RADHE SHYAM SUTHAR | G129: RJBI198609003865 | H129: A.A.O | I129: PB (9300-34800) G.P.- 3600 L-10 | J129: 55500 | K129: 0 | L129: 1700 | M129: 13600 | N129: 666000 | O129: 659200 | P129: 8880 | Q129: 620 | R129: 10 | S129: YES | T129: YES
A130: 173 | B130: 06 | C130: 01 | D130: =INDEX(TPravesh!$M$10:$M$17,MATCH(X!C130,TPravesh!$L$10:$L$17,0)) -> 2202-02-001-02-01 | E130: N0829 | F130: KEWAL RAM BOHARA | G130: RJBI198609001192 | H130: A.A.O | I130: PB (9300-34800) G.P.- 3600 L-10 | J130: 55500 | K130: 0 | L130: 1700 | M130: 13600 | N130: 666000 | O130: 659200 | P130: 8880 | Q130: 620 | R130: 10 | S130: =IF(P130>0,"YES","NO") -> YES | T130: =IF(Q130>0,"YES","NO") -> YES
A131: 174 | B131: 06 | C131: 01 | D131: =INDEX(TPravesh!$M$10:$M$17,MATCH(X!C131,TPravesh!$L$10:$L$17,0)) -> 2202-02-001-02-01 | E131: N0830 | F131: JAIPRAKASH THANVI | G131: RJBI198609006977 | H131: A.A.O | I131: PB (9300-34800) G.P.- 3600 L-10 | J131: 55500 | K131: 0 | L131: 1700 | M131: 13600 | N131: 666000 | O131: 659200 | P131: 0 | Q131: 620 | R131: 10 | S131: NO | T131: YES
A132: 175 | B132: 06 | C132: 01 | D132: =INDEX(TPravesh!$M$10:$M$17,MATCH(X!C132,TPravesh!$L$10:$L$17,0)) -> 2202-02-001-02-01 | E132: N0831 | F132: GOVERDHAN DAS RANGA | G132: RJBI198609001261 | H132: A.A.O | I132: PB (9300-34800) G.P.- 3600 L-10 | J132: 55500 | K132: 0 | L132: 1700 | M132: 13600 | N132: 666000 | O132: 659200 | P132: 8880 | Q132: 620 | R132: 10 | S132: YES | T132: YES
A133: 181 | B133: 06 | C133: 01 | D133: =INDEX(TPravesh!$M$10:$M$17,MATCH(X!C133,TPravesh!$L$10:$L$17,0)) -> 2202-02-001-02-01 | E133: N0521 | F133: OM PRAKASH BISNOI | G133: RJBI198609010696 | H133: A.A.O | I133: PB (9300-34800) G.P.- 3600 L-10 | J133: 55500 | K133: 0 | L133: 1700 | M133: 13600 | N133: 666000 | O133: 659200 | P133: 8880 | Q133: 620 | R133: 10 | S133: YES | T133: YES
A134: 182 | B134: 06 | C134: 01 | D134: =INDEX(TPravesh!$M$10:$M$17,MATCH(X!C134,TPravesh!$L$10:$L$17,0)) -> 2202-02-001-02-01 | E134: N0233 | F134: OM PRAKASH MARU | G134: RJBI198609010529 | H134: A.A.O | I134: PB (9300-34800) G.P.- 3600 L-10 | J134: 55500 | K134: 0 | L134: 1700 | M134: 13600 | N134: 666000 | O134: 659200 | P134: 8880 | Q134: 620 | R134: 10 | S134: YES | T134: YES
A135: 187 | B135: 06 | C135: 01 | D135: =INDEX(TPravesh!$M$10:$M$17,MATCH(X!C135,TPravesh!$L$10:$L$17,0)) -> 2202-02-001-02-01 | E135: N0338 | F135: SHYAM SUNDER VYAS | G135: RJBI198409009706 | H135: A.A.O | I135: PB (9300-34800) G.P.- 3600 L-10 | J135: 55500 | K135: 0 | L135: 1700 | M135: 13600 | N135: 666000 | O135: 659200 | P135: 8880 | Q135: 620 | R135: 10 | S135: YES | T135: YES
A136: 188 | B136: 06 | C136: 01 | D136: =INDEX(TPravesh!$M$10:$M$17,MATCH(X!C136,TPravesh!$L$10:$L$17,0)) -> 2202-02-001-02-01 | E136: N0670 | F136: ARUN KUMAR VERMA | G136: RJBI198609004117 | H136: A.A.O | I136: PB (9300-34800) G.P.- 3600 L-10 | J136: 55500 | K136: 0 | L136: 1700 | M136: 13600 | N136: 666000 | O136: 659200 | P136: 8880 | Q136: 620 | R136: 10 | S136: YES | T136: YES
A137: 191 | B137: 06 | C137: 01 | D137: =INDEX(TPravesh!$M$10:$M$17,MATCH(X!C137,TPravesh!$L$10:$L$17,0)) -> 2202-02-001-02-01 | E137: N0649 | F137: ANAND KUMAR NAIR | G137: RJBI198609007011 | H137: A.A.O | I137: PB (9300-34800) G.P.- 3600 L-10 | J137: 55500 | K137: 0 | L137: 1700 | M137: 13600 | N137: 666000 | O137: 659200 | P137: 8880 | Q137: 620 | R137: 10 | S137: YES | T137: YES
A138: 192 | B138: 06 | C138: 01 | D138: =INDEX(TPravesh!$M$10:$M$17,MATCH(X!C138,TPravesh!$L$10:$L$17,0)) -> 2202-02-001-02-01 | E138: N0425 | F138: KRISHAN CHANDER VYAS | G138: RJBI198609014530 | H138: A.A.O | I138: PB (9300-34800) G.P.- 3600 L-10 | J138: 55500 | K138: 0 | L138: 1700 | M138: 13600 | N138: 666000 | O138: 659200 | P138: 8880 | Q138: 620 | R138: 10 | S138: YES | T138: YES
A139: 132 | B139: 06 | C139: 01 | D139: =INDEX(TPravesh!$M$10:$M$17,MATCH(X!C139,TPravesh!$L$10:$L$17,0)) -> 2202-02-001-02-01 | E139: N0954 | F139: OM MPRAKASH CHOUHAN | G139: RJBI198309005514 | H139: A.A.O | I139: PB (9300-34800) G.P.- 3600 L-10 | J139: 57200 | K139: 0 | L139: 1700 | M139: 13600 | N139: 686400 | O139: 679600 | P139: 9152 | Q139: 620 | R139: 10 | S139: YES | T139: YES
A140: 171 | B140: 06 | C140: 01 | D140: =INDEX(TPravesh!$M$10:$M$17,MATCH(X!C140,TPravesh!$L$10:$L$17,0)) -> 2202-02-001-02-01 | E140: N0826 | F140: RAJ KUMAR PUROHIT | G140: RJBI198309001076 | H140: A.A.O | I140: PB (9300-34800) G.P.- 3600 L-10 | J140: 57200 | K140: 0 | L140: 1700 | M140: 13600 | N140: 686400 | O140: 679600 | P140: 9152 | Q140: 620 | R140: 10 | S140: YES | T140: YES
A141: 180 | B141: 06 | C141: 01 | D141: =INDEX(TPravesh!$M$10:$M$17,MATCH(X!C141,TPravesh!$L$10:$L$17,0)) -> 2202-02-001-02-01 | E141: N0303 | F141: ROOP KUMAR SHARMA | G141: RJBI198409009702 | H141: A.A.O | I141: PB (9300-34800) G.P.- 3600 L-10 | J141: 57200 | K141: 0 | L141: 1700 | M141: 13600 | N141: 686400 | O141: 679600 | P141: 9152 | Q141: 620 | R141: 10 | S141: YES | T141: YES
A142: 179 | B142: 06 | C142: 01 | D142: =INDEX(TPravesh!$M$10:$M$17,MATCH(X!C142,TPravesh!$L$10:$L$17,0)) -> 2202-02-001-02-01 | E142: N0426 | F142: SANTOSH KUAMR JOSHI | G142: RJBI198109008185 | H142: A.A.O | I142: PB (9300-34800) G.P.- 3600 L-10 | J142: 60700 | K142: 0 | L142: 1800 | M142: 14400 | N142: 728400 | O142: 721200 | P142: 9712 | Q142: 620 | R142: 10 | S142: YES | T142: YES
A143: 189 | B143: 06 | C143: 01 | D143: =INDEX(TPravesh!$M$10:$M$17,MATCH(X!C143,TPravesh!$L$10:$L$17,0)) -> 2202-02-001-02-01 | E143: N0028 | F143: ASHOK KUMAR VYAS | G143: RJBI197909003523 | H143: A.A.O | I143: PB (9300-34800) G.P.- 3600 L-10 | J143: 60700 | K143: 0 | L143: 1800 | M143: 14400 | N143: 728400 | O143: 721200 | P143: 9712 | Q143: 620 | R143: 10 | S143: YES | T143: YES
A144: 159 | B144: 06 | C144: 01 | D144: =INDEX(TPravesh!$M$10:$M$17,MATCH(X!C144,TPravesh!$L$10:$L$17,0)) -> 2202-02-001-02-01 | E144: N0410 | F144: RAMNATH ACHARYA | G144: RJBI197909009322 | H144: A.A.O | I144: PB (9300-34800) G.P.- 3600 L-10 | J144: 62500 | K144: 0 | L144: 1900 | M144: 15200 | N144: 750000 | O144: 742400 | P144: 10000 | Q144: 620 | R144: 10 | S144: YES | T144: YES
A145: 185 | B145: 06 | C145: 01 | D145: =INDEX(TPravesh!$M$10:$M$17,MATCH(X!C145,TPravesh!$L$10:$L$17,0)) -> 2202-02-001-02-01 | E145: N0011 | F145: AJAY KUMAR ACHARAYA | G145: RJBI198009010887 | H145: A.A.O | I145: PB (9300-34800) G.P.- 3600 L-10 | J145: 62500 | K145: 0 | L145: 1900 | M145: 15200 | N145: 750000 | O145: 742400 | P145: 10000 | Q145: 620 | R145: 10 | S145: YES | T145: YES
A146: 135 | B146: 06 | C146: 01 | D146: =INDEX(TPravesh!$M$10:$M$17,MATCH(X!C146,TPravesh!$L$10:$L$17,0)) -> 2202-02-001-02-01 | E146: N0961 | F146: DARSHAN LAL SIDANA | G146: RJGA197935005237 | H146: A.A.O | I146: PB (9300-34800) G.P.- 3600 L-10 | J146: 64400 | K146: 0 | L146: 1900 | M146: 15200 | N146: 772800 | O146: 765200 | P146: 10304 | Q146: 620 | R146: 10 | S146: YES | T146: YES
A147: 160 | B147: 06 | C147: 01 | D147: =INDEX(TPravesh!$M$10:$M$17,MATCH(X!C147,TPravesh!$L$10:$L$17,0)) -> 2202-02-001-02-01 | E147: N0253 | F147: PARDHYUMAN SINGH DEVRA | G147: RJBI198109011133 | H147: A.A.O | I147: PB (9300-34800) G.P.- 3600 L-10 | J147: 64400 | K147: 0 | L147: 1900 | M147: 15200 | N147: 772800 | O147: 765200 | P147: 10304 | Q147: 620 | R147: 10 | S147: YES | T147: YES
A148: 165 | B148: 06 | C148: 01 | D148: =INDEX(TPravesh!$M$10:$M$17,MATCH(X!C148,TPravesh!$L$10:$L$17,0)) -> 2202-02-001-02-01 | E148: N0818 | F148: SURENDRA KUMAR SUTHAR | G148: RJBI198009003258 | H148: A.A.O | I148: PB (9300-34800) G.P.- 3600 L-10 | J148: 64400 | K148: 0 | L148: 1900 | M148: 15200 | N148: 772800 | O148: 765200 | P148: 10304 | Q148: 620 | R148: 10 | S148: YES | T148: YES
A149: 137 | B149: 06 | C149: 01 | D149: =INDEX(TPravesh!$M$10:$M$17,MATCH(X!C149,TPravesh!$L$10:$L$17,0)) -> 2202-02-001-02-01 | E149: N0969 | F149: GOPAL LAL SHARMA | G149: RJNA197828001519 | H149: A.A.O | I149: PB (9300-34800) G.P.- 3600 L-10 | J149: 66300 | K149: 0 | L149: 2000 | M149: 16000 | N149: 795600 | O149: 787600 | P149: 10608 | Q149: 620 | R149: 10 | S149: YES | T149: YES
A150: 156 | B150: 06 | C150: 01 | D150: =INDEX(TPravesh!$M$10:$M$17,MATCH(X!C150,TPravesh!$L$10:$L$17,0)) -> 2202-02-001-02-01 | E150: N0030 | F150: ASHOK UPADHYAY | G150: RJBI197909009325 | H150: A.A.O | I150: PB (9300-34800) G.P.- 3600 L-10 | J150: 66300 | K150: 0 | L150: 2000 | M150: 16000 | N150: 795600 | O150: 787600 | P150: 10608 | Q150: 620 | R150: 10 | S150: YES | T150: YES
A151: 157 | B151: 06 | C151: 01 | D151: =INDEX(TPravesh!$M$10:$M$17,MATCH(X!C151,TPravesh!$L$10:$L$17,0)) -> 2202-02-001-02-01 | E151: N0121 | F151: HARI PARSAD SWAMI | G151: RJBI197909009400 | H151: A.A.O | I151: PB (9300-34800) G.P.- 3600 L-10 | J151: 66300 | K151: 0 | L151: 2000 | M151: 16000 | N151: 795600 | O151: 787600 | P151: 10608 | Q151: 620 | R151: 10 | S151: YES | T151: YES
A152: 158 | B152: 06 | C152: 01 | D152: =INDEX(TPravesh!$M$10:$M$17,MATCH(X!C152,TPravesh!$L$10:$L$17,0)) -> 2202-02-001-02-01 | E152: N0037 | F152: BABULAL GUJRATI | G152: RJBI197909009402 | H152: A.A.O | I152: PB (9300-34800) G.P.- 3600 L-10 | J152: 66300 | K152: 0 | L152: 2000 | M152: 16000 | N152: 795600 | O152: 787600 | P152: 10608 | Q152: 620 | R152: 10 | S152: YES | T152: YES
A153: 178 | B153: 06 | C153: 01 | D153: =INDEX(TPravesh!$M$10:$M$17,MATCH(X!C153,TPravesh!$L$10:$L$17,0)) -> 2202-02-001-02-01 | E153: N0261 | F153: PREM RATAN TANEJA | G153: RJBI197909009405 | H153: A.A.O | I153: PB (9300-34800) G.P.- 3600 L-10 | J153: 66300 | K153: 0 | L153: 2000 | M153: 16000 | N153: 795600 | O153: 787600 | P153: 10608 | Q153: 620 | R153: 10 | S153: YES | T153: YES
A154: 211 | B154: 06 | C154: 01 | D154: =INDEX(TPravesh!$M$10:$M$17,MATCH(X!C154,TPravesh!$L$10:$L$17,0)) -> 2202-02-001-02-01 | E154: N0922 | F154: MAYANK BHARGAVA | G154: RJBI201109000435 | H154: SR.ASSIS. | I154: PB (5200-20200) G.P.- 2800 L-8 | J154: 27100 | K154: 0 | L154: 800 | M154: 6400 | N154: 325200 | O154: 322000 | P154: 4336 | Q154: 620 | R154: 8 | S154: YES | T154: YES
A155: 212 | B155: 06 | C155: 01 | D155: =INDEX(TPravesh!$M$10:$M$17,MATCH(X!C155,TPravesh!$L$10:$L$17,0)) -> 2202-02-001-02-01 | E155: N0925 | F155: VIJAY SHARMA | G155: RJBI200909003224 | H155: SR.ASSIS. | I155: PB (5200-20200) G.P.- 2800 L-8 | J155: 27900 | K155: 0 | L155: 800 | M155: 6400 | N155: 334800 | O155: 331600 | P155: 4464 | Q155: 620 | R155: 8 | S155: YES | T155: YES
A156: 270 | B156: 06 | C156: 01 | D156: =INDEX(TPravesh!$M$10:$M$17,MATCH(X!C156,TPravesh!$L$10:$L$17,0)) -> 2202-02-001-02-01 | E156: N0588 | F156: KISHAN GOPAL VYAS | G156: RJBI200709005082 | H156: SR.ASSIS. | I156: PB (5200-20200) G.P.- 2800 L-8 | J156: 29600 | K156: 0 | L156: 900 | M156: 7200 | N156: 355200 | O156: 351600 | P156: 4736 | Q156: 620 | R156: 8 | S156: YES | T156: YES
A157: 271 | B157: 06 | C157: 01 | D157: =INDEX(TPravesh!$M$10:$M$17,MATCH(X!C157,TPravesh!$L$10:$L$17,0)) -> 2202-02-001-02-01 | E157: N0592 | F157: SHIV SHANKER SHARMA | G157: RJBI200709005081 | H157: SR.ASSIS. | I157: PB (5200-20200) G.P.- 2800 L-8 | J157: 29600 | K157: 0 | L157: 900 | M157: 7200 | N157: 355200 | O157: 351600 | P157: 4736 | Q157: 620 | R157: 8 | S157: YES | T157: YES
A158: 278 | B158: 06 | C158: 01 | D158: =INDEX(TPravesh!$M$10:$M$17,MATCH(X!C158,TPravesh!$L$10:$L$17,0)) -> 2202-02-001-02-01 | E158: N0595 | F158: JAGDISH KALLA | G158: RJBI200709005083 | H158: SR.ASSIS. | I158: PB (5200-20200) G.P.- 2800 L-8 | J158: 29600 | K158: 0 | L158: 900 | M158: 7200 | N158: 355200 | O158: 351600 | P158: 4736 | Q158: 620 | R158: 8 | S158: YES | T158: YES
A159: 279 | B159: 06 | C159: 01 | D159: =INDEX(TPravesh!$M$10:$M$17,MATCH(X!C159,TPravesh!$L$10:$L$17,0)) -> 2202-02-001-02-01 | E159: N0593 | F159: MANISH PAREEK | G159: RJBI200709005080 | H159: SR.ASSIS. | I159: PB (5200-20200) G.P.- 2800 L-8 | J159: 29600 | K159: 0 | L159: 900 | M159: 7200 | N159: 355200 | O159: 351600 | P159: 4736 | Q159: 620 | R159: 8 | S159: YES | T159: YES
A160: 280 | B160: 06 | C160: 01 | D160: =INDEX(TPravesh!$M$10:$M$17,MATCH(X!C160,TPravesh!$L$10:$L$17,0)) -> 2202-02-001-02-01 | E160: N0591 | F160: KULDEEP JOSHI | G160: RJBI200709007205 | H160: SR.ASSIS. | I160: PB (5200-20200) G.P.- 2800 L-8 | J160: 29600 | K160: 0 | L160: 900 | M160: 7200 | N160: 355200 | O160: 351600 | P160: 4736 | Q160: 620 | R160: 8 | S160: YES | T160: YES
A161: 265 | B161: 06 | C161: 01 | D161: =INDEX(TPravesh!$M$10:$M$17,MATCH(X!C161,TPravesh!$L$10:$L$17,0)) -> 2202-02-001-02-01 | E161: N0583 | F161: SMT.SAHAIR KANWAR | G161: RJBI200609005908 | H161: SR.ASSIS. | I161: PB (5200-20200) G.P.- 2800 L-8 | J161: 30500 | K161: 0 | L161: 900 | M161: 7200 | N161: 366000 | O161: 362400 | P161: 4880 | Q161: 620 | R161: 8 | S161: YES | T161: YES
A162: 272 | B162: 06 | C162: 01 | D162: =INDEX(TPravesh!$M$10:$M$17,MATCH(X!C162,TPravesh!$L$10:$L$17,0)) -> 2202-02-001-02-01 | E162: N0584 | F162: MAHUA GHOSAL | G162: RJBI200609006122 | H162: SR.ASSIS. | I162: PB (5200-20200) G.P.- 2800 L-8 | J162: 30500 | K162: 0 | L162: 900 | M162: 7200 | N162: 366000 | O162: 362400 | P162: 4880 | Q162: 620 | R162: 8 | S162: YES | T162: YES
A163: 277 | B163: 06 | C163: 01 | D163: =INDEX(TPravesh!$M$10:$M$17,MATCH(X!C163,TPravesh!$L$10:$L$17,0)) -> 2202-02-001-02-01 | E163: N0575 | F163: BHARAT KUMAR CHHANGANI | G163: RJBI200609005909 | H163: SR.ASSIS. | I163: PB (5200-20200) G.P.- 2800 L-8 | J163: 30500 | K163: 0 | L163: 900 | M163: 7200 | N163: 366000 | O163: 362400 | P163: 4880 | Q163: 620 | R163: 8 | S163: YES | T163: YES
A164: 261 | B164: 06 | C164: 01 | D164: =INDEX(TPravesh!$M$10:$M$17,MATCH(X!C164,TPravesh!$L$10:$L$17,0)) -> 2202-02-001-02-01 | E164: N0644 | F164: GIRIRAJ SHREEMALI | G164: RJBI199209000527 | H164: SR.ASSIS. | I164: PB (5200-20200) G.P.- 2800 L-8 | J164: 33300 | K164: 0 | L164: 1000 | M164: 8000 | N164: 399600 | O164: 395600 | P164: 5328 | Q164: 620 | R164: 8 | S164: YES | T164: YES
A165: 268 | B165: 06 | C165: 01 | D165: =INDEX(TPravesh!$M$10:$M$17,MATCH(X!C165,TPravesh!$L$10:$L$17,0)) -> 2202-02-001-02-01 | E165: N0505 | F165: JITENDER CHOUDHARY | G165: RJBI200209002913 | H165: SR.ASSIS. | I165: PB (5200-20200) G.P.- 2800 L-8 | J165: 34300 | K165: 0 | L165: 1000 | M165: 8000 | N165: 411600 | O165: 407600 | P165: 0 | Q165: 620 | R165: 8 | S165: NO | T165: YES
A166: 269 | B166: 06 | C166: 01 | D166: =INDEX(TPravesh!$M$10:$M$17,MATCH(X!C166,TPravesh!$L$10:$L$17,0)) -> 2202-02-001-02-01 | E166: N0548 | F166: ALOK AGARWAL | G166: RJBI200309005803 | H166: SR.ASSIS. | I166: PB (5200-20200) G.P.- 2800 L-8 | J166: 34300 | K166: 0 | L166: 1000 | M166: 8000 | N166: 411600 | O166: 407600 | P166: 5488 | Q166: 620 | R166: 8 | S166: YES | T166: YES
A167: 281 | B167: 06 | C167: 01 | D167: =INDEX(TPravesh!$M$10:$M$17,MATCH(X!C167,TPravesh!$L$10:$L$17,0)) -> 2202-02-001-02-01 | E167: N0705 | F167: RAJ KUMAR TANWAR | G167: RJBI200309001606 | H167: SR.ASSIS. | I167: PB (5200-20200) G.P.- 2800 L-8 | J167: 34300 | K167: 0 | L167: 1000 | M167: 8000 | N167: 411600 | O167: 407600 | P167: 5488 | Q167: 620 | R167: 8 | S167: YES | T167: YES
A168: 213 | B168: 06 | C168: 01 | D168: =INDEX(TPravesh!$M$10:$M$17,MATCH(X!C168,TPravesh!$L$10:$L$17,0)) -> 2202-02-001-02-01 | E168: N0926 | F168: NARENDRA UPADHIYAY | G168: RJBI200409002763 | H168: SR.ASSIS. | I168: PB (5200-20200) G.P.- 2800 L-8 | J168: 34300 | K168: 0 | L168: 1000 | M168: 8000 | N168: 411600 | O168: 407600 | P168: 5488 | Q168: 620 | R168: 8 | S168: YES | T168: YES
A169: 256 | B169: 06 | C169: 01 | D169: =INDEX(TPravesh!$M$10:$M$17,MATCH(X!C169,TPravesh!$L$10:$L$17,0)) -> 2202-02-001-02-01 | E169: N0952 | F169: AKHIL SWAMI | G169: RJBI200309000575 | H169: SR.ASSIS. | I169: PB (5200-20200) G.P.- 2800 L-8 | J169: 34300 | K169: 0 | L169: 1000 | M169: 8000 | N169: 411600 | O169: 407600 | P169: 5488 | Q169: 620 | R169: 8 | S169: YES | T169: YES
A170: 267 | B170: 06 | C170: 01 | D170: =INDEX(TPravesh!$M$10:$M$17,MATCH(X!C170,TPravesh!$L$10:$L$17,0)) -> 2202-02-001-02-01 | E170: N0855 | F170: BHARAT SINGH | G170: RJBI200109000583 | H170: SR.ASSIS. | I170: PB (5200-20200) G.P.- 2800 L-8 | J170: 35300 | K170: 0 | L170: 1100 | M170: 8800 | N170: 423600 | O170: 419200 | P170: 5648 | Q170: 620 | R170: 8 | S170: YES | T170: YES
A171: 273 | B171: 06 | C171: 01 | D171: =INDEX(TPravesh!$M$10:$M$17,MATCH(X!C171,TPravesh!$L$10:$L$17,0)) -> 2202-02-001-02-01 | E171: N0541 | F171: RAM KUMAR SWAMI | G171: RJBI200109004289 | H171: SR.ASSIS. | I171: PB (5200-20200) G.P.- 2800 L-8 | J171: 35300 | K171: 0 | L171: 1100 | M171: 8800 | N171: 423600 | O171: 419200 | P171: 5648 | Q171: 620 | R171: 8 | S171: YES | T171: YES
A172: 274 | B172: 06 | C172: 01 | D172: =INDEX(TPravesh!$M$10:$M$17,MATCH(X!C172,TPravesh!$L$10:$L$17,0)) -> 2202-02-001-02-01 | E172: N0487 | F172: HEMA RAM JAT | G172: RJBI200109004096 | H172: SR.ASSIS. | I172: PB (5200-20200) G.P.- 2800 L-8 | J172: 35300 | K172: 0 | L172: 1100 | M172: 8800 | N172: 423600 | O172: 419200 | P172: 5648 | Q172: 620 | R172: 8 | S172: YES | T172: YES
A173: 275 | B173: 06 | C173: 01 | D173: =INDEX(TPravesh!$M$10:$M$17,MATCH(X!C173,TPravesh!$L$10:$L$17,0)) -> 2202-02-001-02-01 | E173: N0482 | F173: MAHENDRA KUMAR RANGA | G173: RJBI200109004097 | H173: SR.ASSIS. | I173: PB (5200-20200) G.P.- 2800 L-8 | J173: 35300 | K173: 0 | L173: 1100 | M173: 8800 | N173: 423600 | O173: 419200 | P173: 5648 | Q173: 620 | R173: 8 | S173: YES | T173: YES
A174: 276 | B174: 06 | C174: 01 | D174: =INDEX(TPravesh!$M$10:$M$17,MATCH(X!C174,TPravesh!$L$10:$L$17,0)) -> 2202-02-001-02-01 | E174: N0508 | F174: PADAM SINGH SOLANKI | G174: RJBI200109004141 | H174: SR.ASSIS. | I174: PB (5200-20200) G.P.- 2800 L-8 | J174: 35300 | K174: 0 | L174: 1100 | M174: 8800 | N174: 423600 | O174: 419200 | P174: 5648 | Q174: 620 | R174: 8 | S174: YES | T174: YES
A175: 214 | B175: 06 | C175: 01 | D175: =INDEX(TPravesh!$M$10:$M$17,MATCH(X!C175,TPravesh!$L$10:$L$17,0)) -> 2202-02-001-02-01 | E175: N0932 | F175: SANTU SINGH | G175: RJBI199309000638 | H175: SR.ASSIS. | I175: PB (5200-20200) G.P.- 2800 L-8 | J175: 35300 | K175: 0 | L175: 1100 | M175: 8800 | N175: 423600 | O175: 419200 | P175: 5648 | Q175: 620 | R175: 8 | S175: YES | T175: YES
A176: 221 | B176: 06 | C176: 01 | D176: =INDEX(TPravesh!$M$10:$M$17,MATCH(X!C176,TPravesh!$L$10:$L$17,0)) -> 2202-02-001-02-01 | E176: N0852 | F176: SHIV KUMAR PANWAR | G176: RJBI200109000398 | H176: SR.ASSIS. | I176: PB (5200-20200) G.P.- 2800 L-8 | J176: 35300 | K176: 0 | L176: 1100 | M176: 8800 | N176: 423600 | O176: 419200 | P176: 5648 | Q176: 620 | R176: 8 | S176: YES | T176: YES
A177: 224 | B177: 06 | C177: 01 | D177: =INDEX(TPravesh!$M$10:$M$17,MATCH(X!C177,TPravesh!$L$10:$L$17,0)) -> 2202-02-001-02-01 | E177: N0750 | F177: PRAKASH CHAND MODI | G177: RJBI199109010310 | H177: SR.ASSIS. | I177: PB (5200-20200) G.P.- 2800 L-8 | J177: 35300 | K177: 0 | L177: 1100 | M177: 8800 | N177: 423600 | O177: 419200 | P177: 5648 | Q177: 620 | R177: 8 | S177: YES | T177: YES
A178: 252 | B178: 06 | C178: 01 | D178: =INDEX(TPravesh!$M$10:$M$17,MATCH(X!C178,TPravesh!$L$10:$L$17,0)) -> 2202-02-001-02-01 | E178: N0613 | F178: SANJAY PAREEK | G178: RJBI200109004143 | H178: SR.ASSIS. | I178: PB (5200-20200) G.P.- 2800 L-8 | J178: 35300 | K178: 0 | L178: 1100 | M178: 8800 | N178: 423600 | O178: 419200 | P178: 5648 | Q178: 620 | R178: 8 | S178: YES | T178: YES
A179: 254 | B179: 06 | C179: 01 | D179: =INDEX(TPravesh!$M$10:$M$17,MATCH(X!C179,TPravesh!$L$10:$L$17,0)) -> 2202-02-001-02-01 | E179: N0540 | F179: SANJAY BHATI | G179: RJBI200109004290 | H179: SR.ASSIS. | I179: PB (5200-20200) G.P.- 2800 L-8 | J179: 35300 | K179: 0 | L179: 1100 | M179: 8800 | N179: 423600 | O179: 419200 | P179: 5648 | Q179: 620 | R179: 8 | S179: YES | T179: YES
A180: 255 | B180: 06 | C180: 01 | D180: =INDEX(TPravesh!$M$10:$M$17,MATCH(X!C180,TPravesh!$L$10:$L$17,0)) -> 2202-02-001-02-01 | E180: N0484 | F180: VISHNU KUMAR OJHA | G180: RJBI200109004145 | H180: SR.ASSIS. | I180: PB (5200-20200) G.P.- 2800 L-8 | J180: 35300 | K180: 0 | L180: 1100 | M180: 8800 | N180: 423600 | O180: 419200 | P180: 5648 | Q180: 620 | R180: 8 | S180: YES | T180: YES
A181: 262 | B181: 06 | C181: 01 | D181: =INDEX(TPravesh!$M$10:$M$17,MATCH(X!C181,TPravesh!$L$10:$L$17,0)) -> 2202-02-001-02-01 | E181: N0298 | F181: RATAN SINGH CHOUHAN | G181: RJBI198109009969 | H181: SR.ASSIS. | I181: PB (5200-20200) G.P.- 2800 L-8 | J181: 36400 | K181: 0 | L181: 1100 | M181: 8800 | N181: 436800 | O181: 432400 | P181: 5824 | Q181: 620 | R181: 8 | S181: YES | T181: YES
A182: 263 | B182: 06 | C182: 01 | D182: =INDEX(TPravesh!$M$10:$M$17,MATCH(X!C182,TPravesh!$L$10:$L$17,0)) -> 2202-02-001-02-01 | E182: N0797 | F182: MOHAN DAN CHANRAN | G182: RJBI198309001234 | H182: SR.ASSIS. | I182: PB (5200-20200) G.P.- 2800 L-8 | J182: 37500 | K182: 0 | L182: 1100 | M182: 8800 | N182: 450000 | O182: 445600 | P182: 6000 | Q182: 620 | R182: 8 | S182: YES | T182: YES
A183: 264 | B183: 06 | C183: 01 | D183: =INDEX(TPravesh!$M$10:$M$17,MATCH(X!C183,TPravesh!$L$10:$L$17,0)) -> 2202-02-001-02-01 | E183: N0693 | F183: MAHESH KUMAR | G183: RJBI200009001540 | H183: SR.ASSIS. | I183: PB (5200-20200) G.P.- 2800 L-8 | J183: 37500 | K183: 0 | L183: 1100 | M183: 8800 | N183: 450000 | O183: 445600 | P183: 6000 | Q183: 620 | R183: 8 | S183: YES | T183: YES
A184: 222 | B184: 06 | C184: 01 | D184: =INDEX(TPravesh!$M$10:$M$17,MATCH(X!C184,TPravesh!$L$10:$L$17,0)) -> 2202-02-001-02-01 | E184: N0853 | F184: MADHO SINGH RAJPUROHIT | G184: RJBI199009002714 | H184: SR.ASSIS. | I184: PB (5200-20200) G.P.- 2800 L-8 | J184: 37500 | K184: 0 | L184: 1100 | M184: 8800 | N184: 450000 | O184: 445600 | P184: 6000 | Q184: 620 | R184: 8 | S184: YES | T184: YES
A185: 266 | B185: 06 | C185: 01 | D185: =INDEX(TPravesh!$M$10:$M$17,MATCH(X!C185,TPravesh!$L$10:$L$17,0)) -> 2202-02-001-02-01 | E185: N0569 | F185: MURARI THAKUR | G185: RJBI199009012496 | H185: SR.ASSIS. | I185: PB (5200-20200) G.P.- 2800 L-8 | J185: 39100 | K185: 0 | L185: 1200 | M185: 9600 | N185: 469200 | O185: 464400 | P185: 6256 | Q185: 620 | R185: 8 | S185: YES | T185: YES
A186: 215 | B186: 06 | C186: 01 | D186: =INDEX(TPravesh!$M$10:$M$17,MATCH(X!C186,TPravesh!$L$10:$L$17,0)) -> 2202-02-001-02-01 | E186: N0933 | F186: ANIL KUMAR BHARGAV | G186: RJBI199009004131 | H186: SR.ASSIS. | I186: PB (5200-20200) G.P.- 2800 L-8 | J186: 39100 | K186: 0 | L186: 1200 | M186: 9600 | N186: 469200 | O186: 464400 | P186: 6256 | Q186: 620 | R186: 8 | S186: YES | T186: YES
A187: 225 | B187: 06 | C187: 01 | D187: =INDEX(TPravesh!$M$10:$M$17,MATCH(X!C187,TPravesh!$L$10:$L$17,0)) -> 2202-02-001-02-01 | E187: N0712 | F187: VISHNU DUTT PUROHIT | G187: RJBI199909004333 | H187: SR.ASSIS. | I187: PB (5200-20200) G.P.- 2800 L-8 | J187: 39100 | K187: 0 | L187: 1200 | M187: 9600 | N187: 469200 | O187: 464400 | P187: 6256 | Q187: 620 | R187: 8 | S187: YES | T187: YES
A188: 233 | B188: 06 | C188: 01 | D188: =INDEX(TPravesh!$M$10:$M$17,MATCH(X!C188,TPravesh!$L$10:$L$17,0)) -> 2202-02-001-02-01 | E188: N0434 | F188: SATYA NARAYAN VYAS | G188: RJBI199009012495 | H188: SR.ASSIS. | I188: PB (5200-20200) G.P.- 2800 L-8 | J188: 39100 | K188: 0 | L188: 1200 | M188: 9600 | N188: 469200 | O188: 464400 | P188: 6256 | Q188: 620 | R188: 8 | S188: YES | T188: YES
A189: 220 | B189: 06 | C189: 01 | D189: =INDEX(TPravesh!$M$10:$M$17,MATCH(X!C189,TPravesh!$L$10:$L$17,0)) -> 2202-02-001-02-01 | E189: N0854 | F189: SURENDRA SINGH | G189: RJBI198509001542 | H189: SR.ASSIS. | I189: PB (5200-20200) G.P.- 2800 L-8 | J189: 40300 | K189: 0 | L189: 1200 | M189: 9600 | N189: 483600 | O189: 478800 | P189: 6448 | Q189: 620 | R189: 8 | S189: YES | T189: YES
A190: 226 | B190: 06 | C190: 01 | D190: =INDEX(TPravesh!$M$10:$M$17,MATCH(X!C190,TPravesh!$L$10:$L$17,0)) -> 2202-02-001-02-01 | E190: N0739 | F190: NIRMAL KUMAR OJHA | G190: RJBI199009000495 | H190: SR.ASSIS. | I190: PB (5200-20200) G.P.- 2800 L-8 | J190: 40300 | K190: 0 | L190: 1200 | M190: 9600 | N190: 483600 | O190: 478800 | P190: 6448 | Q190: 620 | R190: 8 | S190: YES | T190: YES
A191: 229 | B191: 06 | C191: 01 | D191: =INDEX(TPravesh!$M$10:$M$17,MATCH(X!C191,TPravesh!$L$10:$L$17,0)) -> 2202-02-001-02-01 | E191: N0529 | F191: GOPAL DAS KAKRA | G191: RJBI198909008708 | H191: SR.ASSIS. | I191: PB (5200-20200) G.P.- 2800 L-8 | J191: 40300 | K191: 0 | L191: 1200 | M191: 9600 | N191: 483600 | O191: 478800 | P191: 6448 | Q191: 620 | R191: 8 | S191: YES | T191: YES
A192: 230 | B192: 06 | C192: 01 | D192: =INDEX(TPravesh!$M$10:$M$17,MATCH(X!C192,TPravesh!$L$10:$L$17,0)) -> 2202-02-001-02-01 | E192: N0749 | F192: AMARJEET SINGH | G192: RJBI199809004046 | H192: SR.ASSIS. | I192: PB (5200-20200) G.P.- 2800 L-8 | J192: 40300 | K192: 0 | L192: 1200 | M192: 9600 | N192: 483600 | O192: 478800 | P192: 6448 | Q192: 620 | R192: 8 | S192: YES | T192: YES
A193: 231 | B193: 06 | C193: 01 | D193: =INDEX(TPravesh!$M$10:$M$17,MATCH(X!C193,TPravesh!$L$10:$L$17,0)) -> 2202-02-001-02-01 | E193: N0538 | F193: HANUMAN PRASAD VYAS | G193: RJBI199809009848 | H193: SR.ASSIS. | I193: PB (5200-20200) G.P.- 2800 L-8 | J193: 40300 | K193: 0 | L193: 1200 | M193: 9600 | N193: 483600 | O193: 478800 | P193: 6448 | Q193: 620 | R193: 8 | S193: YES | T193: YES
A194: 232 | B194: 06 | C194: 01 | D194: =INDEX(TPravesh!$M$10:$M$17,MATCH(X!C194,TPravesh!$L$10:$L$17,0)) -> 2202-02-001-02-01 | E194: N0430 | F194: RANNU SINGH | G194: RJBI199009009519 | H194: SR.ASSIS. | I194: PB (5200-20200) G.P.- 2800 L-8 | J194: 40300 | K194: 0 | L194: 1200 | M194: 9600 | N194: 483600 | O194: 478800 | P194: 6448 | Q194: 620 | R194: 8 | S194: =IF(P194>0,"YES","NO") -> YES | T194: =IF(Q194>0,"YES","NO") -> YES
A195: 253 | B195: 06 | C195: 01 | D195: =INDEX(TPravesh!$M$10:$M$17,MATCH(X!C195,TPravesh!$L$10:$L$17,0)) -> 2202-02-001-02-01 | E195: N0872 | F195: MODA RAM GUJAR | G195: RJBI199809001057 | H195: SR.ASSIS. | I195: PB (5200-20200) G.P.- 2800 L-8 | J195: 40300 | K195: 0 | L195: 1200 | M195: 9600 | N195: 483600 | O195: 478800 | P195: 6448 | Q195: 620 | R195: 8 | S195: YES | T195: YES
A196: 248 | B196: 06 | C196: 01 | D196: =INDEX(TPravesh!$M$10:$M$17,MATCH(X!C196,TPravesh!$L$10:$L$17,0)) -> 2202-02-001-02-01 | E196: N0431 | F196: SIRAZUDEN KURAISHE | G196: RJBI199709012098 | H196: SR.ASSIS. | I196: PB (5200-20200) G.P.- 2800 L-8 | J196: 41500 | K196: 0 | L196: 1200 | M196: 9600 | N196: 498000 | O196: 493200 | P196: 6640 | Q196: 620 | R196: 8 | S196: YES | T196: YES
A197: 223 | B197: 06 | C197: 01 | D197: =INDEX(TPravesh!$M$10:$M$17,MATCH(X!C197,TPravesh!$L$10:$L$17,0)) -> 2202-02-001-02-01 | E197: N0951 | F197: RAJESH KUMAR SONI | G197: RJBI199609003972 | H197: SR.ASSIS. | I197: PB (5200-20200) G.P.- 2800 L-8 | J197: 42700 | K197: 0 | L197: 1300 | M197: 10400 | N197: 512400 | O197: 507200 | P197: 6832 | Q197: 620 | R197: 8 | S197: YES | T197: YES
A198: 235 | B198: 06 | C198: 01 | D198: =INDEX(TPravesh!$M$10:$M$17,MATCH(X!C198,TPravesh!$L$10:$L$17,0)) -> 2202-02-001-02-01 | E198: N0568 | F198: KAILASH SINGH KAVIA | G198: RJBI199609014938 | H198: SR.ASSIS. | I198: PB (5200-20200) G.P.- 2800 L-8 | J198: 42700 | K198: 0 | L198: 1300 | M198: 10400 | N198: 512400 | O198: 507200 | P198: 6832 | Q198: 620 | R198: 8 | S198: YES | T198: YES
A199: 238 | B199: 06 | C199: 01 | D199: =INDEX(TPravesh!$M$10:$M$17,MATCH(X!C199,TPravesh!$L$10:$L$17,0)) -> 2202-02-001-02-01 | E199: N0183 | F199: MAHENDRA KUMAR SHARMA | G199: RJBI199609015668 | H199: SR.ASSIS. | I199: PB (5200-20200) G.P.- 2800 L-8 | J199: 42700 | K199: 0 | L199: 1300 | M199: 10400 | N199: 512400 | O199: 507200 | P199: 6832 | Q199: 620 | R199: 8 | S199: YES | T199: YES
A200: 239 | B200: 06 | C200: 01 | D200: =INDEX(TPravesh!$M$10:$M$17,MATCH(X!C200,TPravesh!$L$10:$L$17,0)) -> 2202-02-001-02-01 | E200: N0246 | F200: PAWAN KUMAR SWAMI | G200: RJBI199609015665 | H200: SR.ASSIS. | I200: PB (5200-20200) G.P.- 2800 L-8 | J200: 42700 | K200: 0 | L200: 1300 | M200: 10400 | N200: 512400 | O200: 507200 | P200: 6832 | Q200: 620 | R200: 8 | S200: YES | T200: YES
... 253 more rows

Sheet HOME
A1: Design and Prepared by Pravesh Kumar, for further query call "9460100093"
B3: NAME OF OFFICE | C3: vk;qDr ------------ foHkkx] chdkusj
B4: Name of Authority who sign on documents | C4: mifuns'kd ¼iz'kklu½] ----------------------- chdkusj
B5: BUDGET YEAR (B.E.) | C5: 2021-22 | D5: FINANCIAL YEAR (R.E.) | F5: =TPravesh!C17 -> 2020-21
B6: BOUNS AMT | C6: 6674 | D6: Applicable D.A. Rate | E6: NEW SCALE | F6: 0.28
B7: WASHING ALLOWANCE AMT | C7: 150 | E7: OLD SCALE | F7: 2.43
B8: CCA RATE | C8: AS PER SLAB | D8: Office ID | F8: 3740
B9: =TPravesh!AC60 -> D.A arrear from N.A. to N.A. | C9: =TPravesh!AF58 -> 0
B10: Budget Head | C10: 2202-02-001-02-01 | E10: B.F.C. Type | F10: State Fund
B11: Details of Head | C11: =CONCATENATE(TPravesh!AV2," ","(",F10,")") -> 2202-General Education,02-Secondary Education,001-Scholarships,02-Sainik School (State Fund)
B12: Demand No
B13: =TPravesh!AW2 -> 24
B15: Prepare format P8
B17: Employee Data | D17: P8 | F17: Summary P8
B19: Add Budget Head | E19: P8(Pivot)
B20: Blank Format
B22: P1 ( c ) | D22: P2 | F22: P4(b)
B24: P5(b) | D24: P6 | F24: P7 | J24: Sub update()
B26: P11 | D26: P9 | J26: End Sub
D36: 2202-02-001-02-01
B54: Private Sub Worksheet_SelectionChange(ByVal Target As Range)
B55: Dim p As PivotCache
B56: For Each p In ThisWorkbook.PivotCaches
B57: p.Refresh
B58: Next p
B59: End Sub

Sheet Emp Data
D1: HOME | J1: P8
A2: Budget Head | B2: SN | C2: OFFICE ID | D2: NAME OF EMPLOYEE | E2: GPF/ NPS NO ID number | F2: DESIGNATION | G2: Partial pay in c.y. | H2: DATE OF JOINING IN REG. SERVICES | I2: PAY SCALE (OLD/NEW) | J2: PAY SCALE | K2: GRADE PAY (in Old scale) | L2: Pay Level (in New scale) | M2: Pay Level code | N2: EMP CATEGY | O2: BASIC PAY AS ON MARCH | P2: INCR. AMT | Q2: INCR. MONTH | S2: CONDITIONAL ALLOWANCES | AC2: MONTH EXIST | AD2: MONTH IN WHICH INCR.DUE | AE2: MONTH RELATE TO B.E. | AF2: WA AMT | AG2: AMT OF BOUNS | AH2: HRA AMT FOR | AL2: CCA SLAB | AM2: CCA AMT FOR | AO2: BASIC PAY AS ON MARCH | AP2: Req. amt from Ist March to Last Feb. for B.Y. | AQ2: B.E. for | AR2: R.E. FOR | AS2: R.E. IN RET. COND. | AT2: INCR AMT FOR | AU2: INCR AMT FOR | AV2: S.LEAVE AMT FOR | AY2: D.PAY AMT FOR | BA2: CALCULATION OF DA ON SCALES
S3: BOUNS | T3: HRA RATE | U3: HRA COND. | V3: CCA COND | W3: WASH ALL CON. | X3: SL SALY | Y3: SP. PAY | Z3: HAD. ALL | AA3: oth allw.
N5: For DA purpose | O5: =TPravesh!D16 -> 2021 | AH5: COND. | AI5: =TPravesh!$B$16 -> 2021-22 | AJ5: =TPravesh!$C$16 -> 2020-21 | AK5: C.Y. AMT | AM5: =AI5 -> 2021-22 | AN5: =AJ5 -> 2020-21 | AO5: =AI5 -> 2021-22 | AP5: =AI5 -> 2021-22 | AQ5: =AP5 -> 2021-22 | AR5: =AJ5 -> 2020-21 | AS5: =AR5 -> 2020-21 | AT5: =AI5 -> 2021-22 | AU5: =AS5 -> 2020-21 | AV5: COND AMT B.YEAR | AW5: =AI5 -> 2021-22 | AX5: =AJ5 -> 2020-21 | AY5: =AW5 -> 2021-22 | AZ5: =AX5 -> 2020-21
A6: =CONCATENATE(A2," ",A5) -> Budget Head | B6: =CONCATENATE(B2," ",B5) -> SN | C6: OFFICE ID | D6: NAME OF EMPLOYEE | E6: GPF/ NPS NO ID number | F6: DESIGNATION | G6: Partial pay in c.y. | H6: DATE OF JOINING IN REG. SERVICES | I6: PAY SCALE (OLD/NEW) | J6: PAY SCALE | K6: GRADE PAY (in Old scale) | L6: Pay Level (in New scale) | N6: EMP CATEGY For DA purpose | O6: =CONCATENATE(O2," ",O5) -> BASIC PAY AS ON MARCH 2021 | P6: =CONCATENATE(P2," ",P5) -> INCR. AMT | Q6: =CONCATENATE(Q2," ",Q5) -> INCR. MONTH | R6: =CONCATENATE(R2," ",R5) ->  | S6: =CONCATENATE($S$2," ",S3) -> CONDITIONAL ALLOWANCES BOUNS | T6: =CONCATENATE($S$2," ",T3) -> CONDITIONAL ALLOWANCES HRA RATE | U6: CONDITIONAL ALLOWANCES HRA COND. | V6: CONDITIONAL ALLOWANCES CCA COND | W6: CONDITIONAL ALLOWANCES WASH ALL CON. | X6: CONDITIONAL ALLOWANCES SL SALY | Y6: CONDITIONAL ALLOWANCES SP. PAY | Z6: CONDITIONAL ALLOWANCES HAD. ALL | AA6: CONDITIONAL ALLOWANCES oth allw. | AC6: =CONCATENATE(AC2," ",AC5) -> MONTH EXIST | AD6: =CONCATENATE(AD2," ",AD5) -> MONTH IN WHICH INCR.DUE | AE6: =CONCATENATE(AE2," ",AE5) -> MONTH RELATE TO B.E. | AF6: =CONCATENATE(AF2," ",AF5) -> WA AMT | AG6: =CONCATENATE(AG2," ",AG5) -> AMT OF BOUNS | AH6: =CONCATENATE($AH$2," ",AH5) -> HRA AMT FOR COND. | AI6: =CONCATENATE($AH$2," ",AI5) -> HRA AMT FOR 2021-22 | AJ6: =CONCATENATE($AH$2," ",AJ5) -> HRA AMT FOR 2020-21 | AK6: =CONCATENATE($AH$2," ",AK5) -> HRA AMT FOR C.Y. AMT | AL6: =CONCATENATE(AL2," ",AL5) -> CCA SLAB | AM6: =CONCATENATE(AM2," ",AM5) -> CCA AMT FOR 2021-22 | AN6: =CONCATENATE(AM2," ",AN5) -> CCA AMT FOR 2020-21 | AO6: =CONCATENATE(AO2," ",AO5) -> BASIC PAY AS ON MARCH 2021-22 | AP6: Req. amt from Ist March to Last Feb. for B.Y. 2021-22 | AQ6: B.E. for 2021-22 | AR6: R.E. FOR 2020-21 | AS6: R.E. IN RET. COND. 2020-21 | AT6: INCR AMT FOR 2021-22 | AU6: INCR AMT FOR 2020-21 | AV6: S.LEAVE AMT FOR COND AMT B.YEAR | AW6: =CONCATENATE(AV2," ",AW5) -> S.LEAVE AMT FOR 2021-22 | AX6: =CONCATENATE(AV2," ",AX5) -> S.LEAVE AMT FOR 2020-21 | AY6: =CONCATENATE(AY2," ",AY5) -> D.PAY AMT FOR 2021-22 | AZ6: =CONCATENATE(AZ2," ",AZ5) -> 2020-21 | BA6: =CONCATENATE(BA2," ",BA5) -> CALCULATION OF DA ON SCALES | BB6: =CONCATENATE($BA$2," ",BB5) -> CALCULATION OF DA ON SCALES | BC6: =CONCATENATE($BA$2," ",BC5) -> CALCULATION OF DA ON SCALES | BD6: =CONCATENATE($BA$2," ",BD5) -> CALCULATION OF DA ON SCALES | BE6: =CONCATENATE($BA$2," ",BE5) -> CALCULATION OF DA ON SCALES
A7: 2202-02-001-02-01 | B7: 01 | C7: 3740 | D7: PRAVESH KUMAR SHARA | E7: 647805 | F7: AAO-I | G7: 12 | I7: NEW | J7: PB (9300-34800) G.P.- 5400 L-13 | K7: =MID(J7,25,6) -> 5400 | L7: =IF(I7="NEW",TEXT(RIGHT(J7,4),"")) -> L-13 | M7: =IF(L7="","",INDEX(TPravesh!$U$3:$U$26,MATCH('Emp Data'!L7,TPravesh!$S$3:$S$26,0))) -> Level_13 | N7: REGULAR | O7: 80200 | P7: 0.03 | Q7: 7 | T7: 0.16 | U7: YES | V7: YES | AC7: =IF(B7="","",IF(AD7="NA","NA",INDEX(TPravesh!$AA$5:$AA$16,MATCH(AD7,TPravesh!$AQ$5:$AQ$16,0)))) -> 7 | AD7: =IF(B7="","",IF(Q7="","",IF(Q7="NA","NA",INDEX(TPravesh!$AQ$5:$AQ$16,MATCH(Q7,TPravesh!$AA$5:$AA$16,0))))) -> 2021-07-01 | AE7: =IF(B7="","",IF(AC7="NA",12,15-AC7)) -> 8 | AF7: =IF(B7="","",IF(W7="YES",HOME!$C$7,0)) -> 0 | AG7: =IF(B7="","",IF(S7="YES",HOME!$C$6,0)) -> 0 | AH7: =IF(B7="","",IF(G7>0,ROUND(AR7/1000*T7*G7/12,0),0)) -> 153 | AI7: =IF(B7="","",IF(U7="YES",AQ7/1000*T7*G7/12)) -> 157.056 | AJ7: =IF(B7="","",IF(U7="YES",AR7/1000*T7*G7/12)) -> 152.512 | AK7: =IF(B7="","",IF(G7>0,AH7,AJ7)) -> 153 | AL7: =IF(B7="","",IF(I7="OLD",VLOOKUP(O7,TPravesh!$B$21:$G$24,4),VLOOKUP(O7,TPravesh!$B$28:$G$29,4))) -> 620 | AM7: =IF(B7="","",IF(V7="YES",AL7*12,0)) -> 7440 | AN7: =IF(B7="","",IF(AU7>0,AM7,0)) -> 7440 | AO7: =IF(B7="","",IF(K7=0,O7,IF(Q7="NA",O7,IF(I7="OLD",ROUNDDOWN(O7/103%,-1),ROUNDUP(O7/103%,-2))))) -> 77900 | AP7: =IF(B7="","",O7*12) -> 962400 | AQ7: =IF(B7="","",AP7+AU7) -> 981600 | AR7: =IF(B7="","",AO7*(12-AE7)+O7*AE7) -> 953200 | AS7: =IF(B7="","",IF(N7="VACANT",0,AR7*G7/12)) -> 953200 | AT7: =IF(B7="","",IF(Q7="NA",0,IF(I7="OLD",ROUNDUP(AO7*3%,-1),ROUNDDOWN(AO7*3%,-2)))) -> 2300 | AU7: =IF(B7="","",IF(I7="OLD",ROUNDUP(O7*3%,-1)*(AE7),ROUNDDOWN(O7*3%,-2)*AE7)) -> 19200 | AV7: =IF(B7="","",IF(G7>0,0,AW7)) -> 0 | AW7: =IF(B7="","",IF(X7="YES",IF(I7="OLD",ROUND(SUM(O7+O7*HOME!$F$6)*50%,0),ROUND(SUM(O7+O7*HOME!$F$6)*50%,0)))) -> FALSE | AX7: =IF(B7="","",IF(X7="YES",IF(I7="OLD",ROUND(SUM(AO7+AO7*HOME!$F$6)*50%,0),ROUND(SUM(AO7+AO7*HOME!$F$6)*50%,0)))) -> FALSE | BA7: =IF(B7="","",I7) -> NEW | BB7: =IF(B7="","",IF(N7="FIX PAY",0,IF(BA7="OLD",AQ7/1000*HOME!$F$7,0))) -> 0 | BC7: =IF(B7="","",IF(N7="VACANT",0,IF(N7="FIX PAY",0,IF(BA7="NEW",AQ7/1000*HOME!$F$6,0)))) -> 274.848 | BD7: =IF(B7="","",IF(N7="FIX PAY",0,IF(BA7="OLD",AR7/1000*HOME!$F$7,0))) -> 0 | BE7: =IF(B7="","",IF(N7="VACANT",0,IF(N7="FIX PAY",0,IF(BA7="NEW",AR7/1000*HOME!$F$6,0)))) -> 266.896
K8: =MID(J8,25,6) ->  | L8: =IF(I8="NEW",RIGHT(J8,4),"") ->  | M8: =IF(L8="","",INDEX(TPravesh!$U$3:$U$26,MATCH('Emp Data'!L8,TPravesh!$S$3:$S$26,0))) ->  | P8: 0.03 | Q8: 4 | AC8: =IF(B8="","",IF(AD8="NA","NA",INDEX(TPravesh!$AA$5:$AA$16,MATCH(AD8,TPravesh!$AQ$5:$AQ$16,0)))) ->  | AD8: =IF(B8="","",IF(Q8="","",IF(Q8="NA","NA",INDEX(TPravesh!$AQ$5:$AQ$16,MATCH(Q8,TPravesh!$AA$5:$AA$16,0))))) ->  | AE8: =IF(B8="","",IF(AC8="NA",12,15-AC8)) ->  | AF8: =IF(B8="","",IF(W8="YES",HOME!$C$7,0)) ->  | AG8: =IF(B8="","",IF(S8="YES",HOME!$C$6,0)) ->  | AH8: =IF(B8="","",IF(G8>0,ROUND(AR8/1000*T8*G8/12,0),0)) ->  | AI8: =IF(B8="","",IF(U8="YES",AQ8/1000*T8*G8/12)) ->  | AJ8: =IF(B8="","",IF(U8="YES",AR8/1000*T8*G8/12)) ->  | AK8: =IF(B8="","",IF(G8>0,AH8,AJ8)) ->  | AL8: =IF(B8="","",IF(I8="OLD",VLOOKUP(O8,TPravesh!$B$21:$G$24,4),VLOOKUP(O8,TPravesh!$B$28:$G$29,4))) ->  | AM8: =IF(B8="","",IF(V8="YES",AL8*12,0)) ->  | AN8: =IF(B8="","",IF(AU8>0,AM8,0)) ->  | AO8: =IF(B8="","",IF(K8=0,O8,IF(Q8="NA",O8,IF(I8="OLD",ROUNDDOWN(O8/103%,-1),ROUNDUP(O8/103%,-2))))) ->  | AP8: =IF(B8="","",O8*12) ->  | AQ8: =IF(B8="","",AP8+AU8) ->  | AR8: =IF(B8="","",AO8*(12-AE8)+O8*AE8) ->  | AS8: =IF(B8="","",IF(N8="VACANT",0,AR8*G8/12)) ->  | AT8: =IF(B8="","",IF(Q8="NA",0,IF(I8="OLD",ROUNDUP(AO8*3%,-1),ROUNDDOWN(AO8*3%,-2)))) ->  | AU8: =IF(B8="","",IF(I8="OLD",ROUNDUP(O8*3%,-1)*(AE8),ROUNDDOWN(O8*3%,-2)*AE8)) ->  | AV8: =IF(B8="","",IF(G8>0,0,AW8)) ->  | AW8: =IF(B8="","",IF(X8="YES",IF(I8="OLD",ROUND(SUM(O8+O8*HOME!$F$6)*50%,0),ROUND(SUM(O8+O8*HOME!$F$6)*50%,0)))) ->  | AX8: =IF(B8="","",IF(X8="YES",IF(I8="OLD",ROUND(SUM(AO8+AO8*HOME!$F$6)*50%,0),ROUND(SUM(AO8+AO8*HOME!$F$6)*50%,0)))) ->  | BA8: =IF(B8="","",I8) ->  | BB8: =IF(B8="","",IF(N8="FIX PAY",0,IF(BA8="OLD",AQ8/1000*HOME!$F$7,0))) ->  | BC8: =IF(B8="","",IF(N8="VACANT",0,IF(N8="FIX PAY",0,IF(BA8="NEW",AQ8/1000*HOME!$F$6,0)))) ->  | BD8: =IF(B8="","",IF(N8="FIX PAY",0,IF(BA8="OLD",AR8/1000*HOME!$F$7,0))) ->  | BE8: =IF(B8="","",IF(N8="VACANT",0,IF(N8="FIX PAY",0,IF(BA8="NEW",AR8/1000*HOME!$F$6,0)))) -> 
M9: =IF(L9="","",INDEX(TPravesh!$U$3:$U$26,MATCH('Emp Data'!L9,TPravesh!$S$3:$S$26,0))) ->  | AC9: =IF(B9="","",IF(AD9="NA","NA",INDEX(TPravesh!$AA$5:$AA$16,MATCH(AD9,TPravesh!$AQ$5:$AQ$16,0)))) ->  | AD9: =IF(B9="","",IF(Q9="","",IF(Q9="NA","NA",INDEX(TPravesh!$AQ$5:$AQ$16,MATCH(Q9,TPravesh!$AA$5:$AA$16,0))))) ->  | AF9: =IF(B9="","",IF(W9="YES",HOME!$C$7,0)) ->  | AG9: =IF(B9="","",IF(S9="YES",HOME!$C$6,0)) ->  | AL9: =IF(B9="","",IF(I9="OLD",VLOOKUP(O9,TPravesh!$B$21:$G$24,4),VLOOKUP(O9,TPravesh!$B$28:$G$29,4))) ->  | AW9: =IF(B9="","",IF(X9="YES",IF(I9="OLD",ROUND(SUM(O9+O9*HOME!$F$6)*50%,0),ROUND(SUM(O9+O9*HOME!$F$6)*50%,0)))) ->  | AX9: =IF(B9="","",IF(X9="YES",IF(I9="OLD",ROUND(SUM(AO9+AO9*HOME!$F$6)*50%,0),ROUND(SUM(AO9+AO9*HOME!$F$6)*50%,0)))) ->  | BB9: =IF(B9="","",IF(N9="FIX PAY",0,IF(BA9="OLD",AQ9/1000*HOME!$F$7,0))) ->  | BC9: =IF(B9="","",IF(N9="VACANT",0,IF(N9="FIX PAY",0,IF(BA9="NEW",AQ9/1000*HOME!$F$6,0)))) ->  | BD9: =IF(B9="","",IF(N9="FIX PAY",0,IF(BA9="OLD",AR9/1000*HOME!$F$7,0))) ->  | BE9: =IF(B9="","",IF(N9="VACANT",0,IF(N9="FIX PAY",0,IF(BA9="NEW",AR9/1000*HOME!$F$6,0)))) -> 
M10: =IF(L10="","",INDEX(TPravesh!$U$3:$U$26,MATCH('Emp Data'!L10,TPravesh!$S$3:$S$26,0))) ->  | AC10: =IF(B10="","",IF(AD10="NA","NA",INDEX(TPravesh!$AA$5:$AA$16,MATCH(AD10,TPravesh!$AQ$5:$AQ$16,0)))) ->  | AD10: =IF(B10="","",IF(Q10="","",IF(Q10="NA","NA",INDEX(TPravesh!$AQ$5:$AQ$16,MATCH(Q10,TPravesh!$AA$5:$AA$16,0))))) ->  | AF10: =IF(B10="","",IF(W10="YES",HOME!$C$7,0)) ->  | AG10: =IF(B10="","",IF(S10="YES",HOME!$C$6,0)) ->  | AL10: =IF(B10="","",IF(I10="OLD",VLOOKUP(O10,TPravesh!$B$21:$G$24,4),VLOOKUP(O10,TPravesh!$B$28:$G$29,4))) ->  | AW10: =IF(B10="","",IF(X10="YES",IF(I10="OLD",ROUND(SUM(O10+O10*HOME!$F$6)*50%,0),ROUND(SUM(O10+O10*HOME!$F$6)*50%,0)))) ->  | AX10: =IF(B10="","",IF(X10="YES",IF(I10="OLD",ROUND(SUM(AO10+AO10*HOME!$F$6)*50%,0),ROUND(SUM(AO10+AO10*HOME!$F$6)*50%,0)))) ->  | BB10: =IF(B10="","",IF(N10="FIX PAY",0,IF(BA10="OLD",AQ10/1000*HOME!$F$7,0))) ->  | BC10: =IF(B10="","",IF(N10="VACANT",0,IF(N10="FIX PAY",0,IF(BA10="NEW",AQ10/1000*HOME!$F$6,0)))) ->  | BD10: =IF(B10="","",IF(N10="FIX PAY",0,IF(BA10="OLD",AR10/1000*HOME!$F$7,0))) ->  | BE10: =IF(B10="","",IF(N10="VACANT",0,IF(N10="FIX PAY",0,IF(BA10="NEW",AR10/1000*HOME!$F$6,0)))) -> 
M11: =IF(L11="","",INDEX(TPravesh!$U$3:$U$26,MATCH('Emp Data'!L11,TPravesh!$S$3:$S$26,0))) ->  | AC11: =IF(B11="","",IF(AD11="NA","NA",INDEX(TPravesh!$AA$5:$AA$16,MATCH(AD11,TPravesh!$AQ$5:$AQ$16,0)))) ->  | AD11: =IF(B11="","",IF(Q11="","",IF(Q11="NA","NA",INDEX(TPravesh!$AQ$5:$AQ$16,MATCH(Q11,TPravesh!$AA$5:$AA$16,0))))) ->  | AF11: =IF(B11="","",IF(W11="YES",HOME!$C$7,0)) ->  | AG11: =IF(B11="","",IF(S11="YES",HOME!$C$6,0)) ->  | AL11: =IF(B11="","",IF(I11="OLD",VLOOKUP(O11,TPravesh!$B$21:$G$24,4),VLOOKUP(O11,TPravesh!$B$28:$G$29,4))) ->  | AW11: =IF(B11="","",IF(X11="YES",IF(I11="OLD",ROUND(SUM(O11+O11*HOME!$F$6)*50%,0),ROUND(SUM(O11+O11*HOME!$F$6)*50%,0)))) ->  | AX11: =IF(B11="","",IF(X11="YES",IF(I11="OLD",ROUND(SUM(AO11+AO11*HOME!$F$6)*50%,0),ROUND(SUM(AO11+AO11*HOME!$F$6)*50%,0)))) ->  | BB11: =IF(B11="","",IF(N11="FIX PAY",0,IF(BA11="OLD",AQ11/1000*HOME!$F$7,0))) ->  | BC11: =IF(B11="","",IF(N11="VACANT",0,IF(N11="FIX PAY",0,IF(BA11="NEW",AQ11/1000*HOME!$F$6,0)))) ->  | BD11: =IF(B11="","",IF(N11="FIX PAY",0,IF(BA11="OLD",AR11/1000*HOME!$F$7,0))) ->  | BE11: =IF(B11="","",IF(N11="VACANT",0,IF(N11="FIX PAY",0,IF(BA11="NEW",AR11/1000*HOME!$F$6,0)))) -> 
M12: =IF(L12="","",INDEX(TPravesh!$U$3:$U$26,MATCH('Emp Data'!L12,TPravesh!$S$3:$S$26,0))) ->  | AC12: =IF(B12="","",IF(AD12="NA","NA",INDEX(TPravesh!$AA$5:$AA$16,MATCH(AD12,TPravesh!$AQ$5:$AQ$16,0)))) ->  | AD12: =IF(B12="","",IF(Q12="","",IF(Q12="NA","NA",INDEX(TPravesh!$AQ$5:$AQ$16,MATCH(Q12,TPravesh!$AA$5:$AA$16,0))))) ->  | AF12: =IF(B12="","",IF(W12="YES",HOME!$C$7,0)) ->  | AG12: =IF(B12="","",IF(S12="YES",HOME!$C$6,0)) ->  | AL12: =IF(B12="","",IF(I12="OLD",VLOOKUP(O12,TPravesh!$B$21:$G$24,4),VLOOKUP(O12,TPravesh!$B$28:$G$29,4))) ->  | AW12: =IF(B12="","",IF(X12="YES",IF(I12="OLD",ROUND(SUM(O12+O12*HOME!$F$6)*50%,0),ROUND(SUM(O12+O12*HOME!$F$6)*50%,0)))) ->  | AX12: =IF(B12="","",IF(X12="YES",IF(I12="OLD",ROUND(SUM(AO12+AO12*HOME!$F$6)*50%,0),ROUND(SUM(AO12+AO12*HOME!$F$6)*50%,0)))) ->  | BB12: =IF(B12="","",IF(N12="FIX PAY",0,IF(BA12="OLD",AQ12/1000*HOME!$F$7,0))) ->  | BC12: =IF(B12="","",IF(N12="VACANT",0,IF(N12="FIX PAY",0,IF(BA12="NEW",AQ12/1000*HOME!$F$6,0)))) ->  | BD12: =IF(B12="","",IF(N12="FIX PAY",0,IF(BA12="OLD",AR12/1000*HOME!$F$7,0))) ->  | BE12: =IF(B12="","",IF(N12="VACANT",0,IF(N12="FIX PAY",0,IF(BA12="NEW",AR12/1000*HOME!$F$6,0)))) -> 
M13: =IF(L13="","",INDEX(TPravesh!$U$3:$U$26,MATCH('Emp Data'!L13,TPravesh!$S$3:$S$26,0))) ->  | AC13: =IF(B13="","",IF(AD13="NA","NA",INDEX(TPravesh!$AA$5:$AA$16,MATCH(AD13,TPravesh!$AQ$5:$AQ$16,0)))) ->  | AD13: =IF(B13="","",IF(Q13="","",IF(Q13="NA","NA",INDEX(TPravesh!$AQ$5:$AQ$16,MATCH(Q13,TPravesh!$AA$5:$AA$16,0))))) ->  | AF13: =IF(B13="","",IF(W13="YES",HOME!$C$7,0)) ->  | AG13: =IF(B13="","",IF(S13="YES",HOME!$C$6,0)) ->  | AL13: =IF(B13="","",IF(I13="OLD",VLOOKUP(O13,TPravesh!$B$21:$G$24,4),VLOOKUP(O13,TPravesh!$B$28:$G$29,4))) ->  | AW13: =IF(B13="","",IF(X13="YES",IF(I13="OLD",ROUND(SUM(O13+O13*HOME!$F$6)*50%,0),ROUND(SUM(O13+O13*HOME!$F$6)*50%,0)))) ->  | AX13: =IF(B13="","",IF(X13="YES",IF(I13="OLD",ROUND(SUM(AO13+AO13*HOME!$F$6)*50%,0),ROUND(SUM(AO13+AO13*HOME!$F$6)*50%,0)))) ->  | BB13: =IF(B13="","",IF(N13="FIX PAY",0,IF(BA13="OLD",AQ13/1000*HOME!$F$7,0))) ->  | BC13: =IF(B13="","",IF(N13="VACANT",0,IF(N13="FIX PAY",0,IF(BA13="NEW",AQ13/1000*HOME!$F$6,0)))) ->  | BD13: =IF(B13="","",IF(N13="FIX PAY",0,IF(BA13="OLD",AR13/1000*HOME!$F$7,0))) ->  | BE13: =IF(B13="","",IF(N13="VACANT",0,IF(N13="FIX PAY",0,IF(BA13="NEW",AR13/1000*HOME!$F$6,0)))) -> 
M14: =IF(L14="","",INDEX(TPravesh!$U$3:$U$26,MATCH('Emp Data'!L14,TPravesh!$S$3:$S$26,0))) ->  | AC14: =IF(B14="","",IF(AD14="NA","NA",INDEX(TPravesh!$AA$5:$AA$16,MATCH(AD14,TPravesh!$AQ$5:$AQ$16,0)))) ->  | AD14: =IF(B14="","",IF(Q14="","",IF(Q14="NA","NA",INDEX(TPravesh!$AQ$5:$AQ$16,MATCH(Q14,TPravesh!$AA$5:$AA$16,0))))) ->  | AF14: =IF(B14="","",IF(W14="YES",HOME!$C$7,0)) ->  | AG14: =IF(B14="","",IF(S14="YES",HOME!$C$6,0)) ->  | AL14: =IF(B14="","",IF(I14="OLD",VLOOKUP(O14,TPravesh!$B$21:$G$24,4),VLOOKUP(O14,TPravesh!$B$28:$G$29,4))) ->  | AW14: =IF(B14="","",IF(X14="YES",IF(I14="OLD",ROUND(SUM(O14+O14*HOME!$F$6)*50%,0),ROUND(SUM(O14+O14*HOME!$F$6)*50%,0)))) ->  | AX14: =IF(B14="","",IF(X14="YES",IF(I14="OLD",ROUND(SUM(AO14+AO14*HOME!$F$6)*50%,0),ROUND(SUM(AO14+AO14*HOME!$F$6)*50%,0)))) ->  | BB14: =IF(B14="","",IF(N14="FIX PAY",0,IF(BA14="OLD",AQ14/1000*HOME!$F$7,0))) ->  | BC14: =IF(B14="","",IF(N14="VACANT",0,IF(N14="FIX PAY",0,IF(BA14="NEW",AQ14/1000*HOME!$F$6,0)))) ->  | BD14: =IF(B14="","",IF(N14="FIX PAY",0,IF(BA14="OLD",AR14/1000*HOME!$F$7,0))) ->  | BE14: =IF(B14="","",IF(N14="VACANT",0,IF(N14="FIX PAY",0,IF(BA14="NEW",AR14/1000*HOME!$F$6,0)))) -> 
M15: =IF(L15="","",INDEX(TPravesh!$U$3:$U$26,MATCH('Emp Data'!L15,TPravesh!$S$3:$S$26,0))) ->  | AC15: =IF(B15="","",IF(AD15="NA","NA",INDEX(TPravesh!$AA$5:$AA$16,MATCH(AD15,TPravesh!$AQ$5:$AQ$16,0)))) ->  | AD15: =IF(B15="","",IF(Q15="","",IF(Q15="NA","NA",INDEX(TPravesh!$AQ$5:$AQ$16,MATCH(Q15,TPravesh!$AA$5:$AA$16,0))))) ->  | AF15: =IF(B15="","",IF(W15="YES",HOME!$C$7,0)) ->  | AG15: =IF(B15="","",IF(S15="YES",HOME!$C$6,0)) ->  | AL15: =IF(B15="","",IF(I15="OLD",VLOOKUP(O15,TPravesh!$B$21:$G$24,4),VLOOKUP(O15,TPravesh!$B$28:$G$29,4))) ->  | AW15: =IF(B15="","",IF(X15="YES",IF(I15="OLD",ROUND(SUM(O15+O15*HOME!$F$6)*50%,0),ROUND(SUM(O15+O15*HOME!$F$6)*50%,0)))) ->  | AX15: =IF(B15="","",IF(X15="YES",IF(I15="OLD",ROUND(SUM(AO15+AO15*HOME!$F$6)*50%,0),ROUND(SUM(AO15+AO15*HOME!$F$6)*50%,0)))) ->  | BB15: =IF(B15="","",IF(N15="FIX PAY",0,IF(BA15="OLD",AQ15/1000*HOME!$F$7,0))) ->  | BC15: =IF(B15="","",IF(N15="VACANT",0,IF(N15="FIX PAY",0,IF(BA15="NEW",AQ15/1000*HOME!$F$6,0)))) ->  | BD15: =IF(B15="","",IF(N15="FIX PAY",0,IF(BA15="OLD",AR15/1000*HOME!$F$7,0))) ->  | BE15: =IF(B15="","",IF(N15="VACANT",0,IF(N15="FIX PAY",0,IF(BA15="NEW",AR15/1000*HOME!$F$6,0)))) -> 
M16: =IF(L16="","",INDEX(TPravesh!$U$3:$U$26,MATCH('Emp Data'!L16,TPravesh!$S$3:$S$26,0))) ->  | AC16: =IF(B16="","",IF(AD16="NA","NA",INDEX(TPravesh!$AA$5:$AA$16,MATCH(AD16,TPravesh!$AQ$5:$AQ$16,0)))) ->  | AD16: =IF(B16="","",IF(Q16="","",IF(Q16="NA","NA",INDEX(TPravesh!$AQ$5:$AQ$16,MATCH(Q16,TPravesh!$AA$5:$AA$16,0))))) ->  | AF16: =IF(B16="","",IF(W16="YES",HOME!$C$7,0)) ->  | AG16: =IF(B16="","",IF(S16="YES",HOME!$C$6,0)) ->  | AL16: =IF(B16="","",IF(I16="OLD",VLOOKUP(O16,TPravesh!$B$21:$G$24,4),VLOOKUP(O16,TPravesh!$B$28:$G$29,4))) ->  | AW16: =IF(B16="","",IF(X16="YES",IF(I16="OLD",ROUND(SUM(O16+O16*HOME!$F$6)*50%,0),ROUND(SUM(O16+O16*HOME!$F$6)*50%,0)))) ->  | AX16: =IF(B16="","",IF(X16="YES",IF(I16="OLD",ROUND(SUM(AO16+AO16*HOME!$F$6)*50%,0),ROUND(SUM(AO16+AO16*HOME!$F$6)*50%,0)))) ->  | BB16: =IF(B16="","",IF(N16="FIX PAY",0,IF(BA16="OLD",AQ16/1000*HOME!$F$7,0))) ->  | BC16: =IF(B16="","",IF(N16="VACANT",0,IF(N16="FIX PAY",0,IF(BA16="NEW",AQ16/1000*HOME!$F$6,0)))) ->  | BD16: =IF(B16="","",IF(N16="FIX PAY",0,IF(BA16="OLD",AR16/1000*HOME!$F$7,0))) ->  | BE16: =IF(B16="","",IF(N16="VACANT",0,IF(N16="FIX PAY",0,IF(BA16="NEW",AR16/1000*HOME!$F$6,0)))) -> 
M17: =IF(L17="","",INDEX(TPravesh!$U$3:$U$26,MATCH('Emp Data'!L17,TPravesh!$S$3:$S$26,0))) ->  | AC17: =IF(B17="","",IF(AD17="NA","NA",INDEX(TPravesh!$AA$5:$AA$16,MATCH(AD17,TPravesh!$AQ$5:$AQ$16,0)))) ->  | AD17: =IF(B17="","",IF(Q17="","",IF(Q17="NA","NA",INDEX(TPravesh!$AQ$5:$AQ$16,MATCH(Q17,TPravesh!$AA$5:$AA$16,0))))) ->  | AF17: =IF(B17="","",IF(W17="YES",HOME!$C$7,0)) ->  | AG17: =IF(B17="","",IF(S17="YES",HOME!$C$6,0)) ->  | AL17: =IF(B17="","",IF(I17="OLD",VLOOKUP(O17,TPravesh!$B$21:$G$24,4),VLOOKUP(O17,TPravesh!$B$28:$G$29,4))) ->  | AW17: =IF(B17="","",IF(X17="YES",IF(I17="OLD",ROUND(SUM(O17+O17*HOME!$F$6)*50%,0),ROUND(SUM(O17+O17*HOME!$F$6)*50%,0)))) ->  | AX17: =IF(B17="","",IF(X17="YES",IF(I17="OLD",ROUND(SUM(AO17+AO17*HOME!$F$6)*50%,0),ROUND(SUM(AO17+AO17*HOME!$F$6)*50%,0)))) ->  | BB17: =IF(B17="","",IF(N17="FIX PAY",0,IF(BA17="OLD",AQ17/1000*HOME!$F$7,0))) ->  | BC17: =IF(B17="","",IF(N17="VACANT",0,IF(N17="FIX PAY",0,IF(BA17="NEW",AQ17/1000*HOME!$F$6,0)))) ->  | BD17: =IF(B17="","",IF(N17="FIX PAY",0,IF(BA17="OLD",AR17/1000*HOME!$F$7,0))) ->  | BE17: =IF(B17="","",IF(N17="VACANT",0,IF(N17="FIX PAY",0,IF(BA17="NEW",AR17/1000*HOME!$F$6,0)))) -> 
M18: =IF(L18="","",INDEX(TPravesh!$U$3:$U$26,MATCH('Emp Data'!L18,TPravesh!$S$3:$S$26,0))) ->  | AC18: =IF(B18="","",IF(AD18="NA","NA",INDEX(TPravesh!$AA$5:$AA$16,MATCH(AD18,TPravesh!$AQ$5:$AQ$16,0)))) ->  | AD18: =IF(B18="","",IF(Q18="","",IF(Q18="NA","NA",INDEX(TPravesh!$AQ$5:$AQ$16,MATCH(Q18,TPravesh!$AA$5:$AA$16,0))))) ->  | AF18: =IF(B18="","",IF(W18="YES",HOME!$C$7,0)) ->  | AG18: =IF(B18="","",IF(S18="YES",HOME!$C$6,0)) ->  | AL18: =IF(B18="","",IF(I18="OLD",VLOOKUP(O18,TPravesh!$B$21:$G$24,4),VLOOKUP(O18,TPravesh!$B$28:$G$29,4))) ->  | AW18: =IF(B18="","",IF(X18="YES",IF(I18="OLD",ROUND(SUM(O18+O18*HOME!$F$6)*50%,0),ROUND(SUM(O18+O18*HOME!$F$6)*50%,0)))) ->  | AX18: =IF(B18="","",IF(X18="YES",IF(I18="OLD",ROUND(SUM(AO18+AO18*HOME!$F$6)*50%,0),ROUND(SUM(AO18+AO18*HOME!$F$6)*50%,0)))) ->  | BB18: =IF(B18="","",IF(N18="FIX PAY",0,IF(BA18="OLD",AQ18/1000*HOME!$F$7,0))) ->  | BC18: =IF(B18="","",IF(N18="VACANT",0,IF(N18="FIX PAY",0,IF(BA18="NEW",AQ18/1000*HOME!$F$6,0)))) ->  | BD18: =IF(B18="","",IF(N18="FIX PAY",0,IF(BA18="OLD",AR18/1000*HOME!$F$7,0))) ->  | BE18: =IF(B18="","",IF(N18="VACANT",0,IF(N18="FIX PAY",0,IF(BA18="NEW",AR18/1000*HOME!$F$6,0)))) -> 
M19: =IF(L19="","",INDEX(TPravesh!$U$3:$U$26,MATCH('Emp Data'!L19,TPravesh!$S$3:$S$26,0))) ->  | AC19: =IF(B19="","",IF(AD19="NA","NA",INDEX(TPravesh!$AA$5:$AA$16,MATCH(AD19,TPravesh!$AQ$5:$AQ$16,0)))) ->  | AD19: =IF(B19="","",IF(Q19="","",IF(Q19="NA","NA",INDEX(TPravesh!$AQ$5:$AQ$16,MATCH(Q19,TPravesh!$AA$5:$AA$16,0))))) ->  | AF19: =IF(B19="","",IF(W19="YES",HOME!$C$7,0)) ->  | AG19: =IF(B19="","",IF(S19="YES",HOME!$C$6,0)) ->  | AL19: =IF(B19="","",IF(I19="OLD",VLOOKUP(O19,TPravesh!$B$21:$G$24,4),VLOOKUP(O19,TPravesh!$B$28:$G$29,4))) ->  | AW19: =IF(B19="","",IF(X19="YES",IF(I19="OLD",ROUND(SUM(O19+O19*HOME!$F$6)*50%,0),ROUND(SUM(O19+O19*HOME!$F$6)*50%,0)))) ->  | AX19: =IF(B19="","",IF(X19="YES",IF(I19="OLD",ROUND(SUM(AO19+AO19*HOME!$F$6)*50%,0),ROUND(SUM(AO19+AO19*HOME!$F$6)*50%,0)))) ->  | BB19: =IF(B19="","",IF(N19="FIX PAY",0,IF(BA19="OLD",AQ19/1000*HOME!$F$7,0))) ->  | BC19: =IF(B19="","",IF(N19="VACANT",0,IF(N19="FIX PAY",0,IF(BA19="NEW",AQ19/1000*HOME!$F$6,0)))) ->  | BD19: =IF(B19="","",IF(N19="FIX PAY",0,IF(BA19="OLD",AR19/1000*HOME!$F$7,0))) ->  | BE19: =IF(B19="","",IF(N19="VACANT",0,IF(N19="FIX PAY",0,IF(BA19="NEW",AR19/1000*HOME!$F$6,0)))) -> 
M20: =IF(L20="","",INDEX(TPravesh!$U$3:$U$26,MATCH('Emp Data'!L20,TPravesh!$S$3:$S$26,0))) ->  | AC20: =IF(B20="","",IF(AD20="NA","NA",INDEX(TPravesh!$AA$5:$AA$16,MATCH(AD20,TPravesh!$AQ$5:$AQ$16,0)))) ->  | AD20: =IF(B20="","",IF(Q20="","",IF(Q20="NA","NA",INDEX(TPravesh!$AQ$5:$AQ$16,MATCH(Q20,TPravesh!$AA$5:$AA$16,0))))) ->  | AF20: =IF(B20="","",IF(W20="YES",HOME!$C$7,0)) ->  | AG20: =IF(B20="","",IF(S20="YES",HOME!$C$6,0)) ->  | AL20: =IF(B20="","",IF(I20="OLD",VLOOKUP(O20,TPravesh!$B$21:$G$24,4),VLOOKUP(O20,TPravesh!$B$28:$G$29,4))) ->  | AW20: =IF(B20="","",IF(X20="YES",IF(I20="OLD",ROUND(SUM(O20+O20*HOME!$F$6)*50%,0),ROUND(SUM(O20+O20*HOME!$F$6)*50%,0)))) ->  | AX20: =IF(B20="","",IF(X20="YES",IF(I20="OLD",ROUND(SUM(AO20+AO20*HOME!$F$6)*50%,0),ROUND(SUM(AO20+AO20*HOME!$F$6)*50%,0)))) ->  | BB20: =IF(B20="","",IF(N20="FIX PAY",0,IF(BA20="OLD",AQ20/1000*HOME!$F$7,0))) ->  | BC20: =IF(B20="","",IF(N20="VACANT",0,IF(N20="FIX PAY",0,IF(BA20="NEW",AQ20/1000*HOME!$F$6,0)))) ->  | BD20: =IF(B20="","",IF(N20="FIX PAY",0,IF(BA20="OLD",AR20/1000*HOME!$F$7,0))) ->  | BE20: =IF(B20="","",IF(N20="VACANT",0,IF(N20="FIX PAY",0,IF(BA20="NEW",AR20/1000*HOME!$F$6,0)))) -> 
M21: =IF(L21="","",INDEX(TPravesh!$U$3:$U$26,MATCH('Emp Data'!L21,TPravesh!$S$3:$S$26,0))) ->  | AC21: =IF(B21="","",IF(AD21="NA","NA",INDEX(TPravesh!$AA$5:$AA$16,MATCH(AD21,TPravesh!$AQ$5:$AQ$16,0)))) ->  | AD21: =IF(B21="","",IF(Q21="","",IF(Q21="NA","NA",INDEX(TPravesh!$AQ$5:$AQ$16,MATCH(Q21,TPravesh!$AA$5:$AA$16,0))))) ->  | AF21: =IF(B21="","",IF(W21="YES",HOME!$C$7,0)) ->  | AG21: =IF(B21="","",IF(S21="YES",HOME!$C$6,0)) ->  | AL21: =IF(B21="","",IF(I21="OLD",VLOOKUP(O21,TPravesh!$B$21:$G$24,4),VLOOKUP(O21,TPravesh!$B$28:$G$29,4))) ->  | AW21: =IF(B21="","",IF(X21="YES",IF(I21="OLD",ROUND(SUM(O21+O21*HOME!$F$6)*50%,0),ROUND(SUM(O21+O21*HOME!$F$6)*50%,0)))) ->  | AX21: =IF(B21="","",IF(X21="YES",IF(I21="OLD",ROUND(SUM(AO21+AO21*HOME!$F$6)*50%,0),ROUND(SUM(AO21+AO21*HOME!$F$6)*50%,0)))) ->  | BB21: =IF(B21="","",IF(N21="FIX PAY",0,IF(BA21="OLD",AQ21/1000*HOME!$F$7,0))) ->  | BC21: =IF(B21="","",IF(N21="VACANT",0,IF(N21="FIX PAY",0,IF(BA21="NEW",AQ21/1000*HOME!$F$6,0)))) ->  | BD21: =IF(B21="","",IF(N21="FIX PAY",0,IF(BA21="OLD",AR21/1000*HOME!$F$7,0))) ->  | BE21: =IF(B21="","",IF(N21="VACANT",0,IF(N21="FIX PAY",0,IF(BA21="NEW",AR21/1000*HOME!$F$6,0)))) -> 
M22: =IF(L22="","",INDEX(TPravesh!$U$3:$U$26,MATCH('Emp Data'!L22,TPravesh!$S$3:$S$26,0))) ->  | AC22: =IF(B22="","",IF(AD22="NA","NA",INDEX(TPravesh!$AA$5:$AA$16,MATCH(AD22,TPravesh!$AQ$5:$AQ$16,0)))) ->  | AD22: =IF(B22="","",IF(Q22="","",IF(Q22="NA","NA",INDEX(TPravesh!$AQ$5:$AQ$16,MATCH(Q22,TPravesh!$AA$5:$AA$16,0))))) ->  | AF22: =IF(B22="","",IF(W22="YES",HOME!$C$7,0)) ->  | AG22: =IF(B22="","",IF(S22="YES",HOME!$C$6,0)) ->  | AL22: =IF(B22="","",IF(I22="OLD",VLOOKUP(O22,TPravesh!$B$21:$G$24,4),VLOOKUP(O22,TPravesh!$B$28:$G$29,4))) ->  | AW22: =IF(B22="","",IF(X22="YES",IF(I22="OLD",ROUND(SUM(O22+O22*HOME!$F$6)*50%,0),ROUND(SUM(O22+O22*HOME!$F$6)*50%,0)))) ->  | AX22: =IF(B22="","",IF(X22="YES",IF(I22="OLD",ROUND(SUM(AO22+AO22*HOME!$F$6)*50%,0),ROUND(SUM(AO22+AO22*HOME!$F$6)*50%,0)))) ->  | BB22: =IF(B22="","",IF(N22="FIX PAY",0,IF(BA22="OLD",AQ22/1000*HOME!$F$7,0))) ->  | BC22: =IF(B22="","",IF(N22="VACANT",0,IF(N22="FIX PAY",0,IF(BA22="NEW",AQ22/1000*HOME!$F$6,0)))) ->  | BD22: =IF(B22="","",IF(N22="FIX PAY",0,IF(BA22="OLD",AR22/1000*HOME!$F$7,0))) ->  | BE22: =IF(B22="","",IF(N22="VACANT",0,IF(N22="FIX PAY",0,IF(BA22="NEW",AR22/1000*HOME!$F$6,0)))) -> 
M23: =IF(L23="","",INDEX(TPravesh!$U$3:$U$26,MATCH('Emp Data'!L23,TPravesh!$S$3:$S$26,0))) ->  | AC23: =IF(B23="","",IF(AD23="NA","NA",INDEX(TPravesh!$AA$5:$AA$16,MATCH(AD23,TPravesh!$AQ$5:$AQ$16,0)))) ->  | AD23: =IF(B23="","",IF(Q23="","",IF(Q23="NA","NA",INDEX(TPravesh!$AQ$5:$AQ$16,MATCH(Q23,TPravesh!$AA$5:$AA$16,0))))) ->  | AF23: =IF(B23="","",IF(W23="YES",HOME!$C$7,0)) ->  | AG23: =IF(B23="","",IF(S23="YES",HOME!$C$6,0)) ->  | AL23: =IF(B23="","",IF(I23="OLD",VLOOKUP(O23,TPravesh!$B$21:$G$24,4),VLOOKUP(O23,TPravesh!$B$28:$G$29,4))) ->  | AW23: =IF(B23="","",IF(X23="YES",IF(I23="OLD",ROUND(SUM(O23+O23*HOME!$F$6)*50%,0),ROUND(SUM(O23+O23*HOME!$F$6)*50%,0)))) ->  | AX23: =IF(B23="","",IF(X23="YES",IF(I23="OLD",ROUND(SUM(AO23+AO23*HOME!$F$6)*50%,0),ROUND(SUM(AO23+AO23*HOME!$F$6)*50%,0)))) ->  | BB23: =IF(B23="","",IF(N23="FIX PAY",0,IF(BA23="OLD",AQ23/1000*HOME!$F$7,0))) ->  | BC23: =IF(B23="","",IF(N23="VACANT",0,IF(N23="FIX PAY",0,IF(BA23="NEW",AQ23/1000*HOME!$F$6,0)))) ->  | BD23: =IF(B23="","",IF(N23="FIX PAY",0,IF(BA23="OLD",AR23/1000*HOME!$F$7,0))) ->  | BE23: =IF(B23="","",IF(N23="VACANT",0,IF(N23="FIX PAY",0,IF(BA23="NEW",AR23/1000*HOME!$F$6,0)))) -> 
M24: =IF(L24="","",INDEX(TPravesh!$U$3:$U$26,MATCH('Emp Data'!L24,TPravesh!$S$3:$S$26,0))) ->  | AC24: =IF(B24="","",IF(AD24="NA","NA",INDEX(TPravesh!$AA$5:$AA$16,MATCH(AD24,TPravesh!$AQ$5:$AQ$16,0)))) ->  | AD24: =IF(B24="","",IF(Q24="","",IF(Q24="NA","NA",INDEX(TPravesh!$AQ$5:$AQ$16,MATCH(Q24,TPravesh!$AA$5:$AA$16,0))))) ->  | AF24: =IF(B24="","",IF(W24="YES",HOME!$C$7,0)) ->  | AG24: =IF(B24="","",IF(S24="YES",HOME!$C$6,0)) ->  | AL24: =IF(B24="","",IF(I24="OLD",VLOOKUP(O24,TPravesh!$B$21:$G$24,4),VLOOKUP(O24,TPravesh!$B$28:$G$29,4))) ->  | AW24: =IF(B24="","",IF(X24="YES",IF(I24="OLD",ROUND(SUM(O24+O24*HOME!$F$6)*50%,0),ROUND(SUM(O24+O24*HOME!$F$6)*50%,0)))) ->  | AX24: =IF(B24="","",IF(X24="YES",IF(I24="OLD",ROUND(SUM(AO24+AO24*HOME!$F$6)*50%,0),ROUND(SUM(AO24+AO24*HOME!$F$6)*50%,0)))) ->  | BB24: =IF(B24="","",IF(N24="FIX PAY",0,IF(BA24="OLD",AQ24/1000*HOME!$F$7,0))) ->  | BC24: =IF(B24="","",IF(N24="VACANT",0,IF(N24="FIX PAY",0,IF(BA24="NEW",AQ24/1000*HOME!$F$6,0)))) ->  | BD24: =IF(B24="","",IF(N24="FIX PAY",0,IF(BA24="OLD",AR24/1000*HOME!$F$7,0))) ->  | BE24: =IF(B24="","",IF(N24="VACANT",0,IF(N24="FIX PAY",0,IF(BA24="NEW",AR24/1000*HOME!$F$6,0)))) -> 
M25: =IF(L25="","",INDEX(TPravesh!$U$3:$U$26,MATCH('Emp Data'!L25,TPravesh!$S$3:$S$26,0))) ->  | AC25: =IF(B25="","",IF(AD25="NA","NA",INDEX(TPravesh!$AA$5:$AA$16,MATCH(AD25,TPravesh!$AQ$5:$AQ$16,0)))) ->  | AD25: =IF(B25="","",IF(Q25="","",IF(Q25="NA","NA",INDEX(TPravesh!$AQ$5:$AQ$16,MATCH(Q25,TPravesh!$AA$5:$AA$16,0))))) ->  | AF25: =IF(B25="","",IF(W25="YES",HOME!$C$7,0)) ->  | AG25: =IF(B25="","",IF(S25="YES",HOME!$C$6,0)) ->  | AL25: =IF(B25="","",IF(I25="OLD",VLOOKUP(O25,TPravesh!$B$21:$G$24,4),VLOOKUP(O25,TPravesh!$B$28:$G$29,4))) ->  | AW25: =IF(B25="","",IF(X25="YES",IF(I25="OLD",ROUND(SUM(O25+O25*HOME!$F$6)*50%,0),ROUND(SUM(O25+O25*HOME!$F$6)*50%,0)))) ->  | AX25: =IF(B25="","",IF(X25="YES",IF(I25="OLD",ROUND(SUM(AO25+AO25*HOME!$F$6)*50%,0),ROUND(SUM(AO25+AO25*HOME!$F$6)*50%,0)))) ->  | BB25: =IF(B25="","",IF(N25="FIX PAY",0,IF(BA25="OLD",AQ25/1000*HOME!$F$7,0))) ->  | BC25: =IF(B25="","",IF(N25="VACANT",0,IF(N25="FIX PAY",0,IF(BA25="NEW",AQ25/1000*HOME!$F$6,0)))) ->  | BD25: =IF(B25="","",IF(N25="FIX PAY",0,IF(BA25="OLD",AR25/1000*HOME!$F$7,0))) ->  | BE25: =IF(B25="","",IF(N25="VACANT",0,IF(N25="FIX PAY",0,IF(BA25="NEW",AR25/1000*HOME!$F$6,0)))) -> 
M26: =IF(L26="","",INDEX(TPravesh!$U$3:$U$26,MATCH('Emp Data'!L26,TPravesh!$S$3:$S$26,0))) ->  | AC26: =IF(B26="","",IF(AD26="NA","NA",INDEX(TPravesh!$AA$5:$AA$16,MATCH(AD26,TPravesh!$AQ$5:$AQ$16,0)))) ->  | AD26: =IF(B26="","",IF(Q26="","",IF(Q26="NA","NA",INDEX(TPravesh!$AQ$5:$AQ$16,MATCH(Q26,TPravesh!$AA$5:$AA$16,0))))) ->  | AF26: =IF(B26="","",IF(W26="YES",HOME!$C$7,0)) ->  | AG26: =IF(B26="","",IF(S26="YES",HOME!$C$6,0)) ->  | AL26: =IF(B26="","",IF(I26="OLD",VLOOKUP(O26,TPravesh!$B$21:$G$24,4),VLOOKUP(O26,TPravesh!$B$28:$G$29,4))) ->  | AW26: =IF(B26="","",IF(X26="YES",IF(I26="OLD",ROUND(SUM(O26+O26*HOME!$F$6)*50%,0),ROUND(SUM(O26+O26*HOME!$F$6)*50%,0)))) ->  | AX26: =IF(B26="","",IF(X26="YES",IF(I26="OLD",ROUND(SUM(AO26+AO26*HOME!$F$6)*50%,0),ROUND(SUM(AO26+AO26*HOME!$F$6)*50%,0)))) ->  | BB26: =IF(B26="","",IF(N26="FIX PAY",0,IF(BA26="OLD",AQ26/1000*HOME!$F$7,0))) ->  | BC26: =IF(B26="","",IF(N26="VACANT",0,IF(N26="FIX PAY",0,IF(BA26="NEW",AQ26/1000*HOME!$F$6,0)))) ->  | BD26: =IF(B26="","",IF(N26="FIX PAY",0,IF(BA26="OLD",AR26/1000*HOME!$F$7,0))) ->  | BE26: =IF(B26="","",IF(N26="VACANT",0,IF(N26="FIX PAY",0,IF(BA26="NEW",AR26/1000*HOME!$F$6,0)))) -> 
M27: =IF(L27="","",INDEX(TPravesh!$U$3:$U$26,MATCH('Emp Data'!L27,TPravesh!$S$3:$S$26,0))) ->  | AC27: =IF(B27="","",IF(AD27="NA","NA",INDEX(TPravesh!$AA$5:$AA$16,MATCH(AD27,TPravesh!$AQ$5:$AQ$16,0)))) ->  | AD27: =IF(B27="","",IF(Q27="","",IF(Q27="NA","NA",INDEX(TPravesh!$AQ$5:$AQ$16,MATCH(Q27,TPravesh!$AA$5:$AA$16,0))))) ->  | AF27: =IF(B27="","",IF(W27="YES",HOME!$C$7,0)) ->  | AG27: =IF(B27="","",IF(S27="YES",HOME!$C$6,0)) ->  | AL27: =IF(B27="","",IF(I27="OLD",VLOOKUP(O27,TPravesh!$B$21:$G$24,4),VLOOKUP(O27,TPravesh!$B$28:$G$29,4))) ->  | AW27: =IF(B27="","",IF(X27="YES",IF(I27="OLD",ROUND(SUM(O27+O27*HOME!$F$6)*50%,0),ROUND(SUM(O27+O27*HOME!$F$6)*50%,0)))) ->  | AX27: =IF(B27="","",IF(X27="YES",IF(I27="OLD",ROUND(SUM(AO27+AO27*HOME!$F$6)*50%,0),ROUND(SUM(AO27+AO27*HOME!$F$6)*50%,0)))) ->  | BB27: =IF(B27="","",IF(N27="FIX PAY",0,IF(BA27="OLD",AQ27/1000*HOME!$F$7,0))) ->  | BC27: =IF(B27="","",IF(N27="VACANT",0,IF(N27="FIX PAY",0,IF(BA27="NEW",AQ27/1000*HOME!$F$6,0)))) ->  | BD27: =IF(B27="","",IF(N27="FIX PAY",0,IF(BA27="OLD",AR27/1000*HOME!$F$7,0))) ->  | BE27: =IF(B27="","",IF(N27="VACANT",0,IF(N27="FIX PAY",0,IF(BA27="NEW",AR27/1000*HOME!$F$6,0)))) -> 
M28: =IF(L28="","",INDEX(TPravesh!$U$3:$U$26,MATCH('Emp Data'!L28,TPravesh!$S$3:$S$26,0))) ->  | AC28: =IF(B28="","",IF(AD28="NA","NA",INDEX(TPravesh!$AA$5:$AA$16,MATCH(AD28,TPravesh!$AQ$5:$AQ$16,0)))) ->  | AD28: =IF(B28="","",IF(Q28="","",IF(Q28="NA","NA",INDEX(TPravesh!$AQ$5:$AQ$16,MATCH(Q28,TPravesh!$AA$5:$AA$16,0))))) ->  | AF28: =IF(B28="","",IF(W28="YES",HOME!$C$7,0)) ->  | AG28: =IF(B28="","",IF(S28="YES",HOME!$C$6,0)) ->  | AL28: =IF(B28="","",IF(I28="OLD",VLOOKUP(O28,TPravesh!$B$21:$G$24,4),VLOOKUP(O28,TPravesh!$B$28:$G$29,4))) ->  | AW28: =IF(B28="","",IF(X28="YES",IF(I28="OLD",ROUND(SUM(O28+O28*HOME!$F$6)*50%,0),ROUND(SUM(O28+O28*HOME!$F$6)*50%,0)))) ->  | AX28: =IF(B28="","",IF(X28="YES",IF(I28="OLD",ROUND(SUM(AO28+AO28*HOME!$F$6)*50%,0),ROUND(SUM(AO28+AO28*HOME!$F$6)*50%,0)))) ->  | BB28: =IF(B28="","",IF(N28="FIX PAY",0,IF(BA28="OLD",AQ28/1000*HOME!$F$7,0))) ->  | BC28: =IF(B28="","",IF(N28="VACANT",0,IF(N28="FIX PAY",0,IF(BA28="NEW",AQ28/1000*HOME!$F$6,0)))) ->  | BD28: =IF(B28="","",IF(N28="FIX PAY",0,IF(BA28="OLD",AR28/1000*HOME!$F$7,0))) ->  | BE28: =IF(B28="","",IF(N28="VACANT",0,IF(N28="FIX PAY",0,IF(BA28="NEW",AR28/1000*HOME!$F$6,0)))) -> 
M29: =IF(L29="","",INDEX(TPravesh!$U$3:$U$26,MATCH('Emp Data'!L29,TPravesh!$S$3:$S$26,0))) ->  | AC29: =IF(B29="","",IF(AD29="NA","NA",INDEX(TPravesh!$AA$5:$AA$16,MATCH(AD29,TPravesh!$AQ$5:$AQ$16,0)))) ->  | AD29: =IF(B29="","",IF(Q29="","",IF(Q29="NA","NA",INDEX(TPravesh!$AQ$5:$AQ$16,MATCH(Q29,TPravesh!$AA$5:$AA$16,0))))) ->  | AF29: =IF(B29="","",IF(W29="YES",HOME!$C$7,0)) ->  | AG29: =IF(B29="","",IF(S29="YES",HOME!$C$6,0)) ->  | AL29: =IF(B29="","",IF(I29="OLD",VLOOKUP(O29,TPravesh!$B$21:$G$24,4),VLOOKUP(O29,TPravesh!$B$28:$G$29,4))) ->  | AW29: =IF(B29="","",IF(X29="YES",IF(I29="OLD",ROUND(SUM(O29+O29*HOME!$F$6)*50%,0),ROUND(SUM(O29+O29*HOME!$F$6)*50%,0)))) ->  | AX29: =IF(B29="","",IF(X29="YES",IF(I29="OLD",ROUND(SUM(AO29+AO29*HOME!$F$6)*50%,0),ROUND(SUM(AO29+AO29*HOME!$F$6)*50%,0)))) ->  | BB29: =IF(B29="","",IF(N29="FIX PAY",0,IF(BA29="OLD",AQ29/1000*HOME!$F$7,0))) ->  | BC29: =IF(B29="","",IF(N29="VACANT",0,IF(N29="FIX PAY",0,IF(BA29="NEW",AQ29/1000*HOME!$F$6,0)))) ->  | BD29: =IF(B29="","",IF(N29="FIX PAY",0,IF(BA29="OLD",AR29/1000*HOME!$F$7,0))) ->  | BE29: =IF(B29="","",IF(N29="VACANT",0,IF(N29="FIX PAY",0,IF(BA29="NEW",AR29/1000*HOME!$F$6,0)))) -> 
M30: =IF(L30="","",INDEX(TPravesh!$U$3:$U$26,MATCH('Emp Data'!L30,TPravesh!$S$3:$S$26,0))) ->  | AC30: =IF(B30="","",IF(AD30="NA","NA",INDEX(TPravesh!$AA$5:$AA$16,MATCH(AD30,TPravesh!$AQ$5:$AQ$16,0)))) ->  | AD30: =IF(B30="","",IF(Q30="","",IF(Q30="NA","NA",INDEX(TPravesh!$AQ$5:$AQ$16,MATCH(Q30,TPravesh!$AA$5:$AA$16,0))))) ->  | AF30: =IF(B30="","",IF(W30="YES",HOME!$C$7,0)) ->  | AG30: =IF(B30="","",IF(S30="YES",HOME!$C$6,0)) ->  | AL30: =IF(B30="","",IF(I30="OLD",VLOOKUP(O30,TPravesh!$B$21:$G$24,4),VLOOKUP(O30,TPravesh!$B$28:$G$29,4))) ->  | AW30: =IF(B30="","",IF(X30="YES",IF(I30="OLD",ROUND(SUM(O30+O30*HOME!$F$6)*50%,0),ROUND(SUM(O30+O30*HOME!$F$6)*50%,0)))) ->  | AX30: =IF(B30="","",IF(X30="YES",IF(I30="OLD",ROUND(SUM(AO30+AO30*HOME!$F$6)*50%,0),ROUND(SUM(AO30+AO30*HOME!$F$6)*50%,0)))) ->  | BB30: =IF(B30="","",IF(N30="FIX PAY",0,IF(BA30="OLD",AQ30/1000*HOME!$F$7,0))) ->  | BC30: =IF(B30="","",IF(N30="VACANT",0,IF(N30="FIX PAY",0,IF(BA30="NEW",AQ30/1000*HOME!$F$6,0)))) ->  | BD30: =IF(B30="","",IF(N30="FIX PAY",0,IF(BA30="OLD",AR30/1000*HOME!$F$7,0))) ->  | BE30: =IF(B30="","",IF(N30="VACANT",0,IF(N30="FIX PAY",0,IF(BA30="NEW",AR30/1000*HOME!$F$6,0)))) -> 
M31: =IF(L31="","",INDEX(TPravesh!$U$3:$U$26,MATCH('Emp Data'!L31,TPravesh!$S$3:$S$26,0))) ->  | AC31: =IF(B31="","",IF(AD31="NA","NA",INDEX(TPravesh!$AA$5:$AA$16,MATCH(AD31,TPravesh!$AQ$5:$AQ$16,0)))) ->  | AD31: =IF(B31="","",IF(Q31="","",IF(Q31="NA","NA",INDEX(TPravesh!$AQ$5:$AQ$16,MATCH(Q31,TPravesh!$AA$5:$AA$16,0))))) ->  | AF31: =IF(B31="","",IF(W31="YES",HOME!$C$7,0)) ->  | AG31: =IF(B31="","",IF(S31="YES",HOME!$C$6,0)) ->  | AL31: =IF(B31="","",IF(I31="OLD",VLOOKUP(O31,TPravesh!$B$21:$G$24,4),VLOOKUP(O31,TPravesh!$B$28:$G$29,4))) ->  | AW31: =IF(B31="","",IF(X31="YES",IF(I31="OLD",ROUND(SUM(O31+O31*HOME!$F$6)*50%,0),ROUND(SUM(O31+O31*HOME!$F$6)*50%,0)))) ->  | AX31: =IF(B31="","",IF(X31="YES",IF(I31="OLD",ROUND(SUM(AO31+AO31*HOME!$F$6)*50%,0),ROUND(SUM(AO31+AO31*HOME!$F$6)*50%,0)))) ->  | BB31: =IF(B31="","",IF(N31="FIX PAY",0,IF(BA31="OLD",AQ31/1000*HOME!$F$7,0))) ->  | BC31: =IF(B31="","",IF(N31="VACANT",0,IF(N31="FIX PAY",0,IF(BA31="NEW",AQ31/1000*HOME!$F$6,0)))) ->  | BD31: =IF(B31="","",IF(N31="FIX PAY",0,IF(BA31="OLD",AR31/1000*HOME!$F$7,0))) ->  | BE31: =IF(B31="","",IF(N31="VACANT",0,IF(N31="FIX PAY",0,IF(BA31="NEW",AR31/1000*HOME!$F$6,0)))) -> 
M32: =IF(L32="","",INDEX(TPravesh!$U$3:$U$26,MATCH('Emp Data'!L32,TPravesh!$S$3:$S$26,0))) ->  | AC32: =IF(B32="","",IF(AD32="NA","NA",INDEX(TPravesh!$AA$5:$AA$16,MATCH(AD32,TPravesh!$AQ$5:$AQ$16,0)))) ->  | AD32: =IF(B32="","",IF(Q32="","",IF(Q32="NA","NA",INDEX(TPravesh!$AQ$5:$AQ$16,MATCH(Q32,TPravesh!$AA$5:$AA$16,0))))) ->  | AF32: =IF(B32="","",IF(W32="YES",HOME!$C$7,0)) ->  | AG32: =IF(B32="","",IF(S32="YES",HOME!$C$6,0)) ->  | AL32: =IF(B32="","",IF(I32="OLD",VLOOKUP(O32,TPravesh!$B$21:$G$24,4),VLOOKUP(O32,TPravesh!$B$28:$G$29,4))) ->  | AW32: =IF(B32="","",IF(X32="YES",IF(I32="OLD",ROUND(SUM(O32+O32*HOME!$F$6)*50%,0),ROUND(SUM(O32+O32*HOME!$F$6)*50%,0)))) ->  | AX32: =IF(B32="","",IF(X32="YES",IF(I32="OLD",ROUND(SUM(AO32+AO32*HOME!$F$6)*50%,0),ROUND(SUM(AO32+AO32*HOME!$F$6)*50%,0)))) ->  | BB32: =IF(B32="","",IF(N32="FIX PAY",0,IF(BA32="OLD",AQ32/1000*HOME!$F$7,0))) ->  | BC32: =IF(B32="","",IF(N32="VACANT",0,IF(N32="FIX PAY",0,IF(BA32="NEW",AQ32/1000*HOME!$F$6,0)))) ->  | BD32: =IF(B32="","",IF(N32="FIX PAY",0,IF(BA32="OLD",AR32/1000*HOME!$F$7,0))) ->  | BE32: =IF(B32="","",IF(N32="VACANT",0,IF(N32="FIX PAY",0,IF(BA32="NEW",AR32/1000*HOME!$F$6,0)))) -> 
M33: =IF(L33="","",INDEX(TPravesh!$U$3:$U$26,MATCH('Emp Data'!L33,TPravesh!$S$3:$S$26,0))) ->  | AC33: =IF(B33="","",IF(AD33="NA","NA",INDEX(TPravesh!$AA$5:$AA$16,MATCH(AD33,TPravesh!$AQ$5:$AQ$16,0)))) ->  | AD33: =IF(B33="","",IF(Q33="","",IF(Q33="NA","NA",INDEX(TPravesh!$AQ$5:$AQ$16,MATCH(Q33,TPravesh!$AA$5:$AA$16,0))))) ->  | AF33: =IF(B33="","",IF(W33="YES",HOME!$C$7,0)) ->  | AG33: =IF(B33="","",IF(S33="YES",HOME!$C$6,0)) ->  | AL33: =IF(B33="","",IF(I33="OLD",VLOOKUP(O33,TPravesh!$B$21:$G$24,4),VLOOKUP(O33,TPravesh!$B$28:$G$29,4))) ->  | AW33: =IF(B33="","",IF(X33="YES",IF(I33="OLD",ROUND(SUM(O33+O33*HOME!$F$6)*50%,0),ROUND(SUM(O33+O33*HOME!$F$6)*50%,0)))) ->  | AX33: =IF(B33="","",IF(X33="YES",IF(I33="OLD",ROUND(SUM(AO33+AO33*HOME!$F$6)*50%,0),ROUND(SUM(AO33+AO33*HOME!$F$6)*50%,0)))) ->  | BB33: =IF(B33="","",IF(N33="FIX PAY",0,IF(BA33="OLD",AQ33/1000*HOME!$F$7,0))) ->  | BC33: =IF(B33="","",IF(N33="VACANT",0,IF(N33="FIX PAY",0,IF(BA33="NEW",AQ33/1000*HOME!$F$6,0)))) ->  | BD33: =IF(B33="","",IF(N33="FIX PAY",0,IF(BA33="OLD",AR33/1000*HOME!$F$7,0))) ->  | BE33: =IF(B33="","",IF(N33="VACANT",0,IF(N33="FIX PAY",0,IF(BA33="NEW",AR33/1000*HOME!$F$6,0)))) -> 
M34: =IF(L34="","",INDEX(TPravesh!$U$3:$U$26,MATCH('Emp Data'!L34,TPravesh!$S$3:$S$26,0))) ->  | AC34: =IF(B34="","",IF(AD34="NA","NA",INDEX(TPravesh!$AA$5:$AA$16,MATCH(AD34,TPravesh!$AQ$5:$AQ$16,0)))) ->  | AD34: =IF(B34="","",IF(Q34="","",IF(Q34="NA","NA",INDEX(TPravesh!$AQ$5:$AQ$16,MATCH(Q34,TPravesh!$AA$5:$AA$16,0))))) ->  | AF34: =IF(B34="","",IF(W34="YES",HOME!$C$7,0)) ->  | AG34: =IF(B34="","",IF(S34="YES",HOME!$C$6,0)) ->  | AL34: =IF(B34="","",IF(I34="OLD",VLOOKUP(O34,TPravesh!$B$21:$G$24,4),VLOOKUP(O34,TPravesh!$B$28:$G$29,4))) ->  | AW34: =IF(B34="","",IF(X34="YES",IF(I34="OLD",ROUND(SUM(O34+O34*HOME!$F$6)*50%,0),ROUND(SUM(O34+O34*HOME!$F$6)*50%,0)))) ->  | AX34: =IF(B34="","",IF(X34="YES",IF(I34="OLD",ROUND(SUM(AO34+AO34*HOME!$F$6)*50%,0),ROUND(SUM(AO34+AO34*HOME!$F$6)*50%,0)))) ->  | BB34: =IF(B34="","",IF(N34="FIX PAY",0,IF(BA34="OLD",AQ34/1000*HOME!$F$7,0))) ->  | BC34: =IF(B34="","",IF(N34="VACANT",0,IF(N34="FIX PAY",0,IF(BA34="NEW",AQ34/1000*HOME!$F$6,0)))) ->  | BD34: =IF(B34="","",IF(N34="FIX PAY",0,IF(BA34="OLD",AR34/1000*HOME!$F$7,0))) ->  | BE34: =IF(B34="","",IF(N34="VACANT",0,IF(N34="FIX PAY",0,IF(BA34="NEW",AR34/1000*HOME!$F$6,0)))) -> 
M35: =IF(L35="","",INDEX(TPravesh!$U$3:$U$26,MATCH('Emp Data'!L35,TPravesh!$S$3:$S$26,0))) ->  | AC35: =IF(B35="","",IF(AD35="NA","NA",INDEX(TPravesh!$AA$5:$AA$16,MATCH(AD35,TPravesh!$AQ$5:$AQ$16,0)))) ->  | AD35: =IF(B35="","",IF(Q35="","",IF(Q35="NA","NA",INDEX(TPravesh!$AQ$5:$AQ$16,MATCH(Q35,TPravesh!$AA$5:$AA$16,0))))) ->  | AF35: =IF(B35="","",IF(W35="YES",HOME!$C$7,0)) ->  | AG35: =IF(B35="","",IF(S35="YES",HOME!$C$6,0)) ->  | AL35: =IF(B35="","",IF(I35="OLD",VLOOKUP(O35,TPravesh!$B$21:$G$24,4),VLOOKUP(O35,TPravesh!$B$28:$G$29,4))) ->  | AW35: =IF(B35="","",IF(X35="YES",IF(I35="OLD",ROUND(SUM(O35+O35*HOME!$F$6)*50%,0),ROUND(SUM(O35+O35*HOME!$F$6)*50%,0)))) ->  | AX35: =IF(B35="","",IF(X35="YES",IF(I35="OLD",ROUND(SUM(AO35+AO35*HOME!$F$6)*50%,0),ROUND(SUM(AO35+AO35*HOME!$F$6)*50%,0)))) ->  | BB35: =IF(B35="","",IF(N35="FIX PAY",0,IF(BA35="OLD",AQ35/1000*HOME!$F$7,0))) ->  | BC35: =IF(B35="","",IF(N35="VACANT",0,IF(N35="FIX PAY",0,IF(BA35="NEW",AQ35/1000*HOME!$F$6,0)))) ->  | BD35: =IF(B35="","",IF(N35="FIX PAY",0,IF(BA35="OLD",AR35/1000*HOME!$F$7,0))) ->  | BE35: =IF(B35="","",IF(N35="VACANT",0,IF(N35="FIX PAY",0,IF(BA35="NEW",AR35/1000*HOME!$F$6,0)))) -> 
M36: =IF(L36="","",INDEX(TPravesh!$U$3:$U$26,MATCH('Emp Data'!L36,TPravesh!$S$3:$S$26,0))) ->  | AC36: =IF(B36="","",IF(AD36="NA","NA",INDEX(TPravesh!$AA$5:$AA$16,MATCH(AD36,TPravesh!$AQ$5:$AQ$16,0)))) ->  | AD36: =IF(B36="","",IF(Q36="","",IF(Q36="NA","NA",INDEX(TPravesh!$AQ$5:$AQ$16,MATCH(Q36,TPravesh!$AA$5:$AA$16,0))))) ->  | AF36: =IF(B36="","",IF(W36="YES",HOME!$C$7,0)) ->  | AG36: =IF(B36="","",IF(S36="YES",HOME!$C$6,0)) ->  | AL36: =IF(B36="","",IF(I36="OLD",VLOOKUP(O36,TPravesh!$B$21:$G$24,4),VLOOKUP(O36,TPravesh!$B$28:$G$29,4))) ->  | AW36: =IF(B36="","",IF(X36="YES",IF(I36="OLD",ROUND(SUM(O36+O36*HOME!$F$6)*50%,0),ROUND(SUM(O36+O36*HOME!$F$6)*50%,0)))) ->  | AX36: =IF(B36="","",IF(X36="YES",IF(I36="OLD",ROUND(SUM(AO36+AO36*HOME!$F$6)*50%,0),ROUND(SUM(AO36+AO36*HOME!$F$6)*50%,0)))) ->  | BB36: =IF(B36="","",IF(N36="FIX PAY",0,IF(BA36="OLD",AQ36/1000*HOME!$F$7,0))) ->  | BC36: =IF(B36="","",IF(N36="VACANT",0,IF(N36="FIX PAY",0,IF(BA36="NEW",AQ36/1000*HOME!$F$6,0)))) ->  | BD36: =IF(B36="","",IF(N36="FIX PAY",0,IF(BA36="OLD",AR36/1000*HOME!$F$7,0))) ->  | BE36: =IF(B36="","",IF(N36="VACANT",0,IF(N36="FIX PAY",0,IF(BA36="NEW",AR36/1000*HOME!$F$6,0)))) -> 
M37: =IF(L37="","",INDEX(TPravesh!$U$3:$U$26,MATCH('Emp Data'!L37,TPravesh!$S$3:$S$26,0))) ->  | AC37: =IF(B37="","",IF(AD37="NA","NA",INDEX(TPravesh!$AA$5:$AA$16,MATCH(AD37,TPravesh!$AQ$5:$AQ$16,0)))) ->  | AD37: =IF(B37="","",IF(Q37="","",IF(Q37="NA","NA",INDEX(TPravesh!$AQ$5:$AQ$16,MATCH(Q37,TPravesh!$AA$5:$AA$16,0))))) ->  | AF37: =IF(B37="","",IF(W37="YES",HOME!$C$7,0)) ->  | AG37: =IF(B37="","",IF(S37="YES",HOME!$C$6,0)) ->  | AL37: =IF(B37="","",IF(I37="OLD",VLOOKUP(O37,TPravesh!$B$21:$G$24,4),VLOOKUP(O37,TPravesh!$B$28:$G$29,4))) ->  | AW37: =IF(B37="","",IF(X37="YES",IF(I37="OLD",ROUND(SUM(O37+O37*HOME!$F$6)*50%,0),ROUND(SUM(O37+O37*HOME!$F$6)*50%,0)))) ->  | AX37: =IF(B37="","",IF(X37="YES",IF(I37="OLD",ROUND(SUM(AO37+AO37*HOME!$F$6)*50%,0),ROUND(SUM(AO37+AO37*HOME!$F$6)*50%,0)))) ->  | BB37: =IF(B37="","",IF(N37="FIX PAY",0,IF(BA37="OLD",AQ37/1000*HOME!$F$7,0))) ->  | BC37: =IF(B37="","",IF(N37="VACANT",0,IF(N37="FIX PAY",0,IF(BA37="NEW",AQ37/1000*HOME!$F$6,0)))) ->  | BD37: =IF(B37="","",IF(N37="FIX PAY",0,IF(BA37="OLD",AR37/1000*HOME!$F$7,0))) ->  | BE37: =IF(B37="","",IF(N37="VACANT",0,IF(N37="FIX PAY",0,IF(BA37="NEW",AR37/1000*HOME!$F$6,0)))) -> 
M38: =IF(L38="","",INDEX(TPravesh!$U$3:$U$26,MATCH('Emp Data'!L38,TPravesh!$S$3:$S$26,0))) ->  | AC38: =IF(B38="","",IF(AD38="NA","NA",INDEX(TPravesh!$AA$5:$AA$16,MATCH(AD38,TPravesh!$AQ$5:$AQ$16,0)))) ->  | AD38: =IF(B38="","",IF(Q38="","",IF(Q38="NA","NA",INDEX(TPravesh!$AQ$5:$AQ$16,MATCH(Q38,TPravesh!$AA$5:$AA$16,0))))) ->  | AF38: =IF(B38="","",IF(W38="YES",HOME!$C$7,0)) ->  | AG38: =IF(B38="","",IF(S38="YES",HOME!$C$6,0)) ->  | AL38: =IF(B38="","",IF(I38="OLD",VLOOKUP(O38,TPravesh!$B$21:$G$24,4),VLOOKUP(O38,TPravesh!$B$28:$G$29,4))) ->  | AW38: =IF(B38="","",IF(X38="YES",IF(I38="OLD",ROUND(SUM(O38+O38*HOME!$F$6)*50%,0),ROUND(SUM(O38+O38*HOME!$F$6)*50%,0)))) ->  | AX38: =IF(B38="","",IF(X38="YES",IF(I38="OLD",ROUND(SUM(AO38+AO38*HOME!$F$6)*50%,0),ROUND(SUM(AO38+AO38*HOME!$F$6)*50%,0)))) ->  | BB38: =IF(B38="","",IF(N38="FIX PAY",0,IF(BA38="OLD",AQ38/1000*HOME!$F$7,0))) ->  | BC38: =IF(B38="","",IF(N38="VACANT",0,IF(N38="FIX PAY",0,IF(BA38="NEW",AQ38/1000*HOME!$F$6,0)))) ->  | BD38: =IF(B38="","",IF(N38="FIX PAY",0,IF(BA38="OLD",AR38/1000*HOME!$F$7,0))) ->  | BE38: =IF(B38="","",IF(N38="VACANT",0,IF(N38="FIX PAY",0,IF(BA38="NEW",AR38/1000*HOME!$F$6,0)))) -> 
M39: =IF(L39="","",INDEX(TPravesh!$U$3:$U$26,MATCH('Emp Data'!L39,TPravesh!$S$3:$S$26,0))) ->  | AC39: =IF(B39="","",IF(AD39="NA","NA",INDEX(TPravesh!$AA$5:$AA$16,MATCH(AD39,TPravesh!$AQ$5:$AQ$16,0)))) ->  | AD39: =IF(B39="","",IF(Q39="","",IF(Q39="NA","NA",INDEX(TPravesh!$AQ$5:$AQ$16,MATCH(Q39,TPravesh!$AA$5:$AA$16,0))))) ->  | AF39: =IF(B39="","",IF(W39="YES",HOME!$C$7,0)) ->  | AG39: =IF(B39="","",IF(S39="YES",HOME!$C$6,0)) ->  | AL39: =IF(B39="","",IF(I39="OLD",VLOOKUP(O39,TPravesh!$B$21:$G$24,4),VLOOKUP(O39,TPravesh!$B$28:$G$29,4))) ->  | AW39: =IF(B39="","",IF(X39="YES",IF(I39="OLD",ROUND(SUM(O39+O39*HOME!$F$6)*50%,0),ROUND(SUM(O39+O39*HOME!$F$6)*50%,0)))) ->  | AX39: =IF(B39="","",IF(X39="YES",IF(I39="OLD",ROUND(SUM(AO39+AO39*HOME!$F$6)*50%,0),ROUND(SUM(AO39+AO39*HOME!$F$6)*50%,0)))) ->  | BB39: =IF(B39="","",IF(N39="FIX PAY",0,IF(BA39="OLD",AQ39/1000*HOME!$F$7,0))) ->  | BC39: =IF(B39="","",IF(N39="VACANT",0,IF(N39="FIX PAY",0,IF(BA39="NEW",AQ39/1000*HOME!$F$6,0)))) ->  | BD39: =IF(B39="","",IF(N39="FIX PAY",0,IF(BA39="OLD",AR39/1000*HOME!$F$7,0))) ->  | BE39: =IF(B39="","",IF(N39="VACANT",0,IF(N39="FIX PAY",0,IF(BA39="NEW",AR39/1000*HOME!$F$6,0)))) -> 
M40: =IF(L40="","",INDEX(TPravesh!$U$3:$U$26,MATCH('Emp Data'!L40,TPravesh!$S$3:$S$26,0))) ->  | AC40: =IF(B40="","",IF(AD40="NA","NA",INDEX(TPravesh!$AA$5:$AA$16,MATCH(AD40,TPravesh!$AQ$5:$AQ$16,0)))) ->  | AD40: =IF(B40="","",IF(Q40="","",IF(Q40="NA","NA",INDEX(TPravesh!$AQ$5:$AQ$16,MATCH(Q40,TPravesh!$AA$5:$AA$16,0))))) ->  | AF40: =IF(B40="","",IF(W40="YES",HOME!$C$7,0)) ->  | AG40: =IF(B40="","",IF(S40="YES",HOME!$C$6,0)) ->  | AL40: =IF(B40="","",IF(I40="OLD",VLOOKUP(O40,TPravesh!$B$21:$G$24,4),VLOOKUP(O40,TPravesh!$B$28:$G$29,4))) ->  | AW40: =IF(B40="","",IF(X40="YES",IF(I40="OLD",ROUND(SUM(O40+O40*HOME!$F$6)*50%,0),ROUND(SUM(O40+O40*HOME!$F$6)*50%,0)))) ->  | AX40: =IF(B40="","",IF(X40="YES",IF(I40="OLD",ROUND(SUM(AO40+AO40*HOME!$F$6)*50%,0),ROUND(SUM(AO40+AO40*HOME!$F$6)*50%,0)))) ->  | BB40: =IF(B40="","",IF(N40="FIX PAY",0,IF(BA40="OLD",AQ40/1000*HOME!$F$7,0))) ->  | BC40: =IF(B40="","",IF(N40="VACANT",0,IF(N40="FIX PAY",0,IF(BA40="NEW",AQ40/1000*HOME!$F$6,0)))) ->  | BD40: =IF(B40="","",IF(N40="FIX PAY",0,IF(BA40="OLD",AR40/1000*HOME!$F$7,0))) ->  | BE40: =IF(B40="","",IF(N40="VACANT",0,IF(N40="FIX PAY",0,IF(BA40="NEW",AR40/1000*HOME!$F$6,0)))) -> 
M41: =IF(L41="","",INDEX(TPravesh!$U$3:$U$26,MATCH('Emp Data'!L41,TPravesh!$S$3:$S$26,0))) ->  | AC41: =IF(B41="","",IF(AD41="NA","NA",INDEX(TPravesh!$AA$5:$AA$16,MATCH(AD41,TPravesh!$AQ$5:$AQ$16,0)))) ->  | AD41: =IF(B41="","",IF(Q41="","",IF(Q41="NA","NA",INDEX(TPravesh!$AQ$5:$AQ$16,MATCH(Q41,TPravesh!$AA$5:$AA$16,0))))) ->  | AF41: =IF(B41="","",IF(W41="YES",HOME!$C$7,0)) ->  | AG41: =IF(B41="","",IF(S41="YES",HOME!$C$6,0)) ->  | AL41: =IF(B41="","",IF(I41="OLD",VLOOKUP(O41,TPravesh!$B$21:$G$24,4),VLOOKUP(O41,TPravesh!$B$28:$G$29,4))) ->  | AW41: =IF(B41="","",IF(X41="YES",IF(I41="OLD",ROUND(SUM(O41+O41*HOME!$F$6)*50%,0),ROUND(SUM(O41+O41*HOME!$F$6)*50%,0)))) ->  | AX41: =IF(B41="","",IF(X41="YES",IF(I41="OLD",ROUND(SUM(AO41+AO41*HOME!$F$6)*50%,0),ROUND(SUM(AO41+AO41*HOME!$F$6)*50%,0)))) ->  | BB41: =IF(B41="","",IF(N41="FIX PAY",0,IF(BA41="OLD",AQ41/1000*HOME!$F$7,0))) ->  | BC41: =IF(B41="","",IF(N41="VACANT",0,IF(N41="FIX PAY",0,IF(BA41="NEW",AQ41/1000*HOME!$F$6,0)))) ->  | BD41: =IF(B41="","",IF(N41="FIX PAY",0,IF(BA41="OLD",AR41/1000*HOME!$F$7,0))) ->  | BE41: =IF(B41="","",IF(N41="VACANT",0,IF(N41="FIX PAY",0,IF(BA41="NEW",AR41/1000*HOME!$F$6,0)))) -> 
M42: =IF(L42="","",INDEX(TPravesh!$U$3:$U$26,MATCH('Emp Data'!L42,TPravesh!$S$3:$S$26,0))) ->  | AC42: =IF(B42="","",IF(AD42="NA","NA",INDEX(TPravesh!$AA$5:$AA$16,MATCH(AD42,TPravesh!$AQ$5:$AQ$16,0)))) ->  | AD42: =IF(B42="","",IF(Q42="","",IF(Q42="NA","NA",INDEX(TPravesh!$AQ$5:$AQ$16,MATCH(Q42,TPravesh!$AA$5:$AA$16,0))))) ->  | AF42: =IF(B42="","",IF(W42="YES",HOME!$C$7,0)) ->  | AG42: =IF(B42="","",IF(S42="YES",HOME!$C$6,0)) ->  | AL42: =IF(B42="","",IF(I42="OLD",VLOOKUP(O42,TPravesh!$B$21:$G$24,4),VLOOKUP(O42,TPravesh!$B$28:$G$29,4))) ->  | AW42: =IF(B42="","",IF(X42="YES",IF(I42="OLD",ROUND(SUM(O42+O42*HOME!$F$6)*50%,0),ROUND(SUM(O42+O42*HOME!$F$6)*50%,0)))) ->  | AX42: =IF(B42="","",IF(X42="YES",IF(I42="OLD",ROUND(SUM(AO42+AO42*HOME!$F$6)*50%,0),ROUND(SUM(AO42+AO42*HOME!$F$6)*50%,0)))) ->  | BB42: =IF(B42="","",IF(N42="FIX PAY",0,IF(BA42="OLD",AQ42/1000*HOME!$F$7,0))) ->  | BC42: =IF(B42="","",IF(N42="VACANT",0,IF(N42="FIX PAY",0,IF(BA42="NEW",AQ42/1000*HOME!$F$6,0)))) ->  | BD42: =IF(B42="","",IF(N42="FIX PAY",0,IF(BA42="OLD",AR42/1000*HOME!$F$7,0))) ->  | BE42: =IF(B42="","",IF(N42="VACANT",0,IF(N42="FIX PAY",0,IF(BA42="NEW",AR42/1000*HOME!$F$6,0)))) -> 
M43: =IF(L43="","",INDEX(TPravesh!$U$3:$U$26,MATCH('Emp Data'!L43,TPravesh!$S$3:$S$26,0))) ->  | AC43: =IF(B43="","",IF(AD43="NA","NA",INDEX(TPravesh!$AA$5:$AA$16,MATCH(AD43,TPravesh!$AQ$5:$AQ$16,0)))) ->  | AD43: =IF(B43="","",IF(Q43="","",IF(Q43="NA","NA",INDEX(TPravesh!$AQ$5:$AQ$16,MATCH(Q43,TPravesh!$AA$5:$AA$16,0))))) ->  | AF43: =IF(B43="","",IF(W43="YES",HOME!$C$7,0)) ->  | AG43: =IF(B43="","",IF(S43="YES",HOME!$C$6,0)) ->  | AL43: =IF(B43="","",IF(I43="OLD",VLOOKUP(O43,TPravesh!$B$21:$G$24,4),VLOOKUP(O43,TPravesh!$B$28:$G$29,4))) ->  | AW43: =IF(B43="","",IF(X43="YES",IF(I43="OLD",ROUND(SUM(O43+O43*HOME!$F$6)*50%,0),ROUND(SUM(O43+O43*HOME!$F$6)*50%,0)))) ->  | AX43: =IF(B43="","",IF(X43="YES",IF(I43="OLD",ROUND(SUM(AO43+AO43*HOME!$F$6)*50%,0),ROUND(SUM(AO43+AO43*HOME!$F$6)*50%,0)))) ->  | BB43: =IF(B43="","",IF(N43="FIX PAY",0,IF(BA43="OLD",AQ43/1000*HOME!$F$7,0))) ->  | BC43: =IF(B43="","",IF(N43="VACANT",0,IF(N43="FIX PAY",0,IF(BA43="NEW",AQ43/1000*HOME!$F$6,0)))) ->  | BD43: =IF(B43="","",IF(N43="FIX PAY",0,IF(BA43="OLD",AR43/1000*HOME!$F$7,0))) ->  | BE43: =IF(B43="","",IF(N43="VACANT",0,IF(N43="FIX PAY",0,IF(BA43="NEW",AR43/1000*HOME!$F$6,0)))) -> 
M44: =IF(L44="","",INDEX(TPravesh!$U$3:$U$26,MATCH('Emp Data'!L44,TPravesh!$S$3:$S$26,0))) ->  | AC44: =IF(B44="","",IF(AD44="NA","NA",INDEX(TPravesh!$AA$5:$AA$16,MATCH(AD44,TPravesh!$AQ$5:$AQ$16,0)))) ->  | AD44: =IF(B44="","",IF(Q44="","",IF(Q44="NA","NA",INDEX(TPravesh!$AQ$5:$AQ$16,MATCH(Q44,TPravesh!$AA$5:$AA$16,0))))) ->  | AF44: =IF(B44="","",IF(W44="YES",HOME!$C$7,0)) ->  | AG44: =IF(B44="","",IF(S44="YES",HOME!$C$6,0)) ->  | AL44: =IF(B44="","",IF(I44="OLD",VLOOKUP(O44,TPravesh!$B$21:$G$24,4),VLOOKUP(O44,TPravesh!$B$28:$G$29,4))) ->  | AW44: =IF(B44="","",IF(X44="YES",IF(I44="OLD",ROUND(SUM(O44+O44*HOME!$F$6)*50%,0),ROUND(SUM(O44+O44*HOME!$F$6)*50%,0)))) ->  | AX44: =IF(B44="","",IF(X44="YES",IF(I44="OLD",ROUND(SUM(AO44+AO44*HOME!$F$6)*50%,0),ROUND(SUM(AO44+AO44*HOME!$F$6)*50%,0)))) ->  | BB44: =IF(B44="","",IF(N44="FIX PAY",0,IF(BA44="OLD",AQ44/1000*HOME!$F$7,0))) ->  | BC44: =IF(B44="","",IF(N44="VACANT",0,IF(N44="FIX PAY",0,IF(BA44="NEW",AQ44/1000*HOME!$F$6,0)))) ->  | BD44: =IF(B44="","",IF(N44="FIX PAY",0,IF(BA44="OLD",AR44/1000*HOME!$F$7,0))) ->  | BE44: =IF(B44="","",IF(N44="VACANT",0,IF(N44="FIX PAY",0,IF(BA44="NEW",AR44/1000*HOME!$F$6,0)))) -> 
M45: =IF(L45="","",INDEX(TPravesh!$U$3:$U$26,MATCH('Emp Data'!L45,TPravesh!$S$3:$S$26,0))) ->  | AC45: =IF(B45="","",IF(AD45="NA","NA",INDEX(TPravesh!$AA$5:$AA$16,MATCH(AD45,TPravesh!$AQ$5:$AQ$16,0)))) ->  | AD45: =IF(B45="","",IF(Q45="","",IF(Q45="NA","NA",INDEX(TPravesh!$AQ$5:$AQ$16,MATCH(Q45,TPravesh!$AA$5:$AA$16,0))))) ->  | AF45: =IF(B45="","",IF(W45="YES",HOME!$C$7,0)) ->  | AG45: =IF(B45="","",IF(S45="YES",HOME!$C$6,0)) ->  | AL45: =IF(B45="","",IF(I45="OLD",VLOOKUP(O45,TPravesh!$B$21:$G$24,4),VLOOKUP(O45,TPravesh!$B$28:$G$29,4))) ->  | AW45: =IF(B45="","",IF(X45="YES",IF(I45="OLD",ROUND(SUM(O45+O45*HOME!$F$6)*50%,0),ROUND(SUM(O45+O45*HOME!$F$6)*50%,0)))) ->  | AX45: =IF(B45="","",IF(X45="YES",IF(I45="OLD",ROUND(SUM(AO45+AO45*HOME!$F$6)*50%,0),ROUND(SUM(AO45+AO45*HOME!$F$6)*50%,0)))) ->  | BB45: =IF(B45="","",IF(N45="FIX PAY",0,IF(BA45="OLD",AQ45/1000*HOME!$F$7,0))) ->  | BC45: =IF(B45="","",IF(N45="VACANT",0,IF(N45="FIX PAY",0,IF(BA45="NEW",AQ45/1000*HOME!$F$6,0)))) ->  | BD45: =IF(B45="","",IF(N45="FIX PAY",0,IF(BA45="OLD",AR45/1000*HOME!$F$7,0))) ->  | BE45: =IF(B45="","",IF(N45="VACANT",0,IF(N45="FIX PAY",0,IF(BA45="NEW",AR45/1000*HOME!$F$6,0)))) -> 
M46: =IF(L46="","",INDEX(TPravesh!$U$3:$U$26,MATCH('Emp Data'!L46,TPravesh!$S$3:$S$26,0))) ->  | AC46: =IF(B46="","",IF(AD46="NA","NA",INDEX(TPravesh!$AA$5:$AA$16,MATCH(AD46,TPravesh!$AQ$5:$AQ$16,0)))) ->  | AD46: =IF(B46="","",IF(Q46="","",IF(Q46="NA","NA",INDEX(TPravesh!$AQ$5:$AQ$16,MATCH(Q46,TPravesh!$AA$5:$AA$16,0))))) ->  | AF46: =IF(B46="","",IF(W46="YES",HOME!$C$7,0)) ->  | AG46: =IF(B46="","",IF(S46="YES",HOME!$C$6,0)) ->  | AL46: =IF(B46="","",IF(I46="OLD",VLOOKUP(O46,TPravesh!$B$21:$G$24,4),VLOOKUP(O46,TPravesh!$B$28:$G$29,4))) ->  | AW46: =IF(B46="","",IF(X46="YES",IF(I46="OLD",ROUND(SUM(O46+O46*HOME!$F$6)*50%,0),ROUND(SUM(O46+O46*HOME!$F$6)*50%,0)))) ->  | AX46: =IF(B46="","",IF(X46="YES",IF(I46="OLD",ROUND(SUM(AO46+AO46*HOME!$F$6)*50%,0),ROUND(SUM(AO46+AO46*HOME!$F$6)*50%,0)))) ->  | BB46: =IF(B46="","",IF(N46="FIX PAY",0,IF(BA46="OLD",AQ46/1000*HOME!$F$7,0))) ->  | BC46: =IF(B46="","",IF(N46="VACANT",0,IF(N46="FIX PAY",0,IF(BA46="NEW",AQ46/1000*HOME!$F$6,0)))) ->  | BD46: =IF(B46="","",IF(N46="FIX PAY",0,IF(BA46="OLD",AR46/1000*HOME!$F$7,0))) ->  | BE46: =IF(B46="","",IF(N46="VACANT",0,IF(N46="FIX PAY",0,IF(BA46="NEW",AR46/1000*HOME!$F$6,0)))) -> 
M47: =IF(L47="","",INDEX(TPravesh!$U$3:$U$26,MATCH('Emp Data'!L47,TPravesh!$S$3:$S$26,0))) ->  | AC47: =IF(B47="","",IF(AD47="NA","NA",INDEX(TPravesh!$AA$5:$AA$16,MATCH(AD47,TPravesh!$AQ$5:$AQ$16,0)))) ->  | AD47: =IF(B47="","",IF(Q47="","",IF(Q47="NA","NA",INDEX(TPravesh!$AQ$5:$AQ$16,MATCH(Q47,TPravesh!$AA$5:$AA$16,0))))) ->  | AF47: =IF(B47="","",IF(W47="YES",HOME!$C$7,0)) ->  | AG47: =IF(B47="","",IF(S47="YES",HOME!$C$6,0)) ->  | AL47: =IF(B47="","",IF(I47="OLD",VLOOKUP(O47,TPravesh!$B$21:$G$24,4),VLOOKUP(O47,TPravesh!$B$28:$G$29,4))) ->  | AW47: =IF(B47="","",IF(X47="YES",IF(I47="OLD",ROUND(SUM(O47+O47*HOME!$F$6)*50%,0),ROUND(SUM(O47+O47*HOME!$F$6)*50%,0)))) ->  | AX47: =IF(B47="","",IF(X47="YES",IF(I47="OLD",ROUND(SUM(AO47+AO47*HOME!$F$6)*50%,0),ROUND(SUM(AO47+AO47*HOME!$F$6)*50%,0)))) ->  | BB47: =IF(B47="","",IF(N47="FIX PAY",0,IF(BA47="OLD",AQ47/1000*HOME!$F$7,0))) ->  | BC47: =IF(B47="","",IF(N47="VACANT",0,IF(N47="FIX PAY",0,IF(BA47="NEW",AQ47/1000*HOME!$F$6,0)))) ->  | BD47: =IF(B47="","",IF(N47="FIX PAY",0,IF(BA47="OLD",AR47/1000*HOME!$F$7,0))) ->  | BE47: =IF(B47="","",IF(N47="VACANT",0,IF(N47="FIX PAY",0,IF(BA47="NEW",AR47/1000*HOME!$F$6,0)))) -> 
M48: =IF(L48="","",INDEX(TPravesh!$U$3:$U$26,MATCH('Emp Data'!L48,TPravesh!$S$3:$S$26,0))) ->  | AC48: =IF(B48="","",IF(AD48="NA","NA",INDEX(TPravesh!$AA$5:$AA$16,MATCH(AD48,TPravesh!$AQ$5:$AQ$16,0)))) ->  | AD48: =IF(B48="","",IF(Q48="","",IF(Q48="NA","NA",INDEX(TPravesh!$AQ$5:$AQ$16,MATCH(Q48,TPravesh!$AA$5:$AA$16,0))))) ->  | AF48: =IF(B48="","",IF(W48="YES",HOME!$C$7,0)) ->  | AG48: =IF(B48="","",IF(S48="YES",HOME!$C$6,0)) ->  | AL48: =IF(B48="","",IF(I48="OLD",VLOOKUP(O48,TPravesh!$B$21:$G$24,4),VLOOKUP(O48,TPravesh!$B$28:$G$29,4))) ->  | AW48: =IF(B48="","",IF(X48="YES",IF(I48="OLD",ROUND(SUM(O48+O48*HOME!$F$6)*50%,0),ROUND(SUM(O48+O48*HOME!$F$6)*50%,0)))) ->  | AX48: =IF(B48="","",IF(X48="YES",IF(I48="OLD",ROUND(SUM(AO48+AO48*HOME!$F$6)*50%,0),ROUND(SUM(AO48+AO48*HOME!$F$6)*50%,0)))) ->  | BB48: =IF(B48="","",IF(N48="FIX PAY",0,IF(BA48="OLD",AQ48/1000*HOME!$F$7,0))) ->  | BC48: =IF(B48="","",IF(N48="VACANT",0,IF(N48="FIX PAY",0,IF(BA48="NEW",AQ48/1000*HOME!$F$6,0)))) ->  | BD48: =IF(B48="","",IF(N48="FIX PAY",0,IF(BA48="OLD",AR48/1000*HOME!$F$7,0))) ->  | BE48: =IF(B48="","",IF(N48="VACANT",0,IF(N48="FIX PAY",0,IF(BA48="NEW",AR48/1000*HOME!$F$6,0)))) -> 
M49: =IF(L49="","",INDEX(TPravesh!$U$3:$U$26,MATCH('Emp Data'!L49,TPravesh!$S$3:$S$26,0))) ->  | AC49: =IF(B49="","",IF(AD49="NA","NA",INDEX(TPravesh!$AA$5:$AA$16,MATCH(AD49,TPravesh!$AQ$5:$AQ$16,0)))) ->  | AD49: =IF(B49="","",IF(Q49="","",IF(Q49="NA","NA",INDEX(TPravesh!$AQ$5:$AQ$16,MATCH(Q49,TPravesh!$AA$5:$AA$16,0))))) ->  | AF49: =IF(B49="","",IF(W49="YES",HOME!$C$7,0)) ->  | AG49: =IF(B49="","",IF(S49="YES",HOME!$C$6,0)) ->  | AL49: =IF(B49="","",IF(I49="OLD",VLOOKUP(O49,TPravesh!$B$21:$G$24,4),VLOOKUP(O49,TPravesh!$B$28:$G$29,4))) ->  | AW49: =IF(B49="","",IF(X49="YES",IF(I49="OLD",ROUND(SUM(O49+O49*HOME!$F$6)*50%,0),ROUND(SUM(O49+O49*HOME!$F$6)*50%,0)))) ->  | AX49: =IF(B49="","",IF(X49="YES",IF(I49="OLD",ROUND(SUM(AO49+AO49*HOME!$F$6)*50%,0),ROUND(SUM(AO49+AO49*HOME!$F$6)*50%,0)))) ->  | BB49: =IF(B49="","",IF(N49="FIX PAY",0,IF(BA49="OLD",AQ49/1000*HOME!$F$7,0))) ->  | BC49: =IF(B49="","",IF(N49="VACANT",0,IF(N49="FIX PAY",0,IF(BA49="NEW",AQ49/1000*HOME!$F$6,0)))) ->  | BD49: =IF(B49="","",IF(N49="FIX PAY",0,IF(BA49="OLD",AR49/1000*HOME!$F$7,0))) ->  | BE49: =IF(B49="","",IF(N49="VACANT",0,IF(N49="FIX PAY",0,IF(BA49="NEW",AR49/1000*HOME!$F$6,0)))) -> 
M50: =IF(L50="","",INDEX(TPravesh!$U$3:$U$26,MATCH('Emp Data'!L50,TPravesh!$S$3:$S$26,0))) ->  | AC50: =IF(B50="","",IF(AD50="NA","NA",INDEX(TPravesh!$AA$5:$AA$16,MATCH(AD50,TPravesh!$AQ$5:$AQ$16,0)))) ->  | AD50: =IF(B50="","",IF(Q50="","",IF(Q50="NA","NA",INDEX(TPravesh!$AQ$5:$AQ$16,MATCH(Q50,TPravesh!$AA$5:$AA$16,0))))) ->  | AF50: =IF(B50="","",IF(W50="YES",HOME!$C$7,0)) ->  | AG50: =IF(B50="","",IF(S50="YES",HOME!$C$6,0)) ->  | AL50: =IF(B50="","",IF(I50="OLD",VLOOKUP(O50,TPravesh!$B$21:$G$24,4),VLOOKUP(O50,TPravesh!$B$28:$G$29,4))) ->  | AW50: =IF(B50="","",IF(X50="YES",IF(I50="OLD",ROUND(SUM(O50+O50*HOME!$F$6)*50%,0),ROUND(SUM(O50+O50*HOME!$F$6)*50%,0)))) ->  | AX50: =IF(B50="","",IF(X50="YES",IF(I50="OLD",ROUND(SUM(AO50+AO50*HOME!$F$6)*50%,0),ROUND(SUM(AO50+AO50*HOME!$F$6)*50%,0)))) ->  | BB50: =IF(B50="","",IF(N50="FIX PAY",0,IF(BA50="OLD",AQ50/1000*HOME!$F$7,0))) ->  | BC50: =IF(B50="","",IF(N50="VACANT",0,IF(N50="FIX PAY",0,IF(BA50="NEW",AQ50/1000*HOME!$F$6,0)))) ->  | BD50: =IF(B50="","",IF(N50="FIX PAY",0,IF(BA50="OLD",AR50/1000*HOME!$F$7,0))) ->  | BE50: =IF(B50="","",IF(N50="VACANT",0,IF(N50="FIX PAY",0,IF(BA50="NEW",AR50/1000*HOME!$F$6,0)))) -> 
M51: =IF(L51="","",INDEX(TPravesh!$U$3:$U$26,MATCH('Emp Data'!L51,TPravesh!$S$3:$S$26,0))) ->  | AC51: =IF(B51="","",IF(AD51="NA","NA",INDEX(TPravesh!$AA$5:$AA$16,MATCH(AD51,TPravesh!$AQ$5:$AQ$16,0)))) ->  | AD51: =IF(B51="","",IF(Q51="","",IF(Q51="NA","NA",INDEX(TPravesh!$AQ$5:$AQ$16,MATCH(Q51,TPravesh!$AA$5:$AA$16,0))))) ->  | AF51: =IF(B51="","",IF(W51="YES",HOME!$C$7,0)) ->  | AG51: =IF(B51="","",IF(S51="YES",HOME!$C$6,0)) ->  | AL51: =IF(B51="","",IF(I51="OLD",VLOOKUP(O51,TPravesh!$B$21:$G$24,4),VLOOKUP(O51,TPravesh!$B$28:$G$29,4))) ->  | AW51: =IF(B51="","",IF(X51="YES",IF(I51="OLD",ROUND(SUM(O51+O51*HOME!$F$6)*50%,0),ROUND(SUM(O51+O51*HOME!$F$6)*50%,0)))) ->  | AX51: =IF(B51="","",IF(X51="YES",IF(I51="OLD",ROUND(SUM(AO51+AO51*HOME!$F$6)*50%,0),ROUND(SUM(AO51+AO51*HOME!$F$6)*50%,0)))) ->  | BB51: =IF(B51="","",IF(N51="FIX PAY",0,IF(BA51="OLD",AQ51/1000*HOME!$F$7,0))) ->  | BC51: =IF(B51="","",IF(N51="VACANT",0,IF(N51="FIX PAY",0,IF(BA51="NEW",AQ51/1000*HOME!$F$6,0)))) ->  | BD51: =IF(B51="","",IF(N51="FIX PAY",0,IF(BA51="OLD",AR51/1000*HOME!$F$7,0))) ->  | BE51: =IF(B51="","",IF(N51="VACANT",0,IF(N51="FIX PAY",0,IF(BA51="NEW",AR51/1000*HOME!$F$6,0)))) -> 
M52: =IF(L52="","",INDEX(TPravesh!$U$3:$U$26,MATCH('Emp Data'!L52,TPravesh!$S$3:$S$26,0))) ->  | AC52: =IF(B52="","",IF(AD52="NA","NA",INDEX(TPravesh!$AA$5:$AA$16,MATCH(AD52,TPravesh!$AQ$5:$AQ$16,0)))) ->  | AD52: =IF(B52="","",IF(Q52="","",IF(Q52="NA","NA",INDEX(TPravesh!$AQ$5:$AQ$16,MATCH(Q52,TPravesh!$AA$5:$AA$16,0))))) ->  | AF52: =IF(B52="","",IF(W52="YES",HOME!$C$7,0)) ->  | AG52: =IF(B52="","",IF(S52="YES",HOME!$C$6,0)) ->  | AL52: =IF(B52="","",IF(I52="OLD",VLOOKUP(O52,TPravesh!$B$21:$G$24,4),VLOOKUP(O52,TPravesh!$B$28:$G$29,4))) ->  | AW52: =IF(B52="","",IF(X52="YES",IF(I52="OLD",ROUND(SUM(O52+O52*HOME!$F$6)*50%,0),ROUND(SUM(O52+O52*HOME!$F$6)*50%,0)))) ->  | AX52: =IF(B52="","",IF(X52="YES",IF(I52="OLD",ROUND(SUM(AO52+AO52*HOME!$F$6)*50%,0),ROUND(SUM(AO52+AO52*HOME!$F$6)*50%,0)))) ->  | BB52: =IF(B52="","",IF(N52="FIX PAY",0,IF(BA52="OLD",AQ52/1000*HOME!$F$7,0))) ->  | BC52: =IF(B52="","",IF(N52="VACANT",0,IF(N52="FIX PAY",0,IF(BA52="NEW",AQ52/1000*HOME!$F$6,0)))) ->  | BD52: =IF(B52="","",IF(N52="FIX PAY",0,IF(BA52="OLD",AR52/1000*HOME!$F$7,0))) ->  | BE52: =IF(B52="","",IF(N52="VACANT",0,IF(N52="FIX PAY",0,IF(BA52="NEW",AR52/1000*HOME!$F$6,0)))) -> 
M53: =IF(L53="","",INDEX(TPravesh!$U$3:$U$26,MATCH('Emp Data'!L53,TPravesh!$S$3:$S$26,0))) ->  | AC53: =IF(B53="","",IF(AD53="NA","NA",INDEX(TPravesh!$AA$5:$AA$16,MATCH(AD53,TPravesh!$AQ$5:$AQ$16,0)))) ->  | AD53: =IF(B53="","",IF(Q53="","",IF(Q53="NA","NA",INDEX(TPravesh!$AQ$5:$AQ$16,MATCH(Q53,TPravesh!$AA$5:$AA$16,0))))) ->  | AF53: =IF(B53="","",IF(W53="YES",HOME!$C$7,0)) ->  | AG53: =IF(B53="","",IF(S53="YES",HOME!$C$6,0)) ->  | AL53: =IF(B53="","",IF(I53="OLD",VLOOKUP(O53,TPravesh!$B$21:$G$24,4),VLOOKUP(O53,TPravesh!$B$28:$G$29,4))) ->  | AW53: =IF(B53="","",IF(X53="YES",IF(I53="OLD",ROUND(SUM(O53+O53*HOME!$F$6)*50%,0),ROUND(SUM(O53+O53*HOME!$F$6)*50%,0)))) ->  | AX53: =IF(B53="","",IF(X53="YES",IF(I53="OLD",ROUND(SUM(AO53+AO53*HOME!$F$6)*50%,0),ROUND(SUM(AO53+AO53*HOME!$F$6)*50%,0)))) ->  | BB53: =IF(B53="","",IF(N53="FIX PAY",0,IF(BA53="OLD",AQ53/1000*HOME!$F$7,0))) ->  | BC53: =IF(B53="","",IF(N53="VACANT",0,IF(N53="FIX PAY",0,IF(BA53="NEW",AQ53/1000*HOME!$F$6,0)))) ->  | BD53: =IF(B53="","",IF(N53="FIX PAY",0,IF(BA53="OLD",AR53/1000*HOME!$F$7,0))) ->  | BE53: =IF(B53="","",IF(N53="VACANT",0,IF(N53="FIX PAY",0,IF(BA53="NEW",AR53/1000*HOME!$F$6,0)))) -> 
M54: =IF(L54="","",INDEX(TPravesh!$U$3:$U$26,MATCH('Emp Data'!L54,TPravesh!$S$3:$S$26,0))) ->  | AC54: =IF(B54="","",IF(AD54="NA","NA",INDEX(TPravesh!$AA$5:$AA$16,MATCH(AD54,TPravesh!$AQ$5:$AQ$16,0)))) ->  | AD54: =IF(B54="","",IF(Q54="","",IF(Q54="NA","NA",INDEX(TPravesh!$AQ$5:$AQ$16,MATCH(Q54,TPravesh!$AA$5:$AA$16,0))))) ->  | AF54: =IF(B54="","",IF(W54="YES",HOME!$C$7,0)) ->  | AG54: =IF(B54="","",IF(S54="YES",HOME!$C$6,0)) ->  | AL54: =IF(B54="","",IF(I54="OLD",VLOOKUP(O54,TPravesh!$B$21:$G$24,4),VLOOKUP(O54,TPravesh!$B$28:$G$29,4))) ->  | AW54: =IF(B54="","",IF(X54="YES",IF(I54="OLD",ROUND(SUM(O54+O54*HOME!$F$6)*50%,0),ROUND(SUM(O54+O54*HOME!$F$6)*50%,0)))) ->  | AX54: =IF(B54="","",IF(X54="YES",IF(I54="OLD",ROUND(SUM(AO54+AO54*HOME!$F$6)*50%,0),ROUND(SUM(AO54+AO54*HOME!$F$6)*50%,0)))) ->  | BB54: =IF(B54="","",IF(N54="FIX PAY",0,IF(BA54="OLD",AQ54/1000*HOME!$F$7,0))) ->  | BC54: =IF(B54="","",IF(N54="VACANT",0,IF(N54="FIX PAY",0,IF(BA54="NEW",AQ54/1000*HOME!$F$6,0)))) ->  | BD54: =IF(B54="","",IF(N54="FIX PAY",0,IF(BA54="OLD",AR54/1000*HOME!$F$7,0))) ->  | BE54: =IF(B54="","",IF(N54="VACANT",0,IF(N54="FIX PAY",0,IF(BA54="NEW",AR54/1000*HOME!$F$6,0)))) -> 
M55: =IF(L55="","",INDEX(TPravesh!$U$3:$U$26,MATCH('Emp Data'!L55,TPravesh!$S$3:$S$26,0))) ->  | AC55: =IF(B55="","",IF(AD55="NA","NA",INDEX(TPravesh!$AA$5:$AA$16,MATCH(AD55,TPravesh!$AQ$5:$AQ$16,0)))) ->  | AD55: =IF(B55="","",IF(Q55="","",IF(Q55="NA","NA",INDEX(TPravesh!$AQ$5:$AQ$16,MATCH(Q55,TPravesh!$AA$5:$AA$16,0))))) ->  | AF55: =IF(B55="","",IF(W55="YES",HOME!$C$7,0)) ->  | AG55: =IF(B55="","",IF(S55="YES",HOME!$C$6,0)) ->  | AL55: =IF(B55="","",IF(I55="OLD",VLOOKUP(O55,TPravesh!$B$21:$G$24,4),VLOOKUP(O55,TPravesh!$B$28:$G$29,4))) ->  | AW55: =IF(B55="","",IF(X55="YES",IF(I55="OLD",ROUND(SUM(O55+O55*HOME!$F$6)*50%,0),ROUND(SUM(O55+O55*HOME!$F$6)*50%,0)))) ->  | AX55: =IF(B55="","",IF(X55="YES",IF(I55="OLD",ROUND(SUM(AO55+AO55*HOME!$F$6)*50%,0),ROUND(SUM(AO55+AO55*HOME!$F$6)*50%,0)))) ->  | BB55: =IF(B55="","",IF(N55="FIX PAY",0,IF(BA55="OLD",AQ55/1000*HOME!$F$7,0))) ->  | BC55: =IF(B55="","",IF(N55="VACANT",0,IF(N55="FIX PAY",0,IF(BA55="NEW",AQ55/1000*HOME!$F$6,0)))) ->  | BD55: =IF(B55="","",IF(N55="FIX PAY",0,IF(BA55="OLD",AR55/1000*HOME!$F$7,0))) ->  | BE55: =IF(B55="","",IF(N55="VACANT",0,IF(N55="FIX PAY",0,IF(BA55="NEW",AR55/1000*HOME!$F$6,0)))) -> 
M56: =IF(L56="","",INDEX(TPravesh!$U$3:$U$26,MATCH('Emp Data'!L56,TPravesh!$S$3:$S$26,0))) ->  | AC56: =IF(B56="","",IF(AD56="NA","NA",INDEX(TPravesh!$AA$5:$AA$16,MATCH(AD56,TPravesh!$AQ$5:$AQ$16,0)))) ->  | AD56: =IF(B56="","",IF(Q56="","",IF(Q56="NA","NA",INDEX(TPravesh!$AQ$5:$AQ$16,MATCH(Q56,TPravesh!$AA$5:$AA$16,0))))) ->  | AF56: =IF(B56="","",IF(W56="YES",HOME!$C$7,0)) ->  | AG56: =IF(B56="","",IF(S56="YES",HOME!$C$6,0)) ->  | AL56: =IF(B56="","",IF(I56="OLD",VLOOKUP(O56,TPravesh!$B$21:$G$24,4),VLOOKUP(O56,TPravesh!$B$28:$G$29,4))) ->  | AW56: =IF(B56="","",IF(X56="YES",IF(I56="OLD",ROUND(SUM(O56+O56*HOME!$F$6)*50%,0),ROUND(SUM(O56+O56*HOME!$F$6)*50%,0)))) ->  | AX56: =IF(B56="","",IF(X56="YES",IF(I56="OLD",ROUND(SUM(AO56+AO56*HOME!$F$6)*50%,0),ROUND(SUM(AO56+AO56*HOME!$F$6)*50%,0)))) ->  | BB56: =IF(B56="","",IF(N56="FIX PAY",0,IF(BA56="OLD",AQ56/1000*HOME!$F$7,0))) ->  | BC56: =IF(B56="","",IF(N56="VACANT",0,IF(N56="FIX PAY",0,IF(BA56="NEW",AQ56/1000*HOME!$F$6,0)))) ->  | BD56: =IF(B56="","",IF(N56="FIX PAY",0,IF(BA56="OLD",AR56/1000*HOME!$F$7,0))) ->  | BE56: =IF(B56="","",IF(N56="VACANT",0,IF(N56="FIX PAY",0,IF(BA56="NEW",AR56/1000*HOME!$F$6,0)))) -> 
M57: =IF(L57="","",INDEX(TPravesh!$U$3:$U$26,MATCH('Emp Data'!L57,TPravesh!$S$3:$S$26,0))) ->  | AC57: =IF(B57="","",IF(AD57="NA","NA",INDEX(TPravesh!$AA$5:$AA$16,MATCH(AD57,TPravesh!$AQ$5:$AQ$16,0)))) ->  | AD57: =IF(B57="","",IF(Q57="","",IF(Q57="NA","NA",INDEX(TPravesh!$AQ$5:$AQ$16,MATCH(Q57,TPravesh!$AA$5:$AA$16,0))))) ->  | AF57: =IF(B57="","",IF(W57="YES",HOME!$C$7,0)) ->  | AG57: =IF(B57="","",IF(S57="YES",HOME!$C$6,0)) ->  | AL57: =IF(B57="","",IF(I57="OLD",VLOOKUP(O57,TPravesh!$B$21:$G$24,4),VLOOKUP(O57,TPravesh!$B$28:$G$29,4))) ->  | AW57: =IF(B57="","",IF(X57="YES",IF(I57="OLD",ROUND(SUM(O57+O57*HOME!$F$6)*50%,0),ROUND(SUM(O57+O57*HOME!$F$6)*50%,0)))) ->  | AX57: =IF(B57="","",IF(X57="YES",IF(I57="OLD",ROUND(SUM(AO57+AO57*HOME!$F$6)*50%,0),ROUND(SUM(AO57+AO57*HOME!$F$6)*50%,0)))) ->  | BB57: =IF(B57="","",IF(N57="FIX PAY",0,IF(BA57="OLD",AQ57/1000*HOME!$F$7,0))) ->  | BC57: =IF(B57="","",IF(N57="VACANT",0,IF(N57="FIX PAY",0,IF(BA57="NEW",AQ57/1000*HOME!$F$6,0)))) ->  | BD57: =IF(B57="","",IF(N57="FIX PAY",0,IF(BA57="OLD",AR57/1000*HOME!$F$7,0))) ->  | BE57: =IF(B57="","",IF(N57="VACANT",0,IF(N57="FIX PAY",0,IF(BA57="NEW",AR57/1000*HOME!$F$6,0)))) -> 
M58: =IF(L58="","",INDEX(TPravesh!$U$3:$U$26,MATCH('Emp Data'!L58,TPravesh!$S$3:$S$26,0))) ->  | AC58: =IF(B58="","",IF(AD58="NA","NA",INDEX(TPravesh!$AA$5:$AA$16,MATCH(AD58,TPravesh!$AQ$5:$AQ$16,0)))) ->  | AD58: =IF(B58="","",IF(Q58="","",IF(Q58="NA","NA",INDEX(TPravesh!$AQ$5:$AQ$16,MATCH(Q58,TPravesh!$AA$5:$AA$16,0))))) ->  | AF58: =IF(B58="","",IF(W58="YES",HOME!$C$7,0)) ->  | AG58: =IF(B58="","",IF(S58="YES",HOME!$C$6,0)) ->  | AL58: =IF(B58="","",IF(I58="OLD",VLOOKUP(O58,TPravesh!$B$21:$G$24,4),VLOOKUP(O58,TPravesh!$B$28:$G$29,4))) ->  | AW58: =IF(B58="","",IF(X58="YES",IF(I58="OLD",ROUND(SUM(O58+O58*HOME!$F$6)*50%,0),ROUND(SUM(O58+O58*HOME!$F$6)*50%,0)))) ->  | AX58: =IF(B58="","",IF(X58="YES",IF(I58="OLD",ROUND(SUM(AO58+AO58*HOME!$F$6)*50%,0),ROUND(SUM(AO58+AO58*HOME!$F$6)*50%,0)))) ->  | BB58: =IF(B58="","",IF(N58="FIX PAY",0,IF(BA58="OLD",AQ58/1000*HOME!$F$7,0))) ->  | BC58: =IF(B58="","",IF(N58="VACANT",0,IF(N58="FIX PAY",0,IF(BA58="NEW",AQ58/1000*HOME!$F$6,0)))) ->  | BD58: =IF(B58="","",IF(N58="FIX PAY",0,IF(BA58="OLD",AR58/1000*HOME!$F$7,0))) ->  | BE58: =IF(B58="","",IF(N58="VACANT",0,IF(N58="FIX PAY",0,IF(BA58="NEW",AR58/1000*HOME!$F$6,0)))) -> 
M59: =IF(L59="","",INDEX(TPravesh!$U$3:$U$26,MATCH('Emp Data'!L59,TPravesh!$S$3:$S$26,0))) ->  | AC59: =IF(B59="","",IF(AD59="NA","NA",INDEX(TPravesh!$AA$5:$AA$16,MATCH(AD59,TPravesh!$AQ$5:$AQ$16,0)))) ->  | AD59: =IF(B59="","",IF(Q59="","",IF(Q59="NA","NA",INDEX(TPravesh!$AQ$5:$AQ$16,MATCH(Q59,TPravesh!$AA$5:$AA$16,0))))) ->  | AF59: =IF(B59="","",IF(W59="YES",HOME!$C$7,0)) ->  | AG59: =IF(B59="","",IF(S59="YES",HOME!$C$6,0)) ->  | AL59: =IF(B59="","",IF(I59="OLD",VLOOKUP(O59,TPravesh!$B$21:$G$24,4),VLOOKUP(O59,TPravesh!$B$28:$G$29,4))) ->  | AW59: =IF(B59="","",IF(X59="YES",IF(I59="OLD",ROUND(SUM(O59+O59*HOME!$F$6)*50%,0),ROUND(SUM(O59+O59*HOME!$F$6)*50%,0)))) ->  | AX59: =IF(B59="","",IF(X59="YES",IF(I59="OLD",ROUND(SUM(AO59+AO59*HOME!$F$6)*50%,0),ROUND(SUM(AO59+AO59*HOME!$F$6)*50%,0)))) ->  | BB59: =IF(B59="","",IF(N59="FIX PAY",0,IF(BA59="OLD",AQ59/1000*HOME!$F$7,0))) ->  | BC59: =IF(B59="","",IF(N59="VACANT",0,IF(N59="FIX PAY",0,IF(BA59="NEW",AQ59/1000*HOME!$F$6,0)))) ->  | BD59: =IF(B59="","",IF(N59="FIX PAY",0,IF(BA59="OLD",AR59/1000*HOME!$F$7,0))) ->  | BE59: =IF(B59="","",IF(N59="VACANT",0,IF(N59="FIX PAY",0,IF(BA59="NEW",AR59/1000*HOME!$F$6,0)))) -> 
M60: =IF(L60="","",INDEX(TPravesh!$U$3:$U$26,MATCH('Emp Data'!L60,TPravesh!$S$3:$S$26,0))) ->  | AC60: =IF(B60="","",IF(AD60="NA","NA",INDEX(TPravesh!$AA$5:$AA$16,MATCH(AD60,TPravesh!$AQ$5:$AQ$16,0)))) ->  | AD60: =IF(B60="","",IF(Q60="","",IF(Q60="NA","NA",INDEX(TPravesh!$AQ$5:$AQ$16,MATCH(Q60,TPravesh!$AA$5:$AA$16,0))))) ->  | AF60: =IF(B60="","",IF(W60="YES",HOME!$C$7,0)) ->  | AG60: =IF(B60="","",IF(S60="YES",HOME!$C$6,0)) ->  | AL60: =IF(B60="","",IF(I60="OLD",VLOOKUP(O60,TPravesh!$B$21:$G$24,4),VLOOKUP(O60,TPravesh!$B$28:$G$29,4))) ->  | AW60: =IF(B60="","",IF(X60="YES",IF(I60="OLD",ROUND(SUM(O60+O60*HOME!$F$6)*50%,0),ROUND(SUM(O60+O60*HOME!$F$6)*50%,0)))) ->  | AX60: =IF(B60="","",IF(X60="YES",IF(I60="OLD",ROUND(SUM(AO60+AO60*HOME!$F$6)*50%,0),ROUND(SUM(AO60+AO60*HOME!$F$6)*50%,0)))) ->  | BB60: =IF(B60="","",IF(N60="FIX PAY",0,IF(BA60="OLD",AQ60/1000*HOME!$F$7,0))) ->  | BC60: =IF(B60="","",IF(N60="VACANT",0,IF(N60="FIX PAY",0,IF(BA60="NEW",AQ60/1000*HOME!$F$6,0)))) ->  | BD60: =IF(B60="","",IF(N60="FIX PAY",0,IF(BA60="OLD",AR60/1000*HOME!$F$7,0))) ->  | BE60: =IF(B60="","",IF(N60="VACANT",0,IF(N60="FIX PAY",0,IF(BA60="NEW",AR60/1000*HOME!$F$6,0)))) -> 
M61: =IF(L61="","",INDEX(TPravesh!$U$3:$U$26,MATCH('Emp Data'!L61,TPravesh!$S$3:$S$26,0))) ->  | AC61: =IF(B61="","",IF(AD61="NA","NA",INDEX(TPravesh!$AA$5:$AA$16,MATCH(AD61,TPravesh!$AQ$5:$AQ$16,0)))) ->  | AD61: =IF(B61="","",IF(Q61="","",IF(Q61="NA","NA",INDEX(TPravesh!$AQ$5:$AQ$16,MATCH(Q61,TPravesh!$AA$5:$AA$16,0))))) ->  | AF61: =IF(B61="","",IF(W61="YES",HOME!$C$7,0)) ->  | AG61: =IF(B61="","",IF(S61="YES",HOME!$C$6,0)) ->  | AL61: =IF(B61="","",IF(I61="OLD",VLOOKUP(O61,TPravesh!$B$21:$G$24,4),VLOOKUP(O61,TPravesh!$B$28:$G$29,4))) ->  | AW61: =IF(B61="","",IF(X61="YES",IF(I61="OLD",ROUND(SUM(O61+O61*HOME!$F$6)*50%,0),ROUND(SUM(O61+O61*HOME!$F$6)*50%,0)))) ->  | AX61: =IF(B61="","",IF(X61="YES",IF(I61="OLD",ROUND(SUM(AO61+AO61*HOME!$F$6)*50%,0),ROUND(SUM(AO61+AO61*HOME!$F$6)*50%,0)))) ->  | BB61: =IF(B61="","",IF(N61="FIX PAY",0,IF(BA61="OLD",AQ61/1000*HOME!$F$7,0))) ->  | BC61: =IF(B61="","",IF(N61="VACANT",0,IF(N61="FIX PAY",0,IF(BA61="NEW",AQ61/1000*HOME!$F$6,0)))) ->  | BD61: =IF(B61="","",IF(N61="FIX PAY",0,IF(BA61="OLD",AR61/1000*HOME!$F$7,0))) ->  | BE61: =IF(B61="","",IF(N61="VACANT",0,IF(N61="FIX PAY",0,IF(BA61="NEW",AR61/1000*HOME!$F$6,0)))) -> 
M62: =IF(L62="","",INDEX(TPravesh!$U$3:$U$26,MATCH('Emp Data'!L62,TPravesh!$S$3:$S$26,0))) ->  | AC62: =IF(B62="","",IF(AD62="NA","NA",INDEX(TPravesh!$AA$5:$AA$16,MATCH(AD62,TPravesh!$AQ$5:$AQ$16,0)))) ->  | AD62: =IF(B62="","",IF(Q62="","",IF(Q62="NA","NA",INDEX(TPravesh!$AQ$5:$AQ$16,MATCH(Q62,TPravesh!$AA$5:$AA$16,0))))) ->  | AF62: =IF(B62="","",IF(W62="YES",HOME!$C$7,0)) ->  | AG62: =IF(B62="","",IF(S62="YES",HOME!$C$6,0)) ->  | AL62: =IF(B62="","",IF(I62="OLD",VLOOKUP(O62,TPravesh!$B$21:$G$24,4),VLOOKUP(O62,TPravesh!$B$28:$G$29,4))) ->  | AW62: =IF(B62="","",IF(X62="YES",IF(I62="OLD",ROUND(SUM(O62+O62*HOME!$F$6)*50%,0),ROUND(SUM(O62+O62*HOME!$F$6)*50%,0)))) ->  | AX62: =IF(B62="","",IF(X62="YES",IF(I62="OLD",ROUND(SUM(AO62+AO62*HOME!$F$6)*50%,0),ROUND(SUM(AO62+AO62*HOME!$F$6)*50%,0)))) ->  | BB62: =IF(B62="","",IF(N62="FIX PAY",0,IF(BA62="OLD",AQ62/1000*HOME!$F$7,0))) ->  | BC62: =IF(B62="","",IF(N62="VACANT",0,IF(N62="FIX PAY",0,IF(BA62="NEW",AQ62/1000*HOME!$F$6,0)))) ->  | BD62: =IF(B62="","",IF(N62="FIX PAY",0,IF(BA62="OLD",AR62/1000*HOME!$F$7,0))) ->  | BE62: =IF(B62="","",IF(N62="VACANT",0,IF(N62="FIX PAY",0,IF(BA62="NEW",AR62/1000*HOME!$F$6,0)))) -> 
M63: =IF(L63="","",INDEX(TPravesh!$U$3:$U$26,MATCH('Emp Data'!L63,TPravesh!$S$3:$S$26,0))) ->  | AC63: =IF(B63="","",IF(AD63="NA","NA",INDEX(TPravesh!$AA$5:$AA$16,MATCH(AD63,TPravesh!$AQ$5:$AQ$16,0)))) ->  | AD63: =IF(B63="","",IF(Q63="","",IF(Q63="NA","NA",INDEX(TPravesh!$AQ$5:$AQ$16,MATCH(Q63,TPravesh!$AA$5:$AA$16,0))))) ->  | AF63: =IF(B63="","",IF(W63="YES",HOME!$C$7,0)) ->  | AG63: =IF(B63="","",IF(S63="YES",HOME!$C$6,0)) ->  | AL63: =IF(B63="","",IF(I63="OLD",VLOOKUP(O63,TPravesh!$B$21:$G$24,4),VLOOKUP(O63,TPravesh!$B$28:$G$29,4))) ->  | AW63: =IF(B63="","",IF(X63="YES",IF(I63="OLD",ROUND(SUM(O63+O63*HOME!$F$6)*50%,0),ROUND(SUM(O63+O63*HOME!$F$6)*50%,0)))) ->  | AX63: =IF(B63="","",IF(X63="YES",IF(I63="OLD",ROUND(SUM(AO63+AO63*HOME!$F$6)*50%,0),ROUND(SUM(AO63+AO63*HOME!$F$6)*50%,0)))) ->  | BB63: =IF(B63="","",IF(N63="FIX PAY",0,IF(BA63="OLD",AQ63/1000*HOME!$F$7,0))) ->  | BC63: =IF(B63="","",IF(N63="VACANT",0,IF(N63="FIX PAY",0,IF(BA63="NEW",AQ63/1000*HOME!$F$6,0)))) ->  | BD63: =IF(B63="","",IF(N63="FIX PAY",0,IF(BA63="OLD",AR63/1000*HOME!$F$7,0))) ->  | BE63: =IF(B63="","",IF(N63="VACANT",0,IF(N63="FIX PAY",0,IF(BA63="NEW",AR63/1000*HOME!$F$6,0)))) -> 
M64: =IF(L64="","",INDEX(TPravesh!$U$3:$U$26,MATCH('Emp Data'!L64,TPravesh!$S$3:$S$26,0))) ->  | AC64: =IF(B64="","",IF(AD64="NA","NA",INDEX(TPravesh!$AA$5:$AA$16,MATCH(AD64,TPravesh!$AQ$5:$AQ$16,0)))) ->  | AD64: =IF(B64="","",IF(Q64="","",IF(Q64="NA","NA",INDEX(TPravesh!$AQ$5:$AQ$16,MATCH(Q64,TPravesh!$AA$5:$AA$16,0))))) ->  | AF64: =IF(B64="","",IF(W64="YES",HOME!$C$7,0)) ->  | AG64: =IF(B64="","",IF(S64="YES",HOME!$C$6,0)) ->  | AL64: =IF(B64="","",IF(I64="OLD",VLOOKUP(O64,TPravesh!$B$21:$G$24,4),VLOOKUP(O64,TPravesh!$B$28:$G$29,4))) ->  | AW64: =IF(B64="","",IF(X64="YES",IF(I64="OLD",ROUND(SUM(O64+O64*HOME!$F$6)*50%,0),ROUND(SUM(O64+O64*HOME!$F$6)*50%,0)))) ->  | AX64: =IF(B64="","",IF(X64="YES",IF(I64="OLD",ROUND(SUM(AO64+AO64*HOME!$F$6)*50%,0),ROUND(SUM(AO64+AO64*HOME!$F$6)*50%,0)))) ->  | BB64: =IF(B64="","",IF(N64="FIX PAY",0,IF(BA64="OLD",AQ64/1000*HOME!$F$7,0))) ->  | BC64: =IF(B64="","",IF(N64="VACANT",0,IF(N64="FIX PAY",0,IF(BA64="NEW",AQ64/1000*HOME!$F$6,0)))) ->  | BD64: =IF(B64="","",IF(N64="FIX PAY",0,IF(BA64="OLD",AR64/1000*HOME!$F$7,0))) ->  | BE64: =IF(B64="","",IF(N64="VACANT",0,IF(N64="FIX PAY",0,IF(BA64="NEW",AR64/1000*HOME!$F$6,0)))) -> 
M65: =IF(L65="","",INDEX(TPravesh!$U$3:$U$26,MATCH('Emp Data'!L65,TPravesh!$S$3:$S$26,0))) ->  | AC65: =IF(B65="","",IF(AD65="NA","NA",INDEX(TPravesh!$AA$5:$AA$16,MATCH(AD65,TPravesh!$AQ$5:$AQ$16,0)))) ->  | AD65: =IF(B65="","",IF(Q65="","",IF(Q65="NA","NA",INDEX(TPravesh!$AQ$5:$AQ$16,MATCH(Q65,TPravesh!$AA$5:$AA$16,0))))) ->  | AF65: =IF(B65="","",IF(W65="YES",HOME!$C$7,0)) ->  | AG65: =IF(B65="","",IF(S65="YES",HOME!$C$6,0)) ->  | AL65: =IF(B65="","",IF(I65="OLD",VLOOKUP(O65,TPravesh!$B$21:$G$24,4),VLOOKUP(O65,TPravesh!$B$28:$G$29,4))) ->  | AW65: =IF(B65="","",IF(X65="YES",IF(I65="OLD",ROUND(SUM(O65+O65*HOME!$F$6)*50%,0),ROUND(SUM(O65+O65*HOME!$F$6)*50%,0)))) ->  | AX65: =IF(B65="","",IF(X65="YES",IF(I65="OLD",ROUND(SUM(AO65+AO65*HOME!$F$6)*50%,0),ROUND(SUM(AO65+AO65*HOME!$F$6)*50%,0)))) ->  | BB65: =IF(B65="","",IF(N65="FIX PAY",0,IF(BA65="OLD",AQ65/1000*HOME!$F$7,0))) ->  | BC65: =IF(B65="","",IF(N65="VACANT",0,IF(N65="FIX PAY",0,IF(BA65="NEW",AQ65/1000*HOME!$F$6,0)))) ->  | BD65: =IF(B65="","",IF(N65="FIX PAY",0,IF(BA65="OLD",AR65/1000*HOME!$F$7,0))) ->  | BE65: =IF(B65="","",IF(N65="VACANT",0,IF(N65="FIX PAY",0,IF(BA65="NEW",AR65/1000*HOME!$F$6,0)))) -> 
M66: =IF(L66="","",INDEX(TPravesh!$U$3:$U$26,MATCH('Emp Data'!L66,TPravesh!$S$3:$S$26,0))) ->  | AC66: =IF(B66="","",IF(AD66="NA","NA",INDEX(TPravesh!$AA$5:$AA$16,MATCH(AD66,TPravesh!$AQ$5:$AQ$16,0)))) ->  | AD66: =IF(B66="","",IF(Q66="","",IF(Q66="NA","NA",INDEX(TPravesh!$AQ$5:$AQ$16,MATCH(Q66,TPravesh!$AA$5:$AA$16,0))))) ->  | AF66: =IF(B66="","",IF(W66="YES",HOME!$C$7,0)) ->  | AG66: =IF(B66="","",IF(S66="YES",HOME!$C$6,0)) ->  | AL66: =IF(B66="","",IF(I66="OLD",VLOOKUP(O66,TPravesh!$B$21:$G$24,4),VLOOKUP(O66,TPravesh!$B$28:$G$29,4))) ->  | AW66: =IF(B66="","",IF(X66="YES",IF(I66="OLD",ROUND(SUM(O66+O66*HOME!$F$6)*50%,0),ROUND(SUM(O66+O66*HOME!$F$6)*50%,0)))) ->  | AX66: =IF(B66="","",IF(X66="YES",IF(I66="OLD",ROUND(SUM(AO66+AO66*HOME!$F$6)*50%,0),ROUND(SUM(AO66+AO66*HOME!$F$6)*50%,0)))) ->  | BB66: =IF(B66="","",IF(N66="FIX PAY",0,IF(BA66="OLD",AQ66/1000*HOME!$F$7,0))) ->  | BC66: =IF(B66="","",IF(N66="VACANT",0,IF(N66="FIX PAY",0,IF(BA66="NEW",AQ66/1000*HOME!$F$6,0)))) ->  | BD66: =IF(B66="","",IF(N66="FIX PAY",0,IF(BA66="OLD",AR66/1000*HOME!$F$7,0))) ->  | BE66: =IF(B66="","",IF(N66="VACANT",0,IF(N66="FIX PAY",0,IF(BA66="NEW",AR66/1000*HOME!$F$6,0)))) -> 
M67: =IF(L67="","",INDEX(TPravesh!$U$3:$U$26,MATCH('Emp Data'!L67,TPravesh!$S$3:$S$26,0))) ->  | AC67: =IF(B67="","",IF(AD67="NA","NA",INDEX(TPravesh!$AA$5:$AA$16,MATCH(AD67,TPravesh!$AQ$5:$AQ$16,0)))) ->  | AD67: =IF(B67="","",IF(Q67="","",IF(Q67="NA","NA",INDEX(TPravesh!$AQ$5:$AQ$16,MATCH(Q67,TPravesh!$AA$5:$AA$16,0))))) ->  | AF67: =IF(B67="","",IF(W67="YES",HOME!$C$7,0)) ->  | AG67: =IF(B67="","",IF(S67="YES",HOME!$C$6,0)) ->  | AL67: =IF(B67="","",IF(I67="OLD",VLOOKUP(O67,TPravesh!$B$21:$G$24,4),VLOOKUP(O67,TPravesh!$B$28:$G$29,4))) ->  | AW67: =IF(B67="","",IF(X67="YES",IF(I67="OLD",ROUND(SUM(O67+O67*HOME!$F$6)*50%,0),ROUND(SUM(O67+O67*HOME!$F$6)*50%,0)))) ->  | AX67: =IF(B67="","",IF(X67="YES",IF(I67="OLD",ROUND(SUM(AO67+AO67*HOME!$F$6)*50%,0),ROUND(SUM(AO67+AO67*HOME!$F$6)*50%,0)))) ->  | BB67: =IF(B67="","",IF(N67="FIX PAY",0,IF(BA67="OLD",AQ67/1000*HOME!$F$7,0))) ->  | BC67: =IF(B67="","",IF(N67="VACANT",0,IF(N67="FIX PAY",0,IF(BA67="NEW",AQ67/1000*HOME!$F$6,0)))) ->  | BD67: =IF(B67="","",IF(N67="FIX PAY",0,IF(BA67="OLD",AR67/1000*HOME!$F$7,0))) ->  | BE67: =IF(B67="","",IF(N67="VACANT",0,IF(N67="FIX PAY",0,IF(BA67="NEW",AR67/1000*HOME!$F$6,0)))) -> 
M68: =IF(L68="","",INDEX(TPravesh!$U$3:$U$26,MATCH('Emp Data'!L68,TPravesh!$S$3:$S$26,0))) ->  | AC68: =IF(B68="","",IF(AD68="NA","NA",INDEX(TPravesh!$AA$5:$AA$16,MATCH(AD68,TPravesh!$AQ$5:$AQ$16,0)))) ->  | AD68: =IF(B68="","",IF(Q68="","",IF(Q68="NA","NA",INDEX(TPravesh!$AQ$5:$AQ$16,MATCH(Q68,TPravesh!$AA$5:$AA$16,0))))) ->  | AF68: =IF(B68="","",IF(W68="YES",HOME!$C$7,0)) ->  | AG68: =IF(B68="","",IF(S68="YES",HOME!$C$6,0)) ->  | AL68: =IF(B68="","",IF(I68="OLD",VLOOKUP(O68,TPravesh!$B$21:$G$24,4),VLOOKUP(O68,TPravesh!$B$28:$G$29,4))) ->  | AW68: =IF(B68="","",IF(X68="YES",IF(I68="OLD",ROUND(SUM(O68+O68*HOME!$F$6)*50%,0),ROUND(SUM(O68+O68*HOME!$F$6)*50%,0)))) ->  | AX68: =IF(B68="","",IF(X68="YES",IF(I68="OLD",ROUND(SUM(AO68+AO68*HOME!$F$6)*50%,0),ROUND(SUM(AO68+AO68*HOME!$F$6)*50%,0)))) ->  | BB68: =IF(B68="","",IF(N68="FIX PAY",0,IF(BA68="OLD",AQ68/1000*HOME!$F$7,0))) ->  | BC68: =IF(B68="","",IF(N68="VACANT",0,IF(N68="FIX PAY",0,IF(BA68="NEW",AQ68/1000*HOME!$F$6,0)))) ->  | BD68: =IF(B68="","",IF(N68="FIX PAY",0,IF(BA68="OLD",AR68/1000*HOME!$F$7,0))) ->  | BE68: =IF(B68="","",IF(N68="VACANT",0,IF(N68="FIX PAY",0,IF(BA68="NEW",AR68/1000*HOME!$F$6,0)))) -> 
M69: =IF(L69="","",INDEX(TPravesh!$U$3:$U$26,MATCH('Emp Data'!L69,TPravesh!$S$3:$S$26,0))) ->  | AC69: =IF(B69="","",IF(AD69="NA","NA",INDEX(TPravesh!$AA$5:$AA$16,MATCH(AD69,TPravesh!$AQ$5:$AQ$16,0)))) ->  | AD69: =IF(B69="","",IF(Q69="","",IF(Q69="NA","NA",INDEX(TPravesh!$AQ$5:$AQ$16,MATCH(Q69,TPravesh!$AA$5:$AA$16,0))))) ->  | AF69: =IF(B69="","",IF(W69="YES",HOME!$C$7,0)) ->  | AG69: =IF(B69="","",IF(S69="YES",HOME!$C$6,0)) ->  | AL69: =IF(B69="","",IF(I69="OLD",VLOOKUP(O69,TPravesh!$B$21:$G$24,4),VLOOKUP(O69,TPravesh!$B$28:$G$29,4))) ->  | AW69: =IF(B69="","",IF(X69="YES",IF(I69="OLD",ROUND(SUM(O69+O69*HOME!$F$6)*50%,0),ROUND(SUM(O69+O69*HOME!$F$6)*50%,0)))) ->  | AX69: =IF(B69="","",IF(X69="YES",IF(I69="OLD",ROUND(SUM(AO69+AO69*HOME!$F$6)*50%,0),ROUND(SUM(AO69+AO69*HOME!$F$6)*50%,0)))) ->  | BB69: =IF(B69="","",IF(N69="FIX PAY",0,IF(BA69="OLD",AQ69/1000*HOME!$F$7,0))) ->  | BC69: =IF(B69="","",IF(N69="VACANT",0,IF(N69="FIX PAY",0,IF(BA69="NEW",AQ69/1000*HOME!$F$6,0)))) ->  | BD69: =IF(B69="","",IF(N69="FIX PAY",0,IF(BA69="OLD",AR69/1000*HOME!$F$7,0))) ->  | BE69: =IF(B69="","",IF(N69="VACANT",0,IF(N69="FIX PAY",0,IF(BA69="NEW",AR69/1000*HOME!$F$6,0)))) -> 
M70: =IF(L70="","",INDEX(TPravesh!$U$3:$U$26,MATCH('Emp Data'!L70,TPravesh!$S$3:$S$26,0))) ->  | AC70: =IF(B70="","",IF(AD70="NA","NA",INDEX(TPravesh!$AA$5:$AA$16,MATCH(AD70,TPravesh!$AQ$5:$AQ$16,0)))) ->  | AD70: =IF(B70="","",IF(Q70="","",IF(Q70="NA","NA",INDEX(TPravesh!$AQ$5:$AQ$16,MATCH(Q70,TPravesh!$AA$5:$AA$16,0))))) ->  | AF70: =IF(B70="","",IF(W70="YES",HOME!$C$7,0)) ->  | AG70: =IF(B70="","",IF(S70="YES",HOME!$C$6,0)) ->  | AL70: =IF(B70="","",IF(I70="OLD",VLOOKUP(O70,TPravesh!$B$21:$G$24,4),VLOOKUP(O70,TPravesh!$B$28:$G$29,4))) ->  | AW70: =IF(B70="","",IF(X70="YES",IF(I70="OLD",ROUND(SUM(O70+O70*HOME!$F$6)*50%,0),ROUND(SUM(O70+O70*HOME!$F$6)*50%,0)))) ->  | AX70: =IF(B70="","",IF(X70="YES",IF(I70="OLD",ROUND(SUM(AO70+AO70*HOME!$F$6)*50%,0),ROUND(SUM(AO70+AO70*HOME!$F$6)*50%,0)))) ->  | BB70: =IF(B70="","",IF(N70="FIX PAY",0,IF(BA70="OLD",AQ70/1000*HOME!$F$7,0))) ->  | BC70: =IF(B70="","",IF(N70="VACANT",0,IF(N70="FIX PAY",0,IF(BA70="NEW",AQ70/1000*HOME!$F$6,0)))) ->  | BD70: =IF(B70="","",IF(N70="FIX PAY",0,IF(BA70="OLD",AR70/1000*HOME!$F$7,0))) ->  | BE70: =IF(B70="","",IF(N70="VACANT",0,IF(N70="FIX PAY",0,IF(BA70="NEW",AR70/1000*HOME!$F$6,0)))) -> 
M71: =IF(L71="","",INDEX(TPravesh!$U$3:$U$26,MATCH('Emp Data'!L71,TPravesh!$S$3:$S$26,0))) ->  | AC71: =IF(B71="","",IF(AD71="NA","NA",INDEX(TPravesh!$AA$5:$AA$16,MATCH(AD71,TPravesh!$AQ$5:$AQ$16,0)))) ->  | AD71: =IF(B71="","",IF(Q71="","",IF(Q71="NA","NA",INDEX(TPravesh!$AQ$5:$AQ$16,MATCH(Q71,TPravesh!$AA$5:$AA$16,0))))) ->  | AF71: =IF(B71="","",IF(W71="YES",HOME!$C$7,0)) ->  | AG71: =IF(B71="","",IF(S71="YES",HOME!$C$6,0)) ->  | AL71: =IF(B71="","",IF(I71="OLD",VLOOKUP(O71,TPravesh!$B$21:$G$24,4),VLOOKUP(O71,TPravesh!$B$28:$G$29,4))) ->  | AW71: =IF(B71="","",IF(X71="YES",IF(I71="OLD",ROUND(SUM(O71+O71*HOME!$F$6)*50%,0),ROUND(SUM(O71+O71*HOME!$F$6)*50%,0)))) ->  | AX71: =IF(B71="","",IF(X71="YES",IF(I71="OLD",ROUND(SUM(AO71+AO71*HOME!$F$6)*50%,0),ROUND(SUM(AO71+AO71*HOME!$F$6)*50%,0)))) ->  | BB71: =IF(B71="","",IF(N71="FIX PAY",0,IF(BA71="OLD",AQ71/1000*HOME!$F$7,0))) ->  | BC71: =IF(B71="","",IF(N71="VACANT",0,IF(N71="FIX PAY",0,IF(BA71="NEW",AQ71/1000*HOME!$F$6,0)))) ->  | BD71: =IF(B71="","",IF(N71="FIX PAY",0,IF(BA71="OLD",AR71/1000*HOME!$F$7,0))) ->  | BE71: =IF(B71="","",IF(N71="VACANT",0,IF(N71="FIX PAY",0,IF(BA71="NEW",AR71/1000*HOME!$F$6,0)))) -> 
K72: =MID(J72,25,6) ->  | L72: =IF(I72="NEW",RIGHT(J72,4),"") ->  | M72: =IF(L72="","",INDEX(TPravesh!$U$3:$U$26,MATCH('Emp Data'!L72,TPravesh!$S$3:$S$26,0))) ->  | AC72: =IF(B72="","",IF(AD72="NA","NA",INDEX(TPravesh!$AA$5:$AA$16,MATCH(AD72,TPravesh!$AQ$5:$AQ$16,0)))) ->  | AD72: =IF(B72="","",IF(Q72="","",IF(Q72="NA","NA",INDEX(TPravesh!$AQ$5:$AQ$16,MATCH(Q72,TPravesh!$AA$5:$AA$16,0))))) ->  | AE72: =IF(B72="","",IF(AC72="NA",12,15-AC72)) ->  | AF72: =IF(B72="","",IF(W72="YES",HOME!$C$7,0)) ->  | AG72: =IF(B72="","",IF(S72="YES",HOME!$C$6,0)) ->  | AH72: =IF(B72="","",IF(G72>0,ROUND(AR72/1000*T72*G72/12,0),0)) ->  | AI72: =IF(B72="","",IF(U72="YES",AQ72/1000*T72*G72/12)) ->  | AJ72: =IF(B72="","",IF(U72="YES",AR72/1000*T72*G72/12)) ->  | AK72: =IF(B72="","",IF(G72>0,AH72,AJ72)) ->  | AL72: =IF(B72="","",IF(I72="OLD",VLOOKUP(O72,TPravesh!$B$21:$G$24,4),VLOOKUP(O72,TPravesh!$B$28:$G$29,4))) ->  | AM72: =IF(B72="","",IF(V72="YES",AL72*12,0)) ->  | AN72: =IF(B72="","",IF(AU72>0,AM72,0)) ->  | AO72: =IF(B72="","",IF(K72=0,O72,IF(Q72="NA",O72,IF(I72="OLD",ROUNDDOWN(O72/103%,-1),ROUNDUP(O72/103%,-2))))) ->  | AP72: =IF(B72="","",O72*12) ->  | AQ72: =IF(B72="","",AP72+AU72) ->  | AR72: =IF(B72="","",AO72*(12-AE72)+O72*AE72) ->  | AS72: =IF(B72="","",IF(N72="VACANT",0,AR72*G72/12)) ->  | AT72: =IF(B72="","",IF(Q72="NA",0,IF(I72="OLD",ROUNDUP(AO72*3%,-1),ROUNDDOWN(AO72*3%,-2)))) ->  | AU72: =IF(B72="","",IF(I72="OLD",ROUNDUP(O72*3%,-1)*(AE72),ROUNDDOWN(O72*3%,-2)*AE72)) ->  | AV72: =IF(B72="","",IF(G72>0,0,AW72)) ->  | AW72: =IF(B72="","",IF(X72="YES",IF(I72="OLD",ROUND(SUM(O72+O72*HOME!$F$6)*50%,0),ROUND(SUM(O72+O72*HOME!$F$6)*50%,0)))) ->  | AX72: =IF(B72="","",IF(X72="YES",IF(I72="OLD",ROUND(SUM(AO72+AO72*HOME!$F$6)*50%,0),ROUND(SUM(AO72+AO72*HOME!$F$6)*50%,0)))) ->  | BA72: =IF(B72="","",I72) ->  | BB72: =IF(B72="","",IF(N72="FIX PAY",0,IF(BA72="OLD",AQ72/1000*HOME!$F$7,0))) ->  | BC72: =IF(B72="","",IF(N72="VACANT",0,IF(N72="FIX PAY",0,IF(BA72="NEW",AQ72/1000*HOME!$F$6,0)))) ->  | BD72: =IF(B72="","",IF(N72="FIX PAY",0,IF(BA72="OLD",AR72/1000*HOME!$F$7,0))) ->  | BE72: =IF(B72="","",IF(N72="VACANT",0,IF(N72="FIX PAY",0,IF(BA72="NEW",AR72/1000*HOME!$F$6,0)))) -> 
M73: =IF(L73="","",INDEX(TPravesh!$U$3:$U$26,MATCH('Emp Data'!L73,TPravesh!$S$3:$S$26,0))) ->  | AC73: =IF(B73="","",IF(AD73="NA","NA",INDEX(TPravesh!$AA$5:$AA$16,MATCH(AD73,TPravesh!$AQ$5:$AQ$16,0)))) ->  | AD73: =IF(B73="","",IF(Q73="","",IF(Q73="NA","NA",INDEX(TPravesh!$AQ$5:$AQ$16,MATCH(Q73,TPravesh!$AA$5:$AA$16,0))))) ->  | AF73: =IF(B73="","",IF(W73="YES",HOME!$C$7,0)) ->  | AG73: =IF(B73="","",IF(S73="YES",HOME!$C$6,0)) ->  | AL73: =IF(B73="","",IF(I73="OLD",VLOOKUP(O73,TPravesh!$B$21:$G$24,4),VLOOKUP(O73,TPravesh!$B$28:$G$29,4))) ->  | AW73: =IF(B73="","",IF(X73="YES",IF(I73="OLD",ROUND(SUM(O73+O73*HOME!$F$6)*50%,0),ROUND(SUM(O73+O73*HOME!$F$6)*50%,0)))) ->  | AX73: =IF(B73="","",IF(X73="YES",IF(I73="OLD",ROUND(SUM(AO73+AO73*HOME!$F$6)*50%,0),ROUND(SUM(AO73+AO73*HOME!$F$6)*50%,0)))) ->  | BB73: =IF(B73="","",IF(N73="FIX PAY",0,IF(BA73="OLD",AQ73/1000*HOME!$F$7,0))) ->  | BC73: =IF(B73="","",IF(N73="VACANT",0,IF(N73="FIX PAY",0,IF(BA73="NEW",AQ73/1000*HOME!$F$6,0)))) ->  | BD73: =IF(B73="","",IF(N73="FIX PAY",0,IF(BA73="OLD",AR73/1000*HOME!$F$7,0))) ->  | BE73: =IF(B73="","",IF(N73="VACANT",0,IF(N73="FIX PAY",0,IF(BA73="NEW",AR73/1000*HOME!$F$6,0)))) -> 
M74: =IF(L74="","",INDEX(TPravesh!$U$3:$U$26,MATCH('Emp Data'!L74,TPravesh!$S$3:$S$26,0))) ->  | AC74: =IF(B74="","",IF(AD74="NA","NA",INDEX(TPravesh!$AA$5:$AA$16,MATCH(AD74,TPravesh!$AQ$5:$AQ$16,0)))) ->  | AD74: =IF(B74="","",IF(Q74="","",IF(Q74="NA","NA",INDEX(TPravesh!$AQ$5:$AQ$16,MATCH(Q74,TPravesh!$AA$5:$AA$16,0))))) ->  | AF74: =IF(B74="","",IF(W74="YES",HOME!$C$7,0)) ->  | AG74: =IF(B74="","",IF(S74="YES",HOME!$C$6,0)) ->  | AL74: =IF(B74="","",IF(I74="OLD",VLOOKUP(O74,TPravesh!$B$21:$G$24,4),VLOOKUP(O74,TPravesh!$B$28:$G$29,4))) ->  | AW74: =IF(B74="","",IF(X74="YES",IF(I74="OLD",ROUND(SUM(O74+O74*HOME!$F$6)*50%,0),ROUND(SUM(O74+O74*HOME!$F$6)*50%,0)))) ->  | AX74: =IF(B74="","",IF(X74="YES",IF(I74="OLD",ROUND(SUM(AO74+AO74*HOME!$F$6)*50%,0),ROUND(SUM(AO74+AO74*HOME!$F$6)*50%,0)))) ->  | BB74: =IF(B74="","",IF(N74="FIX PAY",0,IF(BA74="OLD",AQ74/1000*HOME!$F$7,0))) ->  | BC74: =IF(B74="","",IF(N74="VACANT",0,IF(N74="FIX PAY",0,IF(BA74="NEW",AQ74/1000*HOME!$F$6,0)))) ->  | BD74: =IF(B74="","",IF(N74="FIX PAY",0,IF(BA74="OLD",AR74/1000*HOME!$F$7,0))) ->  | BE74: =IF(B74="","",IF(N74="VACANT",0,IF(N74="FIX PAY",0,IF(BA74="NEW",AR74/1000*HOME!$F$6,0)))) -> 
M75: =IF(L75="","",INDEX(TPravesh!$U$3:$U$26,MATCH('Emp Data'!L75,TPravesh!$S$3:$S$26,0))) ->  | AC75: =IF(B75="","",IF(AD75="NA","NA",INDEX(TPravesh!$AA$5:$AA$16,MATCH(AD75,TPravesh!$AQ$5:$AQ$16,0)))) ->  | AD75: =IF(B75="","",IF(Q75="","",IF(Q75="NA","NA",INDEX(TPravesh!$AQ$5:$AQ$16,MATCH(Q75,TPravesh!$AA$5:$AA$16,0))))) ->  | AF75: =IF(B75="","",IF(W75="YES",HOME!$C$7,0)) ->  | AG75: =IF(B75="","",IF(S75="YES",HOME!$C$6,0)) ->  | AL75: =IF(B75="","",IF(I75="OLD",VLOOKUP(O75,TPravesh!$B$21:$G$24,4),VLOOKUP(O75,TPravesh!$B$28:$G$29,4))) ->  | AW75: =IF(B75="","",IF(X75="YES",IF(I75="OLD",ROUND(SUM(O75+O75*HOME!$F$6)*50%,0),ROUND(SUM(O75+O75*HOME!$F$6)*50%,0)))) ->  | AX75: =IF(B75="","",IF(X75="YES",IF(I75="OLD",ROUND(SUM(AO75+AO75*HOME!$F$6)*50%,0),ROUND(SUM(AO75+AO75*HOME!$F$6)*50%,0)))) ->  | BB75: =IF(B75="","",IF(N75="FIX PAY",0,IF(BA75="OLD",AQ75/1000*HOME!$F$7,0))) ->  | BC75: =IF(B75="","",IF(N75="VACANT",0,IF(N75="FIX PAY",0,IF(BA75="NEW",AQ75/1000*HOME!$F$6,0)))) ->  | BD75: =IF(B75="","",IF(N75="FIX PAY",0,IF(BA75="OLD",AR75/1000*HOME!$F$7,0))) ->  | BE75: =IF(B75="","",IF(N75="VACANT",0,IF(N75="FIX PAY",0,IF(BA75="NEW",AR75/1000*HOME!$F$6,0)))) -> 
M76: =IF(L76="","",INDEX(TPravesh!$U$3:$U$26,MATCH('Emp Data'!L76,TPravesh!$S$3:$S$26,0))) ->  | AC76: =IF(B76="","",IF(AD76="NA","NA",INDEX(TPravesh!$AA$5:$AA$16,MATCH(AD76,TPravesh!$AQ$5:$AQ$16,0)))) ->  | AD76: =IF(B76="","",IF(Q76="","",IF(Q76="NA","NA",INDEX(TPravesh!$AQ$5:$AQ$16,MATCH(Q76,TPravesh!$AA$5:$AA$16,0))))) ->  | AF76: =IF(B76="","",IF(W76="YES",HOME!$C$7,0)) ->  | AG76: =IF(B76="","",IF(S76="YES",HOME!$C$6,0)) ->  | AL76: =IF(B76="","",IF(I76="OLD",VLOOKUP(O76,TPravesh!$B$21:$G$24,4),VLOOKUP(O76,TPravesh!$B$28:$G$29,4))) ->  | AW76: =IF(B76="","",IF(X76="YES",IF(I76="OLD",ROUND(SUM(O76+O76*HOME!$F$6)*50%,0),ROUND(SUM(O76+O76*HOME!$F$6)*50%,0)))) ->  | AX76: =IF(B76="","",IF(X76="YES",IF(I76="OLD",ROUND(SUM(AO76+AO76*HOME!$F$6)*50%,0),ROUND(SUM(AO76+AO76*HOME!$F$6)*50%,0)))) ->  | BB76: =IF(B76="","",IF(N76="FIX PAY",0,IF(BA76="OLD",AQ76/1000*HOME!$F$7,0))) ->  | BC76: =IF(B76="","",IF(N76="VACANT",0,IF(N76="FIX PAY",0,IF(BA76="NEW",AQ76/1000*HOME!$F$6,0)))) ->  | BD76: =IF(B76="","",IF(N76="FIX PAY",0,IF(BA76="OLD",AR76/1000*HOME!$F$7,0))) ->  | BE76: =IF(B76="","",IF(N76="VACANT",0,IF(N76="FIX PAY",0,IF(BA76="NEW",AR76/1000*HOME!$F$6,0)))) -> 
M77: =IF(L77="","",INDEX(TPravesh!$U$3:$U$26,MATCH('Emp Data'!L77,TPravesh!$S$3:$S$26,0))) ->  | AC77: =IF(B77="","",IF(AD77="NA","NA",INDEX(TPravesh!$AA$5:$AA$16,MATCH(AD77,TPravesh!$AQ$5:$AQ$16,0)))) ->  | AD77: =IF(B77="","",IF(Q77="","",IF(Q77="NA","NA",INDEX(TPravesh!$AQ$5:$AQ$16,MATCH(Q77,TPravesh!$AA$5:$AA$16,0))))) ->  | AF77: =IF(B77="","",IF(W77="YES",HOME!$C$7,0)) ->  | AG77: =IF(B77="","",IF(S77="YES",HOME!$C$6,0)) ->  | AL77: =IF(B77="","",IF(I77="OLD",VLOOKUP(O77,TPravesh!$B$21:$G$24,4),VLOOKUP(O77,TPravesh!$B$28:$G$29,4))) ->  | AW77: =IF(B77="","",IF(X77="YES",IF(I77="OLD",ROUND(SUM(O77+O77*HOME!$F$6)*50%,0),ROUND(SUM(O77+O77*HOME!$F$6)*50%,0)))) ->  | AX77: =IF(B77="","",IF(X77="YES",IF(I77="OLD",ROUND(SUM(AO77+AO77*HOME!$F$6)*50%,0),ROUND(SUM(AO77+AO77*HOME!$F$6)*50%,0)))) ->  | BB77: =IF(B77="","",IF(N77="FIX PAY",0,IF(BA77="OLD",AQ77/1000*HOME!$F$7,0))) ->  | BC77: =IF(B77="","",IF(N77="VACANT",0,IF(N77="FIX PAY",0,IF(BA77="NEW",AQ77/1000*HOME!$F$6,0)))) ->  | BD77: =IF(B77="","",IF(N77="FIX PAY",0,IF(BA77="OLD",AR77/1000*HOME!$F$7,0))) ->  | BE77: =IF(B77="","",IF(N77="VACANT",0,IF(N77="FIX PAY",0,IF(BA77="NEW",AR77/1000*HOME!$F$6,0)))) -> 
M78: =IF(L78="","",INDEX(TPravesh!$U$3:$U$26,MATCH('Emp Data'!L78,TPravesh!$S$3:$S$26,0))) ->  | AC78: =IF(B78="","",IF(AD78="NA","NA",INDEX(TPravesh!$AA$5:$AA$16,MATCH(AD78,TPravesh!$AQ$5:$AQ$16,0)))) ->  | AD78: =IF(B78="","",IF(Q78="","",IF(Q78="NA","NA",INDEX(TPravesh!$AQ$5:$AQ$16,MATCH(Q78,TPravesh!$AA$5:$AA$16,0))))) ->  | AF78: =IF(B78="","",IF(W78="YES",HOME!$C$7,0)) ->  | AG78: =IF(B78="","",IF(S78="YES",HOME!$C$6,0)) ->  | AL78: =IF(B78="","",IF(I78="OLD",VLOOKUP(O78,TPravesh!$B$21:$G$24,4),VLOOKUP(O78,TPravesh!$B$28:$G$29,4))) ->  | AW78: =IF(B78="","",IF(X78="YES",IF(I78="OLD",ROUND(SUM(O78+O78*HOME!$F$6)*50%,0),ROUND(SUM(O78+O78*HOME!$F$6)*50%,0)))) ->  | AX78: =IF(B78="","",IF(X78="YES",IF(I78="OLD",ROUND(SUM(AO78+AO78*HOME!$F$6)*50%,0),ROUND(SUM(AO78+AO78*HOME!$F$6)*50%,0)))) ->  | BB78: =IF(B78="","",IF(N78="FIX PAY",0,IF(BA78="OLD",AQ78/1000*HOME!$F$7,0))) ->  | BC78: =IF(B78="","",IF(N78="VACANT",0,IF(N78="FIX PAY",0,IF(BA78="NEW",AQ78/1000*HOME!$F$6,0)))) ->  | BD78: =IF(B78="","",IF(N78="FIX PAY",0,IF(BA78="OLD",AR78/1000*HOME!$F$7,0))) ->  | BE78: =IF(B78="","",IF(N78="VACANT",0,IF(N78="FIX PAY",0,IF(BA78="NEW",AR78/1000*HOME!$F$6,0)))) -> 
M79: =IF(L79="","",INDEX(TPravesh!$U$3:$U$26,MATCH('Emp Data'!L79,TPravesh!$S$3:$S$26,0))) ->  | AC79: =IF(B79="","",IF(AD79="NA","NA",INDEX(TPravesh!$AA$5:$AA$16,MATCH(AD79,TPravesh!$AQ$5:$AQ$16,0)))) ->  | AD79: =IF(B79="","",IF(Q79="","",IF(Q79="NA","NA",INDEX(TPravesh!$AQ$5:$AQ$16,MATCH(Q79,TPravesh!$AA$5:$AA$16,0))))) ->  | AF79: =IF(B79="","",IF(W79="YES",HOME!$C$7,0)) ->  | AG79: =IF(B79="","",IF(S79="YES",HOME!$C$6,0)) ->  | AL79: =IF(B79="","",IF(I79="OLD",VLOOKUP(O79,TPravesh!$B$21:$G$24,4),VLOOKUP(O79,TPravesh!$B$28:$G$29,4))) ->  | AW79: =IF(B79="","",IF(X79="YES",IF(I79="OLD",ROUND(SUM(O79+O79*HOME!$F$6)*50%,0),ROUND(SUM(O79+O79*HOME!$F$6)*50%,0)))) ->  | AX79: =IF(B79="","",IF(X79="YES",IF(I79="OLD",ROUND(SUM(AO79+AO79*HOME!$F$6)*50%,0),ROUND(SUM(AO79+AO79*HOME!$F$6)*50%,0)))) ->  | BB79: =IF(B79="","",IF(N79="FIX PAY",0,IF(BA79="OLD",AQ79/1000*HOME!$F$7,0))) ->  | BC79: =IF(B79="","",IF(N79="VACANT",0,IF(N79="FIX PAY",0,IF(BA79="NEW",AQ79/1000*HOME!$F$6,0)))) ->  | BD79: =IF(B79="","",IF(N79="FIX PAY",0,IF(BA79="OLD",AR79/1000*HOME!$F$7,0))) ->  | BE79: =IF(B79="","",IF(N79="VACANT",0,IF(N79="FIX PAY",0,IF(BA79="NEW",AR79/1000*HOME!$F$6,0)))) -> 
M80: =IF(L80="","",INDEX(TPravesh!$U$3:$U$26,MATCH('Emp Data'!L80,TPravesh!$S$3:$S$26,0))) ->  | AC80: =IF(B80="","",IF(AD80="NA","NA",INDEX(TPravesh!$AA$5:$AA$16,MATCH(AD80,TPravesh!$AQ$5:$AQ$16,0)))) ->  | AD80: =IF(B80="","",IF(Q80="","",IF(Q80="NA","NA",INDEX(TPravesh!$AQ$5:$AQ$16,MATCH(Q80,TPravesh!$AA$5:$AA$16,0))))) ->  | AF80: =IF(B80="","",IF(W80="YES",HOME!$C$7,0)) ->  | AG80: =IF(B80="","",IF(S80="YES",HOME!$C$6,0)) ->  | AL80: =IF(B80="","",IF(I80="OLD",VLOOKUP(O80,TPravesh!$B$21:$G$24,4),VLOOKUP(O80,TPravesh!$B$28:$G$29,4))) ->  | AW80: =IF(B80="","",IF(X80="YES",IF(I80="OLD",ROUND(SUM(O80+O80*HOME!$F$6)*50%,0),ROUND(SUM(O80+O80*HOME!$F$6)*50%,0)))) ->  | AX80: =IF(B80="","",IF(X80="YES",IF(I80="OLD",ROUND(SUM(AO80+AO80*HOME!$F$6)*50%,0),ROUND(SUM(AO80+AO80*HOME!$F$6)*50%,0)))) ->  | BB80: =IF(B80="","",IF(N80="FIX PAY",0,IF(BA80="OLD",AQ80/1000*HOME!$F$7,0))) ->  | BC80: =IF(B80="","",IF(N80="VACANT",0,IF(N80="FIX PAY",0,IF(BA80="NEW",AQ80/1000*HOME!$F$6,0)))) ->  | BD80: =IF(B80="","",IF(N80="FIX PAY",0,IF(BA80="OLD",AR80/1000*HOME!$F$7,0))) ->  | BE80: =IF(B80="","",IF(N80="VACANT",0,IF(N80="FIX PAY",0,IF(BA80="NEW",AR80/1000*HOME!$F$6,0)))) -> 
M81: =IF(L81="","",INDEX(TPravesh!$U$3:$U$26,MATCH('Emp Data'!L81,TPravesh!$S$3:$S$26,0))) ->  | AC81: =IF(B81="","",IF(AD81="NA","NA",INDEX(TPravesh!$AA$5:$AA$16,MATCH(AD81,TPravesh!$AQ$5:$AQ$16,0)))) ->  | AD81: =IF(B81="","",IF(Q81="","",IF(Q81="NA","NA",INDEX(TPravesh!$AQ$5:$AQ$16,MATCH(Q81,TPravesh!$AA$5:$AA$16,0))))) ->  | AF81: =IF(B81="","",IF(W81="YES",HOME!$C$7,0)) ->  | AG81: =IF(B81="","",IF(S81="YES",HOME!$C$6,0)) ->  | AL81: =IF(B81="","",IF(I81="OLD",VLOOKUP(O81,TPravesh!$B$21:$G$24,4),VLOOKUP(O81,TPravesh!$B$28:$G$29,4))) ->  | AW81: =IF(B81="","",IF(X81="YES",IF(I81="OLD",ROUND(SUM(O81+O81*HOME!$F$6)*50%,0),ROUND(SUM(O81+O81*HOME!$F$6)*50%,0)))) ->  | AX81: =IF(B81="","",IF(X81="YES",IF(I81="OLD",ROUND(SUM(AO81+AO81*HOME!$F$6)*50%,0),ROUND(SUM(AO81+AO81*HOME!$F$6)*50%,0)))) ->  | BB81: =IF(B81="","",IF(N81="FIX PAY",0,IF(BA81="OLD",AQ81/1000*HOME!$F$7,0))) ->  | BC81: =IF(B81="","",IF(N81="VACANT",0,IF(N81="FIX PAY",0,IF(BA81="NEW",AQ81/1000*HOME!$F$6,0)))) ->  | BD81: =IF(B81="","",IF(N81="FIX PAY",0,IF(BA81="OLD",AR81/1000*HOME!$F$7,0))) ->  | BE81: =IF(B81="","",IF(N81="VACANT",0,IF(N81="FIX PAY",0,IF(BA81="NEW",AR81/1000*HOME!$F$6,0)))) -> 
M82: =IF(L82="","",INDEX(TPravesh!$U$3:$U$26,MATCH('Emp Data'!L82,TPravesh!$S$3:$S$26,0))) ->  | AC82: =IF(B82="","",IF(AD82="NA","NA",INDEX(TPravesh!$AA$5:$AA$16,MATCH(AD82,TPravesh!$AQ$5:$AQ$16,0)))) ->  | AD82: =IF(B82="","",IF(Q82="","",IF(Q82="NA","NA",INDEX(TPravesh!$AQ$5:$AQ$16,MATCH(Q82,TPravesh!$AA$5:$AA$16,0))))) ->  | AF82: =IF(B82="","",IF(W82="YES",HOME!$C$7,0)) ->  | AG82: =IF(B82="","",IF(S82="YES",HOME!$C$6,0)) ->  | AL82: =IF(B82="","",IF(I82="OLD",VLOOKUP(O82,TPravesh!$B$21:$G$24,4),VLOOKUP(O82,TPravesh!$B$28:$G$29,4))) ->  | AW82: =IF(B82="","",IF(X82="YES",IF(I82="OLD",ROUND(SUM(O82+O82*HOME!$F$6)*50%,0),ROUND(SUM(O82+O82*HOME!$F$6)*50%,0)))) ->  | AX82: =IF(B82="","",IF(X82="YES",IF(I82="OLD",ROUND(SUM(AO82+AO82*HOME!$F$6)*50%,0),ROUND(SUM(AO82+AO82*HOME!$F$6)*50%,0)))) ->  | BB82: =IF(B82="","",IF(N82="FIX PAY",0,IF(BA82="OLD",AQ82/1000*HOME!$F$7,0))) ->  | BC82: =IF(B82="","",IF(N82="VACANT",0,IF(N82="FIX PAY",0,IF(BA82="NEW",AQ82/1000*HOME!$F$6,0)))) ->  | BD82: =IF(B82="","",IF(N82="FIX PAY",0,IF(BA82="OLD",AR82/1000*HOME!$F$7,0))) ->  | BE82: =IF(B82="","",IF(N82="VACANT",0,IF(N82="FIX PAY",0,IF(BA82="NEW",AR82/1000*HOME!$F$6,0)))) -> 
M83: =IF(L83="","",INDEX(TPravesh!$U$3:$U$26,MATCH('Emp Data'!L83,TPravesh!$S$3:$S$26,0))) ->  | AC83: =IF(B83="","",IF(AD83="NA","NA",INDEX(TPravesh!$AA$5:$AA$16,MATCH(AD83,TPravesh!$AQ$5:$AQ$16,0)))) ->  | AD83: =IF(B83="","",IF(Q83="","",IF(Q83="NA","NA",INDEX(TPravesh!$AQ$5:$AQ$16,MATCH(Q83,TPravesh!$AA$5:$AA$16,0))))) ->  | AF83: =IF(B83="","",IF(W83="YES",HOME!$C$7,0)) ->  | AG83: =IF(B83="","",IF(S83="YES",HOME!$C$6,0)) ->  | AL83: =IF(B83="","",IF(I83="OLD",VLOOKUP(O83,TPravesh!$B$21:$G$24,4),VLOOKUP(O83,TPravesh!$B$28:$G$29,4))) ->  | AW83: =IF(B83="","",IF(X83="YES",IF(I83="OLD",ROUND(SUM(O83+O83*HOME!$F$6)*50%,0),ROUND(SUM(O83+O83*HOME!$F$6)*50%,0)))) ->  | AX83: =IF(B83="","",IF(X83="YES",IF(I83="OLD",ROUND(SUM(AO83+AO83*HOME!$F$6)*50%,0),ROUND(SUM(AO83+AO83*HOME!$F$6)*50%,0)))) ->  | BB83: =IF(B83="","",IF(N83="FIX PAY",0,IF(BA83="OLD",AQ83/1000*HOME!$F$7,0))) ->  | BC83: =IF(B83="","",IF(N83="VACANT",0,IF(N83="FIX PAY",0,IF(BA83="NEW",AQ83/1000*HOME!$F$6,0)))) ->  | BD83: =IF(B83="","",IF(N83="FIX PAY",0,IF(BA83="OLD",AR83/1000*HOME!$F$7,0))) ->  | BE83: =IF(B83="","",IF(N83="VACANT",0,IF(N83="FIX PAY",0,IF(BA83="NEW",AR83/1000*HOME!$F$6,0)))) -> 
M84: =IF(L84="","",INDEX(TPravesh!$U$3:$U$26,MATCH('Emp Data'!L84,TPravesh!$S$3:$S$26,0))) ->  | AC84: =IF(B84="","",IF(AD84="NA","NA",INDEX(TPravesh!$AA$5:$AA$16,MATCH(AD84,TPravesh!$AQ$5:$AQ$16,0)))) ->  | AD84: =IF(B84="","",IF(Q84="","",IF(Q84="NA","NA",INDEX(TPravesh!$AQ$5:$AQ$16,MATCH(Q84,TPravesh!$AA$5:$AA$16,0))))) ->  | AF84: =IF(B84="","",IF(W84="YES",HOME!$C$7,0)) ->  | AG84: =IF(B84="","",IF(S84="YES",HOME!$C$6,0)) ->  | AL84: =IF(B84="","",IF(I84="OLD",VLOOKUP(O84,TPravesh!$B$21:$G$24,4),VLOOKUP(O84,TPravesh!$B$28:$G$29,4))) ->  | AW84: =IF(B84="","",IF(X84="YES",IF(I84="OLD",ROUND(SUM(O84+O84*HOME!$F$6)*50%,0),ROUND(SUM(O84+O84*HOME!$F$6)*50%,0)))) ->  | AX84: =IF(B84="","",IF(X84="YES",IF(I84="OLD",ROUND(SUM(AO84+AO84*HOME!$F$6)*50%,0),ROUND(SUM(AO84+AO84*HOME!$F$6)*50%,0)))) ->  | BB84: =IF(B84="","",IF(N84="FIX PAY",0,IF(BA84="OLD",AQ84/1000*HOME!$F$7,0))) ->  | BC84: =IF(B84="","",IF(N84="VACANT",0,IF(N84="FIX PAY",0,IF(BA84="NEW",AQ84/1000*HOME!$F$6,0)))) ->  | BD84: =IF(B84="","",IF(N84="FIX PAY",0,IF(BA84="OLD",AR84/1000*HOME!$F$7,0))) ->  | BE84: =IF(B84="","",IF(N84="VACANT",0,IF(N84="FIX PAY",0,IF(BA84="NEW",AR84/1000*HOME!$F$6,0)))) -> 
M85: =IF(L85="","",INDEX(TPravesh!$U$3:$U$26,MATCH('Emp Data'!L85,TPravesh!$S$3:$S$26,0))) ->  | AC85: =IF(B85="","",IF(AD85="NA","NA",INDEX(TPravesh!$AA$5:$AA$16,MATCH(AD85,TPravesh!$AQ$5:$AQ$16,0)))) ->  | AD85: =IF(B85="","",IF(Q85="","",IF(Q85="NA","NA",INDEX(TPravesh!$AQ$5:$AQ$16,MATCH(Q85,TPravesh!$AA$5:$AA$16,0))))) ->  | AF85: =IF(B85="","",IF(W85="YES",HOME!$C$7,0)) ->  | AG85: =IF(B85="","",IF(S85="YES",HOME!$C$6,0)) ->  | AL85: =IF(B85="","",IF(I85="OLD",VLOOKUP(O85,TPravesh!$B$21:$G$24,4),VLOOKUP(O85,TPravesh!$B$28:$G$29,4))) ->  | AW85: =IF(B85="","",IF(X85="YES",IF(I85="OLD",ROUND(SUM(O85+O85*HOME!$F$6)*50%,0),ROUND(SUM(O85+O85*HOME!$F$6)*50%,0)))) ->  | AX85: =IF(B85="","",IF(X85="YES",IF(I85="OLD",ROUND(SUM(AO85+AO85*HOME!$F$6)*50%,0),ROUND(SUM(AO85+AO85*HOME!$F$6)*50%,0)))) ->  | BB85: =IF(B85="","",IF(N85="FIX PAY",0,IF(BA85="OLD",AQ85/1000*HOME!$F$7,0))) ->  | BC85: =IF(B85="","",IF(N85="VACANT",0,IF(N85="FIX PAY",0,IF(BA85="NEW",AQ85/1000*HOME!$F$6,0)))) ->  | BD85: =IF(B85="","",IF(N85="FIX PAY",0,IF(BA85="OLD",AR85/1000*HOME!$F$7,0))) ->  | BE85: =IF(B85="","",IF(N85="VACANT",0,IF(N85="FIX PAY",0,IF(BA85="NEW",AR85/1000*HOME!$F$6,0)))) -> 
M86: =IF(L86="","",INDEX(TPravesh!$U$3:$U$26,MATCH('Emp Data'!L86,TPravesh!$S$3:$S$26,0))) ->  | AC86: =IF(B86="","",IF(AD86="NA","NA",INDEX(TPravesh!$AA$5:$AA$16,MATCH(AD86,TPravesh!$AQ$5:$AQ$16,0)))) ->  | AD86: =IF(B86="","",IF(Q86="","",IF(Q86="NA","NA",INDEX(TPravesh!$AQ$5:$AQ$16,MATCH(Q86,TPravesh!$AA$5:$AA$16,0))))) ->  | AF86: =IF(B86="","",IF(W86="YES",HOME!$C$7,0)) ->  | AG86: =IF(B86="","",IF(S86="YES",HOME!$C$6,0)) ->  | AL86: =IF(B86="","",IF(I86="OLD",VLOOKUP(O86,TPravesh!$B$21:$G$24,4),VLOOKUP(O86,TPravesh!$B$28:$G$29,4))) ->  | AW86: =IF(B86="","",IF(X86="YES",IF(I86="OLD",ROUND(SUM(O86+O86*HOME!$F$6)*50%,0),ROUND(SUM(O86+O86*HOME!$F$6)*50%,0)))) ->  | AX86: =IF(B86="","",IF(X86="YES",IF(I86="OLD",ROUND(SUM(AO86+AO86*HOME!$F$6)*50%,0),ROUND(SUM(AO86+AO86*HOME!$F$6)*50%,0)))) ->  | BB86: =IF(B86="","",IF(N86="FIX PAY",0,IF(BA86="OLD",AQ86/1000*HOME!$F$7,0))) ->  | BC86: =IF(B86="","",IF(N86="VACANT",0,IF(N86="FIX PAY",0,IF(BA86="NEW",AQ86/1000*HOME!$F$6,0)))) ->  | BD86: =IF(B86="","",IF(N86="FIX PAY",0,IF(BA86="OLD",AR86/1000*HOME!$F$7,0))) ->  | BE86: =IF(B86="","",IF(N86="VACANT",0,IF(N86="FIX PAY",0,IF(BA86="NEW",AR86/1000*HOME!$F$6,0)))) -> 
M87: =IF(L87="","",INDEX(TPravesh!$U$3:$U$26,MATCH('Emp Data'!L87,TPravesh!$S$3:$S$26,0))) ->  | AC87: =IF(B87="","",IF(AD87="NA","NA",INDEX(TPravesh!$AA$5:$AA$16,MATCH(AD87,TPravesh!$AQ$5:$AQ$16,0)))) ->  | AD87: =IF(B87="","",IF(Q87="","",IF(Q87="NA","NA",INDEX(TPravesh!$AQ$5:$AQ$16,MATCH(Q87,TPravesh!$AA$5:$AA$16,0))))) ->  | AF87: =IF(B87="","",IF(W87="YES",HOME!$C$7,0)) ->  | AG87: =IF(B87="","",IF(S87="YES",HOME!$C$6,0)) ->  | AL87: =IF(B87="","",IF(I87="OLD",VLOOKUP(O87,TPravesh!$B$21:$G$24,4),VLOOKUP(O87,TPravesh!$B$28:$G$29,4))) ->  | AW87: =IF(B87="","",IF(X87="YES",IF(I87="OLD",ROUND(SUM(O87+O87*HOME!$F$6)*50%,0),ROUND(SUM(O87+O87*HOME!$F$6)*50%,0)))) ->  | AX87: =IF(B87="","",IF(X87="YES",IF(I87="OLD",ROUND(SUM(AO87+AO87*HOME!$F$6)*50%,0),ROUND(SUM(AO87+AO87*HOME!$F$6)*50%,0)))) ->  | BB87: =IF(B87="","",IF(N87="FIX PAY",0,IF(BA87="OLD",AQ87/1000*HOME!$F$7,0))) ->  | BC87: =IF(B87="","",IF(N87="VACANT",0,IF(N87="FIX PAY",0,IF(BA87="NEW",AQ87/1000*HOME!$F$6,0)))) ->  | BD87: =IF(B87="","",IF(N87="FIX PAY",0,IF(BA87="OLD",AR87/1000*HOME!$F$7,0))) ->  | BE87: =IF(B87="","",IF(N87="VACANT",0,IF(N87="FIX PAY",0,IF(BA87="NEW",AR87/1000*HOME!$F$6,0)))) -> 
M88: =IF(L88="","",INDEX(TPravesh!$U$3:$U$26,MATCH('Emp Data'!L88,TPravesh!$S$3:$S$26,0))) ->  | AC88: =IF(B88="","",IF(AD88="NA","NA",INDEX(TPravesh!$AA$5:$AA$16,MATCH(AD88,TPravesh!$AQ$5:$AQ$16,0)))) ->  | AD88: =IF(B88="","",IF(Q88="","",IF(Q88="NA","NA",INDEX(TPravesh!$AQ$5:$AQ$16,MATCH(Q88,TPravesh!$AA$5:$AA$16,0))))) ->  | AF88: =IF(B88="","",IF(W88="YES",HOME!$C$7,0)) ->  | AG88: =IF(B88="","",IF(S88="YES",HOME!$C$6,0)) ->  | AL88: =IF(B88="","",IF(I88="OLD",VLOOKUP(O88,TPravesh!$B$21:$G$24,4),VLOOKUP(O88,TPravesh!$B$28:$G$29,4))) ->  | AW88: =IF(B88="","",IF(X88="YES",IF(I88="OLD",ROUND(SUM(O88+O88*HOME!$F$6)*50%,0),ROUND(SUM(O88+O88*HOME!$F$6)*50%,0)))) ->  | AX88: =IF(B88="","",IF(X88="YES",IF(I88="OLD",ROUND(SUM(AO88+AO88*HOME!$F$6)*50%,0),ROUND(SUM(AO88+AO88*HOME!$F$6)*50%,0)))) ->  | BB88: =IF(B88="","",IF(N88="FIX PAY",0,IF(BA88="OLD",AQ88/1000*HOME!$F$7,0))) ->  | BC88: =IF(B88="","",IF(N88="VACANT",0,IF(N88="FIX PAY",0,IF(BA88="NEW",AQ88/1000*HOME!$F$6,0)))) ->  | BD88: =IF(B88="","",IF(N88="FIX PAY",0,IF(BA88="OLD",AR88/1000*HOME!$F$7,0))) ->  | BE88: =IF(B88="","",IF(N88="VACANT",0,IF(N88="FIX PAY",0,IF(BA88="NEW",AR88/1000*HOME!$F$6,0)))) -> 
M89: =IF(L89="","",INDEX(TPravesh!$U$3:$U$26,MATCH('Emp Data'!L89,TPravesh!$S$3:$S$26,0))) ->  | AC89: =IF(B89="","",IF(AD89="NA","NA",INDEX(TPravesh!$AA$5:$AA$16,MATCH(AD89,TPravesh!$AQ$5:$AQ$16,0)))) ->  | AD89: =IF(B89="","",IF(Q89="","",IF(Q89="NA","NA",INDEX(TPravesh!$AQ$5:$AQ$16,MATCH(Q89,TPravesh!$AA$5:$AA$16,0))))) ->  | AF89: =IF(B89="","",IF(W89="YES",HOME!$C$7,0)) ->  | AG89: =IF(B89="","",IF(S89="YES",HOME!$C$6,0)) ->  | AL89: =IF(B89="","",IF(I89="OLD",VLOOKUP(O89,TPravesh!$B$21:$G$24,4),VLOOKUP(O89,TPravesh!$B$28:$G$29,4))) ->  | AW89: =IF(B89="","",IF(X89="YES",IF(I89="OLD",ROUND(SUM(O89+O89*HOME!$F$6)*50%,0),ROUND(SUM(O89+O89*HOME!$F$6)*50%,0)))) ->  | AX89: =IF(B89="","",IF(X89="YES",IF(I89="OLD",ROUND(SUM(AO89+AO89*HOME!$F$6)*50%,0),ROUND(SUM(AO89+AO89*HOME!$F$6)*50%,0)))) ->  | BB89: =IF(B89="","",IF(N89="FIX PAY",0,IF(BA89="OLD",AQ89/1000*HOME!$F$7,0))) ->  | BC89: =IF(B89="","",IF(N89="VACANT",0,IF(N89="FIX PAY",0,IF(BA89="NEW",AQ89/1000*HOME!$F$6,0)))) ->  | BD89: =IF(B89="","",IF(N89="FIX PAY",0,IF(BA89="OLD",AR89/1000*HOME!$F$7,0))) ->  | BE89: =IF(B89="","",IF(N89="VACANT",0,IF(N89="FIX PAY",0,IF(BA89="NEW",AR89/1000*HOME!$F$6,0)))) -> 
M90: =IF(L90="","",INDEX(TPravesh!$U$3:$U$26,MATCH('Emp Data'!L90,TPravesh!$S$3:$S$26,0))) ->  | AC90: =IF(B90="","",IF(AD90="NA","NA",INDEX(TPravesh!$AA$5:$AA$16,MATCH(AD90,TPravesh!$AQ$5:$AQ$16,0)))) ->  | AD90: =IF(B90="","",IF(Q90="","",IF(Q90="NA","NA",INDEX(TPravesh!$AQ$5:$AQ$16,MATCH(Q90,TPravesh!$AA$5:$AA$16,0))))) ->  | AF90: =IF(B90="","",IF(W90="YES",HOME!$C$7,0)) ->  | AG90: =IF(B90="","",IF(S90="YES",HOME!$C$6,0)) ->  | AL90: =IF(B90="","",IF(I90="OLD",VLOOKUP(O90,TPravesh!$B$21:$G$24,4),VLOOKUP(O90,TPravesh!$B$28:$G$29,4))) ->  | AW90: =IF(B90="","",IF(X90="YES",IF(I90="OLD",ROUND(SUM(O90+O90*HOME!$F$6)*50%,0),ROUND(SUM(O90+O90*HOME!$F$6)*50%,0)))) ->  | AX90: =IF(B90="","",IF(X90="YES",IF(I90="OLD",ROUND(SUM(AO90+AO90*HOME!$F$6)*50%,0),ROUND(SUM(AO90+AO90*HOME!$F$6)*50%,0)))) ->  | BB90: =IF(B90="","",IF(N90="FIX PAY",0,IF(BA90="OLD",AQ90/1000*HOME!$F$7,0))) ->  | BC90: =IF(B90="","",IF(N90="VACANT",0,IF(N90="FIX PAY",0,IF(BA90="NEW",AQ90/1000*HOME!$F$6,0)))) ->  | BD90: =IF(B90="","",IF(N90="FIX PAY",0,IF(BA90="OLD",AR90/1000*HOME!$F$7,0))) ->  | BE90: =IF(B90="","",IF(N90="VACANT",0,IF(N90="FIX PAY",0,IF(BA90="NEW",AR90/1000*HOME!$F$6,0)))) -> 
M91: =IF(L91="","",INDEX(TPravesh!$U$3:$U$26,MATCH('Emp Data'!L91,TPravesh!$S$3:$S$26,0))) ->  | AC91: =IF(B91="","",IF(AD91="NA","NA",INDEX(TPravesh!$AA$5:$AA$16,MATCH(AD91,TPravesh!$AQ$5:$AQ$16,0)))) ->  | AD91: =IF(B91="","",IF(Q91="","",IF(Q91="NA","NA",INDEX(TPravesh!$AQ$5:$AQ$16,MATCH(Q91,TPravesh!$AA$5:$AA$16,0))))) ->  | AF91: =IF(B91="","",IF(W91="YES",HOME!$C$7,0)) ->  | AG91: =IF(B91="","",IF(S91="YES",HOME!$C$6,0)) ->  | AL91: =IF(B91="","",IF(I91="OLD",VLOOKUP(O91,TPravesh!$B$21:$G$24,4),VLOOKUP(O91,TPravesh!$B$28:$G$29,4))) ->  | AW91: =IF(B91="","",IF(X91="YES",IF(I91="OLD",ROUND(SUM(O91+O91*HOME!$F$6)*50%,0),ROUND(SUM(O91+O91*HOME!$F$6)*50%,0)))) ->  | AX91: =IF(B91="","",IF(X91="YES",IF(I91="OLD",ROUND(SUM(AO91+AO91*HOME!$F$6)*50%,0),ROUND(SUM(AO91+AO91*HOME!$F$6)*50%,0)))) ->  | BB91: =IF(B91="","",IF(N91="FIX PAY",0,IF(BA91="OLD",AQ91/1000*HOME!$F$7,0))) ->  | BC91: =IF(B91="","",IF(N91="VACANT",0,IF(N91="FIX PAY",0,IF(BA91="NEW",AQ91/1000*HOME!$F$6,0)))) ->  | BD91: =IF(B91="","",IF(N91="FIX PAY",0,IF(BA91="OLD",AR91/1000*HOME!$F$7,0))) ->  | BE91: =IF(B91="","",IF(N91="VACANT",0,IF(N91="FIX PAY",0,IF(BA91="NEW",AR91/1000*HOME!$F$6,0)))) -> 
M92: =IF(L92="","",INDEX(TPravesh!$U$3:$U$26,MATCH('Emp Data'!L92,TPravesh!$S$3:$S$26,0))) ->  | AC92: =IF(B92="","",IF(AD92="NA","NA",INDEX(TPravesh!$AA$5:$AA$16,MATCH(AD92,TPravesh!$AQ$5:$AQ$16,0)))) ->  | AD92: =IF(B92="","",IF(Q92="","",IF(Q92="NA","NA",INDEX(TPravesh!$AQ$5:$AQ$16,MATCH(Q92,TPravesh!$AA$5:$AA$16,0))))) ->  | AF92: =IF(B92="","",IF(W92="YES",HOME!$C$7,0)) ->  | AG92: =IF(B92="","",IF(S92="YES",HOME!$C$6,0)) ->  | AL92: =IF(B92="","",IF(I92="OLD",VLOOKUP(O92,TPravesh!$B$21:$G$24,4),VLOOKUP(O92,TPravesh!$B$28:$G$29,4))) ->  | AW92: =IF(B92="","",IF(X92="YES",IF(I92="OLD",ROUND(SUM(O92+O92*HOME!$F$6)*50%,0),ROUND(SUM(O92+O92*HOME!$F$6)*50%,0)))) ->  | AX92: =IF(B92="","",IF(X92="YES",IF(I92="OLD",ROUND(SUM(AO92+AO92*HOME!$F$6)*50%,0),ROUND(SUM(AO92+AO92*HOME!$F$6)*50%,0)))) ->  | BB92: =IF(B92="","",IF(N92="FIX PAY",0,IF(BA92="OLD",AQ92/1000*HOME!$F$7,0))) ->  | BC92: =IF(B92="","",IF(N92="VACANT",0,IF(N92="FIX PAY",0,IF(BA92="NEW",AQ92/1000*HOME!$F$6,0)))) ->  | BD92: =IF(B92="","",IF(N92="FIX PAY",0,IF(BA92="OLD",AR92/1000*HOME!$F$7,0))) ->  | BE92: =IF(B92="","",IF(N92="VACANT",0,IF(N92="FIX PAY",0,IF(BA92="NEW",AR92/1000*HOME!$F$6,0)))) -> 
M93: =IF(L93="","",INDEX(TPravesh!$U$3:$U$26,MATCH('Emp Data'!L93,TPravesh!$S$3:$S$26,0))) ->  | AC93: =IF(B93="","",IF(AD93="NA","NA",INDEX(TPravesh!$AA$5:$AA$16,MATCH(AD93,TPravesh!$AQ$5:$AQ$16,0)))) ->  | AD93: =IF(B93="","",IF(Q93="","",IF(Q93="NA","NA",INDEX(TPravesh!$AQ$5:$AQ$16,MATCH(Q93,TPravesh!$AA$5:$AA$16,0))))) ->  | AF93: =IF(B93="","",IF(W93="YES",HOME!$C$7,0)) ->  | AG93: =IF(B93="","",IF(S93="YES",HOME!$C$6,0)) ->  | AL93: =IF(B93="","",IF(I93="OLD",VLOOKUP(O93,TPravesh!$B$21:$G$24,4),VLOOKUP(O93,TPravesh!$B$28:$G$29,4))) ->  | AW93: =IF(B93="","",IF(X93="YES",IF(I93="OLD",ROUND(SUM(O93+O93*HOME!$F$6)*50%,0),ROUND(SUM(O93+O93*HOME!$F$6)*50%,0)))) ->  | AX93: =IF(B93="","",IF(X93="YES",IF(I93="OLD",ROUND(SUM(AO93+AO93*HOME!$F$6)*50%,0),ROUND(SUM(AO93+AO93*HOME!$F$6)*50%,0)))) ->  | BB93: =IF(B93="","",IF(N93="FIX PAY",0,IF(BA93="OLD",AQ93/1000*HOME!$F$7,0))) ->  | BC93: =IF(B93="","",IF(N93="VACANT",0,IF(N93="FIX PAY",0,IF(BA93="NEW",AQ93/1000*HOME!$F$6,0)))) ->  | BD93: =IF(B93="","",IF(N93="FIX PAY",0,IF(BA93="OLD",AR93/1000*HOME!$F$7,0))) ->  | BE93: =IF(B93="","",IF(N93="VACANT",0,IF(N93="FIX PAY",0,IF(BA93="NEW",AR93/1000*HOME!$F$6,0)))) -> 
M94: =IF(L94="","",INDEX(TPravesh!$U$3:$U$26,MATCH('Emp Data'!L94,TPravesh!$S$3:$S$26,0))) ->  | AC94: =IF(B94="","",IF(AD94="NA","NA",INDEX(TPravesh!$AA$5:$AA$16,MATCH(AD94,TPravesh!$AQ$5:$AQ$16,0)))) ->  | AD94: =IF(B94="","",IF(Q94="","",IF(Q94="NA","NA",INDEX(TPravesh!$AQ$5:$AQ$16,MATCH(Q94,TPravesh!$AA$5:$AA$16,0))))) ->  | AF94: =IF(B94="","",IF(W94="YES",HOME!$C$7,0)) ->  | AG94: =IF(B94="","",IF(S94="YES",HOME!$C$6,0)) ->  | AL94: =IF(B94="","",IF(I94="OLD",VLOOKUP(O94,TPravesh!$B$21:$G$24,4),VLOOKUP(O94,TPravesh!$B$28:$G$29,4))) ->  | AW94: =IF(B94="","",IF(X94="YES",IF(I94="OLD",ROUND(SUM(O94+O94*HOME!$F$6)*50%,0),ROUND(SUM(O94+O94*HOME!$F$6)*50%,0)))) ->  | AX94: =IF(B94="","",IF(X94="YES",IF(I94="OLD",ROUND(SUM(AO94+AO94*HOME!$F$6)*50%,0),ROUND(SUM(AO94+AO94*HOME!$F$6)*50%,0)))) ->  | BB94: =IF(B94="","",IF(N94="FIX PAY",0,IF(BA94="OLD",AQ94/1000*HOME!$F$7,0))) ->  | BC94: =IF(B94="","",IF(N94="VACANT",0,IF(N94="FIX PAY",0,IF(BA94="NEW",AQ94/1000*HOME!$F$6,0)))) ->  | BD94: =IF(B94="","",IF(N94="FIX PAY",0,IF(BA94="OLD",AR94/1000*HOME!$F$7,0))) ->  | BE94: =IF(B94="","",IF(N94="VACANT",0,IF(N94="FIX PAY",0,IF(BA94="NEW",AR94/1000*HOME!$F$6,0)))) -> 
M95: =IF(L95="","",INDEX(TPravesh!$U$3:$U$26,MATCH('Emp Data'!L95,TPravesh!$S$3:$S$26,0))) ->  | AC95: =IF(B95="","",IF(AD95="NA","NA",INDEX(TPravesh!$AA$5:$AA$16,MATCH(AD95,TPravesh!$AQ$5:$AQ$16,0)))) ->  | AD95: =IF(B95="","",IF(Q95="","",IF(Q95="NA","NA",INDEX(TPravesh!$AQ$5:$AQ$16,MATCH(Q95,TPravesh!$AA$5:$AA$16,0))))) ->  | AF95: =IF(B95="","",IF(W95="YES",HOME!$C$7,0)) ->  | AG95: =IF(B95="","",IF(S95="YES",HOME!$C$6,0)) ->  | AL95: =IF(B95="","",IF(I95="OLD",VLOOKUP(O95,TPravesh!$B$21:$G$24,4),VLOOKUP(O95,TPravesh!$B$28:$G$29,4))) ->  | AW95: =IF(B95="","",IF(X95="YES",IF(I95="OLD",ROUND(SUM(O95+O95*HOME!$F$6)*50%,0),ROUND(SUM(O95+O95*HOME!$F$6)*50%,0)))) ->  | AX95: =IF(B95="","",IF(X95="YES",IF(I95="OLD",ROUND(SUM(AO95+AO95*HOME!$F$6)*50%,0),ROUND(SUM(AO95+AO95*HOME!$F$6)*50%,0)))) ->  | BB95: =IF(B95="","",IF(N95="FIX PAY",0,IF(BA95="OLD",AQ95/1000*HOME!$F$7,0))) ->  | BC95: =IF(B95="","",IF(N95="VACANT",0,IF(N95="FIX PAY",0,IF(BA95="NEW",AQ95/1000*HOME!$F$6,0)))) ->  | BD95: =IF(B95="","",IF(N95="FIX PAY",0,IF(BA95="OLD",AR95/1000*HOME!$F$7,0))) ->  | BE95: =IF(B95="","",IF(N95="VACANT",0,IF(N95="FIX PAY",0,IF(BA95="NEW",AR95/1000*HOME!$F$6,0)))) -> 
M96: =IF(L96="","",INDEX(TPravesh!$U$3:$U$26,MATCH('Emp Data'!L96,TPravesh!$S$3:$S$26,0))) ->  | AC96: =IF(B96="","",IF(AD96="NA","NA",INDEX(TPravesh!$AA$5:$AA$16,MATCH(AD96,TPravesh!$AQ$5:$AQ$16,0)))) ->  | AD96: =IF(B96="","",IF(Q96="","",IF(Q96="NA","NA",INDEX(TPravesh!$AQ$5:$AQ$16,MATCH(Q96,TPravesh!$AA$5:$AA$16,0))))) ->  | AF96: =IF(B96="","",IF(W96="YES",HOME!$C$7,0)) ->  | AG96: =IF(B96="","",IF(S96="YES",HOME!$C$6,0)) ->  | AL96: =IF(B96="","",IF(I96="OLD",VLOOKUP(O96,TPravesh!$B$21:$G$24,4),VLOOKUP(O96,TPravesh!$B$28:$G$29,4))) ->  | AW96: =IF(B96="","",IF(X96="YES",IF(I96="OLD",ROUND(SUM(O96+O96*HOME!$F$6)*50%,0),ROUND(SUM(O96+O96*HOME!$F$6)*50%,0)))) ->  | AX96: =IF(B96="","",IF(X96="YES",IF(I96="OLD",ROUND(SUM(AO96+AO96*HOME!$F$6)*50%,0),ROUND(SUM(AO96+AO96*HOME!$F$6)*50%,0)))) ->  | BB96: =IF(B96="","",IF(N96="FIX PAY",0,IF(BA96="OLD",AQ96/1000*HOME!$F$7,0))) ->  | BC96: =IF(B96="","",IF(N96="VACANT",0,IF(N96="FIX PAY",0,IF(BA96="NEW",AQ96/1000*HOME!$F$6,0)))) ->  | BD96: =IF(B96="","",IF(N96="FIX PAY",0,IF(BA96="OLD",AR96/1000*HOME!$F$7,0))) ->  | BE96: =IF(B96="","",IF(N96="VACANT",0,IF(N96="FIX PAY",0,IF(BA96="NEW",AR96/1000*HOME!$F$6,0)))) -> 
M97: =IF(L97="","",INDEX(TPravesh!$U$3:$U$26,MATCH('Emp Data'!L97,TPravesh!$S$3:$S$26,0))) ->  | AC97: =IF(B97="","",IF(AD97="NA","NA",INDEX(TPravesh!$AA$5:$AA$16,MATCH(AD97,TPravesh!$AQ$5:$AQ$16,0)))) ->  | AD97: =IF(B97="","",IF(Q97="","",IF(Q97="NA","NA",INDEX(TPravesh!$AQ$5:$AQ$16,MATCH(Q97,TPravesh!$AA$5:$AA$16,0))))) ->  | AF97: =IF(B97="","",IF(W97="YES",HOME!$C$7,0)) ->  | AG97: =IF(B97="","",IF(S97="YES",HOME!$C$6,0)) ->  | AL97: =IF(B97="","",IF(I97="OLD",VLOOKUP(O97,TPravesh!$B$21:$G$24,4),VLOOKUP(O97,TPravesh!$B$28:$G$29,4))) ->  | AW97: =IF(B97="","",IF(X97="YES",IF(I97="OLD",ROUND(SUM(O97+O97*HOME!$F$6)*50%,0),ROUND(SUM(O97+O97*HOME!$F$6)*50%,0)))) ->  | AX97: =IF(B97="","",IF(X97="YES",IF(I97="OLD",ROUND(SUM(AO97+AO97*HOME!$F$6)*50%,0),ROUND(SUM(AO97+AO97*HOME!$F$6)*50%,0)))) ->  | BB97: =IF(B97="","",IF(N97="FIX PAY",0,IF(BA97="OLD",AQ97/1000*HOME!$F$7,0))) ->  | BC97: =IF(B97="","",IF(N97="VACANT",0,IF(N97="FIX PAY",0,IF(BA97="NEW",AQ97/1000*HOME!$F$6,0)))) ->  | BD97: =IF(B97="","",IF(N97="FIX PAY",0,IF(BA97="OLD",AR97/1000*HOME!$F$7,0))) ->  | BE97: =IF(B97="","",IF(N97="VACANT",0,IF(N97="FIX PAY",0,IF(BA97="NEW",AR97/1000*HOME!$F$6,0)))) -> 
M98: =IF(L98="","",INDEX(TPravesh!$U$3:$U$26,MATCH('Emp Data'!L98,TPravesh!$S$3:$S$26,0))) ->  | AC98: =IF(B98="","",IF(AD98="NA","NA",INDEX(TPravesh!$AA$5:$AA$16,MATCH(AD98,TPravesh!$AQ$5:$AQ$16,0)))) ->  | AD98: =IF(B98="","",IF(Q98="","",IF(Q98="NA","NA",INDEX(TPravesh!$AQ$5:$AQ$16,MATCH(Q98,TPravesh!$AA$5:$AA$16,0))))) ->  | AF98: =IF(B98="","",IF(W98="YES",HOME!$C$7,0)) ->  | AG98: =IF(B98="","",IF(S98="YES",HOME!$C$6,0)) ->  | AL98: =IF(B98="","",IF(I98="OLD",VLOOKUP(O98,TPravesh!$B$21:$G$24,4),VLOOKUP(O98,TPravesh!$B$28:$G$29,4))) ->  | AW98: =IF(B98="","",IF(X98="YES",IF(I98="OLD",ROUND(SUM(O98+O98*HOME!$F$6)*50%,0),ROUND(SUM(O98+O98*HOME!$F$6)*50%,0)))) ->  | AX98: =IF(B98="","",IF(X98="YES",IF(I98="OLD",ROUND(SUM(AO98+AO98*HOME!$F$6)*50%,0),ROUND(SUM(AO98+AO98*HOME!$F$6)*50%,0)))) ->  | BB98: =IF(B98="","",IF(N98="FIX PAY",0,IF(BA98="OLD",AQ98/1000*HOME!$F$7,0))) ->  | BC98: =IF(B98="","",IF(N98="VACANT",0,IF(N98="FIX PAY",0,IF(BA98="NEW",AQ98/1000*HOME!$F$6,0)))) ->  | BD98: =IF(B98="","",IF(N98="FIX PAY",0,IF(BA98="OLD",AR98/1000*HOME!$F$7,0))) ->  | BE98: =IF(B98="","",IF(N98="VACANT",0,IF(N98="FIX PAY",0,IF(BA98="NEW",AR98/1000*HOME!$F$6,0)))) -> 
M99: =IF(L99="","",INDEX(TPravesh!$U$3:$U$26,MATCH('Emp Data'!L99,TPravesh!$S$3:$S$26,0))) ->  | AC99: =IF(B99="","",IF(AD99="NA","NA",INDEX(TPravesh!$AA$5:$AA$16,MATCH(AD99,TPravesh!$AQ$5:$AQ$16,0)))) ->  | AD99: =IF(B99="","",IF(Q99="","",IF(Q99="NA","NA",INDEX(TPravesh!$AQ$5:$AQ$16,MATCH(Q99,TPravesh!$AA$5:$AA$16,0))))) ->  | AF99: =IF(B99="","",IF(W99="YES",HOME!$C$7,0)) ->  | AG99: =IF(B99="","",IF(S99="YES",HOME!$C$6,0)) ->  | AL99: =IF(B99="","",IF(I99="OLD",VLOOKUP(O99,TPravesh!$B$21:$G$24,4),VLOOKUP(O99,TPravesh!$B$28:$G$29,4))) ->  | AW99: =IF(B99="","",IF(X99="YES",IF(I99="OLD",ROUND(SUM(O99+O99*HOME!$F$6)*50%,0),ROUND(SUM(O99+O99*HOME!$F$6)*50%,0)))) ->  | AX99: =IF(B99="","",IF(X99="YES",IF(I99="OLD",ROUND(SUM(AO99+AO99*HOME!$F$6)*50%,0),ROUND(SUM(AO99+AO99*HOME!$F$6)*50%,0)))) ->  | BB99: =IF(B99="","",IF(N99="FIX PAY",0,IF(BA99="OLD",AQ99/1000*HOME!$F$7,0))) ->  | BC99: =IF(B99="","",IF(N99="VACANT",0,IF(N99="FIX PAY",0,IF(BA99="NEW",AQ99/1000*HOME!$F$6,0)))) ->  | BD99: =IF(B99="","",IF(N99="FIX PAY",0,IF(BA99="OLD",AR99/1000*HOME!$F$7,0))) ->  | BE99: =IF(B99="","",IF(N99="VACANT",0,IF(N99="FIX PAY",0,IF(BA99="NEW",AR99/1000*HOME!$F$6,0)))) -> 
M100: =IF(L100="","",INDEX(TPravesh!$U$3:$U$26,MATCH('Emp Data'!L100,TPravesh!$S$3:$S$26,0))) ->  | AC100: =IF(B100="","",IF(AD100="NA","NA",INDEX(TPravesh!$AA$5:$AA$16,MATCH(AD100,TPravesh!$AQ$5:$AQ$16,0)))) ->  | AD100: =IF(B100="","",IF(Q100="","",IF(Q100="NA","NA",INDEX(TPravesh!$AQ$5:$AQ$16,MATCH(Q100,TPravesh!$AA$5:$AA$16,0))))) ->  | AF100: =IF(B100="","",IF(W100="YES",HOME!$C$7,0)) ->  | AG100: =IF(B100="","",IF(S100="YES",HOME!$C$6,0)) ->  | AL100: =IF(B100="","",IF(I100="OLD",VLOOKUP(O100,TPravesh!$B$21:$G$24,4),VLOOKUP(O100,TPravesh!$B$28:$G$29,4))) ->  | AW100: =IF(B100="","",IF(X100="YES",IF(I100="OLD",ROUND(SUM(O100+O100*HOME!$F$6)*50%,0),ROUND(SUM(O100+O100*HOME!$F$6)*50%,0)))) ->  | AX100: =IF(B100="","",IF(X100="YES",IF(I100="OLD",ROUND(SUM(AO100+AO100*HOME!$F$6)*50%,0),ROUND(SUM(AO100+AO100*HOME!$F$6)*50%,0)))) ->  | BB100: =IF(B100="","",IF(N100="FIX PAY",0,IF(BA100="OLD",AQ100/1000*HOME!$F$7,0))) ->  | BC100: =IF(B100="","",IF(N100="VACANT",0,IF(N100="FIX PAY",0,IF(BA100="NEW",AQ100/1000*HOME!$F$6,0)))) ->  | BD100: =IF(B100="","",IF(N100="FIX PAY",0,IF(BA100="OLD",AR100/1000*HOME!$F$7,0))) ->  | BE100: =IF(B100="","",IF(N100="VACANT",0,IF(N100="FIX PAY",0,IF(BA100="NEW",AR100/1000*HOME!$F$6,0)))) -> 
M101: =IF(L101="","",INDEX(TPravesh!$U$3:$U$26,MATCH('Emp Data'!L101,TPravesh!$S$3:$S$26,0))) ->  | AC101: =IF(B101="","",IF(AD101="NA","NA",INDEX(TPravesh!$AA$5:$AA$16,MATCH(AD101,TPravesh!$AQ$5:$AQ$16,0)))) ->  | AD101: =IF(B101="","",IF(Q101="","",IF(Q101="NA","NA",INDEX(TPravesh!$AQ$5:$AQ$16,MATCH(Q101,TPravesh!$AA$5:$AA$16,0))))) ->  | AF101: =IF(B101="","",IF(W101="YES",HOME!$C$7,0)) ->  | AG101: =IF(B101="","",IF(S101="YES",HOME!$C$6,0)) ->  | AL101: =IF(B101="","",IF(I101="OLD",VLOOKUP(O101,TPravesh!$B$21:$G$24,4),VLOOKUP(O101,TPravesh!$B$28:$G$29,4))) ->  | AW101: =IF(B101="","",IF(X101="YES",IF(I101="OLD",ROUND(SUM(O101+O101*HOME!$F$6)*50%,0),ROUND(SUM(O101+O101*HOME!$F$6)*50%,0)))) ->  | AX101: =IF(B101="","",IF(X101="YES",IF(I101="OLD",ROUND(SUM(AO101+AO101*HOME!$F$6)*50%,0),ROUND(SUM(AO101+AO101*HOME!$F$6)*50%,0)))) ->  | BB101: =IF(B101="","",IF(N101="FIX PAY",0,IF(BA101="OLD",AQ101/1000*HOME!$F$7,0))) ->  | BC101: =IF(B101="","",IF(N101="VACANT",0,IF(N101="FIX PAY",0,IF(BA101="NEW",AQ101/1000*HOME!$F$6,0)))) ->  | BD101: =IF(B101="","",IF(N101="FIX PAY",0,IF(BA101="OLD",AR101/1000*HOME!$F$7,0))) ->  | BE101: =IF(B101="","",IF(N101="VACANT",0,IF(N101="FIX PAY",0,IF(BA101="NEW",AR101/1000*HOME!$F$6,0)))) -> 
M102: =IF(L102="","",INDEX(TPravesh!$U$3:$U$26,MATCH('Emp Data'!L102,TPravesh!$S$3:$S$26,0))) ->  | AC102: =IF(B102="","",IF(AD102="NA","NA",INDEX(TPravesh!$AA$5:$AA$16,MATCH(AD102,TPravesh!$AQ$5:$AQ$16,0)))) ->  | AD102: =IF(B102="","",IF(Q102="","",IF(Q102="NA","NA",INDEX(TPravesh!$AQ$5:$AQ$16,MATCH(Q102,TPravesh!$AA$5:$AA$16,0))))) ->  | AF102: =IF(B102="","",IF(W102="YES",HOME!$C$7,0)) ->  | AG102: =IF(B102="","",IF(S102="YES",HOME!$C$6,0)) ->  | AL102: =IF(B102="","",IF(I102="OLD",VLOOKUP(O102,TPravesh!$B$21:$G$24,4),VLOOKUP(O102,TPravesh!$B$28:$G$29,4))) ->  | AW102: =IF(B102="","",IF(X102="YES",IF(I102="OLD",ROUND(SUM(O102+O102*HOME!$F$6)*50%,0),ROUND(SUM(O102+O102*HOME!$F$6)*50%,0)))) ->  | AX102: =IF(B102="","",IF(X102="YES",IF(I102="OLD",ROUND(SUM(AO102+AO102*HOME!$F$6)*50%,0),ROUND(SUM(AO102+AO102*HOME!$F$6)*50%,0)))) ->  | BB102: =IF(B102="","",IF(N102="FIX PAY",0,IF(BA102="OLD",AQ102/1000*HOME!$F$7,0))) ->  | BC102: =IF(B102="","",IF(N102="VACANT",0,IF(N102="FIX PAY",0,IF(BA102="NEW",AQ102/1000*HOME!$F$6,0)))) ->  | BD102: =IF(B102="","",IF(N102="FIX PAY",0,IF(BA102="OLD",AR102/1000*HOME!$F$7,0))) ->  | BE102: =IF(B102="","",IF(N102="VACANT",0,IF(N102="FIX PAY",0,IF(BA102="NEW",AR102/1000*HOME!$F$6,0)))) -> 
M103: =IF(L103="","",INDEX(TPravesh!$U$3:$U$26,MATCH('Emp Data'!L103,TPravesh!$S$3:$S$26,0))) ->  | AC103: =IF(B103="","",IF(AD103="NA","NA",INDEX(TPravesh!$AA$5:$AA$16,MATCH(AD103,TPravesh!$AQ$5:$AQ$16,0)))) ->  | AD103: =IF(B103="","",IF(Q103="","",IF(Q103="NA","NA",INDEX(TPravesh!$AQ$5:$AQ$16,MATCH(Q103,TPravesh!$AA$5:$AA$16,0))))) ->  | AF103: =IF(B103="","",IF(W103="YES",HOME!$C$7,0)) ->  | AG103: =IF(B103="","",IF(S103="YES",HOME!$C$6,0)) ->  | AL103: =IF(B103="","",IF(I103="OLD",VLOOKUP(O103,TPravesh!$B$21:$G$24,4),VLOOKUP(O103,TPravesh!$B$28:$G$29,4))) ->  | AW103: =IF(B103="","",IF(X103="YES",IF(I103="OLD",ROUND(SUM(O103+O103*HOME!$F$6)*50%,0),ROUND(SUM(O103+O103*HOME!$F$6)*50%,0)))) ->  | AX103: =IF(B103="","",IF(X103="YES",IF(I103="OLD",ROUND(SUM(AO103+AO103*HOME!$F$6)*50%,0),ROUND(SUM(AO103+AO103*HOME!$F$6)*50%,0)))) ->  | BB103: =IF(B103="","",IF(N103="FIX PAY",0,IF(BA103="OLD",AQ103/1000*HOME!$F$7,0))) ->  | BC103: =IF(B103="","",IF(N103="VACANT",0,IF(N103="FIX PAY",0,IF(BA103="NEW",AQ103/1000*HOME!$F$6,0)))) ->  | BD103: =IF(B103="","",IF(N103="FIX PAY",0,IF(BA103="OLD",AR103/1000*HOME!$F$7,0))) ->  | BE103: =IF(B103="","",IF(N103="VACANT",0,IF(N103="FIX PAY",0,IF(BA103="NEW",AR103/1000*HOME!$F$6,0)))) -> 
M104: =IF(L104="","",INDEX(TPravesh!$U$3:$U$26,MATCH('Emp Data'!L104,TPravesh!$S$3:$S$26,0))) ->  | AC104: =IF(B104="","",IF(AD104="NA","NA",INDEX(TPravesh!$AA$5:$AA$16,MATCH(AD104,TPravesh!$AQ$5:$AQ$16,0)))) ->  | AD104: =IF(B104="","",IF(Q104="","",IF(Q104="NA","NA",INDEX(TPravesh!$AQ$5:$AQ$16,MATCH(Q104,TPravesh!$AA$5:$AA$16,0))))) ->  | AF104: =IF(B104="","",IF(W104="YES",HOME!$C$7,0)) ->  | AG104: =IF(B104="","",IF(S104="YES",HOME!$C$6,0)) ->  | AL104: =IF(B104="","",IF(I104="OLD",VLOOKUP(O104,TPravesh!$B$21:$G$24,4),VLOOKUP(O104,TPravesh!$B$28:$G$29,4))) ->  | AW104: =IF(B104="","",IF(X104="YES",IF(I104="OLD",ROUND(SUM(O104+O104*HOME!$F$6)*50%,0),ROUND(SUM(O104+O104*HOME!$F$6)*50%,0)))) ->  | AX104: =IF(B104="","",IF(X104="YES",IF(I104="OLD",ROUND(SUM(AO104+AO104*HOME!$F$6)*50%,0),ROUND(SUM(AO104+AO104*HOME!$F$6)*50%,0)))) ->  | BB104: =IF(B104="","",IF(N104="FIX PAY",0,IF(BA104="OLD",AQ104/1000*HOME!$F$7,0))) ->  | BC104: =IF(B104="","",IF(N104="VACANT",0,IF(N104="FIX PAY",0,IF(BA104="NEW",AQ104/1000*HOME!$F$6,0)))) ->  | BD104: =IF(B104="","",IF(N104="FIX PAY",0,IF(BA104="OLD",AR104/1000*HOME!$F$7,0))) ->  | BE104: =IF(B104="","",IF(N104="VACANT",0,IF(N104="FIX PAY",0,IF(BA104="NEW",AR104/1000*HOME!$F$6,0)))) -> 
M105: =IF(L105="","",INDEX(TPravesh!$U$3:$U$26,MATCH('Emp Data'!L105,TPravesh!$S$3:$S$26,0))) ->  | AC105: =IF(B105="","",IF(AD105="NA","NA",INDEX(TPravesh!$AA$5:$AA$16,MATCH(AD105,TPravesh!$AQ$5:$AQ$16,0)))) ->  | AD105: =IF(B105="","",IF(Q105="","",IF(Q105="NA","NA",INDEX(TPravesh!$AQ$5:$AQ$16,MATCH(Q105,TPravesh!$AA$5:$AA$16,0))))) ->  | AF105: =IF(B105="","",IF(W105="YES",HOME!$C$7,0)) ->  | AG105: =IF(B105="","",IF(S105="YES",HOME!$C$6,0)) ->  | AL105: =IF(B105="","",IF(I105="OLD",VLOOKUP(O105,TPravesh!$B$21:$G$24,4),VLOOKUP(O105,TPravesh!$B$28:$G$29,4))) ->  | AW105: =IF(B105="","",IF(X105="YES",IF(I105="OLD",ROUND(SUM(O105+O105*HOME!$F$6)*50%,0),ROUND(SUM(O105+O105*HOME!$F$6)*50%,0)))) ->  | AX105: =IF(B105="","",IF(X105="YES",IF(I105="OLD",ROUND(SUM(AO105+AO105*HOME!$F$6)*50%,0),ROUND(SUM(AO105+AO105*HOME!$F$6)*50%,0)))) ->  | BB105: =IF(B105="","",IF(N105="FIX PAY",0,IF(BA105="OLD",AQ105/1000*HOME!$F$7,0))) ->  | BC105: =IF(B105="","",IF(N105="VACANT",0,IF(N105="FIX PAY",0,IF(BA105="NEW",AQ105/1000*HOME!$F$6,0)))) ->  | BD105: =IF(B105="","",IF(N105="FIX PAY",0,IF(BA105="OLD",AR105/1000*HOME!$F$7,0))) ->  | BE105: =IF(B105="","",IF(N105="VACANT",0,IF(N105="FIX PAY",0,IF(BA105="NEW",AR105/1000*HOME!$F$6,0)))) -> 
M106: =IF(L106="","",INDEX(TPravesh!$U$3:$U$26,MATCH('Emp Data'!L106,TPravesh!$S$3:$S$26,0))) ->  | AC106: =IF(B106="","",IF(AD106="NA","NA",INDEX(TPravesh!$AA$5:$AA$16,MATCH(AD106,TPravesh!$AQ$5:$AQ$16,0)))) ->  | AD106: =IF(B106="","",IF(Q106="","",IF(Q106="NA","NA",INDEX(TPravesh!$AQ$5:$AQ$16,MATCH(Q106,TPravesh!$AA$5:$AA$16,0))))) ->  | AF106: =IF(B106="","",IF(W106="YES",HOME!$C$7,0)) ->  | AG106: =IF(B106="","",IF(S106="YES",HOME!$C$6,0)) ->  | AL106: =IF(B106="","",IF(I106="OLD",VLOOKUP(O106,TPravesh!$B$21:$G$24,4),VLOOKUP(O106,TPravesh!$B$28:$G$29,4))) ->  | AW106: =IF(B106="","",IF(X106="YES",IF(I106="OLD",ROUND(SUM(O106+O106*HOME!$F$6)*50%,0),ROUND(SUM(O106+O106*HOME!$F$6)*50%,0)))) ->  | AX106: =IF(B106="","",IF(X106="YES",IF(I106="OLD",ROUND(SUM(AO106+AO106*HOME!$F$6)*50%,0),ROUND(SUM(AO106+AO106*HOME!$F$6)*50%,0)))) ->  | BB106: =IF(B106="","",IF(N106="FIX PAY",0,IF(BA106="OLD",AQ106/1000*HOME!$F$7,0))) ->  | BC106: =IF(B106="","",IF(N106="VACANT",0,IF(N106="FIX PAY",0,IF(BA106="NEW",AQ106/1000*HOME!$F$6,0)))) ->  | BD106: =IF(B106="","",IF(N106="FIX PAY",0,IF(BA106="OLD",AR106/1000*HOME!$F$7,0))) ->  | BE106: =IF(B106="","",IF(N106="VACANT",0,IF(N106="FIX PAY",0,IF(BA106="NEW",AR106/1000*HOME!$F$6,0)))) -> 
M107: =IF(L107="","",INDEX(TPravesh!$U$3:$U$26,MATCH('Emp Data'!L107,TPravesh!$S$3:$S$26,0))) ->  | AC107: =IF(B107="","",IF(AD107="NA","NA",INDEX(TPravesh!$AA$5:$AA$16,MATCH(AD107,TPravesh!$AQ$5:$AQ$16,0)))) ->  | AD107: =IF(B107="","",IF(Q107="","",IF(Q107="NA","NA",INDEX(TPravesh!$AQ$5:$AQ$16,MATCH(Q107,TPravesh!$AA$5:$AA$16,0))))) ->  | AF107: =IF(B107="","",IF(W107="YES",HOME!$C$7,0)) ->  | AG107: =IF(B107="","",IF(S107="YES",HOME!$C$6,0)) ->  | AL107: =IF(B107="","",IF(I107="OLD",VLOOKUP(O107,TPravesh!$B$21:$G$24,4),VLOOKUP(O107,TPravesh!$B$28:$G$29,4))) ->  | AW107: =IF(B107="","",IF(X107="YES",IF(I107="OLD",ROUND(SUM(O107+O107*HOME!$F$6)*50%,0),ROUND(SUM(O107+O107*HOME!$F$6)*50%,0)))) ->  | AX107: =IF(B107="","",IF(X107="YES",IF(I107="OLD",ROUND(SUM(AO107+AO107*HOME!$F$6)*50%,0),ROUND(SUM(AO107+AO107*HOME!$F$6)*50%,0)))) ->  | BB107: =IF(B107="","",IF(N107="FIX PAY",0,IF(BA107="OLD",AQ107/1000*HOME!$F$7,0))) ->  | BC107: =IF(B107="","",IF(N107="VACANT",0,IF(N107="FIX PAY",0,IF(BA107="NEW",AQ107/1000*HOME!$F$6,0)))) ->  | BD107: =IF(B107="","",IF(N107="FIX PAY",0,IF(BA107="OLD",AR107/1000*HOME!$F$7,0))) ->  | BE107: =IF(B107="","",IF(N107="VACANT",0,IF(N107="FIX PAY",0,IF(BA107="NEW",AR107/1000*HOME!$F$6,0)))) -> 
M108: =IF(L108="","",INDEX(TPravesh!$U$3:$U$26,MATCH('Emp Data'!L108,TPravesh!$S$3:$S$26,0))) ->  | AC108: =IF(B108="","",IF(AD108="NA","NA",INDEX(TPravesh!$AA$5:$AA$16,MATCH(AD108,TPravesh!$AQ$5:$AQ$16,0)))) ->  | AD108: =IF(B108="","",IF(Q108="","",IF(Q108="NA","NA",INDEX(TPravesh!$AQ$5:$AQ$16,MATCH(Q108,TPravesh!$AA$5:$AA$16,0))))) ->  | AF108: =IF(B108="","",IF(W108="YES",HOME!$C$7,0)) ->  | AG108: =IF(B108="","",IF(S108="YES",HOME!$C$6,0)) ->  | AL108: =IF(B108="","",IF(I108="OLD",VLOOKUP(O108,TPravesh!$B$21:$G$24,4),VLOOKUP(O108,TPravesh!$B$28:$G$29,4))) ->  | AW108: =IF(B108="","",IF(X108="YES",IF(I108="OLD",ROUND(SUM(O108+O108*HOME!$F$6)*50%,0),ROUND(SUM(O108+O108*HOME!$F$6)*50%,0)))) ->  | AX108: =IF(B108="","",IF(X108="YES",IF(I108="OLD",ROUND(SUM(AO108+AO108*HOME!$F$6)*50%,0),ROUND(SUM(AO108+AO108*HOME!$F$6)*50%,0)))) ->  | BB108: =IF(B108="","",IF(N108="FIX PAY",0,IF(BA108="OLD",AQ108/1000*HOME!$F$7,0))) ->  | BC108: =IF(B108="","",IF(N108="VACANT",0,IF(N108="FIX PAY",0,IF(BA108="NEW",AQ108/1000*HOME!$F$6,0)))) ->  | BD108: =IF(B108="","",IF(N108="FIX PAY",0,IF(BA108="OLD",AR108/1000*HOME!$F$7,0))) ->  | BE108: =IF(B108="","",IF(N108="VACANT",0,IF(N108="FIX PAY",0,IF(BA108="NEW",AR108/1000*HOME!$F$6,0)))) -> 
M109: =IF(L109="","",INDEX(TPravesh!$U$3:$U$26,MATCH('Emp Data'!L109,TPravesh!$S$3:$S$26,0))) ->  | AC109: =IF(B109="","",IF(AD109="NA","NA",INDEX(TPravesh!$AA$5:$AA$16,MATCH(AD109,TPravesh!$AQ$5:$AQ$16,0)))) ->  | AD109: =IF(B109="","",IF(Q109="","",IF(Q109="NA","NA",INDEX(TPravesh!$AQ$5:$AQ$16,MATCH(Q109,TPravesh!$AA$5:$AA$16,0))))) ->  | AF109: =IF(B109="","",IF(W109="YES",HOME!$C$7,0)) ->  | AG109: =IF(B109="","",IF(S109="YES",HOME!$C$6,0)) ->  | AL109: =IF(B109="","",IF(I109="OLD",VLOOKUP(O109,TPravesh!$B$21:$G$24,4),VLOOKUP(O109,TPravesh!$B$28:$G$29,4))) ->  | AW109: =IF(B109="","",IF(X109="YES",IF(I109="OLD",ROUND(SUM(O109+O109*HOME!$F$6)*50%,0),ROUND(SUM(O109+O109*HOME!$F$6)*50%,0)))) ->  | AX109: =IF(B109="","",IF(X109="YES",IF(I109="OLD",ROUND(SUM(AO109+AO109*HOME!$F$6)*50%,0),ROUND(SUM(AO109+AO109*HOME!$F$6)*50%,0)))) ->  | BB109: =IF(B109="","",IF(N109="FIX PAY",0,IF(BA109="OLD",AQ109/1000*HOME!$F$7,0))) ->  | BC109: =IF(B109="","",IF(N109="VACANT",0,IF(N109="FIX PAY",0,IF(BA109="NEW",AQ109/1000*HOME!$F$6,0)))) ->  | BD109: =IF(B109="","",IF(N109="FIX PAY",0,IF(BA109="OLD",AR109/1000*HOME!$F$7,0))) ->  | BE109: =IF(B109="","",IF(N109="VACANT",0,IF(N109="FIX PAY",0,IF(BA109="NEW",AR109/1000*HOME!$F$6,0)))) -> 
M110: =IF(L110="","",INDEX(TPravesh!$U$3:$U$26,MATCH('Emp Data'!L110,TPravesh!$S$3:$S$26,0))) ->  | AC110: =IF(B110="","",IF(AD110="NA","NA",INDEX(TPravesh!$AA$5:$AA$16,MATCH(AD110,TPravesh!$AQ$5:$AQ$16,0)))) ->  | AD110: =IF(B110="","",IF(Q110="","",IF(Q110="NA","NA",INDEX(TPravesh!$AQ$5:$AQ$16,MATCH(Q110,TPravesh!$AA$5:$AA$16,0))))) ->  | AF110: =IF(B110="","",IF(W110="YES",HOME!$C$7,0)) ->  | AG110: =IF(B110="","",IF(S110="YES",HOME!$C$6,0)) ->  | AL110: =IF(B110="","",IF(I110="OLD",VLOOKUP(O110,TPravesh!$B$21:$G$24,4),VLOOKUP(O110,TPravesh!$B$28:$G$29,4))) ->  | AW110: =IF(B110="","",IF(X110="YES",IF(I110="OLD",ROUND(SUM(O110+O110*HOME!$F$6)*50%,0),ROUND(SUM(O110+O110*HOME!$F$6)*50%,0)))) ->  | AX110: =IF(B110="","",IF(X110="YES",IF(I110="OLD",ROUND(SUM(AO110+AO110*HOME!$F$6)*50%,0),ROUND(SUM(AO110+AO110*HOME!$F$6)*50%,0)))) ->  | BB110: =IF(B110="","",IF(N110="FIX PAY",0,IF(BA110="OLD",AQ110/1000*HOME!$F$7,0))) ->  | BC110: =IF(B110="","",IF(N110="VACANT",0,IF(N110="FIX PAY",0,IF(BA110="NEW",AQ110/1000*HOME!$F$6,0)))) ->  | BD110: =IF(B110="","",IF(N110="FIX PAY",0,IF(BA110="OLD",AR110/1000*HOME!$F$7,0))) ->  | BE110: =IF(B110="","",IF(N110="VACANT",0,IF(N110="FIX PAY",0,IF(BA110="NEW",AR110/1000*HOME!$F$6,0)))) -> 
M111: =IF(L111="","",INDEX(TPravesh!$U$3:$U$26,MATCH('Emp Data'!L111,TPravesh!$S$3:$S$26,0))) ->  | AC111: =IF(B111="","",IF(AD111="NA","NA",INDEX(TPravesh!$AA$5:$AA$16,MATCH(AD111,TPravesh!$AQ$5:$AQ$16,0)))) ->  | AD111: =IF(B111="","",IF(Q111="","",IF(Q111="NA","NA",INDEX(TPravesh!$AQ$5:$AQ$16,MATCH(Q111,TPravesh!$AA$5:$AA$16,0))))) ->  | AF111: =IF(B111="","",IF(W111="YES",HOME!$C$7,0)) ->  | AG111: =IF(B111="","",IF(S111="YES",HOME!$C$6,0)) ->  | AL111: =IF(B111="","",IF(I111="OLD",VLOOKUP(O111,TPravesh!$B$21:$G$24,4),VLOOKUP(O111,TPravesh!$B$28:$G$29,4))) ->  | AW111: =IF(B111="","",IF(X111="YES",IF(I111="OLD",ROUND(SUM(O111+O111*HOME!$F$6)*50%,0),ROUND(SUM(O111+O111*HOME!$F$6)*50%,0)))) ->  | AX111: =IF(B111="","",IF(X111="YES",IF(I111="OLD",ROUND(SUM(AO111+AO111*HOME!$F$6)*50%,0),ROUND(SUM(AO111+AO111*HOME!$F$6)*50%,0)))) ->  | BB111: =IF(B111="","",IF(N111="FIX PAY",0,IF(BA111="OLD",AQ111/1000*HOME!$F$7,0))) ->  | BC111: =IF(B111="","",IF(N111="VACANT",0,IF(N111="FIX PAY",0,IF(BA111="NEW",AQ111/1000*HOME!$F$6,0)))) ->  | BD111: =IF(B111="","",IF(N111="FIX PAY",0,IF(BA111="OLD",AR111/1000*HOME!$F$7,0))) ->  | BE111: =IF(B111="","",IF(N111="VACANT",0,IF(N111="FIX PAY",0,IF(BA111="NEW",AR111/1000*HOME!$F$6,0)))) -> 
M112: =IF(L112="","",INDEX(TPravesh!$U$3:$U$26,MATCH('Emp Data'!L112,TPravesh!$S$3:$S$26,0))) ->  | AC112: =IF(B112="","",IF(AD112="NA","NA",INDEX(TPravesh!$AA$5:$AA$16,MATCH(AD112,TPravesh!$AQ$5:$AQ$16,0)))) ->  | AD112: =IF(B112="","",IF(Q112="","",IF(Q112="NA","NA",INDEX(TPravesh!$AQ$5:$AQ$16,MATCH(Q112,TPravesh!$AA$5:$AA$16,0))))) ->  | AF112: =IF(B112="","",IF(W112="YES",HOME!$C$7,0)) ->  | AG112: =IF(B112="","",IF(S112="YES",HOME!$C$6,0)) ->  | AL112: =IF(B112="","",IF(I112="OLD",VLOOKUP(O112,TPravesh!$B$21:$G$24,4),VLOOKUP(O112,TPravesh!$B$28:$G$29,4))) ->  | AW112: =IF(B112="","",IF(X112="YES",IF(I112="OLD",ROUND(SUM(O112+O112*HOME!$F$6)*50%,0),ROUND(SUM(O112+O112*HOME!$F$6)*50%,0)))) ->  | AX112: =IF(B112="","",IF(X112="YES",IF(I112="OLD",ROUND(SUM(AO112+AO112*HOME!$F$6)*50%,0),ROUND(SUM(AO112+AO112*HOME!$F$6)*50%,0)))) ->  | BB112: =IF(B112="","",IF(N112="FIX PAY",0,IF(BA112="OLD",AQ112/1000*HOME!$F$7,0))) ->  | BC112: =IF(B112="","",IF(N112="VACANT",0,IF(N112="FIX PAY",0,IF(BA112="NEW",AQ112/1000*HOME!$F$6,0)))) ->  | BD112: =IF(B112="","",IF(N112="FIX PAY",0,IF(BA112="OLD",AR112/1000*HOME!$F$7,0))) ->  | BE112: =IF(B112="","",IF(N112="VACANT",0,IF(N112="FIX PAY",0,IF(BA112="NEW",AR112/1000*HOME!$F$6,0)))) -> 
M113: =IF(L113="","",INDEX(TPravesh!$U$3:$U$26,MATCH('Emp Data'!L113,TPravesh!$S$3:$S$26,0))) ->  | AC113: =IF(B113="","",IF(AD113="NA","NA",INDEX(TPravesh!$AA$5:$AA$16,MATCH(AD113,TPravesh!$AQ$5:$AQ$16,0)))) ->  | AD113: =IF(B113="","",IF(Q113="","",IF(Q113="NA","NA",INDEX(TPravesh!$AQ$5:$AQ$16,MATCH(Q113,TPravesh!$AA$5:$AA$16,0))))) ->  | AF113: =IF(B113="","",IF(W113="YES",HOME!$C$7,0)) ->  | AG113: =IF(B113="","",IF(S113="YES",HOME!$C$6,0)) ->  | AL113: =IF(B113="","",IF(I113="OLD",VLOOKUP(O113,TPravesh!$B$21:$G$24,4),VLOOKUP(O113,TPravesh!$B$28:$G$29,4))) ->  | AW113: =IF(B113="","",IF(X113="YES",IF(I113="OLD",ROUND(SUM(O113+O113*HOME!$F$6)*50%,0),ROUND(SUM(O113+O113*HOME!$F$6)*50%,0)))) ->  | AX113: =IF(B113="","",IF(X113="YES",IF(I113="OLD",ROUND(SUM(AO113+AO113*HOME!$F$6)*50%,0),ROUND(SUM(AO113+AO113*HOME!$F$6)*50%,0)))) ->  | BB113: =IF(B113="","",IF(N113="FIX PAY",0,IF(BA113="OLD",AQ113/1000*HOME!$F$7,0))) ->  | BC113: =IF(B113="","",IF(N113="VACANT",0,IF(N113="FIX PAY",0,IF(BA113="NEW",AQ113/1000*HOME!$F$6,0)))) ->  | BD113: =IF(B113="","",IF(N113="FIX PAY",0,IF(BA113="OLD",AR113/1000*HOME!$F$7,0))) ->  | BE113: =IF(B113="","",IF(N113="VACANT",0,IF(N113="FIX PAY",0,IF(BA113="NEW",AR113/1000*HOME!$F$6,0)))) -> 
M114: =IF(L114="","",INDEX(TPravesh!$U$3:$U$26,MATCH('Emp Data'!L114,TPravesh!$S$3:$S$26,0))) ->  | AC114: =IF(B114="","",IF(AD114="NA","NA",INDEX(TPravesh!$AA$5:$AA$16,MATCH(AD114,TPravesh!$AQ$5:$AQ$16,0)))) ->  | AD114: =IF(B114="","",IF(Q114="","",IF(Q114="NA","NA",INDEX(TPravesh!$AQ$5:$AQ$16,MATCH(Q114,TPravesh!$AA$5:$AA$16,0))))) ->  | AF114: =IF(B114="","",IF(W114="YES",HOME!$C$7,0)) ->  | AG114: =IF(B114="","",IF(S114="YES",HOME!$C$6,0)) ->  | AL114: =IF(B114="","",IF(I114="OLD",VLOOKUP(O114,TPravesh!$B$21:$G$24,4),VLOOKUP(O114,TPravesh!$B$28:$G$29,4))) ->  | AW114: =IF(B114="","",IF(X114="YES",IF(I114="OLD",ROUND(SUM(O114+O114*HOME!$F$6)*50%,0),ROUND(SUM(O114+O114*HOME!$F$6)*50%,0)))) ->  | AX114: =IF(B114="","",IF(X114="YES",IF(I114="OLD",ROUND(SUM(AO114+AO114*HOME!$F$6)*50%,0),ROUND(SUM(AO114+AO114*HOME!$F$6)*50%,0)))) ->  | BB114: =IF(B114="","",IF(N114="FIX PAY",0,IF(BA114="OLD",AQ114/1000*HOME!$F$7,0))) ->  | BC114: =IF(B114="","",IF(N114="VACANT",0,IF(N114="FIX PAY",0,IF(BA114="NEW",AQ114/1000*HOME!$F$6,0)))) ->  | BD114: =IF(B114="","",IF(N114="FIX PAY",0,IF(BA114="OLD",AR114/1000*HOME!$F$7,0))) ->  | BE114: =IF(B114="","",IF(N114="VACANT",0,IF(N114="FIX PAY",0,IF(BA114="NEW",AR114/1000*HOME!$F$6,0)))) -> 
M115: =IF(L115="","",INDEX(TPravesh!$U$3:$U$26,MATCH('Emp Data'!L115,TPravesh!$S$3:$S$26,0))) ->  | AC115: =IF(B115="","",IF(AD115="NA","NA",INDEX(TPravesh!$AA$5:$AA$16,MATCH(AD115,TPravesh!$AQ$5:$AQ$16,0)))) ->  | AD115: =IF(B115="","",IF(Q115="","",IF(Q115="NA","NA",INDEX(TPravesh!$AQ$5:$AQ$16,MATCH(Q115,TPravesh!$AA$5:$AA$16,0))))) ->  | AF115: =IF(B115="","",IF(W115="YES",HOME!$C$7,0)) ->  | AG115: =IF(B115="","",IF(S115="YES",HOME!$C$6,0)) ->  | AL115: =IF(B115="","",IF(I115="OLD",VLOOKUP(O115,TPravesh!$B$21:$G$24,4),VLOOKUP(O115,TPravesh!$B$28:$G$29,4))) ->  | AW115: =IF(B115="","",IF(X115="YES",IF(I115="OLD",ROUND(SUM(O115+O115*HOME!$F$6)*50%,0),ROUND(SUM(O115+O115*HOME!$F$6)*50%,0)))) ->  | AX115: =IF(B115="","",IF(X115="YES",IF(I115="OLD",ROUND(SUM(AO115+AO115*HOME!$F$6)*50%,0),ROUND(SUM(AO115+AO115*HOME!$F$6)*50%,0)))) ->  | BB115: =IF(B115="","",IF(N115="FIX PAY",0,IF(BA115="OLD",AQ115/1000*HOME!$F$7,0))) ->  | BC115: =IF(B115="","",IF(N115="VACANT",0,IF(N115="FIX PAY",0,IF(BA115="NEW",AQ115/1000*HOME!$F$6,0)))) ->  | BD115: =IF(B115="","",IF(N115="FIX PAY",0,IF(BA115="OLD",AR115/1000*HOME!$F$7,0))) ->  | BE115: =IF(B115="","",IF(N115="VACANT",0,IF(N115="FIX PAY",0,IF(BA115="NEW",AR115/1000*HOME!$F$6,0)))) -> 
M116: =IF(L116="","",INDEX(TPravesh!$U$3:$U$26,MATCH('Emp Data'!L116,TPravesh!$S$3:$S$26,0))) ->  | AC116: =IF(B116="","",IF(AD116="NA","NA",INDEX(TPravesh!$AA$5:$AA$16,MATCH(AD116,TPravesh!$AQ$5:$AQ$16,0)))) ->  | AD116: =IF(B116="","",IF(Q116="","",IF(Q116="NA","NA",INDEX(TPravesh!$AQ$5:$AQ$16,MATCH(Q116,TPravesh!$AA$5:$AA$16,0))))) ->  | AF116: =IF(B116="","",IF(W116="YES",HOME!$C$7,0)) ->  | AG116: =IF(B116="","",IF(S116="YES",HOME!$C$6,0)) ->  | AL116: =IF(B116="","",IF(I116="OLD",VLOOKUP(O116,TPravesh!$B$21:$G$24,4),VLOOKUP(O116,TPravesh!$B$28:$G$29,4))) ->  | AW116: =IF(B116="","",IF(X116="YES",IF(I116="OLD",ROUND(SUM(O116+O116*HOME!$F$6)*50%,0),ROUND(SUM(O116+O116*HOME!$F$6)*50%,0)))) ->  | AX116: =IF(B116="","",IF(X116="YES",IF(I116="OLD",ROUND(SUM(AO116+AO116*HOME!$F$6)*50%,0),ROUND(SUM(AO116+AO116*HOME!$F$6)*50%,0)))) ->  | BB116: =IF(B116="","",IF(N116="FIX PAY",0,IF(BA116="OLD",AQ116/1000*HOME!$F$7,0))) ->  | BC116: =IF(B116="","",IF(N116="VACANT",0,IF(N116="FIX PAY",0,IF(BA116="NEW",AQ116/1000*HOME!$F$6,0)))) ->  | BD116: =IF(B116="","",IF(N116="FIX PAY",0,IF(BA116="OLD",AR116/1000*HOME!$F$7,0))) ->  | BE116: =IF(B116="","",IF(N116="VACANT",0,IF(N116="FIX PAY",0,IF(BA116="NEW",AR116/1000*HOME!$F$6,0)))) -> 
M117: =IF(L117="","",INDEX(TPravesh!$U$3:$U$26,MATCH('Emp Data'!L117,TPravesh!$S$3:$S$26,0))) ->  | AC117: =IF(B117="","",IF(AD117="NA","NA",INDEX(TPravesh!$AA$5:$AA$16,MATCH(AD117,TPravesh!$AQ$5:$AQ$16,0)))) ->  | AD117: =IF(B117="","",IF(Q117="","",IF(Q117="NA","NA",INDEX(TPravesh!$AQ$5:$AQ$16,MATCH(Q117,TPravesh!$AA$5:$AA$16,0))))) ->  | AF117: =IF(B117="","",IF(W117="YES",HOME!$C$7,0)) ->  | AG117: =IF(B117="","",IF(S117="YES",HOME!$C$6,0)) ->  | AL117: =IF(B117="","",IF(I117="OLD",VLOOKUP(O117,TPravesh!$B$21:$G$24,4),VLOOKUP(O117,TPravesh!$B$28:$G$29,4))) ->  | AW117: =IF(B117="","",IF(X117="YES",IF(I117="OLD",ROUND(SUM(O117+O117*HOME!$F$6)*50%,0),ROUND(SUM(O117+O117*HOME!$F$6)*50%,0)))) ->  | AX117: =IF(B117="","",IF(X117="YES",IF(I117="OLD",ROUND(SUM(AO117+AO117*HOME!$F$6)*50%,0),ROUND(SUM(AO117+AO117*HOME!$F$6)*50%,0)))) ->  | BB117: =IF(B117="","",IF(N117="FIX PAY",0,IF(BA117="OLD",AQ117/1000*HOME!$F$7,0))) ->  | BC117: =IF(B117="","",IF(N117="VACANT",0,IF(N117="FIX PAY",0,IF(BA117="NEW",AQ117/1000*HOME!$F$6,0)))) ->  | BD117: =IF(B117="","",IF(N117="FIX PAY",0,IF(BA117="OLD",AR117/1000*HOME!$F$7,0))) ->  | BE117: =IF(B117="","",IF(N117="VACANT",0,IF(N117="FIX PAY",0,IF(BA117="NEW",AR117/1000*HOME!$F$6,0)))) -> 
M118: =IF(L118="","",INDEX(TPravesh!$U$3:$U$26,MATCH('Emp Data'!L118,TPravesh!$S$3:$S$26,0))) ->  | AC118: =IF(B118="","",IF(AD118="NA","NA",INDEX(TPravesh!$AA$5:$AA$16,MATCH(AD118,TPravesh!$AQ$5:$AQ$16,0)))) ->  | AD118: =IF(B118="","",IF(Q118="","",IF(Q118="NA","NA",INDEX(TPravesh!$AQ$5:$AQ$16,MATCH(Q118,TPravesh!$AA$5:$AA$16,0))))) ->  | AF118: =IF(B118="","",IF(W118="YES",HOME!$C$7,0)) ->  | AG118: =IF(B118="","",IF(S118="YES",HOME!$C$6,0)) ->  | AL118: =IF(B118="","",IF(I118="OLD",VLOOKUP(O118,TPravesh!$B$21:$G$24,4),VLOOKUP(O118,TPravesh!$B$28:$G$29,4))) ->  | AW118: =IF(B118="","",IF(X118="YES",IF(I118="OLD",ROUND(SUM(O118+O118*HOME!$F$6)*50%,0),ROUND(SUM(O118+O118*HOME!$F$6)*50%,0)))) ->  | AX118: =IF(B118="","",IF(X118="YES",IF(I118="OLD",ROUND(SUM(AO118+AO118*HOME!$F$6)*50%,0),ROUND(SUM(AO118+AO118*HOME!$F$6)*50%,0)))) ->  | BB118: =IF(B118="","",IF(N118="FIX PAY",0,IF(BA118="OLD",AQ118/1000*HOME!$F$7,0))) ->  | BC118: =IF(B118="","",IF(N118="VACANT",0,IF(N118="FIX PAY",0,IF(BA118="NEW",AQ118/1000*HOME!$F$6,0)))) ->  | BD118: =IF(B118="","",IF(N118="FIX PAY",0,IF(BA118="OLD",AR118/1000*HOME!$F$7,0))) ->  | BE118: =IF(B118="","",IF(N118="VACANT",0,IF(N118="FIX PAY",0,IF(BA118="NEW",AR118/1000*HOME!$F$6,0)))) -> 
M119: =IF(L119="","",INDEX(TPravesh!$U$3:$U$26,MATCH('Emp Data'!L119,TPravesh!$S$3:$S$26,0))) ->  | AC119: =IF(B119="","",IF(AD119="NA","NA",INDEX(TPravesh!$AA$5:$AA$16,MATCH(AD119,TPravesh!$AQ$5:$AQ$16,0)))) ->  | AD119: =IF(B119="","",IF(Q119="","",IF(Q119="NA","NA",INDEX(TPravesh!$AQ$5:$AQ$16,MATCH(Q119,TPravesh!$AA$5:$AA$16,0))))) ->  | AF119: =IF(B119="","",IF(W119="YES",HOME!$C$7,0)) ->  | AG119: =IF(B119="","",IF(S119="YES",HOME!$C$6,0)) ->  | AL119: =IF(B119="","",IF(I119="OLD",VLOOKUP(O119,TPravesh!$B$21:$G$24,4),VLOOKUP(O119,TPravesh!$B$28:$G$29,4))) ->  | AW119: =IF(B119="","",IF(X119="YES",IF(I119="OLD",ROUND(SUM(O119+O119*HOME!$F$6)*50%,0),ROUND(SUM(O119+O119*HOME!$F$6)*50%,0)))) ->  | AX119: =IF(B119="","",IF(X119="YES",IF(I119="OLD",ROUND(SUM(AO119+AO119*HOME!$F$6)*50%,0),ROUND(SUM(AO119+AO119*HOME!$F$6)*50%,0)))) ->  | BB119: =IF(B119="","",IF(N119="FIX PAY",0,IF(BA119="OLD",AQ119/1000*HOME!$F$7,0))) ->  | BC119: =IF(B119="","",IF(N119="VACANT",0,IF(N119="FIX PAY",0,IF(BA119="NEW",AQ119/1000*HOME!$F$6,0)))) ->  | BD119: =IF(B119="","",IF(N119="FIX PAY",0,IF(BA119="OLD",AR119/1000*HOME!$F$7,0))) ->  | BE119: =IF(B119="","",IF(N119="VACANT",0,IF(N119="FIX PAY",0,IF(BA119="NEW",AR119/1000*HOME!$F$6,0)))) -> 
M120: =IF(L120="","",INDEX(TPravesh!$U$3:$U$26,MATCH('Emp Data'!L120,TPravesh!$S$3:$S$26,0))) ->  | AC120: =IF(B120="","",IF(AD120="NA","NA",INDEX(TPravesh!$AA$5:$AA$16,MATCH(AD120,TPravesh!$AQ$5:$AQ$16,0)))) ->  | AD120: =IF(B120="","",IF(Q120="","",IF(Q120="NA","NA",INDEX(TPravesh!$AQ$5:$AQ$16,MATCH(Q120,TPravesh!$AA$5:$AA$16,0))))) ->  | AF120: =IF(B120="","",IF(W120="YES",HOME!$C$7,0)) ->  | AG120: =IF(B120="","",IF(S120="YES",HOME!$C$6,0)) ->  | AL120: =IF(B120="","",IF(I120="OLD",VLOOKUP(O120,TPravesh!$B$21:$G$24,4),VLOOKUP(O120,TPravesh!$B$28:$G$29,4))) ->  | AW120: =IF(B120="","",IF(X120="YES",IF(I120="OLD",ROUND(SUM(O120+O120*HOME!$F$6)*50%,0),ROUND(SUM(O120+O120*HOME!$F$6)*50%,0)))) ->  | AX120: =IF(B120="","",IF(X120="YES",IF(I120="OLD",ROUND(SUM(AO120+AO120*HOME!$F$6)*50%,0),ROUND(SUM(AO120+AO120*HOME!$F$6)*50%,0)))) ->  | BB120: =IF(B120="","",IF(N120="FIX PAY",0,IF(BA120="OLD",AQ120/1000*HOME!$F$7,0))) ->  | BC120: =IF(B120="","",IF(N120="VACANT",0,IF(N120="FIX PAY",0,IF(BA120="NEW",AQ120/1000*HOME!$F$6,0)))) ->  | BD120: =IF(B120="","",IF(N120="FIX PAY",0,IF(BA120="OLD",AR120/1000*HOME!$F$7,0))) ->  | BE120: =IF(B120="","",IF(N120="VACANT",0,IF(N120="FIX PAY",0,IF(BA120="NEW",AR120/1000*HOME!$F$6,0)))) -> 
M121: =IF(L121="","",INDEX(TPravesh!$U$3:$U$26,MATCH('Emp Data'!L121,TPravesh!$S$3:$S$26,0))) ->  | AC121: =IF(B121="","",IF(AD121="NA","NA",INDEX(TPravesh!$AA$5:$AA$16,MATCH(AD121,TPravesh!$AQ$5:$AQ$16,0)))) ->  | AD121: =IF(B121="","",IF(Q121="","",IF(Q121="NA","NA",INDEX(TPravesh!$AQ$5:$AQ$16,MATCH(Q121,TPravesh!$AA$5:$AA$16,0))))) ->  | AF121: =IF(B121="","",IF(W121="YES",HOME!$C$7,0)) ->  | AG121: =IF(B121="","",IF(S121="YES",HOME!$C$6,0)) ->  | AL121: =IF(B121="","",IF(I121="OLD",VLOOKUP(O121,TPravesh!$B$21:$G$24,4),VLOOKUP(O121,TPravesh!$B$28:$G$29,4))) ->  | AW121: =IF(B121="","",IF(X121="YES",IF(I121="OLD",ROUND(SUM(O121+O121*HOME!$F$6)*50%,0),ROUND(SUM(O121+O121*HOME!$F$6)*50%,0)))) ->  | AX121: =IF(B121="","",IF(X121="YES",IF(I121="OLD",ROUND(SUM(AO121+AO121*HOME!$F$6)*50%,0),ROUND(SUM(AO121+AO121*HOME!$F$6)*50%,0)))) ->  | BB121: =IF(B121="","",IF(N121="FIX PAY",0,IF(BA121="OLD",AQ121/1000*HOME!$F$7,0))) ->  | BC121: =IF(B121="","",IF(N121="VACANT",0,IF(N121="FIX PAY",0,IF(BA121="NEW",AQ121/1000*HOME!$F$6,0)))) ->  | BD121: =IF(B121="","",IF(N121="FIX PAY",0,IF(BA121="OLD",AR121/1000*HOME!$F$7,0))) ->  | BE121: =IF(B121="","",IF(N121="VACANT",0,IF(N121="FIX PAY",0,IF(BA121="NEW",AR121/1000*HOME!$F$6,0)))) -> 
M122: =IF(L122="","",INDEX(TPravesh!$U$3:$U$26,MATCH('Emp Data'!L122,TPravesh!$S$3:$S$26,0))) ->  | AC122: =IF(B122="","",IF(AD122="NA","NA",INDEX(TPravesh!$AA$5:$AA$16,MATCH(AD122,TPravesh!$AQ$5:$AQ$16,0)))) ->  | AD122: =IF(B122="","",IF(Q122="","",IF(Q122="NA","NA",INDEX(TPravesh!$AQ$5:$AQ$16,MATCH(Q122,TPravesh!$AA$5:$AA$16,0))))) ->  | AF122: =IF(B122="","",IF(W122="YES",HOME!$C$7,0)) ->  | AG122: =IF(B122="","",IF(S122="YES",HOME!$C$6,0)) ->  | AL122: =IF(B122="","",IF(I122="OLD",VLOOKUP(O122,TPravesh!$B$21:$G$24,4),VLOOKUP(O122,TPravesh!$B$28:$G$29,4))) ->  | AW122: =IF(B122="","",IF(X122="YES",IF(I122="OLD",ROUND(SUM(O122+O122*HOME!$F$6)*50%,0),ROUND(SUM(O122+O122*HOME!$F$6)*50%,0)))) ->  | AX122: =IF(B122="","",IF(X122="YES",IF(I122="OLD",ROUND(SUM(AO122+AO122*HOME!$F$6)*50%,0),ROUND(SUM(AO122+AO122*HOME!$F$6)*50%,0)))) ->  | BB122: =IF(B122="","",IF(N122="FIX PAY",0,IF(BA122="OLD",AQ122/1000*HOME!$F$7,0))) ->  | BC122: =IF(B122="","",IF(N122="VACANT",0,IF(N122="FIX PAY",0,IF(BA122="NEW",AQ122/1000*HOME!$F$6,0)))) ->  | BD122: =IF(B122="","",IF(N122="FIX PAY",0,IF(BA122="OLD",AR122/1000*HOME!$F$7,0))) ->  | BE122: =IF(B122="","",IF(N122="VACANT",0,IF(N122="FIX PAY",0,IF(BA122="NEW",AR122/1000*HOME!$F$6,0)))) -> 
M123: =IF(L123="","",INDEX(TPravesh!$U$3:$U$26,MATCH('Emp Data'!L123,TPravesh!$S$3:$S$26,0))) ->  | AC123: =IF(B123="","",IF(AD123="NA","NA",INDEX(TPravesh!$AA$5:$AA$16,MATCH(AD123,TPravesh!$AQ$5:$AQ$16,0)))) ->  | AD123: =IF(B123="","",IF(Q123="","",IF(Q123="NA","NA",INDEX(TPravesh!$AQ$5:$AQ$16,MATCH(Q123,TPravesh!$AA$5:$AA$16,0))))) ->  | AF123: =IF(B123="","",IF(W123="YES",HOME!$C$7,0)) ->  | AG123: =IF(B123="","",IF(S123="YES",HOME!$C$6,0)) ->  | AL123: =IF(B123="","",IF(I123="OLD",VLOOKUP(O123,TPravesh!$B$21:$G$24,4),VLOOKUP(O123,TPravesh!$B$28:$G$29,4))) ->  | AW123: =IF(B123="","",IF(X123="YES",IF(I123="OLD",ROUND(SUM(O123+O123*HOME!$F$6)*50%,0),ROUND(SUM(O123+O123*HOME!$F$6)*50%,0)))) ->  | AX123: =IF(B123="","",IF(X123="YES",IF(I123="OLD",ROUND(SUM(AO123+AO123*HOME!$F$6)*50%,0),ROUND(SUM(AO123+AO123*HOME!$F$6)*50%,0)))) ->  | BB123: =IF(B123="","",IF(N123="FIX PAY",0,IF(BA123="OLD",AQ123/1000*HOME!$F$7,0))) ->  | BC123: =IF(B123="","",IF(N123="VACANT",0,IF(N123="FIX PAY",0,IF(BA123="NEW",AQ123/1000*HOME!$F$6,0)))) ->  | BD123: =IF(B123="","",IF(N123="FIX PAY",0,IF(BA123="OLD",AR123/1000*HOME!$F$7,0))) ->  | BE123: =IF(B123="","",IF(N123="VACANT",0,IF(N123="FIX PAY",0,IF(BA123="NEW",AR123/1000*HOME!$F$6,0)))) -> 
M124: =IF(L124="","",INDEX(TPravesh!$U$3:$U$26,MATCH('Emp Data'!L124,TPravesh!$S$3:$S$26,0))) ->  | AC124: =IF(B124="","",IF(AD124="NA","NA",INDEX(TPravesh!$AA$5:$AA$16,MATCH(AD124,TPravesh!$AQ$5:$AQ$16,0)))) ->  | AD124: =IF(B124="","",IF(Q124="","",IF(Q124="NA","NA",INDEX(TPravesh!$AQ$5:$AQ$16,MATCH(Q124,TPravesh!$AA$5:$AA$16,0))))) ->  | AF124: =IF(B124="","",IF(W124="YES",HOME!$C$7,0)) ->  | AG124: =IF(B124="","",IF(S124="YES",HOME!$C$6,0)) ->  | AL124: =IF(B124="","",IF(I124="OLD",VLOOKUP(O124,TPravesh!$B$21:$G$24,4),VLOOKUP(O124,TPravesh!$B$28:$G$29,4))) ->  | AW124: =IF(B124="","",IF(X124="YES",IF(I124="OLD",ROUND(SUM(O124+O124*HOME!$F$6)*50%,0),ROUND(SUM(O124+O124*HOME!$F$6)*50%,0)))) ->  | AX124: =IF(B124="","",IF(X124="YES",IF(I124="OLD",ROUND(SUM(AO124+AO124*HOME!$F$6)*50%,0),ROUND(SUM(AO124+AO124*HOME!$F$6)*50%,0)))) ->  | BB124: =IF(B124="","",IF(N124="FIX PAY",0,IF(BA124="OLD",AQ124/1000*HOME!$F$7,0))) ->  | BC124: =IF(B124="","",IF(N124="VACANT",0,IF(N124="FIX PAY",0,IF(BA124="NEW",AQ124/1000*HOME!$F$6,0)))) ->  | BD124: =IF(B124="","",IF(N124="FIX PAY",0,IF(BA124="OLD",AR124/1000*HOME!$F$7,0))) ->  | BE124: =IF(B124="","",IF(N124="VACANT",0,IF(N124="FIX PAY",0,IF(BA124="NEW",AR124/1000*HOME!$F$6,0)))) -> 
M125: =IF(L125="","",INDEX(TPravesh!$U$3:$U$26,MATCH('Emp Data'!L125,TPravesh!$S$3:$S$26,0))) ->  | AC125: =IF(B125="","",IF(AD125="NA","NA",INDEX(TPravesh!$AA$5:$AA$16,MATCH(AD125,TPravesh!$AQ$5:$AQ$16,0)))) ->  | AD125: =IF(B125="","",IF(Q125="","",IF(Q125="NA","NA",INDEX(TPravesh!$AQ$5:$AQ$16,MATCH(Q125,TPravesh!$AA$5:$AA$16,0))))) ->  | AF125: =IF(B125="","",IF(W125="YES",HOME!$C$7,0)) ->  | AG125: =IF(B125="","",IF(S125="YES",HOME!$C$6,0)) ->  | AL125: =IF(B125="","",IF(I125="OLD",VLOOKUP(O125,TPravesh!$B$21:$G$24,4),VLOOKUP(O125,TPravesh!$B$28:$G$29,4))) ->  | AW125: =IF(B125="","",IF(X125="YES",IF(I125="OLD",ROUND(SUM(O125+O125*HOME!$F$6)*50%,0),ROUND(SUM(O125+O125*HOME!$F$6)*50%,0)))) ->  | AX125: =IF(B125="","",IF(X125="YES",IF(I125="OLD",ROUND(SUM(AO125+AO125*HOME!$F$6)*50%,0),ROUND(SUM(AO125+AO125*HOME!$F$6)*50%,0)))) ->  | BB125: =IF(B125="","",IF(N125="FIX PAY",0,IF(BA125="OLD",AQ125/1000*HOME!$F$7,0))) ->  | BC125: =IF(B125="","",IF(N125="VACANT",0,IF(N125="FIX PAY",0,IF(BA125="NEW",AQ125/1000*HOME!$F$6,0)))) ->  | BD125: =IF(B125="","",IF(N125="FIX PAY",0,IF(BA125="OLD",AR125/1000*HOME!$F$7,0))) ->  | BE125: =IF(B125="","",IF(N125="VACANT",0,IF(N125="FIX PAY",0,IF(BA125="NEW",AR125/1000*HOME!$F$6,0)))) -> 
M126: =IF(L126="","",INDEX(TPravesh!$U$3:$U$26,MATCH('Emp Data'!L126,TPravesh!$S$3:$S$26,0))) ->  | AC126: =IF(B126="","",IF(AD126="NA","NA",INDEX(TPravesh!$AA$5:$AA$16,MATCH(AD126,TPravesh!$AQ$5:$AQ$16,0)))) ->  | AD126: =IF(B126="","",IF(Q126="","",IF(Q126="NA","NA",INDEX(TPravesh!$AQ$5:$AQ$16,MATCH(Q126,TPravesh!$AA$5:$AA$16,0))))) ->  | AF126: =IF(B126="","",IF(W126="YES",HOME!$C$7,0)) ->  | AG126: =IF(B126="","",IF(S126="YES",HOME!$C$6,0)) ->  | AL126: =IF(B126="","",IF(I126="OLD",VLOOKUP(O126,TPravesh!$B$21:$G$24,4),VLOOKUP(O126,TPravesh!$B$28:$G$29,4))) ->  | AW126: =IF(B126="","",IF(X126="YES",IF(I126="OLD",ROUND(SUM(O126+O126*HOME!$F$6)*50%,0),ROUND(SUM(O126+O126*HOME!$F$6)*50%,0)))) ->  | AX126: =IF(B126="","",IF(X126="YES",IF(I126="OLD",ROUND(SUM(AO126+AO126*HOME!$F$6)*50%,0),ROUND(SUM(AO126+AO126*HOME!$F$6)*50%,0)))) ->  | BB126: =IF(B126="","",IF(N126="FIX PAY",0,IF(BA126="OLD",AQ126/1000*HOME!$F$7,0))) ->  | BC126: =IF(B126="","",IF(N126="VACANT",0,IF(N126="FIX PAY",0,IF(BA126="NEW",AQ126/1000*HOME!$F$6,0)))) ->  | BD126: =IF(B126="","",IF(N126="FIX PAY",0,IF(BA126="OLD",AR126/1000*HOME!$F$7,0))) ->  | BE126: =IF(B126="","",IF(N126="VACANT",0,IF(N126="FIX PAY",0,IF(BA126="NEW",AR126/1000*HOME!$F$6,0)))) -> 
M127: =IF(L127="","",INDEX(TPravesh!$U$3:$U$26,MATCH('Emp Data'!L127,TPravesh!$S$3:$S$26,0))) ->  | AC127: =IF(B127="","",IF(AD127="NA","NA",INDEX(TPravesh!$AA$5:$AA$16,MATCH(AD127,TPravesh!$AQ$5:$AQ$16,0)))) ->  | AD127: =IF(B127="","",IF(Q127="","",IF(Q127="NA","NA",INDEX(TPravesh!$AQ$5:$AQ$16,MATCH(Q127,TPravesh!$AA$5:$AA$16,0))))) ->  | AF127: =IF(B127="","",IF(W127="YES",HOME!$C$7,0)) ->  | AG127: =IF(B127="","",IF(S127="YES",HOME!$C$6,0)) ->  | AL127: =IF(B127="","",IF(I127="OLD",VLOOKUP(O127,TPravesh!$B$21:$G$24,4),VLOOKUP(O127,TPravesh!$B$28:$G$29,4))) ->  | AW127: =IF(B127="","",IF(X127="YES",IF(I127="OLD",ROUND(SUM(O127+O127*HOME!$F$6)*50%,0),ROUND(SUM(O127+O127*HOME!$F$6)*50%,0)))) ->  | AX127: =IF(B127="","",IF(X127="YES",IF(I127="OLD",ROUND(SUM(AO127+AO127*HOME!$F$6)*50%,0),ROUND(SUM(AO127+AO127*HOME!$F$6)*50%,0)))) ->  | BB127: =IF(B127="","",IF(N127="FIX PAY",0,IF(BA127="OLD",AQ127/1000*HOME!$F$7,0))) ->  | BC127: =IF(B127="","",IF(N127="VACANT",0,IF(N127="FIX PAY",0,IF(BA127="NEW",AQ127/1000*HOME!$F$6,0)))) ->  | BD127: =IF(B127="","",IF(N127="FIX PAY",0,IF(BA127="OLD",AR127/1000*HOME!$F$7,0))) ->  | BE127: =IF(B127="","",IF(N127="VACANT",0,IF(N127="FIX PAY",0,IF(BA127="NEW",AR127/1000*HOME!$F$6,0)))) -> 
M128: =IF(L128="","",INDEX(TPravesh!$U$3:$U$26,MATCH('Emp Data'!L128,TPravesh!$S$3:$S$26,0))) ->  | AC128: =IF(B128="","",IF(AD128="NA","NA",INDEX(TPravesh!$AA$5:$AA$16,MATCH(AD128,TPravesh!$AQ$5:$AQ$16,0)))) ->  | AD128: =IF(B128="","",IF(Q128="","",IF(Q128="NA","NA",INDEX(TPravesh!$AQ$5:$AQ$16,MATCH(Q128,TPravesh!$AA$5:$AA$16,0))))) ->  | AF128: =IF(B128="","",IF(W128="YES",HOME!$C$7,0)) ->  | AG128: =IF(B128="","",IF(S128="YES",HOME!$C$6,0)) ->  | AL128: =IF(B128="","",IF(I128="OLD",VLOOKUP(O128,TPravesh!$B$21:$G$24,4),VLOOKUP(O128,TPravesh!$B$28:$G$29,4))) ->  | AW128: =IF(B128="","",IF(X128="YES",IF(I128="OLD",ROUND(SUM(O128+O128*HOME!$F$6)*50%,0),ROUND(SUM(O128+O128*HOME!$F$6)*50%,0)))) ->  | AX128: =IF(B128="","",IF(X128="YES",IF(I128="OLD",ROUND(SUM(AO128+AO128*HOME!$F$6)*50%,0),ROUND(SUM(AO128+AO128*HOME!$F$6)*50%,0)))) ->  | BB128: =IF(B128="","",IF(N128="FIX PAY",0,IF(BA128="OLD",AQ128/1000*HOME!$F$7,0))) ->  | BC128: =IF(B128="","",IF(N128="VACANT",0,IF(N128="FIX PAY",0,IF(BA128="NEW",AQ128/1000*HOME!$F$6,0)))) ->  | BD128: =IF(B128="","",IF(N128="FIX PAY",0,IF(BA128="OLD",AR128/1000*HOME!$F$7,0))) ->  | BE128: =IF(B128="","",IF(N128="VACANT",0,IF(N128="FIX PAY",0,IF(BA128="NEW",AR128/1000*HOME!$F$6,0)))) -> 
M129: =IF(L129="","",INDEX(TPravesh!$U$3:$U$26,MATCH('Emp Data'!L129,TPravesh!$S$3:$S$26,0))) ->  | AC129: =IF(B129="","",IF(AD129="NA","NA",INDEX(TPravesh!$AA$5:$AA$16,MATCH(AD129,TPravesh!$AQ$5:$AQ$16,0)))) ->  | AD129: =IF(B129="","",IF(Q129="","",IF(Q129="NA","NA",INDEX(TPravesh!$AQ$5:$AQ$16,MATCH(Q129,TPravesh!$AA$5:$AA$16,0))))) ->  | AF129: =IF(B129="","",IF(W129="YES",HOME!$C$7,0)) ->  | AG129: =IF(B129="","",IF(S129="YES",HOME!$C$6,0)) ->  | AL129: =IF(B129="","",IF(I129="OLD",VLOOKUP(O129,TPravesh!$B$21:$G$24,4),VLOOKUP(O129,TPravesh!$B$28:$G$29,4))) ->  | AW129: =IF(B129="","",IF(X129="YES",IF(I129="OLD",ROUND(SUM(O129+O129*HOME!$F$6)*50%,0),ROUND(SUM(O129+O129*HOME!$F$6)*50%,0)))) ->  | AX129: =IF(B129="","",IF(X129="YES",IF(I129="OLD",ROUND(SUM(AO129+AO129*HOME!$F$6)*50%,0),ROUND(SUM(AO129+AO129*HOME!$F$6)*50%,0)))) ->  | BB129: =IF(B129="","",IF(N129="FIX PAY",0,IF(BA129="OLD",AQ129/1000*HOME!$F$7,0))) ->  | BC129: =IF(B129="","",IF(N129="VACANT",0,IF(N129="FIX PAY",0,IF(BA129="NEW",AQ129/1000*HOME!$F$6,0)))) ->  | BD129: =IF(B129="","",IF(N129="FIX PAY",0,IF(BA129="OLD",AR129/1000*HOME!$F$7,0))) ->  | BE129: =IF(B129="","",IF(N129="VACANT",0,IF(N129="FIX PAY",0,IF(BA129="NEW",AR129/1000*HOME!$F$6,0)))) -> 
M130: =IF(L130="","",INDEX(TPravesh!$U$3:$U$26,MATCH('Emp Data'!L130,TPravesh!$S$3:$S$26,0))) ->  | AC130: =IF(B130="","",IF(AD130="NA","NA",INDEX(TPravesh!$AA$5:$AA$16,MATCH(AD130,TPravesh!$AQ$5:$AQ$16,0)))) ->  | AD130: =IF(B130="","",IF(Q130="","",IF(Q130="NA","NA",INDEX(TPravesh!$AQ$5:$AQ$16,MATCH(Q130,TPravesh!$AA$5:$AA$16,0))))) ->  | AF130: =IF(B130="","",IF(W130="YES",HOME!$C$7,0)) ->  | AG130: =IF(B130="","",IF(S130="YES",HOME!$C$6,0)) ->  | AL130: =IF(B130="","",IF(I130="OLD",VLOOKUP(O130,TPravesh!$B$21:$G$24,4),VLOOKUP(O130,TPravesh!$B$28:$G$29,4))) ->  | AW130: =IF(B130="","",IF(X130="YES",IF(I130="OLD",ROUND(SUM(O130+O130*HOME!$F$6)*50%,0),ROUND(SUM(O130+O130*HOME!$F$6)*50%,0)))) ->  | AX130: =IF(B130="","",IF(X130="YES",IF(I130="OLD",ROUND(SUM(AO130+AO130*HOME!$F$6)*50%,0),ROUND(SUM(AO130+AO130*HOME!$F$6)*50%,0)))) ->  | BB130: =IF(B130="","",IF(N130="FIX PAY",0,IF(BA130="OLD",AQ130/1000*HOME!$F$7,0))) ->  | BC130: =IF(B130="","",IF(N130="VACANT",0,IF(N130="FIX PAY",0,IF(BA130="NEW",AQ130/1000*HOME!$F$6,0)))) ->  | BD130: =IF(B130="","",IF(N130="FIX PAY",0,IF(BA130="OLD",AR130/1000*HOME!$F$7,0))) ->  | BE130: =IF(B130="","",IF(N130="VACANT",0,IF(N130="FIX PAY",0,IF(BA130="NEW",AR130/1000*HOME!$F$6,0)))) -> 
M131: =IF(L131="","",INDEX(TPravesh!$U$3:$U$26,MATCH('Emp Data'!L131,TPravesh!$S$3:$S$26,0))) ->  | AC131: =IF(B131="","",IF(AD131="NA","NA",INDEX(TPravesh!$AA$5:$AA$16,MATCH(AD131,TPravesh!$AQ$5:$AQ$16,0)))) ->  | AD131: =IF(B131="","",IF(Q131="","",IF(Q131="NA","NA",INDEX(TPravesh!$AQ$5:$AQ$16,MATCH(Q131,TPravesh!$AA$5:$AA$16,0))))) ->  | AF131: =IF(B131="","",IF(W131="YES",HOME!$C$7,0)) ->  | AG131: =IF(B131="","",IF(S131="YES",HOME!$C$6,0)) ->  | AL131: =IF(B131="","",IF(I131="OLD",VLOOKUP(O131,TPravesh!$B$21:$G$24,4),VLOOKUP(O131,TPravesh!$B$28:$G$29,4))) ->  | AW131: =IF(B131="","",IF(X131="YES",IF(I131="OLD",ROUND(SUM(O131+O131*HOME!$F$6)*50%,0),ROUND(SUM(O131+O131*HOME!$F$6)*50%,0)))) ->  | AX131: =IF(B131="","",IF(X131="YES",IF(I131="OLD",ROUND(SUM(AO131+AO131*HOME!$F$6)*50%,0),ROUND(SUM(AO131+AO131*HOME!$F$6)*50%,0)))) ->  | BB131: =IF(B131="","",IF(N131="FIX PAY",0,IF(BA131="OLD",AQ131/1000*HOME!$F$7,0))) ->  | BC131: =IF(B131="","",IF(N131="VACANT",0,IF(N131="FIX PAY",0,IF(BA131="NEW",AQ131/1000*HOME!$F$6,0)))) ->  | BD131: =IF(B131="","",IF(N131="FIX PAY",0,IF(BA131="OLD",AR131/1000*HOME!$F$7,0))) ->  | BE131: =IF(B131="","",IF(N131="VACANT",0,IF(N131="FIX PAY",0,IF(BA131="NEW",AR131/1000*HOME!$F$6,0)))) -> 
M132: =IF(L132="","",INDEX(TPravesh!$U$3:$U$26,MATCH('Emp Data'!L132,TPravesh!$S$3:$S$26,0))) ->  | AC132: =IF(B132="","",IF(AD132="NA","NA",INDEX(TPravesh!$AA$5:$AA$16,MATCH(AD132,TPravesh!$AQ$5:$AQ$16,0)))) ->  | AD132: =IF(B132="","",IF(Q132="","",IF(Q132="NA","NA",INDEX(TPravesh!$AQ$5:$AQ$16,MATCH(Q132,TPravesh!$AA$5:$AA$16,0))))) ->  | AF132: =IF(B132="","",IF(W132="YES",HOME!$C$7,0)) ->  | AG132: =IF(B132="","",IF(S132="YES",HOME!$C$6,0)) ->  | AL132: =IF(B132="","",IF(I132="OLD",VLOOKUP(O132,TPravesh!$B$21:$G$24,4),VLOOKUP(O132,TPravesh!$B$28:$G$29,4))) ->  | AW132: =IF(B132="","",IF(X132="YES",IF(I132="OLD",ROUND(SUM(O132+O132*HOME!$F$6)*50%,0),ROUND(SUM(O132+O132*HOME!$F$6)*50%,0)))) ->  | AX132: =IF(B132="","",IF(X132="YES",IF(I132="OLD",ROUND(SUM(AO132+AO132*HOME!$F$6)*50%,0),ROUND(SUM(AO132+AO132*HOME!$F$6)*50%,0)))) ->  | BB132: =IF(B132="","",IF(N132="FIX PAY",0,IF(BA132="OLD",AQ132/1000*HOME!$F$7,0))) ->  | BC132: =IF(B132="","",IF(N132="VACANT",0,IF(N132="FIX PAY",0,IF(BA132="NEW",AQ132/1000*HOME!$F$6,0)))) ->  | BD132: =IF(B132="","",IF(N132="FIX PAY",0,IF(BA132="OLD",AR132/1000*HOME!$F$7,0))) ->  | BE132: =IF(B132="","",IF(N132="VACANT",0,IF(N132="FIX PAY",0,IF(BA132="NEW",AR132/1000*HOME!$F$6,0)))) -> 
M133: =IF(L133="","",INDEX(TPravesh!$U$3:$U$26,MATCH('Emp Data'!L133,TPravesh!$S$3:$S$26,0))) ->  | AC133: =IF(B133="","",IF(AD133="NA","NA",INDEX(TPravesh!$AA$5:$AA$16,MATCH(AD133,TPravesh!$AQ$5:$AQ$16,0)))) ->  | AD133: =IF(B133="","",IF(Q133="","",IF(Q133="NA","NA",INDEX(TPravesh!$AQ$5:$AQ$16,MATCH(Q133,TPravesh!$AA$5:$AA$16,0))))) ->  | AF133: =IF(B133="","",IF(W133="YES",HOME!$C$7,0)) ->  | AG133: =IF(B133="","",IF(S133="YES",HOME!$C$6,0)) ->  | AL133: =IF(B133="","",IF(I133="OLD",VLOOKUP(O133,TPravesh!$B$21:$G$24,4),VLOOKUP(O133,TPravesh!$B$28:$G$29,4))) ->  | AW133: =IF(B133="","",IF(X133="YES",IF(I133="OLD",ROUND(SUM(O133+O133*HOME!$F$6)*50%,0),ROUND(SUM(O133+O133*HOME!$F$6)*50%,0)))) ->  | AX133: =IF(B133="","",IF(X133="YES",IF(I133="OLD",ROUND(SUM(AO133+AO133*HOME!$F$6)*50%,0),ROUND(SUM(AO133+AO133*HOME!$F$6)*50%,0)))) ->  | BB133: =IF(B133="","",IF(N133="FIX PAY",0,IF(BA133="OLD",AQ133/1000*HOME!$F$7,0))) ->  | BC133: =IF(B133="","",IF(N133="VACANT",0,IF(N133="FIX PAY",0,IF(BA133="NEW",AQ133/1000*HOME!$F$6,0)))) ->  | BD133: =IF(B133="","",IF(N133="FIX PAY",0,IF(BA133="OLD",AR133/1000*HOME!$F$7,0))) ->  | BE133: =IF(B133="","",IF(N133="VACANT",0,IF(N133="FIX PAY",0,IF(BA133="NEW",AR133/1000*HOME!$F$6,0)))) -> 
M134: =IF(L134="","",INDEX(TPravesh!$U$3:$U$26,MATCH('Emp Data'!L134,TPravesh!$S$3:$S$26,0))) ->  | AC134: =IF(B134="","",IF(AD134="NA","NA",INDEX(TPravesh!$AA$5:$AA$16,MATCH(AD134,TPravesh!$AQ$5:$AQ$16,0)))) ->  | AD134: =IF(B134="","",IF(Q134="","",IF(Q134="NA","NA",INDEX(TPravesh!$AQ$5:$AQ$16,MATCH(Q134,TPravesh!$AA$5:$AA$16,0))))) ->  | AF134: =IF(B134="","",IF(W134="YES",HOME!$C$7,0)) ->  | AG134: =IF(B134="","",IF(S134="YES",HOME!$C$6,0)) ->  | AL134: =IF(B134="","",IF(I134="OLD",VLOOKUP(O134,TPravesh!$B$21:$G$24,4),VLOOKUP(O134,TPravesh!$B$28:$G$29,4))) ->  | AW134: =IF(B134="","",IF(X134="YES",IF(I134="OLD",ROUND(SUM(O134+O134*HOME!$F$6)*50%,0),ROUND(SUM(O134+O134*HOME!$F$6)*50%,0)))) ->  | AX134: =IF(B134="","",IF(X134="YES",IF(I134="OLD",ROUND(SUM(AO134+AO134*HOME!$F$6)*50%,0),ROUND(SUM(AO134+AO134*HOME!$F$6)*50%,0)))) ->  | BB134: =IF(B134="","",IF(N134="FIX PAY",0,IF(BA134="OLD",AQ134/1000*HOME!$F$7,0))) ->  | BC134: =IF(B134="","",IF(N134="VACANT",0,IF(N134="FIX PAY",0,IF(BA134="NEW",AQ134/1000*HOME!$F$6,0)))) ->  | BD134: =IF(B134="","",IF(N134="FIX PAY",0,IF(BA134="OLD",AR134/1000*HOME!$F$7,0))) ->  | BE134: =IF(B134="","",IF(N134="VACANT",0,IF(N134="FIX PAY",0,IF(BA134="NEW",AR134/1000*HOME!$F$6,0)))) -> 
M135: =IF(L135="","",INDEX(TPravesh!$U$3:$U$26,MATCH('Emp Data'!L135,TPravesh!$S$3:$S$26,0))) ->  | AC135: =IF(B135="","",IF(AD135="NA","NA",INDEX(TPravesh!$AA$5:$AA$16,MATCH(AD135,TPravesh!$AQ$5:$AQ$16,0)))) ->  | AD135: =IF(B135="","",IF(Q135="","",IF(Q135="NA","NA",INDEX(TPravesh!$AQ$5:$AQ$16,MATCH(Q135,TPravesh!$AA$5:$AA$16,0))))) ->  | AF135: =IF(B135="","",IF(W135="YES",HOME!$C$7,0)) ->  | AG135: =IF(B135="","",IF(S135="YES",HOME!$C$6,0)) ->  | AL135: =IF(B135="","",IF(I135="OLD",VLOOKUP(O135,TPravesh!$B$21:$G$24,4),VLOOKUP(O135,TPravesh!$B$28:$G$29,4))) ->  | AW135: =IF(B135="","",IF(X135="YES",IF(I135="OLD",ROUND(SUM(O135+O135*HOME!$F$6)*50%,0),ROUND(SUM(O135+O135*HOME!$F$6)*50%,0)))) ->  | AX135: =IF(B135="","",IF(X135="YES",IF(I135="OLD",ROUND(SUM(AO135+AO135*HOME!$F$6)*50%,0),ROUND(SUM(AO135+AO135*HOME!$F$6)*50%,0)))) ->  | BB135: =IF(B135="","",IF(N135="FIX PAY",0,IF(BA135="OLD",AQ135/1000*HOME!$F$7,0))) ->  | BC135: =IF(B135="","",IF(N135="VACANT",0,IF(N135="FIX PAY",0,IF(BA135="NEW",AQ135/1000*HOME!$F$6,0)))) ->  | BD135: =IF(B135="","",IF(N135="FIX PAY",0,IF(BA135="OLD",AR135/1000*HOME!$F$7,0))) ->  | BE135: =IF(B135="","",IF(N135="VACANT",0,IF(N135="FIX PAY",0,IF(BA135="NEW",AR135/1000*HOME!$F$6,0)))) -> 
K136: =MID(J136,25,6) ->  | L136: =IF(I136="NEW",RIGHT(J136,4),"") ->  | M136: =IF(L136="","",INDEX(TPravesh!$U$3:$U$26,MATCH('Emp Data'!L136,TPravesh!$S$3:$S$26,0))) ->  | AC136: =IF(B136="","",IF(AD136="NA","NA",INDEX(TPravesh!$AA$5:$AA$16,MATCH(AD136,TPravesh!$AQ$5:$AQ$16,0)))) ->  | AD136: =IF(B136="","",IF(Q136="","",IF(Q136="NA","NA",INDEX(TPravesh!$AQ$5:$AQ$16,MATCH(Q136,TPravesh!$AA$5:$AA$16,0))))) ->  | AE136: =IF(B136="","",IF(AC136="NA",12,15-AC136)) ->  | AF136: =IF(B136="","",IF(W136="YES",HOME!$C$7,0)) ->  | AG136: =IF(B136="","",IF(S136="YES",HOME!$C$6,0)) ->  | AH136: =IF(B136="","",IF(G136>0,ROUND(AR136/1000*T136*G136/12,0),0)) ->  | AI136: =IF(B136="","",IF(U136="YES",AQ136/1000*T136*G136/12)) ->  | AJ136: =IF(B136="","",IF(U136="YES",AR136/1000*T136*G136/12)) ->  | AK136: =IF(B136="","",IF(G136>0,AH136,AJ136)) ->  | AL136: =IF(B136="","",IF(I136="OLD",VLOOKUP(O136,TPravesh!$B$21:$G$24,4),VLOOKUP(O136,TPravesh!$B$28:$G$29,4))) ->  | AM136: =IF(B136="","",IF(V136="YES",AL136*12,0)) ->  | AN136: =IF(B136="","",IF(AU136>0,AM136,0)) ->  | AO136: =IF(B136="","",IF(K136=0,O136,IF(Q136="NA",O136,IF(I136="OLD",ROUNDDOWN(O136/103%,-1),ROUNDUP(O136/103%,-2))))) ->  | AP136: =IF(B136="","",O136*12) ->  | AQ136: =IF(B136="","",AP136+AU136) ->  | AR136: =IF(B136="","",AO136*(12-AE136)+O136*AE136) ->  | AS136: =IF(B136="","",IF(N136="VACANT",0,AR136*G136/12)) ->  | AT136: =IF(B136="","",IF(Q136="NA",0,IF(I136="OLD",ROUNDUP(AO136*3%,-1),ROUNDDOWN(AO136*3%,-2)))) ->  | AU136: =IF(B136="","",IF(I136="OLD",ROUNDUP(O136*3%,-1)*(AE136),ROUNDDOWN(O136*3%,-2)*AE136)) ->  | AV136: =IF(B136="","",IF(G136>0,0,AW136)) ->  | AW136: =IF(B136="","",IF(X136="YES",IF(I136="OLD",ROUND(SUM(O136+O136*HOME!$F$6)*50%,0),ROUND(SUM(O136+O136*HOME!$F$6)*50%,0)))) ->  | AX136: =IF(B136="","",IF(X136="YES",IF(I136="OLD",ROUND(SUM(AO136+AO136*HOME!$F$6)*50%,0),ROUND(SUM(AO136+AO136*HOME!$F$6)*50%,0)))) ->  | BA136: =IF(B136="","",I136) ->  | BB136: =IF(B136="","",IF(N136="FIX PAY",0,IF(BA136="OLD",AQ136/1000*HOME!$F$7,0))) ->  | BC136: =IF(B136="","",IF(N136="VACANT",0,IF(N136="FIX PAY",0,IF(BA136="NEW",AQ136/1000*HOME!$F$6,0)))) ->  | BD136: =IF(B136="","",IF(N136="FIX PAY",0,IF(BA136="OLD",AR136/1000*HOME!$F$7,0))) ->  | BE136: =IF(B136="","",IF(N136="VACANT",0,IF(N136="FIX PAY",0,IF(BA136="NEW",AR136/1000*HOME!$F$6,0)))) -> 
M137: =IF(L137="","",INDEX(TPravesh!$U$3:$U$26,MATCH('Emp Data'!L137,TPravesh!$S$3:$S$26,0))) ->  | AC137: =IF(B137="","",IF(AD137="NA","NA",INDEX(TPravesh!$AA$5:$AA$16,MATCH(AD137,TPravesh!$AQ$5:$AQ$16,0)))) ->  | AD137: =IF(B137="","",IF(Q137="","",IF(Q137="NA","NA",INDEX(TPravesh!$AQ$5:$AQ$16,MATCH(Q137,TPravesh!$AA$5:$AA$16,0))))) ->  | AF137: =IF(B137="","",IF(W137="YES",HOME!$C$7,0)) ->  | AG137: =IF(B137="","",IF(S137="YES",HOME!$C$6,0)) ->  | AL137: =IF(B137="","",IF(I137="OLD",VLOOKUP(O137,TPravesh!$B$21:$G$24,4),VLOOKUP(O137,TPravesh!$B$28:$G$29,4))) ->  | AW137: =IF(B137="","",IF(X137="YES",IF(I137="OLD",ROUND(SUM(O137+O137*HOME!$F$6)*50%,0),ROUND(SUM(O137+O137*HOME!$F$6)*50%,0)))) ->  | AX137: =IF(B137="","",IF(X137="YES",IF(I137="OLD",ROUND(SUM(AO137+AO137*HOME!$F$6)*50%,0),ROUND(SUM(AO137+AO137*HOME!$F$6)*50%,0)))) ->  | BB137: =IF(B137="","",IF(N137="FIX PAY",0,IF(BA137="OLD",AQ137/1000*HOME!$F$7,0))) ->  | BC137: =IF(B137="","",IF(N137="VACANT",0,IF(N137="FIX PAY",0,IF(BA137="NEW",AQ137/1000*HOME!$F$6,0)))) ->  | BD137: =IF(B137="","",IF(N137="FIX PAY",0,IF(BA137="OLD",AR137/1000*HOME!$F$7,0))) ->  | BE137: =IF(B137="","",IF(N137="VACANT",0,IF(N137="FIX PAY",0,IF(BA137="NEW",AR137/1000*HOME!$F$6,0)))) -> 
M138: =IF(L138="","",INDEX(TPravesh!$U$3:$U$26,MATCH('Emp Data'!L138,TPravesh!$S$3:$S$26,0))) ->  | AC138: =IF(B138="","",IF(AD138="NA","NA",INDEX(TPravesh!$AA$5:$AA$16,MATCH(AD138,TPravesh!$AQ$5:$AQ$16,0)))) ->  | AD138: =IF(B138="","",IF(Q138="","",IF(Q138="NA","NA",INDEX(TPravesh!$AQ$5:$AQ$16,MATCH(Q138,TPravesh!$AA$5:$AA$16,0))))) ->  | AF138: =IF(B138="","",IF(W138="YES",HOME!$C$7,0)) ->  | AG138: =IF(B138="","",IF(S138="YES",HOME!$C$6,0)) ->  | AL138: =IF(B138="","",IF(I138="OLD",VLOOKUP(O138,TPravesh!$B$21:$G$24,4),VLOOKUP(O138,TPravesh!$B$28:$G$29,4))) ->  | AW138: =IF(B138="","",IF(X138="YES",IF(I138="OLD",ROUND(SUM(O138+O138*HOME!$F$6)*50%,0),ROUND(SUM(O138+O138*HOME!$F$6)*50%,0)))) ->  | AX138: =IF(B138="","",IF(X138="YES",IF(I138="OLD",ROUND(SUM(AO138+AO138*HOME!$F$6)*50%,0),ROUND(SUM(AO138+AO138*HOME!$F$6)*50%,0)))) ->  | BB138: =IF(B138="","",IF(N138="FIX PAY",0,IF(BA138="OLD",AQ138/1000*HOME!$F$7,0))) ->  | BC138: =IF(B138="","",IF(N138="VACANT",0,IF(N138="FIX PAY",0,IF(BA138="NEW",AQ138/1000*HOME!$F$6,0)))) ->  | BD138: =IF(B138="","",IF(N138="FIX PAY",0,IF(BA138="OLD",AR138/1000*HOME!$F$7,0))) ->  | BE138: =IF(B138="","",IF(N138="VACANT",0,IF(N138="FIX PAY",0,IF(BA138="NEW",AR138/1000*HOME!$F$6,0)))) -> 
M139: =IF(L139="","",INDEX(TPravesh!$U$3:$U$26,MATCH('Emp Data'!L139,TPravesh!$S$3:$S$26,0))) ->  | AC139: =IF(B139="","",IF(AD139="NA","NA",INDEX(TPravesh!$AA$5:$AA$16,MATCH(AD139,TPravesh!$AQ$5:$AQ$16,0)))) ->  | AD139: =IF(B139="","",IF(Q139="","",IF(Q139="NA","NA",INDEX(TPravesh!$AQ$5:$AQ$16,MATCH(Q139,TPravesh!$AA$5:$AA$16,0))))) ->  | AF139: =IF(B139="","",IF(W139="YES",HOME!$C$7,0)) ->  | AG139: =IF(B139="","",IF(S139="YES",HOME!$C$6,0)) ->  | AL139: =IF(B139="","",IF(I139="OLD",VLOOKUP(O139,TPravesh!$B$21:$G$24,4),VLOOKUP(O139,TPravesh!$B$28:$G$29,4))) ->  | AW139: =IF(B139="","",IF(X139="YES",IF(I139="OLD",ROUND(SUM(O139+O139*HOME!$F$6)*50%,0),ROUND(SUM(O139+O139*HOME!$F$6)*50%,0)))) ->  | AX139: =IF(B139="","",IF(X139="YES",IF(I139="OLD",ROUND(SUM(AO139+AO139*HOME!$F$6)*50%,0),ROUND(SUM(AO139+AO139*HOME!$F$6)*50%,0)))) ->  | BB139: =IF(B139="","",IF(N139="FIX PAY",0,IF(BA139="OLD",AQ139/1000*HOME!$F$7,0))) ->  | BC139: =IF(B139="","",IF(N139="VACANT",0,IF(N139="FIX PAY",0,IF(BA139="NEW",AQ139/1000*HOME!$F$6,0)))) ->  | BD139: =IF(B139="","",IF(N139="FIX PAY",0,IF(BA139="OLD",AR139/1000*HOME!$F$7,0))) ->  | BE139: =IF(B139="","",IF(N139="VACANT",0,IF(N139="FIX PAY",0,IF(BA139="NEW",AR139/1000*HOME!$F$6,0)))) -> 
M140: =IF(L140="","",INDEX(TPravesh!$U$3:$U$26,MATCH('Emp Data'!L140,TPravesh!$S$3:$S$26,0))) ->  | AC140: =IF(B140="","",IF(AD140="NA","NA",INDEX(TPravesh!$AA$5:$AA$16,MATCH(AD140,TPravesh!$AQ$5:$AQ$16,0)))) ->  | AD140: =IF(B140="","",IF(Q140="","",IF(Q140="NA","NA",INDEX(TPravesh!$AQ$5:$AQ$16,MATCH(Q140,TPravesh!$AA$5:$AA$16,0))))) ->  | AF140: =IF(B140="","",IF(W140="YES",HOME!$C$7,0)) ->  | AG140: =IF(B140="","",IF(S140="YES",HOME!$C$6,0)) ->  | AL140: =IF(B140="","",IF(I140="OLD",VLOOKUP(O140,TPravesh!$B$21:$G$24,4),VLOOKUP(O140,TPravesh!$B$28:$G$29,4))) ->  | AW140: =IF(B140="","",IF(X140="YES",IF(I140="OLD",ROUND(SUM(O140+O140*HOME!$F$6)*50%,0),ROUND(SUM(O140+O140*HOME!$F$6)*50%,0)))) ->  | AX140: =IF(B140="","",IF(X140="YES",IF(I140="OLD",ROUND(SUM(AO140+AO140*HOME!$F$6)*50%,0),ROUND(SUM(AO140+AO140*HOME!$F$6)*50%,0)))) ->  | BB140: =IF(B140="","",IF(N140="FIX PAY",0,IF(BA140="OLD",AQ140/1000*HOME!$F$7,0))) ->  | BC140: =IF(B140="","",IF(N140="VACANT",0,IF(N140="FIX PAY",0,IF(BA140="NEW",AQ140/1000*HOME!$F$6,0)))) ->  | BD140: =IF(B140="","",IF(N140="FIX PAY",0,IF(BA140="OLD",AR140/1000*HOME!$F$7,0))) ->  | BE140: =IF(B140="","",IF(N140="VACANT",0,IF(N140="FIX PAY",0,IF(BA140="NEW",AR140/1000*HOME!$F$6,0)))) -> 
M141: =IF(L141="","",INDEX(TPravesh!$U$3:$U$26,MATCH('Emp Data'!L141,TPravesh!$S$3:$S$26,0))) ->  | AC141: =IF(B141="","",IF(AD141="NA","NA",INDEX(TPravesh!$AA$5:$AA$16,MATCH(AD141,TPravesh!$AQ$5:$AQ$16,0)))) ->  | AD141: =IF(B141="","",IF(Q141="","",IF(Q141="NA","NA",INDEX(TPravesh!$AQ$5:$AQ$16,MATCH(Q141,TPravesh!$AA$5:$AA$16,0))))) ->  | AF141: =IF(B141="","",IF(W141="YES",HOME!$C$7,0)) ->  | AG141: =IF(B141="","",IF(S141="YES",HOME!$C$6,0)) ->  | AL141: =IF(B141="","",IF(I141="OLD",VLOOKUP(O141,TPravesh!$B$21:$G$24,4),VLOOKUP(O141,TPravesh!$B$28:$G$29,4))) ->  | AW141: =IF(B141="","",IF(X141="YES",IF(I141="OLD",ROUND(SUM(O141+O141*HOME!$F$6)*50%,0),ROUND(SUM(O141+O141*HOME!$F$6)*50%,0)))) ->  | AX141: =IF(B141="","",IF(X141="YES",IF(I141="OLD",ROUND(SUM(AO141+AO141*HOME!$F$6)*50%,0),ROUND(SUM(AO141+AO141*HOME!$F$6)*50%,0)))) ->  | BB141: =IF(B141="","",IF(N141="FIX PAY",0,IF(BA141="OLD",AQ141/1000*HOME!$F$7,0))) ->  | BC141: =IF(B141="","",IF(N141="VACANT",0,IF(N141="FIX PAY",0,IF(BA141="NEW",AQ141/1000*HOME!$F$6,0)))) ->  | BD141: =IF(B141="","",IF(N141="FIX PAY",0,IF(BA141="OLD",AR141/1000*HOME!$F$7,0))) ->  | BE141: =IF(B141="","",IF(N141="VACANT",0,IF(N141="FIX PAY",0,IF(BA141="NEW",AR141/1000*HOME!$F$6,0)))) -> 
M142: =IF(L142="","",INDEX(TPravesh!$U$3:$U$26,MATCH('Emp Data'!L142,TPravesh!$S$3:$S$26,0))) ->  | AC142: =IF(B142="","",IF(AD142="NA","NA",INDEX(TPravesh!$AA$5:$AA$16,MATCH(AD142,TPravesh!$AQ$5:$AQ$16,0)))) ->  | AD142: =IF(B142="","",IF(Q142="","",IF(Q142="NA","NA",INDEX(TPravesh!$AQ$5:$AQ$16,MATCH(Q142,TPravesh!$AA$5:$AA$16,0))))) ->  | AF142: =IF(B142="","",IF(W142="YES",HOME!$C$7,0)) ->  | AG142: =IF(B142="","",IF(S142="YES",HOME!$C$6,0)) ->  | AL142: =IF(B142="","",IF(I142="OLD",VLOOKUP(O142,TPravesh!$B$21:$G$24,4),VLOOKUP(O142,TPravesh!$B$28:$G$29,4))) ->  | AW142: =IF(B142="","",IF(X142="YES",IF(I142="OLD",ROUND(SUM(O142+O142*HOME!$F$6)*50%,0),ROUND(SUM(O142+O142*HOME!$F$6)*50%,0)))) ->  | AX142: =IF(B142="","",IF(X142="YES",IF(I142="OLD",ROUND(SUM(AO142+AO142*HOME!$F$6)*50%,0),ROUND(SUM(AO142+AO142*HOME!$F$6)*50%,0)))) ->  | BB142: =IF(B142="","",IF(N142="FIX PAY",0,IF(BA142="OLD",AQ142/1000*HOME!$F$7,0))) ->  | BC142: =IF(B142="","",IF(N142="VACANT",0,IF(N142="FIX PAY",0,IF(BA142="NEW",AQ142/1000*HOME!$F$6,0)))) ->  | BD142: =IF(B142="","",IF(N142="FIX PAY",0,IF(BA142="OLD",AR142/1000*HOME!$F$7,0))) ->  | BE142: =IF(B142="","",IF(N142="VACANT",0,IF(N142="FIX PAY",0,IF(BA142="NEW",AR142/1000*HOME!$F$6,0)))) -> 
M143: =IF(L143="","",INDEX(TPravesh!$U$3:$U$26,MATCH('Emp Data'!L143,TPravesh!$S$3:$S$26,0))) ->  | AC143: =IF(B143="","",IF(AD143="NA","NA",INDEX(TPravesh!$AA$5:$AA$16,MATCH(AD143,TPravesh!$AQ$5:$AQ$16,0)))) ->  | AD143: =IF(B143="","",IF(Q143="","",IF(Q143="NA","NA",INDEX(TPravesh!$AQ$5:$AQ$16,MATCH(Q143,TPravesh!$AA$5:$AA$16,0))))) ->  | AF143: =IF(B143="","",IF(W143="YES",HOME!$C$7,0)) ->  | AG143: =IF(B143="","",IF(S143="YES",HOME!$C$6,0)) ->  | AL143: =IF(B143="","",IF(I143="OLD",VLOOKUP(O143,TPravesh!$B$21:$G$24,4),VLOOKUP(O143,TPravesh!$B$28:$G$29,4))) ->  | AW143: =IF(B143="","",IF(X143="YES",IF(I143="OLD",ROUND(SUM(O143+O143*HOME!$F$6)*50%,0),ROUND(SUM(O143+O143*HOME!$F$6)*50%,0)))) ->  | AX143: =IF(B143="","",IF(X143="YES",IF(I143="OLD",ROUND(SUM(AO143+AO143*HOME!$F$6)*50%,0),ROUND(SUM(AO143+AO143*HOME!$F$6)*50%,0)))) ->  | BB143: =IF(B143="","",IF(N143="FIX PAY",0,IF(BA143="OLD",AQ143/1000*HOME!$F$7,0))) ->  | BC143: =IF(B143="","",IF(N143="VACANT",0,IF(N143="FIX PAY",0,IF(BA143="NEW",AQ143/1000*HOME!$F$6,0)))) ->  | BD143: =IF(B143="","",IF(N143="FIX PAY",0,IF(BA143="OLD",AR143/1000*HOME!$F$7,0))) ->  | BE143: =IF(B143="","",IF(N143="VACANT",0,IF(N143="FIX PAY",0,IF(BA143="NEW",AR143/1000*HOME!$F$6,0)))) -> 
M144: =IF(L144="","",INDEX(TPravesh!$U$3:$U$26,MATCH('Emp Data'!L144,TPravesh!$S$3:$S$26,0))) ->  | AC144: =IF(B144="","",IF(AD144="NA","NA",INDEX(TPravesh!$AA$5:$AA$16,MATCH(AD144,TPravesh!$AQ$5:$AQ$16,0)))) ->  | AD144: =IF(B144="","",IF(Q144="","",IF(Q144="NA","NA",INDEX(TPravesh!$AQ$5:$AQ$16,MATCH(Q144,TPravesh!$AA$5:$AA$16,0))))) ->  | AF144: =IF(B144="","",IF(W144="YES",HOME!$C$7,0)) ->  | AG144: =IF(B144="","",IF(S144="YES",HOME!$C$6,0)) ->  | AL144: =IF(B144="","",IF(I144="OLD",VLOOKUP(O144,TPravesh!$B$21:$G$24,4),VLOOKUP(O144,TPravesh!$B$28:$G$29,4))) ->  | AW144: =IF(B144="","",IF(X144="YES",IF(I144="OLD",ROUND(SUM(O144+O144*HOME!$F$6)*50%,0),ROUND(SUM(O144+O144*HOME!$F$6)*50%,0)))) ->  | AX144: =IF(B144="","",IF(X144="YES",IF(I144="OLD",ROUND(SUM(AO144+AO144*HOME!$F$6)*50%,0),ROUND(SUM(AO144+AO144*HOME!$F$6)*50%,0)))) ->  | BB144: =IF(B144="","",IF(N144="FIX PAY",0,IF(BA144="OLD",AQ144/1000*HOME!$F$7,0))) ->  | BC144: =IF(B144="","",IF(N144="VACANT",0,IF(N144="FIX PAY",0,IF(BA144="NEW",AQ144/1000*HOME!$F$6,0)))) ->  | BD144: =IF(B144="","",IF(N144="FIX PAY",0,IF(BA144="OLD",AR144/1000*HOME!$F$7,0))) ->  | BE144: =IF(B144="","",IF(N144="VACANT",0,IF(N144="FIX PAY",0,IF(BA144="NEW",AR144/1000*HOME!$F$6,0)))) -> 
M145: =IF(L145="","",INDEX(TPravesh!$U$3:$U$26,MATCH('Emp Data'!L145,TPravesh!$S$3:$S$26,0))) ->  | AC145: =IF(B145="","",IF(AD145="NA","NA",INDEX(TPravesh!$AA$5:$AA$16,MATCH(AD145,TPravesh!$AQ$5:$AQ$16,0)))) ->  | AD145: =IF(B145="","",IF(Q145="","",IF(Q145="NA","NA",INDEX(TPravesh!$AQ$5:$AQ$16,MATCH(Q145,TPravesh!$AA$5:$AA$16,0))))) ->  | AF145: =IF(B145="","",IF(W145="YES",HOME!$C$7,0)) ->  | AG145: =IF(B145="","",IF(S145="YES",HOME!$C$6,0)) ->  | AL145: =IF(B145="","",IF(I145="OLD",VLOOKUP(O145,TPravesh!$B$21:$G$24,4),VLOOKUP(O145,TPravesh!$B$28:$G$29,4))) ->  | AW145: =IF(B145="","",IF(X145="YES",IF(I145="OLD",ROUND(SUM(O145+O145*HOME!$F$6)*50%,0),ROUND(SUM(O145+O145*HOME!$F$6)*50%,0)))) ->  | AX145: =IF(B145="","",IF(X145="YES",IF(I145="OLD",ROUND(SUM(AO145+AO145*HOME!$F$6)*50%,0),ROUND(SUM(AO145+AO145*HOME!$F$6)*50%,0)))) ->  | BB145: =IF(B145="","",IF(N145="FIX PAY",0,IF(BA145="OLD",AQ145/1000*HOME!$F$7,0))) ->  | BC145: =IF(B145="","",IF(N145="VACANT",0,IF(N145="FIX PAY",0,IF(BA145="NEW",AQ145/1000*HOME!$F$6,0)))) ->  | BD145: =IF(B145="","",IF(N145="FIX PAY",0,IF(BA145="OLD",AR145/1000*HOME!$F$7,0))) ->  | BE145: =IF(B145="","",IF(N145="VACANT",0,IF(N145="FIX PAY",0,IF(BA145="NEW",AR145/1000*HOME!$F$6,0)))) -> 
M146: =IF(L146="","",INDEX(TPravesh!$U$3:$U$26,MATCH('Emp Data'!L146,TPravesh!$S$3:$S$26,0))) ->  | AC146: =IF(B146="","",IF(AD146="NA","NA",INDEX(TPravesh!$AA$5:$AA$16,MATCH(AD146,TPravesh!$AQ$5:$AQ$16,0)))) ->  | AD146: =IF(B146="","",IF(Q146="","",IF(Q146="NA","NA",INDEX(TPravesh!$AQ$5:$AQ$16,MATCH(Q146,TPravesh!$AA$5:$AA$16,0))))) ->  | AF146: =IF(B146="","",IF(W146="YES",HOME!$C$7,0)) ->  | AG146: =IF(B146="","",IF(S146="YES",HOME!$C$6,0)) ->  | AL146: =IF(B146="","",IF(I146="OLD",VLOOKUP(O146,TPravesh!$B$21:$G$24,4),VLOOKUP(O146,TPravesh!$B$28:$G$29,4))) ->  | AW146: =IF(B146="","",IF(X146="YES",IF(I146="OLD",ROUND(SUM(O146+O146*HOME!$F$6)*50%,0),ROUND(SUM(O146+O146*HOME!$F$6)*50%,0)))) ->  | AX146: =IF(B146="","",IF(X146="YES",IF(I146="OLD",ROUND(SUM(AO146+AO146*HOME!$F$6)*50%,0),ROUND(SUM(AO146+AO146*HOME!$F$6)*50%,0)))) ->  | BB146: =IF(B146="","",IF(N146="FIX PAY",0,IF(BA146="OLD",AQ146/1000*HOME!$F$7,0))) ->  | BC146: =IF(B146="","",IF(N146="VACANT",0,IF(N146="FIX PAY",0,IF(BA146="NEW",AQ146/1000*HOME!$F$6,0)))) ->  | BD146: =IF(B146="","",IF(N146="FIX PAY",0,IF(BA146="OLD",AR146/1000*HOME!$F$7,0))) ->  | BE146: =IF(B146="","",IF(N146="VACANT",0,IF(N146="FIX PAY",0,IF(BA146="NEW",AR146/1000*HOME!$F$6,0)))) -> 
M147: =IF(L147="","",INDEX(TPravesh!$U$3:$U$26,MATCH('Emp Data'!L147,TPravesh!$S$3:$S$26,0))) ->  | AC147: =IF(B147="","",IF(AD147="NA","NA",INDEX(TPravesh!$AA$5:$AA$16,MATCH(AD147,TPravesh!$AQ$5:$AQ$16,0)))) ->  | AD147: =IF(B147="","",IF(Q147="","",IF(Q147="NA","NA",INDEX(TPravesh!$AQ$5:$AQ$16,MATCH(Q147,TPravesh!$AA$5:$AA$16,0))))) ->  | AF147: =IF(B147="","",IF(W147="YES",HOME!$C$7,0)) ->  | AG147: =IF(B147="","",IF(S147="YES",HOME!$C$6,0)) ->  | AL147: =IF(B147="","",IF(I147="OLD",VLOOKUP(O147,TPravesh!$B$21:$G$24,4),VLOOKUP(O147,TPravesh!$B$28:$G$29,4))) ->  | AW147: =IF(B147="","",IF(X147="YES",IF(I147="OLD",ROUND(SUM(O147+O147*HOME!$F$6)*50%,0),ROUND(SUM(O147+O147*HOME!$F$6)*50%,0)))) ->  | AX147: =IF(B147="","",IF(X147="YES",IF(I147="OLD",ROUND(SUM(AO147+AO147*HOME!$F$6)*50%,0),ROUND(SUM(AO147+AO147*HOME!$F$6)*50%,0)))) ->  | BB147: =IF(B147="","",IF(N147="FIX PAY",0,IF(BA147="OLD",AQ147/1000*HOME!$F$7,0))) ->  | BC147: =IF(B147="","",IF(N147="VACANT",0,IF(N147="FIX PAY",0,IF(BA147="NEW",AQ147/1000*HOME!$F$6,0)))) ->  | BD147: =IF(B147="","",IF(N147="FIX PAY",0,IF(BA147="OLD",AR147/1000*HOME!$F$7,0))) ->  | BE147: =IF(B147="","",IF(N147="VACANT",0,IF(N147="FIX PAY",0,IF(BA147="NEW",AR147/1000*HOME!$F$6,0)))) -> 
M148: =IF(L148="","",INDEX(TPravesh!$U$3:$U$26,MATCH('Emp Data'!L148,TPravesh!$S$3:$S$26,0))) ->  | AC148: =IF(B148="","",IF(AD148="NA","NA",INDEX(TPravesh!$AA$5:$AA$16,MATCH(AD148,TPravesh!$AQ$5:$AQ$16,0)))) ->  | AD148: =IF(B148="","",IF(Q148="","",IF(Q148="NA","NA",INDEX(TPravesh!$AQ$5:$AQ$16,MATCH(Q148,TPravesh!$AA$5:$AA$16,0))))) ->  | AF148: =IF(B148="","",IF(W148="YES",HOME!$C$7,0)) ->  | AG148: =IF(B148="","",IF(S148="YES",HOME!$C$6,0)) ->  | AL148: =IF(B148="","",IF(I148="OLD",VLOOKUP(O148,TPravesh!$B$21:$G$24,4),VLOOKUP(O148,TPravesh!$B$28:$G$29,4))) ->  | AW148: =IF(B148="","",IF(X148="YES",IF(I148="OLD",ROUND(SUM(O148+O148*HOME!$F$6)*50%,0),ROUND(SUM(O148+O148*HOME!$F$6)*50%,0)))) ->  | AX148: =IF(B148="","",IF(X148="YES",IF(I148="OLD",ROUND(SUM(AO148+AO148*HOME!$F$6)*50%,0),ROUND(SUM(AO148+AO148*HOME!$F$6)*50%,0)))) ->  | BB148: =IF(B148="","",IF(N148="FIX PAY",0,IF(BA148="OLD",AQ148/1000*HOME!$F$7,0))) ->  | BC148: =IF(B148="","",IF(N148="VACANT",0,IF(N148="FIX PAY",0,IF(BA148="NEW",AQ148/1000*HOME!$F$6,0)))) ->  | BD148: =IF(B148="","",IF(N148="FIX PAY",0,IF(BA148="OLD",AR148/1000*HOME!$F$7,0))) ->  | BE148: =IF(B148="","",IF(N148="VACANT",0,IF(N148="FIX PAY",0,IF(BA148="NEW",AR148/1000*HOME!$F$6,0)))) -> 
M149: =IF(L149="","",INDEX(TPravesh!$U$3:$U$26,MATCH('Emp Data'!L149,TPravesh!$S$3:$S$26,0))) ->  | AC149: =IF(B149="","",IF(AD149="NA","NA",INDEX(TPravesh!$AA$5:$AA$16,MATCH(AD149,TPravesh!$AQ$5:$AQ$16,0)))) ->  | AD149: =IF(B149="","",IF(Q149="","",IF(Q149="NA","NA",INDEX(TPravesh!$AQ$5:$AQ$16,MATCH(Q149,TPravesh!$AA$5:$AA$16,0))))) ->  | AF149: =IF(B149="","",IF(W149="YES",HOME!$C$7,0)) ->  | AG149: =IF(B149="","",IF(S149="YES",HOME!$C$6,0)) ->  | AL149: =IF(B149="","",IF(I149="OLD",VLOOKUP(O149,TPravesh!$B$21:$G$24,4),VLOOKUP(O149,TPravesh!$B$28:$G$29,4))) ->  | AW149: =IF(B149="","",IF(X149="YES",IF(I149="OLD",ROUND(SUM(O149+O149*HOME!$F$6)*50%,0),ROUND(SUM(O149+O149*HOME!$F$6)*50%,0)))) ->  | AX149: =IF(B149="","",IF(X149="YES",IF(I149="OLD",ROUND(SUM(AO149+AO149*HOME!$F$6)*50%,0),ROUND(SUM(AO149+AO149*HOME!$F$6)*50%,0)))) ->  | BB149: =IF(B149="","",IF(N149="FIX PAY",0,IF(BA149="OLD",AQ149/1000*HOME!$F$7,0))) ->  | BC149: =IF(B149="","",IF(N149="VACANT",0,IF(N149="FIX PAY",0,IF(BA149="NEW",AQ149/1000*HOME!$F$6,0)))) ->  | BD149: =IF(B149="","",IF(N149="FIX PAY",0,IF(BA149="OLD",AR149/1000*HOME!$F$7,0))) ->  | BE149: =IF(B149="","",IF(N149="VACANT",0,IF(N149="FIX PAY",0,IF(BA149="NEW",AR149/1000*HOME!$F$6,0)))) -> 
M150: =IF(L150="","",INDEX(TPravesh!$U$3:$U$26,MATCH('Emp Data'!L150,TPravesh!$S$3:$S$26,0))) ->  | AC150: =IF(B150="","",IF(AD150="NA","NA",INDEX(TPravesh!$AA$5:$AA$16,MATCH(AD150,TPravesh!$AQ$5:$AQ$16,0)))) ->  | AD150: =IF(B150="","",IF(Q150="","",IF(Q150="NA","NA",INDEX(TPravesh!$AQ$5:$AQ$16,MATCH(Q150,TPravesh!$AA$5:$AA$16,0))))) ->  | AF150: =IF(B150="","",IF(W150="YES",HOME!$C$7,0)) ->  | AG150: =IF(B150="","",IF(S150="YES",HOME!$C$6,0)) ->  | AL150: =IF(B150="","",IF(I150="OLD",VLOOKUP(O150,TPravesh!$B$21:$G$24,4),VLOOKUP(O150,TPravesh!$B$28:$G$29,4))) ->  | AW150: =IF(B150="","",IF(X150="YES",IF(I150="OLD",ROUND(SUM(O150+O150*HOME!$F$6)*50%,0),ROUND(SUM(O150+O150*HOME!$F$6)*50%,0)))) ->  | AX150: =IF(B150="","",IF(X150="YES",IF(I150="OLD",ROUND(SUM(AO150+AO150*HOME!$F$6)*50%,0),ROUND(SUM(AO150+AO150*HOME!$F$6)*50%,0)))) ->  | BB150: =IF(B150="","",IF(N150="FIX PAY",0,IF(BA150="OLD",AQ150/1000*HOME!$F$7,0))) ->  | BC150: =IF(B150="","",IF(N150="VACANT",0,IF(N150="FIX PAY",0,IF(BA150="NEW",AQ150/1000*HOME!$F$6,0)))) ->  | BD150: =IF(B150="","",IF(N150="FIX PAY",0,IF(BA150="OLD",AR150/1000*HOME!$F$7,0))) ->  | BE150: =IF(B150="","",IF(N150="VACANT",0,IF(N150="FIX PAY",0,IF(BA150="NEW",AR150/1000*HOME!$F$6,0)))) -> 
M151: =IF(L151="","",INDEX(TPravesh!$U$3:$U$26,MATCH('Emp Data'!L151,TPravesh!$S$3:$S$26,0))) ->  | AC151: =IF(B151="","",IF(AD151="NA","NA",INDEX(TPravesh!$AA$5:$AA$16,MATCH(AD151,TPravesh!$AQ$5:$AQ$16,0)))) ->  | AD151: =IF(B151="","",IF(Q151="","",IF(Q151="NA","NA",INDEX(TPravesh!$AQ$5:$AQ$16,MATCH(Q151,TPravesh!$AA$5:$AA$16,0))))) ->  | AF151: =IF(B151="","",IF(W151="YES",HOME!$C$7,0)) ->  | AG151: =IF(B151="","",IF(S151="YES",HOME!$C$6,0)) ->  | AL151: =IF(B151="","",IF(I151="OLD",VLOOKUP(O151,TPravesh!$B$21:$G$24,4),VLOOKUP(O151,TPravesh!$B$28:$G$29,4))) ->  | AW151: =IF(B151="","",IF(X151="YES",IF(I151="OLD",ROUND(SUM(O151+O151*HOME!$F$6)*50%,0),ROUND(SUM(O151+O151*HOME!$F$6)*50%,0)))) ->  | AX151: =IF(B151="","",IF(X151="YES",IF(I151="OLD",ROUND(SUM(AO151+AO151*HOME!$F$6)*50%,0),ROUND(SUM(AO151+AO151*HOME!$F$6)*50%,0)))) ->  | BB151: =IF(B151="","",IF(N151="FIX PAY",0,IF(BA151="OLD",AQ151/1000*HOME!$F$7,0))) ->  | BC151: =IF(B151="","",IF(N151="VACANT",0,IF(N151="FIX PAY",0,IF(BA151="NEW",AQ151/1000*HOME!$F$6,0)))) ->  | BD151: =IF(B151="","",IF(N151="FIX PAY",0,IF(BA151="OLD",AR151/1000*HOME!$F$7,0))) ->  | BE151: =IF(B151="","",IF(N151="VACANT",0,IF(N151="FIX PAY",0,IF(BA151="NEW",AR151/1000*HOME!$F$6,0)))) -> 
M152: =IF(L152="","",INDEX(TPravesh!$U$3:$U$26,MATCH('Emp Data'!L152,TPravesh!$S$3:$S$26,0))) ->  | AC152: =IF(B152="","",IF(AD152="NA","NA",INDEX(TPravesh!$AA$5:$AA$16,MATCH(AD152,TPravesh!$AQ$5:$AQ$16,0)))) ->  | AD152: =IF(B152="","",IF(Q152="","",IF(Q152="NA","NA",INDEX(TPravesh!$AQ$5:$AQ$16,MATCH(Q152,TPravesh!$AA$5:$AA$16,0))))) ->  | AF152: =IF(B152="","",IF(W152="YES",HOME!$C$7,0)) ->  | AG152: =IF(B152="","",IF(S152="YES",HOME!$C$6,0)) ->  | AL152: =IF(B152="","",IF(I152="OLD",VLOOKUP(O152,TPravesh!$B$21:$G$24,4),VLOOKUP(O152,TPravesh!$B$28:$G$29,4))) ->  | AW152: =IF(B152="","",IF(X152="YES",IF(I152="OLD",ROUND(SUM(O152+O152*HOME!$F$6)*50%,0),ROUND(SUM(O152+O152*HOME!$F$6)*50%,0)))) ->  | AX152: =IF(B152="","",IF(X152="YES",IF(I152="OLD",ROUND(SUM(AO152+AO152*HOME!$F$6)*50%,0),ROUND(SUM(AO152+AO152*HOME!$F$6)*50%,0)))) ->  | BB152: =IF(B152="","",IF(N152="FIX PAY",0,IF(BA152="OLD",AQ152/1000*HOME!$F$7,0))) ->  | BC152: =IF(B152="","",IF(N152="VACANT",0,IF(N152="FIX PAY",0,IF(BA152="NEW",AQ152/1000*HOME!$F$6,0)))) ->  | BD152: =IF(B152="","",IF(N152="FIX PAY",0,IF(BA152="OLD",AR152/1000*HOME!$F$7,0))) ->  | BE152: =IF(B152="","",IF(N152="VACANT",0,IF(N152="FIX PAY",0,IF(BA152="NEW",AR152/1000*HOME!$F$6,0)))) -> 
M153: =IF(L153="","",INDEX(TPravesh!$U$3:$U$26,MATCH('Emp Data'!L153,TPravesh!$S$3:$S$26,0))) ->  | AC153: =IF(B153="","",IF(AD153="NA","NA",INDEX(TPravesh!$AA$5:$AA$16,MATCH(AD153,TPravesh!$AQ$5:$AQ$16,0)))) ->  | AD153: =IF(B153="","",IF(Q153="","",IF(Q153="NA","NA",INDEX(TPravesh!$AQ$5:$AQ$16,MATCH(Q153,TPravesh!$AA$5:$AA$16,0))))) ->  | AF153: =IF(B153="","",IF(W153="YES",HOME!$C$7,0)) ->  | AG153: =IF(B153="","",IF(S153="YES",HOME!$C$6,0)) ->  | AL153: =IF(B153="","",IF(I153="OLD",VLOOKUP(O153,TPravesh!$B$21:$G$24,4),VLOOKUP(O153,TPravesh!$B$28:$G$29,4))) ->  | AW153: =IF(B153="","",IF(X153="YES",IF(I153="OLD",ROUND(SUM(O153+O153*HOME!$F$6)*50%,0),ROUND(SUM(O153+O153*HOME!$F$6)*50%,0)))) ->  | AX153: =IF(B153="","",IF(X153="YES",IF(I153="OLD",ROUND(SUM(AO153+AO153*HOME!$F$6)*50%,0),ROUND(SUM(AO153+AO153*HOME!$F$6)*50%,0)))) ->  | BB153: =IF(B153="","",IF(N153="FIX PAY",0,IF(BA153="OLD",AQ153/1000*HOME!$F$7,0))) ->  | BC153: =IF(B153="","",IF(N153="VACANT",0,IF(N153="FIX PAY",0,IF(BA153="NEW",AQ153/1000*HOME!$F$6,0)))) ->  | BD153: =IF(B153="","",IF(N153="FIX PAY",0,IF(BA153="OLD",AR153/1000*HOME!$F$7,0))) ->  | BE153: =IF(B153="","",IF(N153="VACANT",0,IF(N153="FIX PAY",0,IF(BA153="NEW",AR153/1000*HOME!$F$6,0)))) -> 
M154: =IF(L154="","",INDEX(TPravesh!$U$3:$U$26,MATCH('Emp Data'!L154,TPravesh!$S$3:$S$26,0))) ->  | AC154: =IF(B154="","",IF(AD154="NA","NA",INDEX(TPravesh!$AA$5:$AA$16,MATCH(AD154,TPravesh!$AQ$5:$AQ$16,0)))) ->  | AD154: =IF(B154="","",IF(Q154="","",IF(Q154="NA","NA",INDEX(TPravesh!$AQ$5:$AQ$16,MATCH(Q154,TPravesh!$AA$5:$AA$16,0))))) ->  | AF154: =IF(B154="","",IF(W154="YES",HOME!$C$7,0)) ->  | AG154: =IF(B154="","",IF(S154="YES",HOME!$C$6,0)) ->  | AL154: =IF(B154="","",IF(I154="OLD",VLOOKUP(O154,TPravesh!$B$21:$G$24,4),VLOOKUP(O154,TPravesh!$B$28:$G$29,4))) ->  | AW154: =IF(B154="","",IF(X154="YES",IF(I154="OLD",ROUND(SUM(O154+O154*HOME!$F$6)*50%,0),ROUND(SUM(O154+O154*HOME!$F$6)*50%,0)))) ->  | AX154: =IF(B154="","",IF(X154="YES",IF(I154="OLD",ROUND(SUM(AO154+AO154*HOME!$F$6)*50%,0),ROUND(SUM(AO154+AO154*HOME!$F$6)*50%,0)))) ->  | BB154: =IF(B154="","",IF(N154="FIX PAY",0,IF(BA154="OLD",AQ154/1000*HOME!$F$7,0))) ->  | BC154: =IF(B154="","",IF(N154="VACANT",0,IF(N154="FIX PAY",0,IF(BA154="NEW",AQ154/1000*HOME!$F$6,0)))) ->  | BD154: =IF(B154="","",IF(N154="FIX PAY",0,IF(BA154="OLD",AR154/1000*HOME!$F$7,0))) ->  | BE154: =IF(B154="","",IF(N154="VACANT",0,IF(N154="FIX PAY",0,IF(BA154="NEW",AR154/1000*HOME!$F$6,0)))) -> 
M155: =IF(L155="","",INDEX(TPravesh!$U$3:$U$26,MATCH('Emp Data'!L155,TPravesh!$S$3:$S$26,0))) ->  | AC155: =IF(B155="","",IF(AD155="NA","NA",INDEX(TPravesh!$AA$5:$AA$16,MATCH(AD155,TPravesh!$AQ$5:$AQ$16,0)))) ->  | AD155: =IF(B155="","",IF(Q155="","",IF(Q155="NA","NA",INDEX(TPravesh!$AQ$5:$AQ$16,MATCH(Q155,TPravesh!$AA$5:$AA$16,0))))) ->  | AF155: =IF(B155="","",IF(W155="YES",HOME!$C$7,0)) ->  | AG155: =IF(B155="","",IF(S155="YES",HOME!$C$6,0)) ->  | AL155: =IF(B155="","",IF(I155="OLD",VLOOKUP(O155,TPravesh!$B$21:$G$24,4),VLOOKUP(O155,TPravesh!$B$28:$G$29,4))) ->  | AW155: =IF(B155="","",IF(X155="YES",IF(I155="OLD",ROUND(SUM(O155+O155*HOME!$F$6)*50%,0),ROUND(SUM(O155+O155*HOME!$F$6)*50%,0)))) ->  | AX155: =IF(B155="","",IF(X155="YES",IF(I155="OLD",ROUND(SUM(AO155+AO155*HOME!$F$6)*50%,0),ROUND(SUM(AO155+AO155*HOME!$F$6)*50%,0)))) ->  | BB155: =IF(B155="","",IF(N155="FIX PAY",0,IF(BA155="OLD",AQ155/1000*HOME!$F$7,0))) ->  | BC155: =IF(B155="","",IF(N155="VACANT",0,IF(N155="FIX PAY",0,IF(BA155="NEW",AQ155/1000*HOME!$F$6,0)))) ->  | BD155: =IF(B155="","",IF(N155="FIX PAY",0,IF(BA155="OLD",AR155/1000*HOME!$F$7,0))) ->  | BE155: =IF(B155="","",IF(N155="VACANT",0,IF(N155="FIX PAY",0,IF(BA155="NEW",AR155/1000*HOME!$F$6,0)))) -> 
M156: =IF(L156="","",INDEX(TPravesh!$U$3:$U$26,MATCH('Emp Data'!L156,TPravesh!$S$3:$S$26,0))) ->  | AC156: =IF(B156="","",IF(AD156="NA","NA",INDEX(TPravesh!$AA$5:$AA$16,MATCH(AD156,TPravesh!$AQ$5:$AQ$16,0)))) ->  | AD156: =IF(B156="","",IF(Q156="","",IF(Q156="NA","NA",INDEX(TPravesh!$AQ$5:$AQ$16,MATCH(Q156,TPravesh!$AA$5:$AA$16,0))))) ->  | AF156: =IF(B156="","",IF(W156="YES",HOME!$C$7,0)) ->  | AG156: =IF(B156="","",IF(S156="YES",HOME!$C$6,0)) ->  | AL156: =IF(B156="","",IF(I156="OLD",VLOOKUP(O156,TPravesh!$B$21:$G$24,4),VLOOKUP(O156,TPravesh!$B$28:$G$29,4))) ->  | AW156: =IF(B156="","",IF(X156="YES",IF(I156="OLD",ROUND(SUM(O156+O156*HOME!$F$6)*50%,0),ROUND(SUM(O156+O156*HOME!$F$6)*50%,0)))) ->  | AX156: =IF(B156="","",IF(X156="YES",IF(I156="OLD",ROUND(SUM(AO156+AO156*HOME!$F$6)*50%,0),ROUND(SUM(AO156+AO156*HOME!$F$6)*50%,0)))) ->  | BB156: =IF(B156="","",IF(N156="FIX PAY",0,IF(BA156="OLD",AQ156/1000*HOME!$F$7,0))) ->  | BC156: =IF(B156="","",IF(N156="VACANT",0,IF(N156="FIX PAY",0,IF(BA156="NEW",AQ156/1000*HOME!$F$6,0)))) ->  | BD156: =IF(B156="","",IF(N156="FIX PAY",0,IF(BA156="OLD",AR156/1000*HOME!$F$7,0))) ->  | BE156: =IF(B156="","",IF(N156="VACANT",0,IF(N156="FIX PAY",0,IF(BA156="NEW",AR156/1000*HOME!$F$6,0)))) -> 
M157: =IF(L157="","",INDEX(TPravesh!$U$3:$U$26,MATCH('Emp Data'!L157,TPravesh!$S$3:$S$26,0))) ->  | AC157: =IF(B157="","",IF(AD157="NA","NA",INDEX(TPravesh!$AA$5:$AA$16,MATCH(AD157,TPravesh!$AQ$5:$AQ$16,0)))) ->  | AD157: =IF(B157="","",IF(Q157="","",IF(Q157="NA","NA",INDEX(TPravesh!$AQ$5:$AQ$16,MATCH(Q157,TPravesh!$AA$5:$AA$16,0))))) ->  | AF157: =IF(B157="","",IF(W157="YES",HOME!$C$7,0)) ->  | AG157: =IF(B157="","",IF(S157="YES",HOME!$C$6,0)) ->  | AL157: =IF(B157="","",IF(I157="OLD",VLOOKUP(O157,TPravesh!$B$21:$G$24,4),VLOOKUP(O157,TPravesh!$B$28:$G$29,4))) ->  | AW157: =IF(B157="","",IF(X157="YES",IF(I157="OLD",ROUND(SUM(O157+O157*HOME!$F$6)*50%,0),ROUND(SUM(O157+O157*HOME!$F$6)*50%,0)))) ->  | AX157: =IF(B157="","",IF(X157="YES",IF(I157="OLD",ROUND(SUM(AO157+AO157*HOME!$F$6)*50%,0),ROUND(SUM(AO157+AO157*HOME!$F$6)*50%,0)))) ->  | BB157: =IF(B157="","",IF(N157="FIX PAY",0,IF(BA157="OLD",AQ157/1000*HOME!$F$7,0))) ->  | BC157: =IF(B157="","",IF(N157="VACANT",0,IF(N157="FIX PAY",0,IF(BA157="NEW",AQ157/1000*HOME!$F$6,0)))) ->  | BD157: =IF(B157="","",IF(N157="FIX PAY",0,IF(BA157="OLD",AR157/1000*HOME!$F$7,0))) ->  | BE157: =IF(B157="","",IF(N157="VACANT",0,IF(N157="FIX PAY",0,IF(BA157="NEW",AR157/1000*HOME!$F$6,0)))) -> 
M158: =IF(L158="","",INDEX(TPravesh!$U$3:$U$26,MATCH('Emp Data'!L158,TPravesh!$S$3:$S$26,0))) ->  | AC158: =IF(B158="","",IF(AD158="NA","NA",INDEX(TPravesh!$AA$5:$AA$16,MATCH(AD158,TPravesh!$AQ$5:$AQ$16,0)))) ->  | AD158: =IF(B158="","",IF(Q158="","",IF(Q158="NA","NA",INDEX(TPravesh!$AQ$5:$AQ$16,MATCH(Q158,TPravesh!$AA$5:$AA$16,0))))) ->  | AF158: =IF(B158="","",IF(W158="YES",HOME!$C$7,0)) ->  | AG158: =IF(B158="","",IF(S158="YES",HOME!$C$6,0)) ->  | AL158: =IF(B158="","",IF(I158="OLD",VLOOKUP(O158,TPravesh!$B$21:$G$24,4),VLOOKUP(O158,TPravesh!$B$28:$G$29,4))) ->  | AW158: =IF(B158="","",IF(X158="YES",IF(I158="OLD",ROUND(SUM(O158+O158*HOME!$F$6)*50%,0),ROUND(SUM(O158+O158*HOME!$F$6)*50%,0)))) ->  | AX158: =IF(B158="","",IF(X158="YES",IF(I158="OLD",ROUND(SUM(AO158+AO158*HOME!$F$6)*50%,0),ROUND(SUM(AO158+AO158*HOME!$F$6)*50%,0)))) ->  | BB158: =IF(B158="","",IF(N158="FIX PAY",0,IF(BA158="OLD",AQ158/1000*HOME!$F$7,0))) ->  | BC158: =IF(B158="","",IF(N158="VACANT",0,IF(N158="FIX PAY",0,IF(BA158="NEW",AQ158/1000*HOME!$F$6,0)))) ->  | BD158: =IF(B158="","",IF(N158="FIX PAY",0,IF(BA158="OLD",AR158/1000*HOME!$F$7,0))) ->  | BE158: =IF(B158="","",IF(N158="VACANT",0,IF(N158="FIX PAY",0,IF(BA158="NEW",AR158/1000*HOME!$F$6,0)))) -> 
M159: =IF(L159="","",INDEX(TPravesh!$U$3:$U$26,MATCH('Emp Data'!L159,TPravesh!$S$3:$S$26,0))) ->  | AC159: =IF(B159="","",IF(AD159="NA","NA",INDEX(TPravesh!$AA$5:$AA$16,MATCH(AD159,TPravesh!$AQ$5:$AQ$16,0)))) ->  | AD159: =IF(B159="","",IF(Q159="","",IF(Q159="NA","NA",INDEX(TPravesh!$AQ$5:$AQ$16,MATCH(Q159,TPravesh!$AA$5:$AA$16,0))))) ->  | AF159: =IF(B159="","",IF(W159="YES",HOME!$C$7,0)) ->  | AG159: =IF(B159="","",IF(S159="YES",HOME!$C$6,0)) ->  | AL159: =IF(B159="","",IF(I159="OLD",VLOOKUP(O159,TPravesh!$B$21:$G$24,4),VLOOKUP(O159,TPravesh!$B$28:$G$29,4))) ->  | AW159: =IF(B159="","",IF(X159="YES",IF(I159="OLD",ROUND(SUM(O159+O159*HOME!$F$6)*50%,0),ROUND(SUM(O159+O159*HOME!$F$6)*50%,0)))) ->  | AX159: =IF(B159="","",IF(X159="YES",IF(I159="OLD",ROUND(SUM(AO159+AO159*HOME!$F$6)*50%,0),ROUND(SUM(AO159+AO159*HOME!$F$6)*50%,0)))) ->  | BB159: =IF(B159="","",IF(N159="FIX PAY",0,IF(BA159="OLD",AQ159/1000*HOME!$F$7,0))) ->  | BC159: =IF(B159="","",IF(N159="VACANT",0,IF(N159="FIX PAY",0,IF(BA159="NEW",AQ159/1000*HOME!$F$6,0)))) ->  | BD159: =IF(B159="","",IF(N159="FIX PAY",0,IF(BA159="OLD",AR159/1000*HOME!$F$7,0))) ->  | BE159: =IF(B159="","",IF(N159="VACANT",0,IF(N159="FIX PAY",0,IF(BA159="NEW",AR159/1000*HOME!$F$6,0)))) -> 
M160: =IF(L160="","",INDEX(TPravesh!$U$3:$U$26,MATCH('Emp Data'!L160,TPravesh!$S$3:$S$26,0))) ->  | AC160: =IF(B160="","",IF(AD160="NA","NA",INDEX(TPravesh!$AA$5:$AA$16,MATCH(AD160,TPravesh!$AQ$5:$AQ$16,0)))) ->  | AD160: =IF(B160="","",IF(Q160="","",IF(Q160="NA","NA",INDEX(TPravesh!$AQ$5:$AQ$16,MATCH(Q160,TPravesh!$AA$5:$AA$16,0))))) ->  | AF160: =IF(B160="","",IF(W160="YES",HOME!$C$7,0)) ->  | AG160: =IF(B160="","",IF(S160="YES",HOME!$C$6,0)) ->  | AL160: =IF(B160="","",IF(I160="OLD",VLOOKUP(O160,TPravesh!$B$21:$G$24,4),VLOOKUP(O160,TPravesh!$B$28:$G$29,4))) ->  | AW160: =IF(B160="","",IF(X160="YES",IF(I160="OLD",ROUND(SUM(O160+O160*HOME!$F$6)*50%,0),ROUND(SUM(O160+O160*HOME!$F$6)*50%,0)))) ->  | AX160: =IF(B160="","",IF(X160="YES",IF(I160="OLD",ROUND(SUM(AO160+AO160*HOME!$F$6)*50%,0),ROUND(SUM(AO160+AO160*HOME!$F$6)*50%,0)))) ->  | BB160: =IF(B160="","",IF(N160="FIX PAY",0,IF(BA160="OLD",AQ160/1000*HOME!$F$7,0))) ->  | BC160: =IF(B160="","",IF(N160="VACANT",0,IF(N160="FIX PAY",0,IF(BA160="NEW",AQ160/1000*HOME!$F$6,0)))) ->  | BD160: =IF(B160="","",IF(N160="FIX PAY",0,IF(BA160="OLD",AR160/1000*HOME!$F$7,0))) ->  | BE160: =IF(B160="","",IF(N160="VACANT",0,IF(N160="FIX PAY",0,IF(BA160="NEW",AR160/1000*HOME!$F$6,0)))) -> 
M161: =IF(L161="","",INDEX(TPravesh!$U$3:$U$26,MATCH('Emp Data'!L161,TPravesh!$S$3:$S$26,0))) ->  | AC161: =IF(B161="","",IF(AD161="NA","NA",INDEX(TPravesh!$AA$5:$AA$16,MATCH(AD161,TPravesh!$AQ$5:$AQ$16,0)))) ->  | AD161: =IF(B161="","",IF(Q161="","",IF(Q161="NA","NA",INDEX(TPravesh!$AQ$5:$AQ$16,MATCH(Q161,TPravesh!$AA$5:$AA$16,0))))) ->  | AF161: =IF(B161="","",IF(W161="YES",HOME!$C$7,0)) ->  | AG161: =IF(B161="","",IF(S161="YES",HOME!$C$6,0)) ->  | AL161: =IF(B161="","",IF(I161="OLD",VLOOKUP(O161,TPravesh!$B$21:$G$24,4),VLOOKUP(O161,TPravesh!$B$28:$G$29,4))) ->  | AW161: =IF(B161="","",IF(X161="YES",IF(I161="OLD",ROUND(SUM(O161+O161*HOME!$F$6)*50%,0),ROUND(SUM(O161+O161*HOME!$F$6)*50%,0)))) ->  | AX161: =IF(B161="","",IF(X161="YES",IF(I161="OLD",ROUND(SUM(AO161+AO161*HOME!$F$6)*50%,0),ROUND(SUM(AO161+AO161*HOME!$F$6)*50%,0)))) ->  | BB161: =IF(B161="","",IF(N161="FIX PAY",0,IF(BA161="OLD",AQ161/1000*HOME!$F$7,0))) ->  | BC161: =IF(B161="","",IF(N161="VACANT",0,IF(N161="FIX PAY",0,IF(BA161="NEW",AQ161/1000*HOME!$F$6,0)))) ->  | BD161: =IF(B161="","",IF(N161="FIX PAY",0,IF(BA161="OLD",AR161/1000*HOME!$F$7,0))) ->  | BE161: =IF(B161="","",IF(N161="VACANT",0,IF(N161="FIX PAY",0,IF(BA161="NEW",AR161/1000*HOME!$F$6,0)))) -> 
M162: =IF(L162="","",INDEX(TPravesh!$U$3:$U$26,MATCH('Emp Data'!L162,TPravesh!$S$3:$S$26,0))) ->  | AC162: =IF(B162="","",IF(AD162="NA","NA",INDEX(TPravesh!$AA$5:$AA$16,MATCH(AD162,TPravesh!$AQ$5:$AQ$16,0)))) ->  | AD162: =IF(B162="","",IF(Q162="","",IF(Q162="NA","NA",INDEX(TPravesh!$AQ$5:$AQ$16,MATCH(Q162,TPravesh!$AA$5:$AA$16,0))))) ->  | AF162: =IF(B162="","",IF(W162="YES",HOME!$C$7,0)) ->  | AG162: =IF(B162="","",IF(S162="YES",HOME!$C$6,0)) ->  | AL162: =IF(B162="","",IF(I162="OLD",VLOOKUP(O162,TPravesh!$B$21:$G$24,4),VLOOKUP(O162,TPravesh!$B$28:$G$29,4))) ->  | AW162: =IF(B162="","",IF(X162="YES",IF(I162="OLD",ROUND(SUM(O162+O162*HOME!$F$6)*50%,0),ROUND(SUM(O162+O162*HOME!$F$6)*50%,0)))) ->  | AX162: =IF(B162="","",IF(X162="YES",IF(I162="OLD",ROUND(SUM(AO162+AO162*HOME!$F$6)*50%,0),ROUND(SUM(AO162+AO162*HOME!$F$6)*50%,0)))) ->  | BB162: =IF(B162="","",IF(N162="FIX PAY",0,IF(BA162="OLD",AQ162/1000*HOME!$F$7,0))) ->  | BC162: =IF(B162="","",IF(N162="VACANT",0,IF(N162="FIX PAY",0,IF(BA162="NEW",AQ162/1000*HOME!$F$6,0)))) ->  | BD162: =IF(B162="","",IF(N162="FIX PAY",0,IF(BA162="OLD",AR162/1000*HOME!$F$7,0))) ->  | BE162: =IF(B162="","",IF(N162="VACANT",0,IF(N162="FIX PAY",0,IF(BA162="NEW",AR162/1000*HOME!$F$6,0)))) -> 
M163: =IF(L163="","",INDEX(TPravesh!$U$3:$U$26,MATCH('Emp Data'!L163,TPravesh!$S$3:$S$26,0))) ->  | AC163: =IF(B163="","",IF(AD163="NA","NA",INDEX(TPravesh!$AA$5:$AA$16,MATCH(AD163,TPravesh!$AQ$5:$AQ$16,0)))) ->  | AD163: =IF(B163="","",IF(Q163="","",IF(Q163="NA","NA",INDEX(TPravesh!$AQ$5:$AQ$16,MATCH(Q163,TPravesh!$AA$5:$AA$16,0))))) ->  | AF163: =IF(B163="","",IF(W163="YES",HOME!$C$7,0)) ->  | AG163: =IF(B163="","",IF(S163="YES",HOME!$C$6,0)) ->  | AL163: =IF(B163="","",IF(I163="OLD",VLOOKUP(O163,TPravesh!$B$21:$G$24,4),VLOOKUP(O163,TPravesh!$B$28:$G$29,4))) ->  | AW163: =IF(B163="","",IF(X163="YES",IF(I163="OLD",ROUND(SUM(O163+O163*HOME!$F$6)*50%,0),ROUND(SUM(O163+O163*HOME!$F$6)*50%,0)))) ->  | AX163: =IF(B163="","",IF(X163="YES",IF(I163="OLD",ROUND(SUM(AO163+AO163*HOME!$F$6)*50%,0),ROUND(SUM(AO163+AO163*HOME!$F$6)*50%,0)))) ->  | BB163: =IF(B163="","",IF(N163="FIX PAY",0,IF(BA163="OLD",AQ163/1000*HOME!$F$7,0))) ->  | BC163: =IF(B163="","",IF(N163="VACANT",0,IF(N163="FIX PAY",0,IF(BA163="NEW",AQ163/1000*HOME!$F$6,0)))) ->  | BD163: =IF(B163="","",IF(N163="FIX PAY",0,IF(BA163="OLD",AR163/1000*HOME!$F$7,0))) ->  | BE163: =IF(B163="","",IF(N163="VACANT",0,IF(N163="FIX PAY",0,IF(BA163="NEW",AR163/1000*HOME!$F$6,0)))) -> 
M164: =IF(L164="","",INDEX(TPravesh!$U$3:$U$26,MATCH('Emp Data'!L164,TPravesh!$S$3:$S$26,0))) ->  | AC164: =IF(B164="","",IF(AD164="NA","NA",INDEX(TPravesh!$AA$5:$AA$16,MATCH(AD164,TPravesh!$AQ$5:$AQ$16,0)))) ->  | AD164: =IF(B164="","",IF(Q164="","",IF(Q164="NA","NA",INDEX(TPravesh!$AQ$5:$AQ$16,MATCH(Q164,TPravesh!$AA$5:$AA$16,0))))) ->  | AF164: =IF(B164="","",IF(W164="YES",HOME!$C$7,0)) ->  | AG164: =IF(B164="","",IF(S164="YES",HOME!$C$6,0)) ->  | AL164: =IF(B164="","",IF(I164="OLD",VLOOKUP(O164,TPravesh!$B$21:$G$24,4),VLOOKUP(O164,TPravesh!$B$28:$G$29,4))) ->  | AW164: =IF(B164="","",IF(X164="YES",IF(I164="OLD",ROUND(SUM(O164+O164*HOME!$F$6)*50%,0),ROUND(SUM(O164+O164*HOME!$F$6)*50%,0)))) ->  | AX164: =IF(B164="","",IF(X164="YES",IF(I164="OLD",ROUND(SUM(AO164+AO164*HOME!$F$6)*50%,0),ROUND(SUM(AO164+AO164*HOME!$F$6)*50%,0)))) ->  | BB164: =IF(B164="","",IF(N164="FIX PAY",0,IF(BA164="OLD",AQ164/1000*HOME!$F$7,0))) ->  | BC164: =IF(B164="","",IF(N164="VACANT",0,IF(N164="FIX PAY",0,IF(BA164="NEW",AQ164/1000*HOME!$F$6,0)))) ->  | BD164: =IF(B164="","",IF(N164="FIX PAY",0,IF(BA164="OLD",AR164/1000*HOME!$F$7,0))) ->  | BE164: =IF(B164="","",IF(N164="VACANT",0,IF(N164="FIX PAY",0,IF(BA164="NEW",AR164/1000*HOME!$F$6,0)))) -> 
M165: =IF(L165="","",INDEX(TPravesh!$U$3:$U$26,MATCH('Emp Data'!L165,TPravesh!$S$3:$S$26,0))) ->  | AC165: =IF(B165="","",IF(AD165="NA","NA",INDEX(TPravesh!$AA$5:$AA$16,MATCH(AD165,TPravesh!$AQ$5:$AQ$16,0)))) ->  | AD165: =IF(B165="","",IF(Q165="","",IF(Q165="NA","NA",INDEX(TPravesh!$AQ$5:$AQ$16,MATCH(Q165,TPravesh!$AA$5:$AA$16,0))))) ->  | AF165: =IF(B165="","",IF(W165="YES",HOME!$C$7,0)) ->  | AG165: =IF(B165="","",IF(S165="YES",HOME!$C$6,0)) ->  | AL165: =IF(B165="","",IF(I165="OLD",VLOOKUP(O165,TPravesh!$B$21:$G$24,4),VLOOKUP(O165,TPravesh!$B$28:$G$29,4))) ->  | AW165: =IF(B165="","",IF(X165="YES",IF(I165="OLD",ROUND(SUM(O165+O165*HOME!$F$6)*50%,0),ROUND(SUM(O165+O165*HOME!$F$6)*50%,0)))) ->  | AX165: =IF(B165="","",IF(X165="YES",IF(I165="OLD",ROUND(SUM(AO165+AO165*HOME!$F$6)*50%,0),ROUND(SUM(AO165+AO165*HOME!$F$6)*50%,0)))) ->  | BB165: =IF(B165="","",IF(N165="FIX PAY",0,IF(BA165="OLD",AQ165/1000*HOME!$F$7,0))) ->  | BC165: =IF(B165="","",IF(N165="VACANT",0,IF(N165="FIX PAY",0,IF(BA165="NEW",AQ165/1000*HOME!$F$6,0)))) ->  | BD165: =IF(B165="","",IF(N165="FIX PAY",0,IF(BA165="OLD",AR165/1000*HOME!$F$7,0))) ->  | BE165: =IF(B165="","",IF(N165="VACANT",0,IF(N165="FIX PAY",0,IF(BA165="NEW",AR165/1000*HOME!$F$6,0)))) -> 
M166: =IF(L166="","",INDEX(TPravesh!$U$3:$U$26,MATCH('Emp Data'!L166,TPravesh!$S$3:$S$26,0))) ->  | AC166: =IF(B166="","",IF(AD166="NA","NA",INDEX(TPravesh!$AA$5:$AA$16,MATCH(AD166,TPravesh!$AQ$5:$AQ$16,0)))) ->  | AD166: =IF(B166="","",IF(Q166="","",IF(Q166="NA","NA",INDEX(TPravesh!$AQ$5:$AQ$16,MATCH(Q166,TPravesh!$AA$5:$AA$16,0))))) ->  | AF166: =IF(B166="","",IF(W166="YES",HOME!$C$7,0)) ->  | AG166: =IF(B166="","",IF(S166="YES",HOME!$C$6,0)) ->  | AL166: =IF(B166="","",IF(I166="OLD",VLOOKUP(O166,TPravesh!$B$21:$G$24,4),VLOOKUP(O166,TPravesh!$B$28:$G$29,4))) ->  | AW166: =IF(B166="","",IF(X166="YES",IF(I166="OLD",ROUND(SUM(O166+O166*HOME!$F$6)*50%,0),ROUND(SUM(O166+O166*HOME!$F$6)*50%,0)))) ->  | AX166: =IF(B166="","",IF(X166="YES",IF(I166="OLD",ROUND(SUM(AO166+AO166*HOME!$F$6)*50%,0),ROUND(SUM(AO166+AO166*HOME!$F$6)*50%,0)))) ->  | BB166: =IF(B166="","",IF(N166="FIX PAY",0,IF(BA166="OLD",AQ166/1000*HOME!$F$7,0))) ->  | BC166: =IF(B166="","",IF(N166="VACANT",0,IF(N166="FIX PAY",0,IF(BA166="NEW",AQ166/1000*HOME!$F$6,0)))) ->  | BD166: =IF(B166="","",IF(N166="FIX PAY",0,IF(BA166="OLD",AR166/1000*HOME!$F$7,0))) ->  | BE166: =IF(B166="","",IF(N166="VACANT",0,IF(N166="FIX PAY",0,IF(BA166="NEW",AR166/1000*HOME!$F$6,0)))) -> 
M167: =IF(L167="","",INDEX(TPravesh!$U$3:$U$26,MATCH('Emp Data'!L167,TPravesh!$S$3:$S$26,0))) ->  | AC167: =IF(B167="","",IF(AD167="NA","NA",INDEX(TPravesh!$AA$5:$AA$16,MATCH(AD167,TPravesh!$AQ$5:$AQ$16,0)))) ->  | AD167: =IF(B167="","",IF(Q167="","",IF(Q167="NA","NA",INDEX(TPravesh!$AQ$5:$AQ$16,MATCH(Q167,TPravesh!$AA$5:$AA$16,0))))) ->  | AF167: =IF(B167="","",IF(W167="YES",HOME!$C$7,0)) ->  | AG167: =IF(B167="","",IF(S167="YES",HOME!$C$6,0)) ->  | AL167: =IF(B167="","",IF(I167="OLD",VLOOKUP(O167,TPravesh!$B$21:$G$24,4),VLOOKUP(O167,TPravesh!$B$28:$G$29,4))) ->  | AW167: =IF(B167="","",IF(X167="YES",IF(I167="OLD",ROUND(SUM(O167+O167*HOME!$F$6)*50%,0),ROUND(SUM(O167+O167*HOME!$F$6)*50%,0)))) ->  | AX167: =IF(B167="","",IF(X167="YES",IF(I167="OLD",ROUND(SUM(AO167+AO167*HOME!$F$6)*50%,0),ROUND(SUM(AO167+AO167*HOME!$F$6)*50%,0)))) ->  | BB167: =IF(B167="","",IF(N167="FIX PAY",0,IF(BA167="OLD",AQ167/1000*HOME!$F$7,0))) ->  | BC167: =IF(B167="","",IF(N167="VACANT",0,IF(N167="FIX PAY",0,IF(BA167="NEW",AQ167/1000*HOME!$F$6,0)))) ->  | BD167: =IF(B167="","",IF(N167="FIX PAY",0,IF(BA167="OLD",AR167/1000*HOME!$F$7,0))) ->  | BE167: =IF(B167="","",IF(N167="VACANT",0,IF(N167="FIX PAY",0,IF(BA167="NEW",AR167/1000*HOME!$F$6,0)))) -> 
M168: =IF(L168="","",INDEX(TPravesh!$U$3:$U$26,MATCH('Emp Data'!L168,TPravesh!$S$3:$S$26,0))) ->  | AC168: =IF(B168="","",IF(AD168="NA","NA",INDEX(TPravesh!$AA$5:$AA$16,MATCH(AD168,TPravesh!$AQ$5:$AQ$16,0)))) ->  | AD168: =IF(B168="","",IF(Q168="","",IF(Q168="NA","NA",INDEX(TPravesh!$AQ$5:$AQ$16,MATCH(Q168,TPravesh!$AA$5:$AA$16,0))))) ->  | AF168: =IF(B168="","",IF(W168="YES",HOME!$C$7,0)) ->  | AG168: =IF(B168="","",IF(S168="YES",HOME!$C$6,0)) ->  | AL168: =IF(B168="","",IF(I168="OLD",VLOOKUP(O168,TPravesh!$B$21:$G$24,4),VLOOKUP(O168,TPravesh!$B$28:$G$29,4))) ->  | AW168: =IF(B168="","",IF(X168="YES",IF(I168="OLD",ROUND(SUM(O168+O168*HOME!$F$6)*50%,0),ROUND(SUM(O168+O168*HOME!$F$6)*50%,0)))) ->  | AX168: =IF(B168="","",IF(X168="YES",IF(I168="OLD",ROUND(SUM(AO168+AO168*HOME!$F$6)*50%,0),ROUND(SUM(AO168+AO168*HOME!$F$6)*50%,0)))) ->  | BB168: =IF(B168="","",IF(N168="FIX PAY",0,IF(BA168="OLD",AQ168/1000*HOME!$F$7,0))) ->  | BC168: =IF(B168="","",IF(N168="VACANT",0,IF(N168="FIX PAY",0,IF(BA168="NEW",AQ168/1000*HOME!$F$6,0)))) ->  | BD168: =IF(B168="","",IF(N168="FIX PAY",0,IF(BA168="OLD",AR168/1000*HOME!$F$7,0))) ->  | BE168: =IF(B168="","",IF(N168="VACANT",0,IF(N168="FIX PAY",0,IF(BA168="NEW",AR168/1000*HOME!$F$6,0)))) -> 
M169: =IF(L169="","",INDEX(TPravesh!$U$3:$U$26,MATCH('Emp Data'!L169,TPravesh!$S$3:$S$26,0))) ->  | AC169: =IF(B169="","",IF(AD169="NA","NA",INDEX(TPravesh!$AA$5:$AA$16,MATCH(AD169,TPravesh!$AQ$5:$AQ$16,0)))) ->  | AD169: =IF(B169="","",IF(Q169="","",IF(Q169="NA","NA",INDEX(TPravesh!$AQ$5:$AQ$16,MATCH(Q169,TPravesh!$AA$5:$AA$16,0))))) ->  | AF169: =IF(B169="","",IF(W169="YES",HOME!$C$7,0)) ->  | AG169: =IF(B169="","",IF(S169="YES",HOME!$C$6,0)) ->  | AL169: =IF(B169="","",IF(I169="OLD",VLOOKUP(O169,TPravesh!$B$21:$G$24,4),VLOOKUP(O169,TPravesh!$B$28:$G$29,4))) ->  | AW169: =IF(B169="","",IF(X169="YES",IF(I169="OLD",ROUND(SUM(O169+O169*HOME!$F$6)*50%,0),ROUND(SUM(O169+O169*HOME!$F$6)*50%,0)))) ->  | AX169: =IF(B169="","",IF(X169="YES",IF(I169="OLD",ROUND(SUM(AO169+AO169*HOME!$F$6)*50%,0),ROUND(SUM(AO169+AO169*HOME!$F$6)*50%,0)))) ->  | BB169: =IF(B169="","",IF(N169="FIX PAY",0,IF(BA169="OLD",AQ169/1000*HOME!$F$7,0))) ->  | BC169: =IF(B169="","",IF(N169="VACANT",0,IF(N169="FIX PAY",0,IF(BA169="NEW",AQ169/1000*HOME!$F$6,0)))) ->  | BD169: =IF(B169="","",IF(N169="FIX PAY",0,IF(BA169="OLD",AR169/1000*HOME!$F$7,0))) ->  | BE169: =IF(B169="","",IF(N169="VACANT",0,IF(N169="FIX PAY",0,IF(BA169="NEW",AR169/1000*HOME!$F$6,0)))) -> 
M170: =IF(L170="","",INDEX(TPravesh!$U$3:$U$26,MATCH('Emp Data'!L170,TPravesh!$S$3:$S$26,0))) ->  | AC170: =IF(B170="","",IF(AD170="NA","NA",INDEX(TPravesh!$AA$5:$AA$16,MATCH(AD170,TPravesh!$AQ$5:$AQ$16,0)))) ->  | AD170: =IF(B170="","",IF(Q170="","",IF(Q170="NA","NA",INDEX(TPravesh!$AQ$5:$AQ$16,MATCH(Q170,TPravesh!$AA$5:$AA$16,0))))) ->  | AF170: =IF(B170="","",IF(W170="YES",HOME!$C$7,0)) ->  | AG170: =IF(B170="","",IF(S170="YES",HOME!$C$6,0)) ->  | AL170: =IF(B170="","",IF(I170="OLD",VLOOKUP(O170,TPravesh!$B$21:$G$24,4),VLOOKUP(O170,TPravesh!$B$28:$G$29,4))) ->  | AW170: =IF(B170="","",IF(X170="YES",IF(I170="OLD",ROUND(SUM(O170+O170*HOME!$F$6)*50%,0),ROUND(SUM(O170+O170*HOME!$F$6)*50%,0)))) ->  | AX170: =IF(B170="","",IF(X170="YES",IF(I170="OLD",ROUND(SUM(AO170+AO170*HOME!$F$6)*50%,0),ROUND(SUM(AO170+AO170*HOME!$F$6)*50%,0)))) ->  | BB170: =IF(B170="","",IF(N170="FIX PAY",0,IF(BA170="OLD",AQ170/1000*HOME!$F$7,0))) ->  | BC170: =IF(B170="","",IF(N170="VACANT",0,IF(N170="FIX PAY",0,IF(BA170="NEW",AQ170/1000*HOME!$F$6,0)))) ->  | BD170: =IF(B170="","",IF(N170="FIX PAY",0,IF(BA170="OLD",AR170/1000*HOME!$F$7,0))) ->  | BE170: =IF(B170="","",IF(N170="VACANT",0,IF(N170="FIX PAY",0,IF(BA170="NEW",AR170/1000*HOME!$F$6,0)))) -> 
M171: =IF(L171="","",INDEX(TPravesh!$U$3:$U$26,MATCH('Emp Data'!L171,TPravesh!$S$3:$S$26,0))) ->  | AC171: =IF(B171="","",IF(AD171="NA","NA",INDEX(TPravesh!$AA$5:$AA$16,MATCH(AD171,TPravesh!$AQ$5:$AQ$16,0)))) ->  | AD171: =IF(B171="","",IF(Q171="","",IF(Q171="NA","NA",INDEX(TPravesh!$AQ$5:$AQ$16,MATCH(Q171,TPravesh!$AA$5:$AA$16,0))))) ->  | AF171: =IF(B171="","",IF(W171="YES",HOME!$C$7,0)) ->  | AG171: =IF(B171="","",IF(S171="YES",HOME!$C$6,0)) ->  | AL171: =IF(B171="","",IF(I171="OLD",VLOOKUP(O171,TPravesh!$B$21:$G$24,4),VLOOKUP(O171,TPravesh!$B$28:$G$29,4))) ->  | AW171: =IF(B171="","",IF(X171="YES",IF(I171="OLD",ROUND(SUM(O171+O171*HOME!$F$6)*50%,0),ROUND(SUM(O171+O171*HOME!$F$6)*50%,0)))) ->  | AX171: =IF(B171="","",IF(X171="YES",IF(I171="OLD",ROUND(SUM(AO171+AO171*HOME!$F$6)*50%,0),ROUND(SUM(AO171+AO171*HOME!$F$6)*50%,0)))) ->  | BB171: =IF(B171="","",IF(N171="FIX PAY",0,IF(BA171="OLD",AQ171/1000*HOME!$F$7,0))) ->  | BC171: =IF(B171="","",IF(N171="VACANT",0,IF(N171="FIX PAY",0,IF(BA171="NEW",AQ171/1000*HOME!$F$6,0)))) ->  | BD171: =IF(B171="","",IF(N171="FIX PAY",0,IF(BA171="OLD",AR171/1000*HOME!$F$7,0))) ->  | BE171: =IF(B171="","",IF(N171="VACANT",0,IF(N171="FIX PAY",0,IF(BA171="NEW",AR171/1000*HOME!$F$6,0)))) -> 
M172: =IF(L172="","",INDEX(TPravesh!$U$3:$U$26,MATCH('Emp Data'!L172,TPravesh!$S$3:$S$26,0))) ->  | AC172: =IF(B172="","",IF(AD172="NA","NA",INDEX(TPravesh!$AA$5:$AA$16,MATCH(AD172,TPravesh!$AQ$5:$AQ$16,0)))) ->  | AD172: =IF(B172="","",IF(Q172="","",IF(Q172="NA","NA",INDEX(TPravesh!$AQ$5:$AQ$16,MATCH(Q172,TPravesh!$AA$5:$AA$16,0))))) ->  | AF172: =IF(B172="","",IF(W172="YES",HOME!$C$7,0)) ->  | AG172: =IF(B172="","",IF(S172="YES",HOME!$C$6,0)) ->  | AL172: =IF(B172="","",IF(I172="OLD",VLOOKUP(O172,TPravesh!$B$21:$G$24,4),VLOOKUP(O172,TPravesh!$B$28:$G$29,4))) ->  | AW172: =IF(B172="","",IF(X172="YES",IF(I172="OLD",ROUND(SUM(O172+O172*HOME!$F$6)*50%,0),ROUND(SUM(O172+O172*HOME!$F$6)*50%,0)))) ->  | AX172: =IF(B172="","",IF(X172="YES",IF(I172="OLD",ROUND(SUM(AO172+AO172*HOME!$F$6)*50%,0),ROUND(SUM(AO172+AO172*HOME!$F$6)*50%,0)))) ->  | BB172: =IF(B172="","",IF(N172="FIX PAY",0,IF(BA172="OLD",AQ172/1000*HOME!$F$7,0))) ->  | BC172: =IF(B172="","",IF(N172="VACANT",0,IF(N172="FIX PAY",0,IF(BA172="NEW",AQ172/1000*HOME!$F$6,0)))) ->  | BD172: =IF(B172="","",IF(N172="FIX PAY",0,IF(BA172="OLD",AR172/1000*HOME!$F$7,0))) ->  | BE172: =IF(B172="","",IF(N172="VACANT",0,IF(N172="FIX PAY",0,IF(BA172="NEW",AR172/1000*HOME!$F$6,0)))) -> 
M173: =IF(L173="","",INDEX(TPravesh!$U$3:$U$26,MATCH('Emp Data'!L173,TPravesh!$S$3:$S$26,0))) ->  | AC173: =IF(B173="","",IF(AD173="NA","NA",INDEX(TPravesh!$AA$5:$AA$16,MATCH(AD173,TPravesh!$AQ$5:$AQ$16,0)))) ->  | AD173: =IF(B173="","",IF(Q173="","",IF(Q173="NA","NA",INDEX(TPravesh!$AQ$5:$AQ$16,MATCH(Q173,TPravesh!$AA$5:$AA$16,0))))) ->  | AF173: =IF(B173="","",IF(W173="YES",HOME!$C$7,0)) ->  | AG173: =IF(B173="","",IF(S173="YES",HOME!$C$6,0)) ->  | AL173: =IF(B173="","",IF(I173="OLD",VLOOKUP(O173,TPravesh!$B$21:$G$24,4),VLOOKUP(O173,TPravesh!$B$28:$G$29,4))) ->  | AW173: =IF(B173="","",IF(X173="YES",IF(I173="OLD",ROUND(SUM(O173+O173*HOME!$F$6)*50%,0),ROUND(SUM(O173+O173*HOME!$F$6)*50%,0)))) ->  | AX173: =IF(B173="","",IF(X173="YES",IF(I173="OLD",ROUND(SUM(AO173+AO173*HOME!$F$6)*50%,0),ROUND(SUM(AO173+AO173*HOME!$F$6)*50%,0)))) ->  | BB173: =IF(B173="","",IF(N173="FIX PAY",0,IF(BA173="OLD",AQ173/1000*HOME!$F$7,0))) ->  | BC173: =IF(B173="","",IF(N173="VACANT",0,IF(N173="FIX PAY",0,IF(BA173="NEW",AQ173/1000*HOME!$F$6,0)))) ->  | BD173: =IF(B173="","",IF(N173="FIX PAY",0,IF(BA173="OLD",AR173/1000*HOME!$F$7,0))) ->  | BE173: =IF(B173="","",IF(N173="VACANT",0,IF(N173="FIX PAY",0,IF(BA173="NEW",AR173/1000*HOME!$F$6,0)))) -> 
M174: =IF(L174="","",INDEX(TPravesh!$U$3:$U$26,MATCH('Emp Data'!L174,TPravesh!$S$3:$S$26,0))) ->  | AC174: =IF(B174="","",IF(AD174="NA","NA",INDEX(TPravesh!$AA$5:$AA$16,MATCH(AD174,TPravesh!$AQ$5:$AQ$16,0)))) ->  | AD174: =IF(B174="","",IF(Q174="","",IF(Q174="NA","NA",INDEX(TPravesh!$AQ$5:$AQ$16,MATCH(Q174,TPravesh!$AA$5:$AA$16,0))))) ->  | AF174: =IF(B174="","",IF(W174="YES",HOME!$C$7,0)) ->  | AG174: =IF(B174="","",IF(S174="YES",HOME!$C$6,0)) ->  | AL174: =IF(B174="","",IF(I174="OLD",VLOOKUP(O174,TPravesh!$B$21:$G$24,4),VLOOKUP(O174,TPravesh!$B$28:$G$29,4))) ->  | AW174: =IF(B174="","",IF(X174="YES",IF(I174="OLD",ROUND(SUM(O174+O174*HOME!$F$6)*50%,0),ROUND(SUM(O174+O174*HOME!$F$6)*50%,0)))) ->  | AX174: =IF(B174="","",IF(X174="YES",IF(I174="OLD",ROUND(SUM(AO174+AO174*HOME!$F$6)*50%,0),ROUND(SUM(AO174+AO174*HOME!$F$6)*50%,0)))) ->  | BB174: =IF(B174="","",IF(N174="FIX PAY",0,IF(BA174="OLD",AQ174/1000*HOME!$F$7,0))) ->  | BC174: =IF(B174="","",IF(N174="VACANT",0,IF(N174="FIX PAY",0,IF(BA174="NEW",AQ174/1000*HOME!$F$6,0)))) ->  | BD174: =IF(B174="","",IF(N174="FIX PAY",0,IF(BA174="OLD",AR174/1000*HOME!$F$7,0))) ->  | BE174: =IF(B174="","",IF(N174="VACANT",0,IF(N174="FIX PAY",0,IF(BA174="NEW",AR174/1000*HOME!$F$6,0)))) -> 
M175: =IF(L175="","",INDEX(TPravesh!$U$3:$U$26,MATCH('Emp Data'!L175,TPravesh!$S$3:$S$26,0))) ->  | AC175: =IF(B175="","",IF(AD175="NA","NA",INDEX(TPravesh!$AA$5:$AA$16,MATCH(AD175,TPravesh!$AQ$5:$AQ$16,0)))) ->  | AD175: =IF(B175="","",IF(Q175="","",IF(Q175="NA","NA",INDEX(TPravesh!$AQ$5:$AQ$16,MATCH(Q175,TPravesh!$AA$5:$AA$16,0))))) ->  | AF175: =IF(B175="","",IF(W175="YES",HOME!$C$7,0)) ->  | AG175: =IF(B175="","",IF(S175="YES",HOME!$C$6,0)) ->  | AL175: =IF(B175="","",IF(I175="OLD",VLOOKUP(O175,TPravesh!$B$21:$G$24,4),VLOOKUP(O175,TPravesh!$B$28:$G$29,4))) ->  | AW175: =IF(B175="","",IF(X175="YES",IF(I175="OLD",ROUND(SUM(O175+O175*HOME!$F$6)*50%,0),ROUND(SUM(O175+O175*HOME!$F$6)*50%,0)))) ->  | AX175: =IF(B175="","",IF(X175="YES",IF(I175="OLD",ROUND(SUM(AO175+AO175*HOME!$F$6)*50%,0),ROUND(SUM(AO175+AO175*HOME!$F$6)*50%,0)))) ->  | BB175: =IF(B175="","",IF(N175="FIX PAY",0,IF(BA175="OLD",AQ175/1000*HOME!$F$7,0))) ->  | BC175: =IF(B175="","",IF(N175="VACANT",0,IF(N175="FIX PAY",0,IF(BA175="NEW",AQ175/1000*HOME!$F$6,0)))) ->  | BD175: =IF(B175="","",IF(N175="FIX PAY",0,IF(BA175="OLD",AR175/1000*HOME!$F$7,0))) ->  | BE175: =IF(B175="","",IF(N175="VACANT",0,IF(N175="FIX PAY",0,IF(BA175="NEW",AR175/1000*HOME!$F$6,0)))) -> 
M176: =IF(L176="","",INDEX(TPravesh!$U$3:$U$26,MATCH('Emp Data'!L176,TPravesh!$S$3:$S$26,0))) ->  | AC176: =IF(B176="","",IF(AD176="NA","NA",INDEX(TPravesh!$AA$5:$AA$16,MATCH(AD176,TPravesh!$AQ$5:$AQ$16,0)))) ->  | AD176: =IF(B176="","",IF(Q176="","",IF(Q176="NA","NA",INDEX(TPravesh!$AQ$5:$AQ$16,MATCH(Q176,TPravesh!$AA$5:$AA$16,0))))) ->  | AF176: =IF(B176="","",IF(W176="YES",HOME!$C$7,0)) ->  | AG176: =IF(B176="","",IF(S176="YES",HOME!$C$6,0)) ->  | AL176: =IF(B176="","",IF(I176="OLD",VLOOKUP(O176,TPravesh!$B$21:$G$24,4),VLOOKUP(O176,TPravesh!$B$28:$G$29,4))) ->  | AW176: =IF(B176="","",IF(X176="YES",IF(I176="OLD",ROUND(SUM(O176+O176*HOME!$F$6)*50%,0),ROUND(SUM(O176+O176*HOME!$F$6)*50%,0)))) ->  | AX176: =IF(B176="","",IF(X176="YES",IF(I176="OLD",ROUND(SUM(AO176+AO176*HOME!$F$6)*50%,0),ROUND(SUM(AO176+AO176*HOME!$F$6)*50%,0)))) ->  | BB176: =IF(B176="","",IF(N176="FIX PAY",0,IF(BA176="OLD",AQ176/1000*HOME!$F$7,0))) ->  | BC176: =IF(B176="","",IF(N176="VACANT",0,IF(N176="FIX PAY",0,IF(BA176="NEW",AQ176/1000*HOME!$F$6,0)))) ->  | BD176: =IF(B176="","",IF(N176="FIX PAY",0,IF(BA176="OLD",AR176/1000*HOME!$F$7,0))) ->  | BE176: =IF(B176="","",IF(N176="VACANT",0,IF(N176="FIX PAY",0,IF(BA176="NEW",AR176/1000*HOME!$F$6,0)))) -> 
M177: =IF(L177="","",INDEX(TPravesh!$U$3:$U$26,MATCH('Emp Data'!L177,TPravesh!$S$3:$S$26,0))) ->  | AC177: =IF(B177="","",IF(AD177="NA","NA",INDEX(TPravesh!$AA$5:$AA$16,MATCH(AD177,TPravesh!$AQ$5:$AQ$16,0)))) ->  | AD177: =IF(B177="","",IF(Q177="","",IF(Q177="NA","NA",INDEX(TPravesh!$AQ$5:$AQ$16,MATCH(Q177,TPravesh!$AA$5:$AA$16,0))))) ->  | AF177: =IF(B177="","",IF(W177="YES",HOME!$C$7,0)) ->  | AG177: =IF(B177="","",IF(S177="YES",HOME!$C$6,0)) ->  | AL177: =IF(B177="","",IF(I177="OLD",VLOOKUP(O177,TPravesh!$B$21:$G$24,4),VLOOKUP(O177,TPravesh!$B$28:$G$29,4))) ->  | AW177: =IF(B177="","",IF(X177="YES",IF(I177="OLD",ROUND(SUM(O177+O177*HOME!$F$6)*50%,0),ROUND(SUM(O177+O177*HOME!$F$6)*50%,0)))) ->  | AX177: =IF(B177="","",IF(X177="YES",IF(I177="OLD",ROUND(SUM(AO177+AO177*HOME!$F$6)*50%,0),ROUND(SUM(AO177+AO177*HOME!$F$6)*50%,0)))) ->  | BB177: =IF(B177="","",IF(N177="FIX PAY",0,IF(BA177="OLD",AQ177/1000*HOME!$F$7,0))) ->  | BC177: =IF(B177="","",IF(N177="VACANT",0,IF(N177="FIX PAY",0,IF(BA177="NEW",AQ177/1000*HOME!$F$6,0)))) ->  | BD177: =IF(B177="","",IF(N177="FIX PAY",0,IF(BA177="OLD",AR177/1000*HOME!$F$7,0))) ->  | BE177: =IF(B177="","",IF(N177="VACANT",0,IF(N177="FIX PAY",0,IF(BA177="NEW",AR177/1000*HOME!$F$6,0)))) -> 
M178: =IF(L178="","",INDEX(TPravesh!$U$3:$U$26,MATCH('Emp Data'!L178,TPravesh!$S$3:$S$26,0))) ->  | AC178: =IF(B178="","",IF(AD178="NA","NA",INDEX(TPravesh!$AA$5:$AA$16,MATCH(AD178,TPravesh!$AQ$5:$AQ$16,0)))) ->  | AD178: =IF(B178="","",IF(Q178="","",IF(Q178="NA","NA",INDEX(TPravesh!$AQ$5:$AQ$16,MATCH(Q178,TPravesh!$AA$5:$AA$16,0))))) ->  | AF178: =IF(B178="","",IF(W178="YES",HOME!$C$7,0)) ->  | AG178: =IF(B178="","",IF(S178="YES",HOME!$C$6,0)) ->  | AL178: =IF(B178="","",IF(I178="OLD",VLOOKUP(O178,TPravesh!$B$21:$G$24,4),VLOOKUP(O178,TPravesh!$B$28:$G$29,4))) ->  | AW178: =IF(B178="","",IF(X178="YES",IF(I178="OLD",ROUND(SUM(O178+O178*HOME!$F$6)*50%,0),ROUND(SUM(O178+O178*HOME!$F$6)*50%,0)))) ->  | AX178: =IF(B178="","",IF(X178="YES",IF(I178="OLD",ROUND(SUM(AO178+AO178*HOME!$F$6)*50%,0),ROUND(SUM(AO178+AO178*HOME!$F$6)*50%,0)))) ->  | BB178: =IF(B178="","",IF(N178="FIX PAY",0,IF(BA178="OLD",AQ178/1000*HOME!$F$7,0))) ->  | BC178: =IF(B178="","",IF(N178="VACANT",0,IF(N178="FIX PAY",0,IF(BA178="NEW",AQ178/1000*HOME!$F$6,0)))) ->  | BD178: =IF(B178="","",IF(N178="FIX PAY",0,IF(BA178="OLD",AR178/1000*HOME!$F$7,0))) ->  | BE178: =IF(B178="","",IF(N178="VACANT",0,IF(N178="FIX PAY",0,IF(BA178="NEW",AR178/1000*HOME!$F$6,0)))) -> 
M179: =IF(L179="","",INDEX(TPravesh!$U$3:$U$26,MATCH('Emp Data'!L179,TPravesh!$S$3:$S$26,0))) ->  | AC179: =IF(B179="","",IF(AD179="NA","NA",INDEX(TPravesh!$AA$5:$AA$16,MATCH(AD179,TPravesh!$AQ$5:$AQ$16,0)))) ->  | AD179: =IF(B179="","",IF(Q179="","",IF(Q179="NA","NA",INDEX(TPravesh!$AQ$5:$AQ$16,MATCH(Q179,TPravesh!$AA$5:$AA$16,0))))) ->  | AF179: =IF(B179="","",IF(W179="YES",HOME!$C$7,0)) ->  | AG179: =IF(B179="","",IF(S179="YES",HOME!$C$6,0)) ->  | AL179: =IF(B179="","",IF(I179="OLD",VLOOKUP(O179,TPravesh!$B$21:$G$24,4),VLOOKUP(O179,TPravesh!$B$28:$G$29,4))) ->  | AW179: =IF(B179="","",IF(X179="YES",IF(I179="OLD",ROUND(SUM(O179+O179*HOME!$F$6)*50%,0),ROUND(SUM(O179+O179*HOME!$F$6)*50%,0)))) ->  | AX179: =IF(B179="","",IF(X179="YES",IF(I179="OLD",ROUND(SUM(AO179+AO179*HOME!$F$6)*50%,0),ROUND(SUM(AO179+AO179*HOME!$F$6)*50%,0)))) ->  | BB179: =IF(B179="","",IF(N179="FIX PAY",0,IF(BA179="OLD",AQ179/1000*HOME!$F$7,0))) ->  | BC179: =IF(B179="","",IF(N179="VACANT",0,IF(N179="FIX PAY",0,IF(BA179="NEW",AQ179/1000*HOME!$F$6,0)))) ->  | BD179: =IF(B179="","",IF(N179="FIX PAY",0,IF(BA179="OLD",AR179/1000*HOME!$F$7,0))) ->  | BE179: =IF(B179="","",IF(N179="VACANT",0,IF(N179="FIX PAY",0,IF(BA179="NEW",AR179/1000*HOME!$F$6,0)))) -> 
M180: =IF(L180="","",INDEX(TPravesh!$U$3:$U$26,MATCH('Emp Data'!L180,TPravesh!$S$3:$S$26,0))) ->  | AC180: =IF(B180="","",IF(AD180="NA","NA",INDEX(TPravesh!$AA$5:$AA$16,MATCH(AD180,TPravesh!$AQ$5:$AQ$16,0)))) ->  | AD180: =IF(B180="","",IF(Q180="","",IF(Q180="NA","NA",INDEX(TPravesh!$AQ$5:$AQ$16,MATCH(Q180,TPravesh!$AA$5:$AA$16,0))))) ->  | AF180: =IF(B180="","",IF(W180="YES",HOME!$C$7,0)) ->  | AG180: =IF(B180="","",IF(S180="YES",HOME!$C$6,0)) ->  | AL180: =IF(B180="","",IF(I180="OLD",VLOOKUP(O180,TPravesh!$B$21:$G$24,4),VLOOKUP(O180,TPravesh!$B$28:$G$29,4))) ->  | AW180: =IF(B180="","",IF(X180="YES",IF(I180="OLD",ROUND(SUM(O180+O180*HOME!$F$6)*50%,0),ROUND(SUM(O180+O180*HOME!$F$6)*50%,0)))) ->  | AX180: =IF(B180="","",IF(X180="YES",IF(I180="OLD",ROUND(SUM(AO180+AO180*HOME!$F$6)*50%,0),ROUND(SUM(AO180+AO180*HOME!$F$6)*50%,0)))) ->  | BB180: =IF(B180="","",IF(N180="FIX PAY",0,IF(BA180="OLD",AQ180/1000*HOME!$F$7,0))) ->  | BC180: =IF(B180="","",IF(N180="VACANT",0,IF(N180="FIX PAY",0,IF(BA180="NEW",AQ180/1000*HOME!$F$6,0)))) ->  | BD180: =IF(B180="","",IF(N180="FIX PAY",0,IF(BA180="OLD",AR180/1000*HOME!$F$7,0))) ->  | BE180: =IF(B180="","",IF(N180="VACANT",0,IF(N180="FIX PAY",0,IF(BA180="NEW",AR180/1000*HOME!$F$6,0)))) -> 
M181: =IF(L181="","",INDEX(TPravesh!$U$3:$U$26,MATCH('Emp Data'!L181,TPravesh!$S$3:$S$26,0))) ->  | AC181: =IF(B181="","",IF(AD181="NA","NA",INDEX(TPravesh!$AA$5:$AA$16,MATCH(AD181,TPravesh!$AQ$5:$AQ$16,0)))) ->  | AD181: =IF(B181="","",IF(Q181="","",IF(Q181="NA","NA",INDEX(TPravesh!$AQ$5:$AQ$16,MATCH(Q181,TPravesh!$AA$5:$AA$16,0))))) ->  | AF181: =IF(B181="","",IF(W181="YES",HOME!$C$7,0)) ->  | AG181: =IF(B181="","",IF(S181="YES",HOME!$C$6,0)) ->  | AL181: =IF(B181="","",IF(I181="OLD",VLOOKUP(O181,TPravesh!$B$21:$G$24,4),VLOOKUP(O181,TPravesh!$B$28:$G$29,4))) ->  | AW181: =IF(B181="","",IF(X181="YES",IF(I181="OLD",ROUND(SUM(O181+O181*HOME!$F$6)*50%,0),ROUND(SUM(O181+O181*HOME!$F$6)*50%,0)))) ->  | AX181: =IF(B181="","",IF(X181="YES",IF(I181="OLD",ROUND(SUM(AO181+AO181*HOME!$F$6)*50%,0),ROUND(SUM(AO181+AO181*HOME!$F$6)*50%,0)))) ->  | BB181: =IF(B181="","",IF(N181="FIX PAY",0,IF(BA181="OLD",AQ181/1000*HOME!$F$7,0))) ->  | BC181: =IF(B181="","",IF(N181="VACANT",0,IF(N181="FIX PAY",0,IF(BA181="NEW",AQ181/1000*HOME!$F$6,0)))) ->  | BD181: =IF(B181="","",IF(N181="FIX PAY",0,IF(BA181="OLD",AR181/1000*HOME!$F$7,0))) ->  | BE181: =IF(B181="","",IF(N181="VACANT",0,IF(N181="FIX PAY",0,IF(BA181="NEW",AR181/1000*HOME!$F$6,0)))) -> 
M182: =IF(L182="","",INDEX(TPravesh!$U$3:$U$26,MATCH('Emp Data'!L182,TPravesh!$S$3:$S$26,0))) ->  | AC182: =IF(B182="","",IF(AD182="NA","NA",INDEX(TPravesh!$AA$5:$AA$16,MATCH(AD182,TPravesh!$AQ$5:$AQ$16,0)))) ->  | AD182: =IF(B182="","",IF(Q182="","",IF(Q182="NA","NA",INDEX(TPravesh!$AQ$5:$AQ$16,MATCH(Q182,TPravesh!$AA$5:$AA$16,0))))) ->  | AF182: =IF(B182="","",IF(W182="YES",HOME!$C$7,0)) ->  | AG182: =IF(B182="","",IF(S182="YES",HOME!$C$6,0)) ->  | AL182: =IF(B182="","",IF(I182="OLD",VLOOKUP(O182,TPravesh!$B$21:$G$24,4),VLOOKUP(O182,TPravesh!$B$28:$G$29,4))) ->  | AW182: =IF(B182="","",IF(X182="YES",IF(I182="OLD",ROUND(SUM(O182+O182*HOME!$F$6)*50%,0),ROUND(SUM(O182+O182*HOME!$F$6)*50%,0)))) ->  | AX182: =IF(B182="","",IF(X182="YES",IF(I182="OLD",ROUND(SUM(AO182+AO182*HOME!$F$6)*50%,0),ROUND(SUM(AO182+AO182*HOME!$F$6)*50%,0)))) ->  | BB182: =IF(B182="","",IF(N182="FIX PAY",0,IF(BA182="OLD",AQ182/1000*HOME!$F$7,0))) ->  | BC182: =IF(B182="","",IF(N182="VACANT",0,IF(N182="FIX PAY",0,IF(BA182="NEW",AQ182/1000*HOME!$F$6,0)))) ->  | BD182: =IF(B182="","",IF(N182="FIX PAY",0,IF(BA182="OLD",AR182/1000*HOME!$F$7,0))) ->  | BE182: =IF(B182="","",IF(N182="VACANT",0,IF(N182="FIX PAY",0,IF(BA182="NEW",AR182/1000*HOME!$F$6,0)))) -> 
M183: =IF(L183="","",INDEX(TPravesh!$U$3:$U$26,MATCH('Emp Data'!L183,TPravesh!$S$3:$S$26,0))) ->  | AC183: =IF(B183="","",IF(AD183="NA","NA",INDEX(TPravesh!$AA$5:$AA$16,MATCH(AD183,TPravesh!$AQ$5:$AQ$16,0)))) ->  | AD183: =IF(B183="","",IF(Q183="","",IF(Q183="NA","NA",INDEX(TPravesh!$AQ$5:$AQ$16,MATCH(Q183,TPravesh!$AA$5:$AA$16,0))))) ->  | AF183: =IF(B183="","",IF(W183="YES",HOME!$C$7,0)) ->  | AG183: =IF(B183="","",IF(S183="YES",HOME!$C$6,0)) ->  | AL183: =IF(B183="","",IF(I183="OLD",VLOOKUP(O183,TPravesh!$B$21:$G$24,4),VLOOKUP(O183,TPravesh!$B$28:$G$29,4))) ->  | AW183: =IF(B183="","",IF(X183="YES",IF(I183="OLD",ROUND(SUM(O183+O183*HOME!$F$6)*50%,0),ROUND(SUM(O183+O183*HOME!$F$6)*50%,0)))) ->  | AX183: =IF(B183="","",IF(X183="YES",IF(I183="OLD",ROUND(SUM(AO183+AO183*HOME!$F$6)*50%,0),ROUND(SUM(AO183+AO183*HOME!$F$6)*50%,0)))) ->  | BB183: =IF(B183="","",IF(N183="FIX PAY",0,IF(BA183="OLD",AQ183/1000*HOME!$F$7,0))) ->  | BC183: =IF(B183="","",IF(N183="VACANT",0,IF(N183="FIX PAY",0,IF(BA183="NEW",AQ183/1000*HOME!$F$6,0)))) ->  | BD183: =IF(B183="","",IF(N183="FIX PAY",0,IF(BA183="OLD",AR183/1000*HOME!$F$7,0))) ->  | BE183: =IF(B183="","",IF(N183="VACANT",0,IF(N183="FIX PAY",0,IF(BA183="NEW",AR183/1000*HOME!$F$6,0)))) -> 
